Workbook

Sheet DOE - FIPStoPayeeCodeConvTable (hidden)
B1: Manually edit this file | F1: FY= | G1: 2020
A2: FIPS | B2: FIPS DESC | C2: PAYEE | D2: PAYEE DESC | E2: Pool Rate
A3: 1 | B3: Accomack Co | C3: 00001 | D3: Accomack County | E3: 0.2332
A4: 3 | B4: Albemarle Co | C4: 00002 | D4: Albemarle County | E4: 0.4474
A5: 5 | B5: Alleghany Co | C5: 00003 | D5: Alleghany County | E5: 0.1924
A6: 7 | B6: Amelia Co | C6: 00004 | D6: Amelia County | E6: 0.3268
A7: 9 | B7: Amherst Co | C7: 00005 | D7: Amherst County | E7: 0.2722
A8: 11 | B8: Appomattox Co | C8: 00006 | D8: Appomattox County | E8: 0.2639
A9: 13 | B9: Arlington Co | C9: 00007 | D9: Arlington County | E9: 0.4602
A10: 15 | B10: Augusta Co | C10: 00008 | D10: Augusta County | E10: 0.3302
A11: 17 | B11: Bath Co | C11: 00009 | D11: Bath County | E11: 0.4278
A12: 19 | B12: Bedford Co | C12: 00010 | D12: Bedford County | E12: 0.31112
A13: 21 | B13: Bland Co | C13: 00011 | D13: Bland County | E13: 0.2109
A14: 23 | B14: Botetourt Co | C14: 00012 | D14: Botetourt County | E14: 0.3602
A15: 25 | B15: Brunswick Co | C15: 00013 | D15: Brunswick County | E15: 0.2439
A16: 27 | B16: Buchanan Co | C16: 00014 | D16: Buchanan County | E16: 0.3156
A17: 29 | B17: Buckingham Co | C17: 00015 | D17: Buckingham County | E17: 0.2023
A18: 31 | B18: Campbell Co | C18: 00016 | D18: Campbell County | E18: 0.3107
A19: 33 | B19: Caroline Co | C19: 00017 | D19: Caroline County | E19: 0.3308
A20: 35 | B20: Carroll Co | C20: 00018 | D20: Carroll County | E20: 0.291
A21: 36 | B21: Charles City Co | C21: 00019 | D21: Charles City | E21: 0.3131
A22: 37 | B22: Charlotte Co | C22: 00020 | D22: Charlotte County | E22: 0.2204
A23: 41 | B23: Chesterfield Co | C23: 00021 | D23: Chesterfield County | E23: 0.3853
A24: 43 | B24: Clarke Co | C24: 00022 | D24: Clarke County | E24: 0.4797
A25: 45 | B25: Craig Co | C25: 00023 | D25: Craig County | E25: 0.2901
A26: 47 | B26: Culpeper Co | C26: 00024 | D26: Culpeper County | E26: 0.3767
A27: 49 | B27: Cumberland Co | C27: 00025 | D27: Cumberland County | E27: 0.304
A28: 51 | B28: Dickenson Co | C28: 00026 | D28: Dickenson County | E28: 0.3042
A29: 53 | B29: Dinwiddie Co | C29: 00027 | D29: Dinwiddie County | E29: 0.3358
A30: 57 | B30: Essex Co | C30: 00028 | D30: Essex County | E30: 0.3853
A31: 59 | B31: Fairfax Co | C31: 00029 | D31: Fairfax County | E31: 0.4611
A32: 61 | B32: Fauquier Co | C32: 00030 | D32: Fauquier County | E32: 0.4584
A33: 63 | B33: Floyd Co | C33: 00031 | D33: Floyd County | E33: 0.2324
A34: 65 | B34: Fluvanna Co | C34: 00032 | D34: Fluvanna County | E34: 0.3811
A35: 67 | B35: Franklin Co | C35: 00033 | D35: Franklin County | E35: 0.283
A36: 69 | B36: Frederick Co | C36: 00034 | D36: Frederick County | E36: 0.4348
A37: 71 | B37: Giles Co | C37: 00035 | D37: Giles County | E37: 0.2898
A38: 73 | B38: Gloucester Co | C38: 00036 | D38: Gloucester County | E38: 0.3687
A39: 75 | B39: Goochland Co | C39: 00037 | D39: Goochland County | E39: 0.4871
A40: 77 | B40: Grayson Co | C40: 00038 | D40: Grayson County | E40: 0.2109
A41: 79 | B41: Greene Co | C41: 00039 | D41: Greene County | E41: 0.3471
A42: 81 | B42: Greensville Co | C42: 00040 | D42: Greensville County | E42: 0.2266
A43: 83 | B43: Halifax Co | C43: 00041 | D43: Halifax County | E43: 0.2335
A44: 85 | B44: Hanover Co | C44: 00042 | D44: Hanover County | E44: 0.4444
A45: 87 | B45: Henrico Co | C45: 00043 | D45: Henrico County | E45: 0.3755
A46: 89 | B46: Henry Co | C46: 00044 | D46: Henry County | E46: 0.2786
A47: 91 | B47: Highland Co | C47: 00045 | D47: Highland County | E47: 0.3822
A48: 93 | B48: Isle Of Wight Co | C48: 00046 | D48: Isle of Wight | E48: 0.3613
A49: 95 | B49: James City Co | C49: 00047 | D49: James City County | E49: 0.4483
A50: 97 | B50: King And Queen Co | C50: 00049 | D50: King and Queen County | E50: 0.3144
A51: 99 | B51: King George Co | C51: 00048 | D51: King George County | E51: 0.3627
A52: 101 | B52: King William Co | C52: 00050 | D52: King William County | E52: 0.3853
A53: 103 | B53: Lancaster Co | C53: 00051 | D53: Lancaster County | E53: 0.4391
A54: 105 | B54: Lee Co | C54: 00052 | D54: Lee County | E54: 0.2245
A55: 107 | B55: Loudoun Co | C55: 00053 | D55: Loudoun County | E55: 0.4764
A56: 109 | B56: Louisa Co | C56: 00054 | D56: Louisa County | E56: 0.4401
A57: 111 | B57: Lunenburg Co | C57: 00055 | D57: Lunenburg County | E57: 0.1698
A58: 113 | B58: Madison Co | C58: 00056 | D58: Madison County | E58: 0.3355
A59: 115 | B59: Mathews Co | C59: 00057 | D59: Mathews County | E59: 0.4271
A60: 117 | B60: Mecklenburg Co | C60: 00058 | D60: Mecklenburg County | E60: 0.2286
A61: 119 | B61: Middlesex Co | C61: 00059 | D61: Middlesex County | E61: 0.4333
A62: 121 | B62: Montgomery Co | C62: 00060 | D62: Montgomery County | E62: 0.2834
A63: 125 | B63: Nelson Co | C63: 00062 | D63: Nelson County | E63: 0.3132
A64: 127 | B64: New Kent Co | C64: 00063 | D64: New Kent County | E64: 0.4329
A65: 131 | B65: Northampton Co | C65: 00001 | D65: Accomack County | E65: 0.1971
A66: 133 | B66: Northumberland Co | C66: 00066 | D66: Northumberland County | E66: 0.3304
A67: 135 | B67: Nottoway Co | C67: 00067 | D67: Nottoway County | E67: 0.2686
A68: 137 | B68: Orange Co | C68: 00068 | D68: Orange County | E68: 0.4083
A69: 139 | B69: Page Co | C69: 00069 | D69: Page County | E69: 0.2865
A70: 141 | B70: Patrick Co | C70: 00070 | D70: Patrick County | E70: 0.2539
A71: 143 | B71: Pittsylvania Co | C71: 00071 | D71: Pittsylvania County | E71: 0.2355
A72: 145 | B72: Powhatan Co | C72: 00072 | D72: Powhatan County | E72: 0.4342
A73: 147 | B73: Prince Edward Co | C73: 00073 | D73: Prince Edward County | E73: 0.2232
A74: 149 | B74: Prince George Co | C74: 00074 | D74: Prince George County | E74: 0.3716
A75: 153 | B75: Prince William Co | C75: 00075 | D75: Prince William County | E75: 0.3414
A76: 155 | B76: Pulaski Co | C76: 00077 | D76: Pulaski County | E76: 0.2923
A77: 157 | B77: Rappahannock Co | C77: 00078 | D77: Rappahannock County | E77: 0.4199
A78: 159 | B78: Richmond Co | C78: 00079 | D78: Richmond County | E78: 0.3227
A79: 161 | B79: Roanoke Co | C79: 00080 | D79: Roanoke County | E79: 0.4397
A80: 163 | B80: Rockbridge Co | C80: 00081 | D80: Rockbridge County | E80: 0.2336
A81: 165 | B81: Rockingham Co | C81: 00082 | D81: Rockingham County | E81: 0.3445
A82: 167 | B82: Russell Co | C82: 00083 | D82: Russell County | E82: 0.1894
A83: 169 | B83: Scott Co | C83: 00084 | D83: Scott County | E83: 0.3154
A84: 171 | B84: Shenandoah Co | C84: 00085 | D84: Shenandoah County | E84: 0.3517
A85: 173 | B85: Smyth Co | C85: 00086 | D85: Smyth County | E85: 0.2337
A86: 175 | B86: Southampton Co | C86: 00087 | D86: Southampton County | E86: 0.323
A87: 177 | B87: Spotsylvania Co | C87: 00088 | D87: Spotsylvania County | E87: 0.4588
A88: 179 | B88: Stafford Co | C88: 00089 | D88: Stafford County | E88: 0.4439
A89: 181 | B89: Surry Co | C89: 00090 | D89: Surry County | E89: 0.3979
A90: 183 | B90: Sussex Co | C90: 00091 | D90: Sussex County | E90: 0.2387
A91: 185 | B91: Tazewell Co | C91: 00092 | D91: Tazewell County | E91: 0.2455
A92: 187 | B92: Warren Co | C92: 00093 | D92: Warren County | E92: 0.3853
A93: 191 | B93: Washington Co | C93: 00094 | D93: Washington County | E93: 0.276
A94: 193 | B94: Westmoreland Co | C94: 00095 | D94: Westmoreland County | E94: 0.3025
A95: 195 | B95: Wise Co | C95: 00096 | D95: Wise County | E95: 0.2755
A96: 197 | B96: Wythe Co | C96: 00097 | D96: Wythe County | E96: 0.2708 | L96: Jul - Sept | M96: Oct - June
A97: 199 | B97: York Co | C97: 00098 | D97: York County | E97: 0.3888 | J97: (Tab Name with) OR = Federal Match rate | L97: 0.88
A98: 510 | B98: Alexandria City | C98: 00101 | D98: Alexandria City | E98: 0.5309 | J98: (Tab Name with) NR = Federal Match rate | M98: 0.765
A99: 520 | B99: Bristol City | C99: 00094 | D99: Washington County | E99: 0.2547
A100: 530 | B100: Buena Vista City | C100: 00103 | D100: Buena Vista City | E100: 0.2329
A101: 540 | B101: Charlottesville City | C101: 00104 | D101: Charlottesville City | E101: 0.3068
A102: 550 | B102: Chesapeake City | C102: 00136 | D102: Chesapeake City | E102: 0.3715
A103: 570 | B103: Colonial Heights City | C103: 00021 | D103: Chesterfield County | E103: 0.4027
A104: 580 | B104: Covington City | C104: 00107 | D104: Covington City | E104: 0.2496
A105: 590 | B105: Danville City | C105: 00108 | D105: Danville City | E105: 0.2223
A106: 620 | B106: Franklin City | C106: 00135 | D106: Franklin City | E106: 0.371
A107: 630 | B107: Fredericksburg City | C107: 00110 | D107: Fredericksburg City | E107: 0.3441
A108: 640 | B108: Galax City | C108: 00111 | D108: Galax City | E108: 0.3146
A109: 650 | B109: Hampton City | C109: 00112 | D109: Hampton City | E109: 0.3223
A110: 660 | B110: Harrisonburg City | C110: 00082 | D110: Rockingham County | E110: 0.3808
A111: 670 | B111: Hopewell City | C111: 00114 | D111: Hopewell City | E111: 0.2667
A112: 678 | B112: Lexington City | C112: 00137 | D112: Lexington City | E112: 0.3302
A113: 680 | B113: Lynchburg City | C113: 00115 | D113: Lynchburg City | E113: 0.2736
A114: 683 | B114: Manassas City | C114: 00143 | D114: Manassas City | E114: 0.4168
A115: 685 | B115: Manassas Park City | C115: 00144 | D115: Manassas Park City | E115: 0.4273
A116: 690 | B116: Martinsville City | C116: 00116 | D116: Martinsville City | E116: 0.3321
A117: 700 | B117: Newport News City | C117: 00117 | D117: Newport News City | E117: 0.2773
A118: 710 | B118: Norfolk City | C118: 00118 | D118: Norfolk City | E118: 0.2455
A119: 720 | B119: Norton City | C119: 00119 | D119: Norton City | E119: 0.3254
A120: 730 | B120: Petersburg City | C120: 00120 | D120: Petersburg City | E120: 0.3535
A121: 735 | B121: Poquoson City | C121: 00142 | D121: Poquoson City | E121: 0.2787
A122: 740 | B122: Portsmouth City | C122: 00121 | D122: Portsmouth City | E122: 0.2605
A123: 750 | B123: Radford City | C123: 00122 | D123: Radford City | E123: 0.2035
A124: 760 | B124: Richmond City | C124: 00123 | D124: Richmond City | E124: 0.3691
A125: 770 | B125: Roanoke City | C125: 00124 | D125: Roanoke City | E125: 0.3072
A126: 775 | B126: Salem City | C126: 00139 | D126: Salem City | E126: 0.3513
A127: 790 | B127: Staunton City | C127: 00126 | D127: Staunton City | E127: 0.2699
A128: 800 | B128: Suffolk City | C128: 00127 | D128: Suffolk City | E128: 0.2432
A129: 810 | B129: Virginia Beach City | C129: 00128 | D129: Virginia Beach City | E129: 0.3569
A130: 820 | B130: Waynesboro City | C130: 00130 | D130: Waynesboro City | E130: 0.3843
A131: 830 | B131: Williamsburg City | C131: 00850 | D131: Williamsburg City | E131: 0.4553
A132: 840 | B132: Winchester City | C132: 00132 | D132: Winchester City | E132: 0.4587

Sheet Extended OR (hidden)
A1: FY | B1: ='DOE - FIPStoPayeeCodeConvTable'!G1 -> 2020 | C1: MEDICAID ADJUSTMENTS--EXTENDED PAYMENTS TO PROVIDERS | O1: ="Extended to be paided in this SFY = " & B1 -> Extended to be paided in this SFY = 2020 | T1: xx | U1: 0.88 | V1: 0.12 | W1: (POOL) | X1: 1.25
U2: FEDERAL | V2: STATE/ | W2: (RATE) | X2: Factor
A3: FIPS | S3: Grand | U3: MEDICAID | V3: LOCAL | W3: LOCAL | Y3: LOCAL | Z3: STATE
A4: CODE | B4: LOCALITY | C4: =TEXT("7/1/" & $B$1-1,"mmm-yyyy") -> Jul-2019 | D4: =TEXT("8/1/" & $B$1-1,"mmm-yyyy") -> Aug-2019 | E4: =TEXT("9/1/" & $B$1-1,"mmm-yyyy") -> Sep-2019 | F4: =TEXT("10/1/" & $B$1-1,"mmm-yyyy") -> Oct-2019 | G4: =TEXT("11/1/" & $B$1-1,"mmm-yyyy") -> Nov-2019 | H4: =TEXT("12/1/" & $B$1-1,"mmm-yyyy") -> Dec-2019 | I4: =TEXT("1/1/" & $B$1,"mmm-yyyy") -> Jan-2020 | J4: =TEXT("2/1/" & $B$1,"mmm-yyyy") -> Feb-2020 | K4: =TEXT("3/1/" & $B$1,"mmm-yyyy") -> Mar-2020 | L4: =TEXT("4/1/" & $B$1,"mmm-yyyy") -> Apr-2020 | M4: =TEXT("5/1/" & $B$1,"mmm-yyyy") -> May-2020 | N4: =TEXT("6/1/" & $B$1,"mmm-yyyy") -> Jun-2020 | O4: =TEXT("7/1/" & $B$1,"mmm-yyyy") -> Jul-2020 | P4: =TEXT("8/1/" & $B$1,"mmm-yyyy") -> Aug-2020 | Q4: =TEXT("9/1/" & $B$1,"mmm-yyyy") -> Sep-2020 | R4: =TEXT("10/1/" & $B$1,"mmm-yyyy") -> Oct-2020 | S4: Total | U4: RATE/Share | V4: SHARE | W4: MATCH Rate | Y4: MATCH | Z4: SHARE
A5: Totals | C5: =SUM(C6:C1200) -> 108051.37 | D5: 126401.87 | E5: =SUM(E6:E1200) -> 151369.4 | F5: =SUM(F6:F1200) -> 0 | G5: =SUM(G6:G1200) -> 0 | H5: =SUM(H6:H1200) -> 0 | I5: 0 | J5: 0 | K5: 0 | L5: 0 | M5: 0 | N5: =SUM(N6:N1200) -> 0 | O5: 0 | P5: =SUM(P6:P1200) -> 0 | Q5: 0 | R5: 0 | S5: =SUM(C5:R5) -> 385822.64 | T5: = | U5: =SUM(U6:U399) -> 339523.91 | V5: =SUM(V6:V399) -> 46298.73 | W5: = | Y5: =SUM(Y6:Y399) -> 19270.98 | Z5: =SUM(Z6:Z399) -> 27027.75
A6: 1 | B6: =LOOKUP(A6,'DOE - FIPStoPayeeCodeConvTable'!$A$3:$A$213,'DOE - FIPStoPayeeCodeConvTable'!$B$3:$B$213) -> Accomack Co | C6: 0 | D6: 0 | E6: 0 | S6: =SUM(C6:R6) -> 0 | U6: =ROUND($U$1*S6,2) -> 0 | V6: =SUM(S6)-SUM(U6) -> 0 | W6: =LOOKUP(A6,'DOE - FIPStoPayeeCodeConvTable'!$A$3:$A$213,'DOE - FIPStoPayeeCodeConvTable'!$E$3:$E$213) -> 0.2332 | X6: =$X$1*W6 -> 0.2915 | Y6: =ROUND(X6*V6,2) -> 0 | Z6: =SUM(V6)-SUM(Y6) -> 0
A7: 3 | B7: =LOOKUP(A7,'DOE - FIPStoPayeeCodeConvTable'!$A$3:$A$213,'DOE - FIPStoPayeeCodeConvTable'!$B$3:$B$213) -> Albemarle Co | C7: 0 | D7: 0 | E7: 0 | S7: =SUM(C7:R7) -> 0 | U7: =ROUND($U$1*S7,2) -> 0 | V7: 0 | W7: =LOOKUP(A7,'DOE - FIPStoPayeeCodeConvTable'!$A$3:$A$213,'DOE - FIPStoPayeeCodeConvTable'!$E$3:$E$213) -> 0.4474 | X7: =$X$1*W7 -> 0.55925 | Y7: =ROUND(X7*V7,2) -> 0 | Z7: =SUM(V7)-SUM(Y7) -> 0
A8: 5 | B8: =LOOKUP(A8,'DOE - FIPStoPayeeCodeConvTable'!$A$3:$A$213,'DOE - FIPStoPayeeCodeConvTable'!$B$3:$B$213) -> Alleghany Co | C8: 0 | D8: 0 | E8: 0 | S8: 0 | U8: 0 | V8: 0 | W8: =LOOKUP(A8,'DOE - FIPStoPayeeCodeConvTable'!$A$3:$A$213,'DOE - FIPStoPayeeCodeConvTable'!$E$3:$E$213) -> 0.1924 | X8: 0.2405 | Y8: 0 | Z8: 0
A9: 7 | B9: =LOOKUP(A9,'DOE - FIPStoPayeeCodeConvTable'!$A$3:$A$213,'DOE - FIPStoPayeeCodeConvTable'!$B$3:$B$213) -> Amelia Co | C9: 0 | D9: 0 | E9: 0 | S9: 0 | U9: 0 | V9: 0 | W9: =LOOKUP(A9,'DOE - FIPStoPayeeCodeConvTable'!$A$3:$A$213,'DOE - FIPStoPayeeCodeConvTable'!$E$3:$E$213) -> 0.3268 | X9: 0.4085 | Y9: 0 | Z9: 0
A10: 9 | B10: =LOOKUP(A10,'DOE - FIPStoPayeeCodeConvTable'!$A$3:$A$213,'DOE - FIPStoPayeeCodeConvTable'!$B$3:$B$213) -> Amherst Co | C10: 4884.46 | D10: 0 | E10: 0 | S10: 4884.46 | U10: 4298.32 | V10: 586.14 | W10: =LOOKUP(A10,'DOE - FIPStoPayeeCodeConvTable'!$A$3:$A$213,'DOE - FIPStoPayeeCodeConvTable'!$E$3:$E$213) -> 0.2722 | X10: 0.34025 | Y10: 199.43 | Z10: 386.71
A11: 11 | B11: =LOOKUP(A11,'DOE - FIPStoPayeeCodeConvTable'!$A$3:$A$213,'DOE - FIPStoPayeeCodeConvTable'!$B$3:$B$213) -> Appomattox Co | C11: 0 | D11: 0 | E11: 0 | S11: 0 | U11: 0 | V11: 0 | W11: =LOOKUP(A11,'DOE - FIPStoPayeeCodeConvTable'!$A$3:$A$213,'DOE - FIPStoPayeeCodeConvTable'!$E$3:$E$213) -> 0.2639 | X11: 0.329875 | Y11: 0 | Z11: 0
A12: 13 | B12: =LOOKUP(A12,'DOE - FIPStoPayeeCodeConvTable'!$A$3:$A$213,'DOE - FIPStoPayeeCodeConvTable'!$B$3:$B$213) -> Arlington Co | C12: 0 | D12: 0 | E12: 0 | S12: 0 | U12: 0 | V12: 0 | W12: =LOOKUP(A12,'DOE - FIPStoPayeeCodeConvTable'!$A$3:$A$213,'DOE - FIPStoPayeeCodeConvTable'!$E$3:$E$213) -> 0.4602 | X12: 0.57525 | Y12: 0 | Z12: 0
A13: 15 | B13: =LOOKUP(A13,'DOE - FIPStoPayeeCodeConvTable'!$A$3:$A$213,'DOE - FIPStoPayeeCodeConvTable'!$B$3:$B$213) -> Augusta Co | C13: 0 | D13: 0 | E13: 0 | S13: 0 | U13: 0 | V13: 0 | W13: =LOOKUP(A13,'DOE - FIPStoPayeeCodeConvTable'!$A$3:$A$213,'DOE - FIPStoPayeeCodeConvTable'!$E$3:$E$213) -> 0.3302 | X13: 0.41275 | Y13: 0 | Z13: 0
A14: 17 | B14: =LOOKUP(A14,'DOE - FIPStoPayeeCodeConvTable'!$A$3:$A$213,'DOE - FIPStoPayeeCodeConvTable'!$B$3:$B$213) -> Bath Co | C14: 0 | D14: 0 | E14: 0 | S14: 0 | U14: 0 | V14: 0 | W14: =LOOKUP(A14,'DOE - FIPStoPayeeCodeConvTable'!$A$3:$A$213,'DOE - FIPStoPayeeCodeConvTable'!$E$3:$E$213) -> 0.4278 | X14: 0.53475 | Y14: 0 | Z14: 0
A15: 19 | B15: =LOOKUP(A15,'DOE - FIPStoPayeeCodeConvTable'!$A$3:$A$213,'DOE - FIPStoPayeeCodeConvTable'!$B$3:$B$213) -> Bedford Co | C15: 7870 | D15: 8263.5 | E15: 14953 | S15: 31086.5 | U15: 27356.12 | V15: 3730.38 | W15: =LOOKUP(A15,'DOE - FIPStoPayeeCodeConvTable'!$A$3:$A$213,'DOE - FIPStoPayeeCodeConvTable'!$E$3:$E$213) -> 0.31112 | X15: 0.3889 | Y15: 1450.74 | Z15: 2279.64
A16: 21 | B16: =LOOKUP(A16,'DOE - FIPStoPayeeCodeConvTable'!$A$3:$A$213,'DOE - FIPStoPayeeCodeConvTable'!$B$3:$B$213) -> Bland Co | C16: 0 | D16: 0 | E16: 0 | S16: 0 | U16: 0 | V16: 0 | W16: =LOOKUP(A16,'DOE - FIPStoPayeeCodeConvTable'!$A$3:$A$213,'DOE - FIPStoPayeeCodeConvTable'!$E$3:$E$213) -> 0.2109 | X16: 0.263625 | Y16: 0 | Z16: 0
A17: 23 | B17: =LOOKUP(A17,'DOE - FIPStoPayeeCodeConvTable'!$A$3:$A$213,'DOE - FIPStoPayeeCodeConvTable'!$B$3:$B$213) -> Botetourt Co | C17: 0 | D17: 0 | E17: 0 | S17: 0 | U17: 0 | V17: 0 | W17: =LOOKUP(A17,'DOE - FIPStoPayeeCodeConvTable'!$A$3:$A$213,'DOE - FIPStoPayeeCodeConvTable'!$E$3:$E$213) -> 0.3602 | X17: 0.45025 | Y17: 0 | Z17: 0
A18: 25 | B18: =LOOKUP(A18,'DOE - FIPStoPayeeCodeConvTable'!$A$3:$A$213,'DOE - FIPStoPayeeCodeConvTable'!$B$3:$B$213) -> Brunswick Co | C18: 10624.5 | D18: 8263.5 | E18: 7870 | S18: 26758 | U18: 23547.04 | V18: 3210.96 | W18: =LOOKUP(A18,'DOE - FIPStoPayeeCodeConvTable'!$A$3:$A$213,'DOE - FIPStoPayeeCodeConvTable'!$E$3:$E$213) -> 0.2439 | X18: 0.304875 | Y18: 978.94 | Z18: 2232.02
A19: 27 | B19: =LOOKUP(A19,'DOE - FIPStoPayeeCodeConvTable'!$A$3:$A$213,'DOE - FIPStoPayeeCodeConvTable'!$B$3:$B$213) -> Buchanan Co | C19: 0 | D19: 0 | E19: 0 | S19: 0 | U19: 0 | V19: 0 | W19: =LOOKUP(A19,'DOE - FIPStoPayeeCodeConvTable'!$A$3:$A$213,'DOE - FIPStoPayeeCodeConvTable'!$E$3:$E$213) -> 0.3156 | X19: 0.3945 | Y19: 0 | Z19: 0
A20: 29 | B20: =LOOKUP(A20,'DOE - FIPStoPayeeCodeConvTable'!$A$3:$A$213,'DOE - FIPStoPayeeCodeConvTable'!$B$3:$B$213) -> Buckingham Co | C20: 13257.82 | D20: 21282.29 | E20: 0 | S20: 34540.11 | U20: 30395.3 | V20: 4144.81 | W20: =LOOKUP(A20,'DOE - FIPStoPayeeCodeConvTable'!$A$3:$A$213,'DOE - FIPStoPayeeCodeConvTable'!$E$3:$E$213) -> 0.2023 | X20: 0.252875 | Y20: 1048.12 | Z20: 3096.69
A21: 31 | B21: =LOOKUP(A21,'DOE - FIPStoPayeeCodeConvTable'!$A$3:$A$213,'DOE - FIPStoPayeeCodeConvTable'!$B$3:$B$213) -> Campbell Co | C21: 9050.5 | D21: 0 | E21: 0 | S21: 9050.5 | U21: 7964.44 | V21: 1086.06 | W21: =LOOKUP(A21,'DOE - FIPStoPayeeCodeConvTable'!$A$3:$A$213,'DOE - FIPStoPayeeCodeConvTable'!$E$3:$E$213) -> 0.3107 | X21: 0.388375 | Y21: 421.8 | Z21: 664.26
A22: 33 | B22: =LOOKUP(A22,'DOE - FIPStoPayeeCodeConvTable'!$A$3:$A$213,'DOE - FIPStoPayeeCodeConvTable'!$B$3:$B$213) -> Caroline Co | C22: 0 | D22: 0 | E22: 0 | S22: 0 | U22: 0 | V22: 0 | W22: =LOOKUP(A22,'DOE - FIPStoPayeeCodeConvTable'!$A$3:$A$213,'DOE - FIPStoPayeeCodeConvTable'!$E$3:$E$213) -> 0.3308 | X22: 0.4135 | Y22: 0 | Z22: 0
A23: 35 | B23: =LOOKUP(A23,'DOE - FIPStoPayeeCodeConvTable'!$A$3:$A$213,'DOE - FIPStoPayeeCodeConvTable'!$B$3:$B$213) -> Carroll Co | C23: 0 | D23: 0 | E23: 0 | S23: 0 | U23: 0 | V23: 0 | W23: =LOOKUP(A23,'DOE - FIPStoPayeeCodeConvTable'!$A$3:$A$213,'DOE - FIPStoPayeeCodeConvTable'!$E$3:$E$213) -> 0.291 | X23: 0.36375 | Y23: 0 | Z23: 0
A24: 36 | B24: =LOOKUP(A24,'DOE - FIPStoPayeeCodeConvTable'!$A$3:$A$213,'DOE - FIPStoPayeeCodeConvTable'!$B$3:$B$213) -> Charles City Co | C24: 0 | D24: 0 | E24: 0 | S24: 0 | U24: 0 | V24: 0 | W24: =LOOKUP(A24,'DOE - FIPStoPayeeCodeConvTable'!$A$3:$A$213,'DOE - FIPStoPayeeCodeConvTable'!$E$3:$E$213) -> 0.3131 | X24: 0.391375 | Y24: 0 | Z24: 0
A25: 37 | B25: =LOOKUP(A25,'DOE - FIPStoPayeeCodeConvTable'!$A$3:$A$213,'DOE - FIPStoPayeeCodeConvTable'!$B$3:$B$213) -> Charlotte Co | C25: 0 | D25: 0 | E25: 0 | S25: 0 | U25: 0 | V25: 0 | W25: =LOOKUP(A25,'DOE - FIPStoPayeeCodeConvTable'!$A$3:$A$213,'DOE - FIPStoPayeeCodeConvTable'!$E$3:$E$213) -> 0.2204 | X25: 0.2755 | Y25: 0 | Z25: 0
A26: 41 | B26: =LOOKUP(A26,'DOE - FIPStoPayeeCodeConvTable'!$A$3:$A$213,'DOE - FIPStoPayeeCodeConvTable'!$B$3:$B$213) -> Chesterfield Co | C26: 0 | D26: 0 | E26: 4722 | S26: 4722 | U26: 4155.36 | V26: 566.64 | W26: =LOOKUP(A26,'DOE - FIPStoPayeeCodeConvTable'!$A$3:$A$213,'DOE - FIPStoPayeeCodeConvTable'!$E$3:$E$213) -> 0.3853 | X26: 0.481625 | Y26: 272.91 | Z26: 293.73
A27: 43 | B27: =LOOKUP(A27,'DOE - FIPStoPayeeCodeConvTable'!$A$3:$A$213,'DOE - FIPStoPayeeCodeConvTable'!$B$3:$B$213) -> Clarke Co | C27: 0 | D27: 0 | E27: 0 | S27: 0 | U27: 0 | V27: 0 | W27: =LOOKUP(A27,'DOE - FIPStoPayeeCodeConvTable'!$A$3:$A$213,'DOE - FIPStoPayeeCodeConvTable'!$E$3:$E$213) -> 0.4797 | X27: 0.599625 | Y27: 0 | Z27: 0
A28: 45 | B28: =LOOKUP(A28,'DOE - FIPStoPayeeCodeConvTable'!$A$3:$A$213,'DOE - FIPStoPayeeCodeConvTable'!$B$3:$B$213) -> Craig Co | C28: 0 | D28: 0 | E28: 0 | S28: 0 | U28: 0 | V28: 0 | W28: =LOOKUP(A28,'DOE - FIPStoPayeeCodeConvTable'!$A$3:$A$213,'DOE - FIPStoPayeeCodeConvTable'!$E$3:$E$213) -> 0.2901 | X28: 0.362625 | Y28: 0 | Z28: 0
A29: 47 | B29: =LOOKUP(A29,'DOE - FIPStoPayeeCodeConvTable'!$A$3:$A$213,'DOE - FIPStoPayeeCodeConvTable'!$B$3:$B$213) -> Culpeper Co | C29: 0 | D29: 0 | E29: 0 | S29: 0 | U29: 0 | V29: 0 | W29: =LOOKUP(A29,'DOE - FIPStoPayeeCodeConvTable'!$A$3:$A$213,'DOE - FIPStoPayeeCodeConvTable'!$E$3:$E$213) -> 0.3767 | X29: 0.470875 | Y29: 0 | Z29: 0
A30: 49 | B30: =LOOKUP(A30,'DOE - FIPStoPayeeCodeConvTable'!$A$3:$A$213,'DOE - FIPStoPayeeCodeConvTable'!$B$3:$B$213) -> Cumberland Co | C30: 0 | D30: 0 | E30: 0 | S30: 0 | U30: 0 | V30: 0 | W30: =LOOKUP(A30,'DOE - FIPStoPayeeCodeConvTable'!$A$3:$A$213,'DOE - FIPStoPayeeCodeConvTable'!$E$3:$E$213) -> 0.304 | X30: 0.38 | Y30: 0 | Z30: 0
A31: 51 | B31: =LOOKUP(A31,'DOE - FIPStoPayeeCodeConvTable'!$A$3:$A$213,'DOE - FIPStoPayeeCodeConvTable'!$B$3:$B$213) -> Dickenson Co | C31: 0 | D31: 0 | E31: 0 | S31: 0 | U31: 0 | V31: 0 | W31: =LOOKUP(A31,'DOE - FIPStoPayeeCodeConvTable'!$A$3:$A$213,'DOE - FIPStoPayeeCodeConvTable'!$E$3:$E$213) -> 0.3042 | X31: 0.38025 | Y31: 0 | Z31: 0
A32: 53 | B32: =LOOKUP(A32,'DOE - FIPStoPayeeCodeConvTable'!$A$3:$A$213,'DOE - FIPStoPayeeCodeConvTable'!$B$3:$B$213) -> Dinwiddie Co | C32: 0 | D32: 2631.96 | E32: 0 | S32: 2631.96 | U32: 2316.12 | V32: 315.84 | W32: =LOOKUP(A32,'DOE - FIPStoPayeeCodeConvTable'!$A$3:$A$213,'DOE - FIPStoPayeeCodeConvTable'!$E$3:$E$213) -> 0.3358 | X32: 0.41975 | Y32: 132.57 | Z32: 183.27
A33: 57 | B33: =LOOKUP(A33,'DOE - FIPStoPayeeCodeConvTable'!$A$3:$A$213,'DOE - FIPStoPayeeCodeConvTable'!$B$3:$B$213) -> Essex Co | C33: 0 | D33: 0 | E33: 0 | S33: 0 | U33: 0 | V33: 0 | W33: =LOOKUP(A33,'DOE - FIPStoPayeeCodeConvTable'!$A$3:$A$213,'DOE - FIPStoPayeeCodeConvTable'!$E$3:$E$213) -> 0.3853 | X33: 0.481625 | Y33: 0 | Z33: 0
A34: 59 | B34: =LOOKUP(A34,'DOE - FIPStoPayeeCodeConvTable'!$A$3:$A$213,'DOE - FIPStoPayeeCodeConvTable'!$B$3:$B$213) -> Fairfax Co | C34: 0 | D34: 12898.5 | E34: 21249 | S34: 34147.5 | U34: 30049.8 | V34: 4097.7 | W34: =LOOKUP(A34,'DOE - FIPStoPayeeCodeConvTable'!$A$3:$A$213,'DOE - FIPStoPayeeCodeConvTable'!$E$3:$E$213) -> 0.4611 | X34: 0.576375 | Y34: 2361.81 | Z34: 1735.89
A35: 61 | B35: =LOOKUP(A35,'DOE - FIPStoPayeeCodeConvTable'!$A$3:$A$213,'DOE - FIPStoPayeeCodeConvTable'!$B$3:$B$213) -> Fauquier Co | C35: 0 | D35: 0 | E35: 0 | S35: 0 | U35: 0 | V35: 0 | W35: =LOOKUP(A35,'DOE - FIPStoPayeeCodeConvTable'!$A$3:$A$213,'DOE - FIPStoPayeeCodeConvTable'!$E$3:$E$213) -> 0.4584 | X35: 0.573 | Y35: 0 | Z35: 0
A36: 63 | B36: =LOOKUP(A36,'DOE - FIPStoPayeeCodeConvTable'!$A$3:$A$213,'DOE - FIPStoPayeeCodeConvTable'!$B$3:$B$213) -> Floyd Co | C36: 0 | D36: 0 | E36: 0 | S36: 0 | U36: 0 | V36: 0 | W36: =LOOKUP(A36,'DOE - FIPStoPayeeCodeConvTable'!$A$3:$A$213,'DOE - FIPStoPayeeCodeConvTable'!$E$3:$E$213) -> 0.2324 | X36: 0.2905 | Y36: 0 | Z36: 0
A37: 65 | B37: =LOOKUP(A37,'DOE - FIPStoPayeeCodeConvTable'!$A$3:$A$213,'DOE - FIPStoPayeeCodeConvTable'!$B$3:$B$213) -> Fluvanna Co | C37: 0 | D37: 0 | E37: 0 | S37: 0 | U37: 0 | V37: 0 | W37: =LOOKUP(A37,'DOE - FIPStoPayeeCodeConvTable'!$A$3:$A$213,'DOE - FIPStoPayeeCodeConvTable'!$E$3:$E$213) -> 0.3811 | X37: 0.476375 | Y37: 0 | Z37: 0
A38: 67 | B38: =LOOKUP(A38,'DOE - FIPStoPayeeCodeConvTable'!$A$3:$A$213,'DOE - FIPStoPayeeCodeConvTable'!$B$3:$B$213) -> Franklin Co | C38: 0 | D38: 0 | E38: 0 | S38: 0 | U38: =ROUND($U$1*S38,2) -> 0 | V38: =SUM(S38)-SUM(U38) -> 0 | W38: =LOOKUP(A38,'DOE - FIPStoPayeeCodeConvTable'!$A$3:$A$213,'DOE - FIPStoPayeeCodeConvTable'!$E$3:$E$213) -> 0.283 | X38: 0.35375 | Y38: 0 | Z38: 0
A39: 69 | B39: =LOOKUP(A39,'DOE - FIPStoPayeeCodeConvTable'!$A$3:$A$213,'DOE - FIPStoPayeeCodeConvTable'!$B$3:$B$213) -> Frederick Co | C39: 0 | D39: 0 | E39: 0 | S39: 0 | U39: 0 | V39: 0 | W39: =LOOKUP(A39,'DOE - FIPStoPayeeCodeConvTable'!$A$3:$A$213,'DOE - FIPStoPayeeCodeConvTable'!$E$3:$E$213) -> 0.4348 | X39: 0.5435 | Y39: 0 | Z39: 0
A40: 71 | B40: =LOOKUP(A40,'DOE - FIPStoPayeeCodeConvTable'!$A$3:$A$213,'DOE - FIPStoPayeeCodeConvTable'!$B$3:$B$213) -> Giles Co | C40: 0 | D40: 0 | E40: 0 | S40: 0 | U40: 0 | V40: 0 | W40: =LOOKUP(A40,'DOE - FIPStoPayeeCodeConvTable'!$A$3:$A$213,'DOE - FIPStoPayeeCodeConvTable'!$E$3:$E$213) -> 0.2898 | X40: 0.36225 | Y40: 0 | Z40: 0
A41: 73 | B41: =LOOKUP(A41,'DOE - FIPStoPayeeCodeConvTable'!$A$3:$A$213,'DOE - FIPStoPayeeCodeConvTable'!$B$3:$B$213) -> Gloucester Co | C41: 0 | D41: 1754.64 | E41: 3655.5 | S41: 5410.14 | U41: 4760.92 | V41: 649.22 | W41: =LOOKUP(A41,'DOE - FIPStoPayeeCodeConvTable'!$A$3:$A$213,'DOE - FIPStoPayeeCodeConvTable'!$E$3:$E$213) -> 0.3687 | X41: 0.460875 | Y41: 299.21 | Z41: 350.01
A42: 75 | B42: =LOOKUP(A42,'DOE - FIPStoPayeeCodeConvTable'!$A$3:$A$213,'DOE - FIPStoPayeeCodeConvTable'!$B$3:$B$213) -> Goochland Co | C42: 0 | D42: 0 | E42: 0 | S42: 0 | U42: 0 | V42: 0 | W42: =LOOKUP(A42,'DOE - FIPStoPayeeCodeConvTable'!$A$3:$A$213,'DOE - FIPStoPayeeCodeConvTable'!$E$3:$E$213) -> 0.4871 | X42: 0.608875 | Y42: 0 | Z42: 0
A43: 77 | B43: =LOOKUP(A43,'DOE - FIPStoPayeeCodeConvTable'!$A$3:$A$213,'DOE - FIPStoPayeeCodeConvTable'!$B$3:$B$213) -> Grayson Co | C43: 0 | D43: 0 | E43: 0 | S43: 0 | U43: 0 | V43: 0 | W43: =LOOKUP(A43,'DOE - FIPStoPayeeCodeConvTable'!$A$3:$A$213,'DOE - FIPStoPayeeCodeConvTable'!$E$3:$E$213) -> 0.2109 | X43: 0.263625 | Y43: 0 | Z43: 0
A44: 79 | B44: =LOOKUP(A44,'DOE - FIPStoPayeeCodeConvTable'!$A$3:$A$213,'DOE - FIPStoPayeeCodeConvTable'!$B$3:$B$213) -> Greene Co | C44: 0 | D44: 0 | E44: 0 | S44: 0 | U44: 0 | V44: 0 | W44: =LOOKUP(A44,'DOE - FIPStoPayeeCodeConvTable'!$A$3:$A$213,'DOE - FIPStoPayeeCodeConvTable'!$E$3:$E$213) -> 0.3471 | X44: 0.433875 | Y44: 0 | Z44: 0
A45: 81 | B45: =LOOKUP(A45,'DOE - FIPStoPayeeCodeConvTable'!$A$3:$A$213,'DOE - FIPStoPayeeCodeConvTable'!$B$3:$B$213) -> Greensville Co | C45: 0 | D45: 438.66 | E45: 4240.38 | S45: 4679.04 | U45: 4117.56 | V45: 561.48 | W45: =LOOKUP(A45,'DOE - FIPStoPayeeCodeConvTable'!$A$3:$A$213,'DOE - FIPStoPayeeCodeConvTable'!$E$3:$E$213) -> 0.2266 | X45: 0.28325 | Y45: 159.04 | Z45: 402.44
A46: 83 | B46: =LOOKUP(A46,'DOE - FIPStoPayeeCodeConvTable'!$A$3:$A$213,'DOE - FIPStoPayeeCodeConvTable'!$B$3:$B$213) -> Halifax Co | C46: 0 | D46: 1754.64 | E46: 4532.82 | S46: 6287.46 | U46: 5532.96 | V46: 754.5 | W46: =LOOKUP(A46,'DOE - FIPStoPayeeCodeConvTable'!$A$3:$A$213,'DOE - FIPStoPayeeCodeConvTable'!$E$3:$E$213) -> 0.2335 | X46: 0.291875 | Y46: 220.22 | Z46: 534.28
A47: 85 | B47: =LOOKUP(A47,'DOE - FIPStoPayeeCodeConvTable'!$A$3:$A$213,'DOE - FIPStoPayeeCodeConvTable'!$B$3:$B$213) -> Hanover Co | C47: 0 | D47: 0 | E47: 0 | S47: 0 | U47: 0 | V47: 0 | W47: =LOOKUP(A47,'DOE - FIPStoPayeeCodeConvTable'!$A$3:$A$213,'DOE - FIPStoPayeeCodeConvTable'!$E$3:$E$213) -> 0.4444 | X47: 0.5555 | Y47: 0 | Z47: 0
A48: 87 | B48: =LOOKUP(A48,'DOE - FIPStoPayeeCodeConvTable'!$A$3:$A$213,'DOE - FIPStoPayeeCodeConvTable'!$B$3:$B$213) -> Henrico Co | C48: 0 | D48: 0 | E48: 0 | S48: 0 | U48: 0 | V48: 0 | W48: =LOOKUP(A48,'DOE - FIPStoPayeeCodeConvTable'!$A$3:$A$213,'DOE - FIPStoPayeeCodeConvTable'!$E$3:$E$213) -> 0.3755 | X48: 0.469375 | Y48: 0 | Z48: 0
A49: 89 | B49: =LOOKUP(A49,'DOE - FIPStoPayeeCodeConvTable'!$A$3:$A$213,'DOE - FIPStoPayeeCodeConvTable'!$B$3:$B$213) -> Henry Co | C49: 0 | D49: 0 | E49: 0 | S49: 0 | U49: 0 | V49: 0 | W49: =LOOKUP(A49,'DOE - FIPStoPayeeCodeConvTable'!$A$3:$A$213,'DOE - FIPStoPayeeCodeConvTable'!$E$3:$E$213) -> 0.2786 | X49: 0.34825 | Y49: 0 | Z49: 0
A50: 91 | B50: =LOOKUP(A50,'DOE - FIPStoPayeeCodeConvTable'!$A$3:$A$213,'DOE - FIPStoPayeeCodeConvTable'!$B$3:$B$213) -> Highland Co | C50: 0 | D50: 0 | E50: 0 | S50: 0 | U50: 0 | V50: 0 | W50: =LOOKUP(A50,'DOE - FIPStoPayeeCodeConvTable'!$A$3:$A$213,'DOE - FIPStoPayeeCodeConvTable'!$E$3:$E$213) -> 0.3822 | X50: 0.47775 | Y50: 0 | Z50: 0
A51: 93 | B51: =LOOKUP(A51,'DOE - FIPStoPayeeCodeConvTable'!$A$3:$A$213,'DOE - FIPStoPayeeCodeConvTable'!$B$3:$B$213) -> Isle Of Wight Co | C51: 0 | D51: 0 | E51: 0 | S51: 0 | U51: 0 | V51: 0 | W51: =LOOKUP(A51,'DOE - FIPStoPayeeCodeConvTable'!$A$3:$A$213,'DOE - FIPStoPayeeCodeConvTable'!$E$3:$E$213) -> 0.3613 | X51: 0.451625 | Y51: 0 | Z51: 0
A52: 95 | B52: =LOOKUP(A52,'DOE - FIPStoPayeeCodeConvTable'!$A$3:$A$213,'DOE - FIPStoPayeeCodeConvTable'!$B$3:$B$213) -> James City Co | C52: 0 | D52: 0 | E52: 0 | S52: 0 | U52: 0 | V52: 0 | W52: =LOOKUP(A52,'DOE - FIPStoPayeeCodeConvTable'!$A$3:$A$213,'DOE - FIPStoPayeeCodeConvTable'!$E$3:$E$213) -> 0.4483 | X52: 0.560375 | Y52: 0 | Z52: 0
A53: 97 | B53: =LOOKUP(A53,'DOE - FIPStoPayeeCodeConvTable'!$A$3:$A$213,'DOE - FIPStoPayeeCodeConvTable'!$B$3:$B$213) -> King And Queen Co | C53: 0 | D53: 0 | E53: 0 | S53: 0 | U53: 0 | V53: 0 | W53: =LOOKUP(A53,'DOE - FIPStoPayeeCodeConvTable'!$A$3:$A$213,'DOE - FIPStoPayeeCodeConvTable'!$E$3:$E$213) -> 0.3144 | X53: 0.393 | Y53: 0 | Z53: 0
A54: 99 | B54: =LOOKUP(A54,'DOE - FIPStoPayeeCodeConvTable'!$A$3:$A$213,'DOE - FIPStoPayeeCodeConvTable'!$B$3:$B$213) -> King George Co | C54: 0 | D54: 0 | E54: 0 | S54: 0 | U54: 0 | V54: 0 | W54: =LOOKUP(A54,'DOE - FIPStoPayeeCodeConvTable'!$A$3:$A$213,'DOE - FIPStoPayeeCodeConvTable'!$E$3:$E$213) -> 0.3627 | X54: 0.453375 | Y54: 0 | Z54: 0
A55: 101 | B55: =LOOKUP(A55,'DOE - FIPStoPayeeCodeConvTable'!$A$3:$A$213,'DOE - FIPStoPayeeCodeConvTable'!$B$3:$B$213) -> King William Co | C55: 0 | D55: 0 | E55: 0 | S55: 0 | U55: 0 | V55: 0 | W55: =LOOKUP(A55,'DOE - FIPStoPayeeCodeConvTable'!$A$3:$A$213,'DOE - FIPStoPayeeCodeConvTable'!$E$3:$E$213) -> 0.3853 | X55: 0.481625 | Y55: 0 | Z55: 0
A56: 103 | B56: =LOOKUP(A56,'DOE - FIPStoPayeeCodeConvTable'!$A$3:$A$213,'DOE - FIPStoPayeeCodeConvTable'!$B$3:$B$213) -> Lancaster Co | C56: 0 | D56: 0 | E56: 0 | S56: 0 | U56: 0 | V56: 0 | W56: =LOOKUP(A56,'DOE - FIPStoPayeeCodeConvTable'!$A$3:$A$213,'DOE - FIPStoPayeeCodeConvTable'!$E$3:$E$213) -> 0.4391 | X56: 0.548875 | Y56: 0 | Z56: 0
A57: 105 | B57: =LOOKUP(A57,'DOE - FIPStoPayeeCodeConvTable'!$A$3:$A$213,'DOE - FIPStoPayeeCodeConvTable'!$B$3:$B$213) -> Lee Co | C57: 0 | D57: 0 | E57: 0 | S57: 0 | U57: 0 | V57: 0 | W57: =LOOKUP(A57,'DOE - FIPStoPayeeCodeConvTable'!$A$3:$A$213,'DOE - FIPStoPayeeCodeConvTable'!$E$3:$E$213) -> 0.2245 | X57: 0.280625 | Y57: 0 | Z57: 0
A58: 107 | B58: =LOOKUP(A58,'DOE - FIPStoPayeeCodeConvTable'!$A$3:$A$213,'DOE - FIPStoPayeeCodeConvTable'!$B$3:$B$213) -> Loudoun Co | C58: 0 | D58: 0 | E58: 0 | S58: 0 | U58: 0 | V58: 0 | W58: =LOOKUP(A58,'DOE - FIPStoPayeeCodeConvTable'!$A$3:$A$213,'DOE - FIPStoPayeeCodeConvTable'!$E$3:$E$213) -> 0.4764 | X58: 0.5955 | Y58: 0 | Z58: 0
A59: 109 | B59: =LOOKUP(A59,'DOE - FIPStoPayeeCodeConvTable'!$A$3:$A$213,'DOE - FIPStoPayeeCodeConvTable'!$B$3:$B$213) -> Louisa Co | C59: 0 | D59: 0 | E59: 0 | S59: 0 | U59: 0 | V59: 0 | W59: =LOOKUP(A59,'DOE - FIPStoPayeeCodeConvTable'!$A$3:$A$213,'DOE - FIPStoPayeeCodeConvTable'!$E$3:$E$213) -> 0.4401 | X59: 0.550125 | Y59: 0 | Z59: 0
A60: 111 | B60: =LOOKUP(A60,'DOE - FIPStoPayeeCodeConvTable'!$A$3:$A$213,'DOE - FIPStoPayeeCodeConvTable'!$B$3:$B$213) -> Lunenburg Co | C60: 0 | D60: 0 | E60: 0 | S60: 0 | U60: 0 | V60: 0 | W60: =LOOKUP(A60,'DOE - FIPStoPayeeCodeConvTable'!$A$3:$A$213,'DOE - FIPStoPayeeCodeConvTable'!$E$3:$E$213) -> 0.1698 | X60: 0.21225 | Y60: 0 | Z60: 0
A61: 113 | B61: =LOOKUP(A61,'DOE - FIPStoPayeeCodeConvTable'!$A$3:$A$213,'DOE - FIPStoPayeeCodeConvTable'!$B$3:$B$213) -> Madison Co | C61: 0 | D61: 0 | E61: 0 | S61: 0 | U61: 0 | V61: 0 | W61: =LOOKUP(A61,'DOE - FIPStoPayeeCodeConvTable'!$A$3:$A$213,'DOE - FIPStoPayeeCodeConvTable'!$E$3:$E$213) -> 0.3355 | X61: 0.419375 | Y61: 0 | Z61: 0
A62: 115 | B62: =LOOKUP(A62,'DOE - FIPStoPayeeCodeConvTable'!$A$3:$A$213,'DOE - FIPStoPayeeCodeConvTable'!$B$3:$B$213) -> Mathews Co | C62: 0 | D62: 0 | E62: 0 | S62: 0 | U62: 0 | V62: 0 | W62: =LOOKUP(A62,'DOE - FIPStoPayeeCodeConvTable'!$A$3:$A$213,'DOE - FIPStoPayeeCodeConvTable'!$E$3:$E$213) -> 0.4271 | X62: 0.533875 | Y62: 0 | Z62: 0
A63: 117 | B63: =LOOKUP(A63,'DOE - FIPStoPayeeCodeConvTable'!$A$3:$A$213,'DOE - FIPStoPayeeCodeConvTable'!$B$3:$B$213) -> Mecklenburg Co | C63: 0 | D63: 0 | E63: 0 | S63: 0 | U63: 0 | V63: 0 | W63: =LOOKUP(A63,'DOE - FIPStoPayeeCodeConvTable'!$A$3:$A$213,'DOE - FIPStoPayeeCodeConvTable'!$E$3:$E$213) -> 0.2286 | X63: 0.28575 | Y63: 0 | Z63: 0
A64: 119 | B64: =LOOKUP(A64,'DOE - FIPStoPayeeCodeConvTable'!$A$3:$A$213,'DOE - FIPStoPayeeCodeConvTable'!$B$3:$B$213) -> Middlesex Co | C64: 0 | D64: 0 | E64: 0 | S64: 0 | U64: 0 | V64: 0 | W64: =LOOKUP(A64,'DOE - FIPStoPayeeCodeConvTable'!$A$3:$A$213,'DOE - FIPStoPayeeCodeConvTable'!$E$3:$E$213) -> 0.4333 | X64: 0.541625 | Y64: 0 | Z64: 0
A65: 121 | B65: =LOOKUP(A65,'DOE - FIPStoPayeeCodeConvTable'!$A$3:$A$213,'DOE - FIPStoPayeeCodeConvTable'!$B$3:$B$213) -> Montgomery Co | C65: 0 | D65: 0 | E65: 0 | S65: 0 | U65: 0 | V65: 0 | W65: =LOOKUP(A65,'DOE - FIPStoPayeeCodeConvTable'!$A$3:$A$213,'DOE - FIPStoPayeeCodeConvTable'!$E$3:$E$213) -> 0.2834 | X65: 0.35425 | Y65: 0 | Z65: 0
A66: 125 | B66: =LOOKUP(A66,'DOE - FIPStoPayeeCodeConvTable'!$A$3:$A$213,'DOE - FIPStoPayeeCodeConvTable'!$B$3:$B$213) -> Nelson Co | C66: 0 | D66: 0 | E66: 0 | S66: 0 | U66: 0 | V66: 0 | W66: =LOOKUP(A66,'DOE - FIPStoPayeeCodeConvTable'!$A$3:$A$213,'DOE - FIPStoPayeeCodeConvTable'!$E$3:$E$213) -> 0.3132 | X66: 0.3915 | Y66: 0 | Z66: 0
A67: 127 | B67: =LOOKUP(A67,'DOE - FIPStoPayeeCodeConvTable'!$A$3:$A$213,'DOE - FIPStoPayeeCodeConvTable'!$B$3:$B$213) -> New Kent Co | C67: 0 | D67: 0 | E67: 0 | S67: 0 | U67: 0 | V67: 0 | W67: =LOOKUP(A67,'DOE - FIPStoPayeeCodeConvTable'!$A$3:$A$213,'DOE - FIPStoPayeeCodeConvTable'!$E$3:$E$213) -> 0.4329 | X67: 0.541125 | Y67: 0 | Z67: 0
A68: 131 | B68: =LOOKUP(A68,'DOE - FIPStoPayeeCodeConvTable'!$A$3:$A$213,'DOE - FIPStoPayeeCodeConvTable'!$B$3:$B$213) -> Northampton Co | C68: 0 | D68: 0 | E68: 0 | S68: 0 | U68: 0 | V68: 0 | W68: =LOOKUP(A68,'DOE - FIPStoPayeeCodeConvTable'!$A$3:$A$213,'DOE - FIPStoPayeeCodeConvTable'!$E$3:$E$213) -> 0.1971 | X68: 0.246375 | Y68: 0 | Z68: 0
A69: 133 | B69: =LOOKUP(A69,'DOE - FIPStoPayeeCodeConvTable'!$A$3:$A$213,'DOE - FIPStoPayeeCodeConvTable'!$B$3:$B$213) -> Northumberland Co | C69: 0 | D69: 12863.8 | E69: 0 | S69: 12863.8 | U69: 11320.14 | V69: 1543.66 | W69: =LOOKUP(A69,'DOE - FIPStoPayeeCodeConvTable'!$A$3:$A$213,'DOE - FIPStoPayeeCodeConvTable'!$E$3:$E$213) -> 0.3304 | X69: 0.413 | Y69: 637.53 | Z69: 906.13
A70: 135 | B70: =LOOKUP(A70,'DOE - FIPStoPayeeCodeConvTable'!$A$3:$A$213,'DOE - FIPStoPayeeCodeConvTable'!$B$3:$B$213) -> Nottoway Co | C70: 0 | D70: 0 | E70: 0 | S70: 0 | U70: =ROUND($U$1*S70,2) -> 0 | V70: =SUM(S70)-SUM(U70) -> 0 | W70: =LOOKUP(A70,'DOE - FIPStoPayeeCodeConvTable'!$A$3:$A$213,'DOE - FIPStoPayeeCodeConvTable'!$E$3:$E$213) -> 0.2686 | X70: 0.33575 | Y70: 0 | Z70: 0
A71: 137 | B71: =LOOKUP(A71,'DOE - FIPStoPayeeCodeConvTable'!$A$3:$A$213,'DOE - FIPStoPayeeCodeConvTable'!$B$3:$B$213) -> Orange Co | C71: 0 | D71: 0 | E71: 0 | S71: =SUM(C71:R71) -> 0 | U71: 0 | V71: 0 | W71: =LOOKUP(A71,'DOE - FIPStoPayeeCodeConvTable'!$A$3:$A$213,'DOE - FIPStoPayeeCodeConvTable'!$E$3:$E$213) -> 0.4083 | X71: =$X$1*W71 -> 0.510375 | Y71: =ROUND(X71*V71,2) -> 0 | Z71: =SUM(V71)-SUM(Y71) -> 0
A72: 139 | B72: =LOOKUP(A72,'DOE - FIPStoPayeeCodeConvTable'!$A$3:$A$213,'DOE - FIPStoPayeeCodeConvTable'!$B$3:$B$213) -> Page Co | C72: 0 | D72: 0 | E72: 0 | S72: 0 | U72: 0 | V72: 0 | W72: =LOOKUP(A72,'DOE - FIPStoPayeeCodeConvTable'!$A$3:$A$213,'DOE - FIPStoPayeeCodeConvTable'!$E$3:$E$213) -> 0.2865 | X72: 0.358125 | Y72: 0 | Z72: 0
A73: 141 | B73: =LOOKUP(A73,'DOE - FIPStoPayeeCodeConvTable'!$A$3:$A$213,'DOE - FIPStoPayeeCodeConvTable'!$B$3:$B$213) -> Patrick Co | C73: 0 | D73: 0 | E73: 0 | S73: 0 | U73: 0 | V73: 0 | W73: =LOOKUP(A73,'DOE - FIPStoPayeeCodeConvTable'!$A$3:$A$213,'DOE - FIPStoPayeeCodeConvTable'!$E$3:$E$213) -> 0.2539 | X73: 0.317375 | Y73: 0 | Z73: 0
A74: 143 | B74: =LOOKUP(A74,'DOE - FIPStoPayeeCodeConvTable'!$A$3:$A$213,'DOE - FIPStoPayeeCodeConvTable'!$B$3:$B$213) -> Pittsylvania Co | C74: 0 | D74: 0 | E74: 0 | S74: 0 | U74: 0 | V74: 0 | W74: =LOOKUP(A74,'DOE - FIPStoPayeeCodeConvTable'!$A$3:$A$213,'DOE - FIPStoPayeeCodeConvTable'!$E$3:$E$213) -> 0.2355 | X74: 0.294375 | Y74: 0 | Z74: 0
A75: 145 | B75: =LOOKUP(A75,'DOE - FIPStoPayeeCodeConvTable'!$A$3:$A$213,'DOE - FIPStoPayeeCodeConvTable'!$B$3:$B$213) -> Powhatan Co | C75: 0 | D75: 0 | E75: 0 | S75: 0 | U75: 0 | V75: 0 | W75: =LOOKUP(A75,'DOE - FIPStoPayeeCodeConvTable'!$A$3:$A$213,'DOE - FIPStoPayeeCodeConvTable'!$E$3:$E$213) -> 0.4342 | X75: 0.54275 | Y75: 0 | Z75: 0
A76: 147 | B76: =LOOKUP(A76,'DOE - FIPStoPayeeCodeConvTable'!$A$3:$A$213,'DOE - FIPStoPayeeCodeConvTable'!$B$3:$B$213) -> Prince Edward Co | C76: 0 | D76: 0 | E76: 0 | S76: 0 | U76: 0 | V76: 0 | W76: =LOOKUP(A76,'DOE - FIPStoPayeeCodeConvTable'!$A$3:$A$213,'DOE - FIPStoPayeeCodeConvTable'!$E$3:$E$213) -> 0.2232 | X76: 0.279 | Y76: 0 | Z76: 0
A77: 149 | B77: =LOOKUP(A77,'DOE - FIPStoPayeeCodeConvTable'!$A$3:$A$213,'DOE - FIPStoPayeeCodeConvTable'!$B$3:$B$213) -> Prince George Co | C77: 0 | D77: 0 | E77: 0 | S77: 0 | U77: 0 | V77: 0 | W77: =LOOKUP(A77,'DOE - FIPStoPayeeCodeConvTable'!$A$3:$A$213,'DOE - FIPStoPayeeCodeConvTable'!$E$3:$E$213) -> 0.3716 | X77: 0.4645 | Y77: 0 | Z77: 0
A78: 153 | B78: =LOOKUP(A78,'DOE - FIPStoPayeeCodeConvTable'!$A$3:$A$213,'DOE - FIPStoPayeeCodeConvTable'!$B$3:$B$213) -> Prince William Co | C78: 14953 | D78: 11805 | E78: 12198.5 | S78: 38956.5 | U78: 34281.72 | V78: 4674.78 | W78: =LOOKUP(A78,'DOE - FIPStoPayeeCodeConvTable'!$A$3:$A$213,'DOE - FIPStoPayeeCodeConvTable'!$E$3:$E$213) -> 0.3414 | X78: 0.42675 | Y78: 1994.96 | Z78: 2679.82
A79: 155 | B79: =LOOKUP(A79,'DOE - FIPStoPayeeCodeConvTable'!$A$3:$A$213,'DOE - FIPStoPayeeCodeConvTable'!$B$3:$B$213) -> Pulaski Co | C79: 0 | D79: 0 | E79: 0 | S79: 0 | U79: 0 | V79: 0 | W79: =LOOKUP(A79,'DOE - FIPStoPayeeCodeConvTable'!$A$3:$A$213,'DOE - FIPStoPayeeCodeConvTable'!$E$3:$E$213) -> 0.2923 | X79: 0.365375 | Y79: 0 | Z79: 0
A80: 157 | B80: =LOOKUP(A80,'DOE - FIPStoPayeeCodeConvTable'!$A$3:$A$213,'DOE - FIPStoPayeeCodeConvTable'!$B$3:$B$213) -> Rappahannock Co | C80: 0 | D80: 0 | E80: 0 | S80: 0 | U80: 0 | V80: 0 | W80: =LOOKUP(A80,'DOE - FIPStoPayeeCodeConvTable'!$A$3:$A$213,'DOE - FIPStoPayeeCodeConvTable'!$E$3:$E$213) -> 0.4199 | X80: 0.524875 | Y80: 0 | Z80: 0
A81: 159 | B81: =LOOKUP(A81,'DOE - FIPStoPayeeCodeConvTable'!$A$3:$A$213,'DOE - FIPStoPayeeCodeConvTable'!$B$3:$B$213) -> Richmond Co | C81: 0 | D81: 0 | E81: 0 | S81: 0 | U81: 0 | V81: 0 | W81: =LOOKUP(A81,'DOE - FIPStoPayeeCodeConvTable'!$A$3:$A$213,'DOE - FIPStoPayeeCodeConvTable'!$E$3:$E$213) -> 0.3227 | X81: 0.403375 | Y81: 0 | Z81: 0
A82: 161 | B82: =LOOKUP(A82,'DOE - FIPStoPayeeCodeConvTable'!$A$3:$A$213,'DOE - FIPStoPayeeCodeConvTable'!$B$3:$B$213) -> Roanoke Co | C82: 0 | D82: 0 | E82: 0 | S82: 0 | U82: 0 | V82: 0 | W82: =LOOKUP(A82,'DOE - FIPStoPayeeCodeConvTable'!$A$3:$A$213,'DOE - FIPStoPayeeCodeConvTable'!$E$3:$E$213) -> 0.4397 | X82: 0.549625 | Y82: 0 | Z82: 0
A83: 163 | B83: =LOOKUP(A83,'DOE - FIPStoPayeeCodeConvTable'!$A$3:$A$213,'DOE - FIPStoPayeeCodeConvTable'!$B$3:$B$213) -> Rockbridge Co | C83: 0 | D83: 0 | E83: 0 | S83: 0 | U83: 0 | V83: 0 | W83: =LOOKUP(A83,'DOE - FIPStoPayeeCodeConvTable'!$A$3:$A$213,'DOE - FIPStoPayeeCodeConvTable'!$E$3:$E$213) -> 0.2336 | X83: 0.292 | Y83: 0 | Z83: 0
A84: 165 | B84: =LOOKUP(A84,'DOE - FIPStoPayeeCodeConvTable'!$A$3:$A$213,'DOE - FIPStoPayeeCodeConvTable'!$B$3:$B$213) -> Rockingham Co | C84: 0 | D84: 0 | E84: 0 | S84: 0 | U84: 0 | V84: 0 | W84: =LOOKUP(A84,'DOE - FIPStoPayeeCodeConvTable'!$A$3:$A$213,'DOE - FIPStoPayeeCodeConvTable'!$E$3:$E$213) -> 0.3445 | X84: 0.430625 | Y84: 0 | Z84: 0
A85: 167 | B85: =LOOKUP(A85,'DOE - FIPStoPayeeCodeConvTable'!$A$3:$A$213,'DOE - FIPStoPayeeCodeConvTable'!$B$3:$B$213) -> Russell Co | C85: 0 | D85: 0 | E85: 0 | S85: 0 | U85: 0 | V85: 0 | W85: =LOOKUP(A85,'DOE - FIPStoPayeeCodeConvTable'!$A$3:$A$213,'DOE - FIPStoPayeeCodeConvTable'!$E$3:$E$213) -> 0.1894 | X85: 0.23675 | Y85: 0 | Z85: 0
A86: 169 | B86: =LOOKUP(A86,'DOE - FIPStoPayeeCodeConvTable'!$A$3:$A$213,'DOE - FIPStoPayeeCodeConvTable'!$B$3:$B$213) -> Scott Co | C86: 0 | D86: 0 | E86: 0 | S86: 0 | U86: 0 | V86: 0 | W86: =LOOKUP(A86,'DOE - FIPStoPayeeCodeConvTable'!$A$3:$A$213,'DOE - FIPStoPayeeCodeConvTable'!$E$3:$E$213) -> 0.3154 | X86: 0.39425 | Y86: 0 | Z86: 0
A87: 171 | B87: =LOOKUP(A87,'DOE - FIPStoPayeeCodeConvTable'!$A$3:$A$213,'DOE - FIPStoPayeeCodeConvTable'!$B$3:$B$213) -> Shenandoah Co | C87: 11805 | D87: 0 | E87: 0 | S87: 11805 | U87: 10388.4 | V87: 1416.6 | W87: =LOOKUP(A87,'DOE - FIPStoPayeeCodeConvTable'!$A$3:$A$213,'DOE - FIPStoPayeeCodeConvTable'!$E$3:$E$213) -> 0.3517 | X87: 0.439625 | Y87: 622.77 | Z87: 793.83
A88: 173 | B88: =LOOKUP(A88,'DOE - FIPStoPayeeCodeConvTable'!$A$3:$A$213,'DOE - FIPStoPayeeCodeConvTable'!$B$3:$B$213) -> Smyth Co | C88: 0 | D88: 0 | E88: 0 | S88: 0 | U88: 0 | V88: 0 | W88: =LOOKUP(A88,'DOE - FIPStoPayeeCodeConvTable'!$A$3:$A$213,'DOE - FIPStoPayeeCodeConvTable'!$E$3:$E$213) -> 0.2337 | X88: 0.292125 | Y88: 0 | Z88: 0
A89: 175 | B89: =LOOKUP(A89,'DOE - FIPStoPayeeCodeConvTable'!$A$3:$A$213,'DOE - FIPStoPayeeCodeConvTable'!$B$3:$B$213) -> Southampton Co | C89: 0 | D89: 0 | E89: 15740 | S89: 15740 | U89: 13851.2 | V89: 1888.8 | W89: =LOOKUP(A89,'DOE - FIPStoPayeeCodeConvTable'!$A$3:$A$213,'DOE - FIPStoPayeeCodeConvTable'!$E$3:$E$213) -> 0.323 | X89: 0.40375 | Y89: 762.6 | Z89: 1126.2
A90: 177 | B90: =LOOKUP(A90,'DOE - FIPStoPayeeCodeConvTable'!$A$3:$A$213,'DOE - FIPStoPayeeCodeConvTable'!$B$3:$B$213) -> Spotsylvania Co | C90: 0 | D90: 0 | E90: 0 | S90: 0 | U90: 0 | V90: 0 | W90: =LOOKUP(A90,'DOE - FIPStoPayeeCodeConvTable'!$A$3:$A$213,'DOE - FIPStoPayeeCodeConvTable'!$E$3:$E$213) -> 0.4588 | X90: 0.5735 | Y90: 0 | Z90: 0
A91: 179 | B91: =LOOKUP(A91,'DOE - FIPStoPayeeCodeConvTable'!$A$3:$A$213,'DOE - FIPStoPayeeCodeConvTable'!$B$3:$B$213) -> Stafford Co | C91: 0 | D91: 0 | E91: 0 | S91: 0 | U91: 0 | V91: 0 | W91: =LOOKUP(A91,'DOE - FIPStoPayeeCodeConvTable'!$A$3:$A$213,'DOE - FIPStoPayeeCodeConvTable'!$E$3:$E$213) -> 0.4439 | X91: 0.554875 | Y91: 0 | Z91: 0
A92: 181 | B92: =LOOKUP(A92,'DOE - FIPStoPayeeCodeConvTable'!$A$3:$A$213,'DOE - FIPStoPayeeCodeConvTable'!$B$3:$B$213) -> Surry Co | C92: 0 | D92: 0 | E92: 0 | S92: 0 | U92: 0 | V92: 0 | W92: =LOOKUP(A92,'DOE - FIPStoPayeeCodeConvTable'!$A$3:$A$213,'DOE - FIPStoPayeeCodeConvTable'!$E$3:$E$213) -> 0.3979 | X92: 0.497375 | Y92: 0 | Z92: 0
A93: 183 | B93: =LOOKUP(A93,'DOE - FIPStoPayeeCodeConvTable'!$A$3:$A$213,'DOE - FIPStoPayeeCodeConvTable'!$B$3:$B$213) -> Sussex Co | C93: 0 | D93: 4386.6 | E93: 4532.82 | S93: 8919.42 | U93: 7849.09 | V93: 1070.33 | W93: =LOOKUP(A93,'DOE - FIPStoPayeeCodeConvTable'!$A$3:$A$213,'DOE - FIPStoPayeeCodeConvTable'!$E$3:$E$213) -> 0.2387 | X93: 0.298375 | Y93: 319.36 | Z93: 750.97
A94: 185 | B94: =LOOKUP(A94,'DOE - FIPStoPayeeCodeConvTable'!$A$3:$A$213,'DOE - FIPStoPayeeCodeConvTable'!$B$3:$B$213) -> Tazewell Co | C94: 0 | D94: 0 | E94: 0 | S94: 0 | U94: 0 | V94: 0 | W94: =LOOKUP(A94,'DOE - FIPStoPayeeCodeConvTable'!$A$3:$A$213,'DOE - FIPStoPayeeCodeConvTable'!$E$3:$E$213) -> 0.2455 | X94: 0.306875 | Y94: 0 | Z94: 0
A95: 187 | B95: =LOOKUP(A95,'DOE - FIPStoPayeeCodeConvTable'!$A$3:$A$213,'DOE - FIPStoPayeeCodeConvTable'!$B$3:$B$213) -> Warren Co | C95: 0 | D95: 0 | E95: 0 | S95: 0 | U95: 0 | V95: 0 | W95: =LOOKUP(A95,'DOE - FIPStoPayeeCodeConvTable'!$A$3:$A$213,'DOE - FIPStoPayeeCodeConvTable'!$E$3:$E$213) -> 0.3853 | X95: 0.481625 | Y95: 0 | Z95: 0
A96: 191 | B96: =LOOKUP(A96,'DOE - FIPStoPayeeCodeConvTable'!$A$3:$A$213,'DOE - FIPStoPayeeCodeConvTable'!$B$3:$B$213) -> Washington Co | C96: 0 | D96: 0 | E96: 0 | S96: 0 | U96: 0 | V96: 0 | W96: =LOOKUP(A96,'DOE - FIPStoPayeeCodeConvTable'!$A$3:$A$213,'DOE - FIPStoPayeeCodeConvTable'!$E$3:$E$213) -> 0.276 | X96: 0.345 | Y96: 0 | Z96: 0
A97: 193 | B97: =LOOKUP(A97,'DOE - FIPStoPayeeCodeConvTable'!$A$3:$A$213,'DOE - FIPStoPayeeCodeConvTable'!$B$3:$B$213) -> Westmoreland Co | C97: 0 | D97: 0 | E97: 0 | S97: 0 | U97: 0 | V97: 0 | W97: =LOOKUP(A97,'DOE - FIPStoPayeeCodeConvTable'!$A$3:$A$213,'DOE - FIPStoPayeeCodeConvTable'!$E$3:$E$213) -> 0.3025 | X97: 0.378125 | Y97: 0 | Z97: 0
A98: 195 | B98: =LOOKUP(A98,'DOE - FIPStoPayeeCodeConvTable'!$A$3:$A$213,'DOE - FIPStoPayeeCodeConvTable'!$B$3:$B$213) -> Wise Co | C98: 0 | D98: 0 | E98: 0 | S98: 0 | U98: 0 | V98: 0 | W98: =LOOKUP(A98,'DOE - FIPStoPayeeCodeConvTable'!$A$3:$A$213,'DOE - FIPStoPayeeCodeConvTable'!$E$3:$E$213) -> 0.2755 | X98: 0.344375 | Y98: 0 | Z98: 0
A99: 197 | B99: =LOOKUP(A99,'DOE - FIPStoPayeeCodeConvTable'!$A$3:$A$213,'DOE - FIPStoPayeeCodeConvTable'!$B$3:$B$213) -> Wythe Co | C99: 0 | D99: 0 | E99: 0 | S99: 0 | U99: 0 | V99: 0 | W99: =LOOKUP(A99,'DOE - FIPStoPayeeCodeConvTable'!$A$3:$A$213,'DOE - FIPStoPayeeCodeConvTable'!$E$3:$E$213) -> 0.2708 | X99: 0.3385 | Y99: 0 | Z99: 0
A100: 199 | B100: =LOOKUP(A100,'DOE - FIPStoPayeeCodeConvTable'!$A$3:$A$213,'DOE - FIPStoPayeeCodeConvTable'!$B$3:$B$213) -> York Co | C100: 0 | D100: 2047.08 | E100: 0 | S100: 2047.08 | U100: 1801.43 | V100: 245.65 | W100: =LOOKUP(A100,'DOE - FIPStoPayeeCodeConvTable'!$A$3:$A$213,'DOE - FIPStoPayeeCodeConvTable'!$E$3:$E$213) -> 0.3888 | X100: 0.486 | Y100: 119.39 | Z100: 126.26
A101: 510 | B101: =LOOKUP(A101,'DOE - FIPStoPayeeCodeConvTable'!$A$3:$A$213,'DOE - FIPStoPayeeCodeConvTable'!$B$3:$B$213) -> Alexandria City | C101: 0 | D101: 0 | E101: 0 | S101: 0 | U101: 0 | V101: 0 | W101: =LOOKUP(A101,'DOE - FIPStoPayeeCodeConvTable'!$A$3:$A$213,'DOE - FIPStoPayeeCodeConvTable'!$E$3:$E$213) -> 0.5309 | X101: 0.663625 | Y101: 0 | Z101: 0
A102: 520 | B102: =LOOKUP(A102,'DOE - FIPStoPayeeCodeConvTable'!$A$3:$A$213,'DOE - FIPStoPayeeCodeConvTable'!$B$3:$B$213) -> Bristol City | C102: 0 | D102: 0 | E102: 0 | S102: 0 | U102: =ROUND($U$1*S102,2) -> 0 | V102: =SUM(S102)-SUM(U102) -> 0 | W102: =LOOKUP(A102,'DOE - FIPStoPayeeCodeConvTable'!$A$3:$A$213,'DOE - FIPStoPayeeCodeConvTable'!$E$3:$E$213) -> 0.2547 | X102: 0.318375 | Y102: 0 | Z102: 0
A103: 530 | B103: =LOOKUP(A103,'DOE - FIPStoPayeeCodeConvTable'!$A$3:$A$213,'DOE - FIPStoPayeeCodeConvTable'!$B$3:$B$213) -> Buena Vista City | C103: 0 | D103: 0 | E103: 0 | S103: 0 | U103: 0 | V103: 0 | W103: =LOOKUP(A103,'DOE - FIPStoPayeeCodeConvTable'!$A$3:$A$213,'DOE - FIPStoPayeeCodeConvTable'!$E$3:$E$213) -> 0.2329 | X103: 0.291125 | Y103: 0 | Z103: 0
A104: 540 | B104: =LOOKUP(A104,'DOE - FIPStoPayeeCodeConvTable'!$A$3:$A$213,'DOE - FIPStoPayeeCodeConvTable'!$B$3:$B$213) -> Charlottesville City | C104: 0 | D104: 0 | E104: 0 | S104: 0 | U104: 0 | V104: 0 | W104: =LOOKUP(A104,'DOE - FIPStoPayeeCodeConvTable'!$A$3:$A$213,'DOE - FIPStoPayeeCodeConvTable'!$E$3:$E$213) -> 0.3068 | X104: 0.3835 | Y104: 0 | Z104: 0
A105: 550 | B105: =LOOKUP(A105,'DOE - FIPStoPayeeCodeConvTable'!$A$3:$A$213,'DOE - FIPStoPayeeCodeConvTable'!$B$3:$B$213) -> Chesapeake City | C105: 0 | D105: 0 | E105: 0 | S105: 0 | U105: 0 | V105: 0 | W105: =LOOKUP(A105,'DOE - FIPStoPayeeCodeConvTable'!$A$3:$A$213,'DOE - FIPStoPayeeCodeConvTable'!$E$3:$E$213) -> 0.3715 | X105: 0.464375 | Y105: 0 | Z105: 0
A106: 570 | B106: =LOOKUP(A106,'DOE - FIPStoPayeeCodeConvTable'!$A$3:$A$213,'DOE - FIPStoPayeeCodeConvTable'!$B$3:$B$213) -> Colonial Heights City | C106: 0 | D106: 0 | E106: 0 | S106: 0 | U106: 0 | V106: 0 | W106: =LOOKUP(A106,'DOE - FIPStoPayeeCodeConvTable'!$A$3:$A$213,'DOE - FIPStoPayeeCodeConvTable'!$E$3:$E$213) -> 0.4027 | X106: 0.503375 | Y106: 0 | Z106: 0
A107: 580 | B107: =LOOKUP(A107,'DOE - FIPStoPayeeCodeConvTable'!$A$3:$A$213,'DOE - FIPStoPayeeCodeConvTable'!$B$3:$B$213) -> Covington City | C107: 0 | D107: 0 | E107: 0 | S107: 0 | U107: 0 | V107: 0 | W107: =LOOKUP(A107,'DOE - FIPStoPayeeCodeConvTable'!$A$3:$A$213,'DOE - FIPStoPayeeCodeConvTable'!$E$3:$E$213) -> 0.2496 | X107: 0.312 | Y107: 0 | Z107: 0
A108: 590 | B108: =LOOKUP(A108,'DOE - FIPStoPayeeCodeConvTable'!$A$3:$A$213,'DOE - FIPStoPayeeCodeConvTable'!$B$3:$B$213) -> Danville City | C108: 0 | D108: 0 | E108: 0 | S108: 0 | U108: 0 | V108: 0 | W108: =LOOKUP(A108,'DOE - FIPStoPayeeCodeConvTable'!$A$3:$A$213,'DOE - FIPStoPayeeCodeConvTable'!$E$3:$E$213) -> 0.2223 | X108: 0.277875 | Y108: 0 | Z108: 0
A109: 620 | B109: =LOOKUP(A109,'DOE - FIPStoPayeeCodeConvTable'!$A$3:$A$213,'DOE - FIPStoPayeeCodeConvTable'!$B$3:$B$213) -> Franklin City | C109: 0 | D109: 0 | E109: 0 | S109: 0 | U109: 0 | V109: 0 | W109: =LOOKUP(A109,'DOE - FIPStoPayeeCodeConvTable'!$A$3:$A$213,'DOE - FIPStoPayeeCodeConvTable'!$E$3:$E$213) -> 0.371 | X109: 0.46375 | Y109: 0 | Z109: 0
A110: 630 | B110: =LOOKUP(A110,'DOE - FIPStoPayeeCodeConvTable'!$A$3:$A$213,'DOE - FIPStoPayeeCodeConvTable'!$B$3:$B$213) -> Fredericksburg City | C110: 0 | D110: 0 | E110: 0 | S110: 0 | U110: 0 | V110: 0 | W110: =LOOKUP(A110,'DOE - FIPStoPayeeCodeConvTable'!$A$3:$A$213,'DOE - FIPStoPayeeCodeConvTable'!$E$3:$E$213) -> 0.3441 | X110: 0.430125 | Y110: 0 | Z110: 0
A111: 640 | B111: =LOOKUP(A111,'DOE - FIPStoPayeeCodeConvTable'!$A$3:$A$213,'DOE - FIPStoPayeeCodeConvTable'!$B$3:$B$213) -> Galax City | C111: 0 | D111: 5115.5 | E111: 0 | S111: 5115.5 | U111: 4501.64 | V111: 613.86 | W111: =LOOKUP(A111,'DOE - FIPStoPayeeCodeConvTable'!$A$3:$A$213,'DOE - FIPStoPayeeCodeConvTable'!$E$3:$E$213) -> 0.3146 | X111: 0.39325 | Y111: 241.4 | Z111: 372.46
A112: 650 | B112: =LOOKUP(A112,'DOE - FIPStoPayeeCodeConvTable'!$A$3:$A$213,'DOE - FIPStoPayeeCodeConvTable'!$B$3:$B$213) -> Hampton City | C112: 0 | D112: 0 | E112: 0 | S112: 0 | U112: 0 | V112: 0 | W112: =LOOKUP(A112,'DOE - FIPStoPayeeCodeConvTable'!$A$3:$A$213,'DOE - FIPStoPayeeCodeConvTable'!$E$3:$E$213) -> 0.3223 | X112: 0.402875 | Y112: 0 | Z112: 0
A113: 660 | B113: =LOOKUP(A113,'DOE - FIPStoPayeeCodeConvTable'!$A$3:$A$213,'DOE - FIPStoPayeeCodeConvTable'!$B$3:$B$213) -> Harrisonburg City | C113: 0 | D113: 0 | E113: 1574 | S113: 1574 | U113: 1385.12 | V113: 188.88 | W113: =LOOKUP(A113,'DOE - FIPStoPayeeCodeConvTable'!$A$3:$A$213,'DOE - FIPStoPayeeCodeConvTable'!$E$3:$E$213) -> 0.3808 | X113: 0.476 | Y113: 89.91 | Z113: 98.97
A114: 670 | B114: =LOOKUP(A114,'DOE - FIPStoPayeeCodeConvTable'!$A$3:$A$213,'DOE - FIPStoPayeeCodeConvTable'!$B$3:$B$213) -> Hopewell City | C114: 0 | D114: 0 | E114: 0 | S114: 0 | U114: 0 | V114: 0 | W114: =LOOKUP(A114,'DOE - FIPStoPayeeCodeConvTable'!$A$3:$A$213,'DOE - FIPStoPayeeCodeConvTable'!$E$3:$E$213) -> 0.2667 | X114: 0.333375 | Y114: 0 | Z114: 0
A115: 678 | B115: =LOOKUP(A115,'DOE - FIPStoPayeeCodeConvTable'!$A$3:$A$213,'DOE - FIPStoPayeeCodeConvTable'!$B$3:$B$213) -> Lexington City | C115: 0 | D115: 0 | E115: 0 | S115: 0 | U115: 0 | V115: 0 | W115: =LOOKUP(A115,'DOE - FIPStoPayeeCodeConvTable'!$A$3:$A$213,'DOE - FIPStoPayeeCodeConvTable'!$E$3:$E$213) -> 0.3302 | X115: 0.41275 | Y115: 0 | Z115: 0
A116: 680 | B116: =LOOKUP(A116,'DOE - FIPStoPayeeCodeConvTable'!$A$3:$A$213,'DOE - FIPStoPayeeCodeConvTable'!$B$3:$B$213) -> Lynchburg City | C116: 0 | D116: 0 | E116: 0 | S116: 0 | U116: 0 | V116: 0 | W116: =LOOKUP(A116,'DOE - FIPStoPayeeCodeConvTable'!$A$3:$A$213,'DOE - FIPStoPayeeCodeConvTable'!$E$3:$E$213) -> 0.2736 | X116: 0.342 | Y116: 0 | Z116: 0
A117: 683 | B117: =LOOKUP(A117,'DOE - FIPStoPayeeCodeConvTable'!$A$3:$A$213,'DOE - FIPStoPayeeCodeConvTable'!$B$3:$B$213) -> Manassas City | C117: 0 | D117: 0 | E117: 0 | S117: 0 | U117: 0 | V117: 0 | W117: =LOOKUP(A117,'DOE - FIPStoPayeeCodeConvTable'!$A$3:$A$213,'DOE - FIPStoPayeeCodeConvTable'!$E$3:$E$213) -> 0.4168 | X117: 0.521 | Y117: 0 | Z117: 0
A118: 685 | B118: =LOOKUP(A118,'DOE - FIPStoPayeeCodeConvTable'!$A$3:$A$213,'DOE - FIPStoPayeeCodeConvTable'!$B$3:$B$213) -> Manassas Park City | C118: 0 | D118: 0 | E118: 0 | S118: 0 | U118: 0 | V118: 0 | W118: =LOOKUP(A118,'DOE - FIPStoPayeeCodeConvTable'!$A$3:$A$213,'DOE - FIPStoPayeeCodeConvTable'!$E$3:$E$213) -> 0.4273 | X118: 0.534125 | Y118: 0 | Z118: 0
A119: 690 | B119: =LOOKUP(A119,'DOE - FIPStoPayeeCodeConvTable'!$A$3:$A$213,'DOE - FIPStoPayeeCodeConvTable'!$B$3:$B$213) -> Martinsville City | C119: 0 | D119: 0 | E119: 0 | S119: 0 | U119: 0 | V119: 0 | W119: =LOOKUP(A119,'DOE - FIPStoPayeeCodeConvTable'!$A$3:$A$213,'DOE - FIPStoPayeeCodeConvTable'!$E$3:$E$213) -> 0.3321 | X119: 0.415125 | Y119: 0 | Z119: 0
A120: 700 | B120: =LOOKUP(A120,'DOE - FIPStoPayeeCodeConvTable'!$A$3:$A$213,'DOE - FIPStoPayeeCodeConvTable'!$B$3:$B$213) -> Newport News City | C120: 0 | D120: 0 | E120: 0 | S120: 0 | U120: 0 | V120: 0 | W120: =LOOKUP(A120,'DOE - FIPStoPayeeCodeConvTable'!$A$3:$A$213,'DOE - FIPStoPayeeCodeConvTable'!$E$3:$E$213) -> 0.2773 | X120: 0.346625 | Y120: 0 | Z120: 0
A121: 710 | B121: =LOOKUP(A121,'DOE - FIPStoPayeeCodeConvTable'!$A$3:$A$213,'DOE - FIPStoPayeeCodeConvTable'!$B$3:$B$213) -> Norfolk City | C121: 3148 | D121: 0 | E121: 0 | S121: 3148 | U121: 2770.24 | V121: 377.76 | W121: =LOOKUP(A121,'DOE - FIPStoPayeeCodeConvTable'!$A$3:$A$213,'DOE - FIPStoPayeeCodeConvTable'!$E$3:$E$213) -> 0.2455 | X121: 0.306875 | Y121: 115.93 | Z121: 261.83
A122: 720 | B122: =LOOKUP(A122,'DOE - FIPStoPayeeCodeConvTable'!$A$3:$A$213,'DOE - FIPStoPayeeCodeConvTable'!$B$3:$B$213) -> Norton City | C122: 0 | D122: 0 | E122: 0 | S122: 0 | U122: 0 | V122: 0 | W122: =LOOKUP(A122,'DOE - FIPStoPayeeCodeConvTable'!$A$3:$A$213,'DOE - FIPStoPayeeCodeConvTable'!$E$3:$E$213) -> 0.3254 | X122: 0.40675 | Y122: 0 | Z122: 0
A123: 730 | B123: =LOOKUP(A123,'DOE - FIPStoPayeeCodeConvTable'!$A$3:$A$213,'DOE - FIPStoPayeeCodeConvTable'!$B$3:$B$213) -> Petersburg City | C123: 0 | D123: 0 | E123: 0 | S123: 0 | U123: 0 | V123: 0 | W123: =LOOKUP(A123,'DOE - FIPStoPayeeCodeConvTable'!$A$3:$A$213,'DOE - FIPStoPayeeCodeConvTable'!$E$3:$E$213) -> 0.3535 | X123: 0.441875 | Y123: 0 | Z123: 0
A124: 735 | B124: =LOOKUP(A124,'DOE - FIPStoPayeeCodeConvTable'!$A$3:$A$213,'DOE - FIPStoPayeeCodeConvTable'!$B$3:$B$213) -> Poquoson City | C124: 0 | D124: 0 | E124: 0 | S124: 0 | U124: 0 | V124: 0 | W124: =LOOKUP(A124,'DOE - FIPStoPayeeCodeConvTable'!$A$3:$A$213,'DOE - FIPStoPayeeCodeConvTable'!$E$3:$E$213) -> 0.2787 | X124: 0.348375 | Y124: 0 | Z124: 0
A125: 740 | B125: =LOOKUP(A125,'DOE - FIPStoPayeeCodeConvTable'!$A$3:$A$213,'DOE - FIPStoPayeeCodeConvTable'!$B$3:$B$213) -> Portsmouth City | C125: 0 | D125: 0 | E125: 0 | S125: 0 | U125: 0 | V125: 0 | W125: =LOOKUP(A125,'DOE - FIPStoPayeeCodeConvTable'!$A$3:$A$213,'DOE - FIPStoPayeeCodeConvTable'!$E$3:$E$213) -> 0.2605 | X125: 0.325625 | Y125: 0 | Z125: 0
A126: 750 | B126: =LOOKUP(A126,'DOE - FIPStoPayeeCodeConvTable'!$A$3:$A$213,'DOE - FIPStoPayeeCodeConvTable'!$B$3:$B$213) -> Radford City | C126: 0 | D126: 0 | E126: 0 | S126: 0 | U126: 0 | V126: 0 | W126: =LOOKUP(A126,'DOE - FIPStoPayeeCodeConvTable'!$A$3:$A$213,'DOE - FIPStoPayeeCodeConvTable'!$E$3:$E$213) -> 0.2035 | X126: 0.254375 | Y126: 0 | Z126: 0
A127: 760 | B127: =LOOKUP(A127,'DOE - FIPStoPayeeCodeConvTable'!$A$3:$A$213,'DOE - FIPStoPayeeCodeConvTable'!$B$3:$B$213) -> Richmond City | C127: 8657 | D127: 22429.5 | E127: 24003.5 | S127: 55090 | U127: 48479.2 | V127: 6610.8 | W127: =LOOKUP(A127,'DOE - FIPStoPayeeCodeConvTable'!$A$3:$A$213,'DOE - FIPStoPayeeCodeConvTable'!$E$3:$E$213) -> 0.3691 | X127: 0.461375 | Y127: 3050.06 | Z127: 3560.74
A128: 770 | B128: =LOOKUP(A128,'DOE - FIPStoPayeeCodeConvTable'!$A$3:$A$213,'DOE - FIPStoPayeeCodeConvTable'!$B$3:$B$213) -> Roanoke City | C128: 0 | D128: 0 | E128: 0 | S128: 0 | U128: 0 | V128: 0 | W128: =LOOKUP(A128,'DOE - FIPStoPayeeCodeConvTable'!$A$3:$A$213,'DOE - FIPStoPayeeCodeConvTable'!$E$3:$E$213) -> 0.3072 | X128: 0.384 | Y128: 0 | Z128: 0
A129: 775 | B129: =LOOKUP(A129,'DOE - FIPStoPayeeCodeConvTable'!$A$3:$A$213,'DOE - FIPStoPayeeCodeConvTable'!$B$3:$B$213) -> Salem City | C129: 0 | D129: 0 | E129: 0 | S129: 0 | U129: 0 | V129: 0 | W129: =LOOKUP(A129,'DOE - FIPStoPayeeCodeConvTable'!$A$3:$A$213,'DOE - FIPStoPayeeCodeConvTable'!$E$3:$E$213) -> 0.3513 | X129: 0.439125 | Y129: 0 | Z129: 0
A130: 790 | B130: =LOOKUP(A130,'DOE - FIPStoPayeeCodeConvTable'!$A$3:$A$213,'DOE - FIPStoPayeeCodeConvTable'!$B$3:$B$213) -> Staunton City | C130: 0 | D130: 0 | E130: 0 | S130: 0 | U130: 0 | V130: 0 | W130: =LOOKUP(A130,'DOE - FIPStoPayeeCodeConvTable'!$A$3:$A$213,'DOE - FIPStoPayeeCodeConvTable'!$E$3:$E$213) -> 0.2699 | X130: 0.337375 | Y130: 0 | Z130: 0
A131: 800 | B131: =LOOKUP(A131,'DOE - FIPStoPayeeCodeConvTable'!$A$3:$A$213,'DOE - FIPStoPayeeCodeConvTable'!$B$3:$B$213) -> Suffolk City | C131: 0 | D131: 0 | E131: 0 | S131: 0 | U131: 0 | V131: 0 | W131: =LOOKUP(A131,'DOE - FIPStoPayeeCodeConvTable'!$A$3:$A$213,'DOE - FIPStoPayeeCodeConvTable'!$E$3:$E$213) -> 0.2432 | X131: 0.304 | Y131: 0 | Z131: 0
A132: 810 | B132: =LOOKUP(A132,'DOE - FIPStoPayeeCodeConvTable'!$A$3:$A$213,'DOE - FIPStoPayeeCodeConvTable'!$B$3:$B$213) -> Virginia Beach City | C132: 12985.5 | D132: 0 | E132: 0 | S132: 12985.5 | U132: 11427.24 | V132: 1558.26 | W132: =LOOKUP(A132,'DOE - FIPStoPayeeCodeConvTable'!$A$3:$A$213,'DOE - FIPStoPayeeCodeConvTable'!$E$3:$E$213) -> 0.3569 | X132: 0.446125 | Y132: 695.18 | Z132: 863.08
A133: 820 | B133: =LOOKUP(A133,'DOE - FIPStoPayeeCodeConvTable'!$A$3:$A$213,'DOE - FIPStoPayeeCodeConvTable'!$B$3:$B$213) -> Waynesboro City | C133: 10815.59 | D133: 10466.7 | E133: 32097.88 | S133: 53380.17 | U133: 46974.55 | V133: =SUM(S133)-SUM(U133) -> 6405.62 | W133: =LOOKUP(A133,'DOE - FIPStoPayeeCodeConvTable'!$A$3:$A$213,'DOE - FIPStoPayeeCodeConvTable'!$E$3:$E$213) -> 0.3843 | X133: 0.480375 | Y133: 3077.1 | Z133: 3328.52
A134: 830 | B134: =LOOKUP(A134,'DOE - FIPStoPayeeCodeConvTable'!$A$3:$A$213,'DOE - FIPStoPayeeCodeConvTable'!$B$3:$B$213) -> Williamsburg City | C134: 0 | D134: 0 | E134: 0 | S134: 0 | U134: 0 | V134: 0 | W134: =LOOKUP(A134,'DOE - FIPStoPayeeCodeConvTable'!$A$3:$A$213,'DOE - FIPStoPayeeCodeConvTable'!$E$3:$E$213) -> 0.4553 | X134: =$X$1*W134 -> 0.569125 | Y134: =ROUND(X134*V134,2) -> 0 | Z134: =SUM(V134)-SUM(Y134) -> 0
A135: 840 | B135: =LOOKUP(A135,'DOE - FIPStoPayeeCodeConvTable'!$A$3:$A$213,'DOE - FIPStoPayeeCodeConvTable'!$B$3:$B$213) -> Winchester City | C135: 0 | D135: 0 | E135: 0 | S135: =SUM(C135:R135) -> 0 | U135: 0 | V135: 0 | W135: =LOOKUP(A135,'DOE - FIPStoPayeeCodeConvTable'!$A$3:$A$213,'DOE - FIPStoPayeeCodeConvTable'!$E$3:$E$213) -> 0.4587 | X135: 0.573375 | Y135: =ROUND(X135*V135,2) -> 0 | Z135: =SUM(V135)-SUM(Y135) -> 0

Sheet Extended NR (hidden)
A1: FY | B1: ='DOE - FIPStoPayeeCodeConvTable'!G1 -> 2020 | C1: MEDICAID ADJUSTMENTS--EXTENDED PAYMENTS TO PROVIDERS | O1: ="Extended to be paided in this SFY = " & B1 -> Extended to be paided in this SFY = 2020 | T1: xx | U1: 0.765 | V1: 0.235 | W1: (POOL) | X1: 1.25
U2: FEDERAL | V2: STATE/ | W2: (RATE) | X2: Factor
A3: FIPS | S3: Grand | U3: MEDICAID | V3: LOCAL | W3: LOCAL | Y3: LOCAL | Z3: STATE
A4: CODE | B4: LOCALITY | C4: =TEXT("7/1/" & $B$1-1,"mmm-yyyy") -> Jul-2019 | D4: =TEXT("8/1/" & $B$1-1,"mmm-yyyy") -> Aug-2019 | E4: =TEXT("9/1/" & $B$1-1,"mmm-yyyy") -> Sep-2019 | F4: =TEXT("10/1/" & $B$1-1,"mmm-yyyy") -> Oct-2019 | G4: =TEXT("11/1/" & $B$1-1,"mmm-yyyy") -> Nov-2019 | H4: =TEXT("12/1/" & $B$1-1,"mmm-yyyy") -> Dec-2019 | I4: =TEXT("1/1/" & $B$1,"mmm-yyyy") -> Jan-2020 | J4: =TEXT("2/1/" & $B$1,"mmm-yyyy") -> Feb-2020 | K4: =TEXT("3/1/" & $B$1,"mmm-yyyy") -> Mar-2020 | L4: =TEXT("4/1/" & $B$1,"mmm-yyyy") -> Apr-2020 | M4: =TEXT("5/1/" & $B$1,"mmm-yyyy") -> May-2020 | N4: =TEXT("6/1/" & $B$1,"mmm-yyyy") -> Jun-2020 | O4: =TEXT("7/1/" & $B$1,"mmm-yyyy") -> Jul-2020 | P4: =TEXT("8/1/" & $B$1,"mmm-yyyy") -> Aug-2020 | Q4: =TEXT("9/1/" & $B$1,"mmm-yyyy") -> Sep-2020 | R4: =TEXT("10/1/" & $B$1,"mmm-yyyy") -> Oct-2020 | S4: Total | U4: RATE/Share | V4: SHARE | W4: MATCH Rate | Y4: MATCH | Z4: SHARE
A5: Totals | C5: =SUM(C6:C1200) -> 0 | D5: 0 | E5: =SUM(E6:E1200) -> 0 | F5: =SUM(F6:F1200) -> 140315.62 | G5: =SUM(G6:G1200) -> 135799.68 | H5: =SUM(H6:H1200) -> 256152.49 | I5: 0 | J5: 0 | K5: 0 | L5: 0 | M5: 0 | N5: =SUM(N6:N1200) -> 0 | O5: 0 | P5: 0 | Q5: 0 | R5: 0 | S5: =SUM(C5:R5) -> 532267.79 | T5: = | U5: =SUM(U6:U399) -> 407184.89 | V5: =SUM(V6:V399) -> 125082.9 | W5: = | Y5: =SUM(Y6:Y399) -> 55410.85 | Z5: =SUM(Z6:Z399) -> 69672.05
A6: 1 | B6: =LOOKUP(A6,'DOE - FIPStoPayeeCodeConvTable'!$A$3:$A$213,'DOE - FIPStoPayeeCodeConvTable'!$B$3:$B$213) -> Accomack Co | F6: 0 | G6: 0 | H6: 0 | S6: =SUM(C6:R6) -> 0 | U6: =ROUND($U$1*S6,2) -> 0 | V6: =SUM(S6)-SUM(U6) -> 0 | W6: =LOOKUP(A6,'DOE - FIPStoPayeeCodeConvTable'!$A$3:$A$213,'DOE - FIPStoPayeeCodeConvTable'!$E$3:$E$213) -> 0.2332 | X6: =$X$1*W6 -> 0.2915 | Y6: =ROUND(X6*V6,2) -> 0 | Z6: =SUM(V6)-SUM(Y6) -> 0
A7: 3 | B7: =LOOKUP(A7,'DOE - FIPStoPayeeCodeConvTable'!$A$3:$A$213,'DOE - FIPStoPayeeCodeConvTable'!$B$3:$B$213) -> Albemarle Co | F7: 0 | G7: 0 | H7: 0 | S7: =SUM(C7:R7) -> 0 | U7: =ROUND($U$1*S7,2) -> 0 | V7: 0 | W7: =LOOKUP(A7,'DOE - FIPStoPayeeCodeConvTable'!$A$3:$A$213,'DOE - FIPStoPayeeCodeConvTable'!$E$3:$E$213) -> 0.4474 | X7: =$X$1*W7 -> 0.55925 | Y7: =ROUND(X7*V7,2) -> 0 | Z7: =SUM(V7)-SUM(Y7) -> 0
A8: 5 | B8: =LOOKUP(A8,'DOE - FIPStoPayeeCodeConvTable'!$A$3:$A$213,'DOE - FIPStoPayeeCodeConvTable'!$B$3:$B$213) -> Alleghany Co | F8: 0 | G8: 0 | H8: 0 | S8: 0 | U8: 0 | V8: 0 | W8: =LOOKUP(A8,'DOE - FIPStoPayeeCodeConvTable'!$A$3:$A$213,'DOE - FIPStoPayeeCodeConvTable'!$E$3:$E$213) -> 0.1924 | X8: 0.2405 | Y8: 0 | Z8: 0
A9: 7 | B9: =LOOKUP(A9,'DOE - FIPStoPayeeCodeConvTable'!$A$3:$A$213,'DOE - FIPStoPayeeCodeConvTable'!$B$3:$B$213) -> Amelia Co | F9: 0 | G9: 0 | H9: 0 | S9: 0 | U9: 0 | V9: 0 | W9: =LOOKUP(A9,'DOE - FIPStoPayeeCodeConvTable'!$A$3:$A$213,'DOE - FIPStoPayeeCodeConvTable'!$E$3:$E$213) -> 0.3268 | X9: 0.4085 | Y9: 0 | Z9: 0
A10: 9 | B10: =LOOKUP(A10,'DOE - FIPStoPayeeCodeConvTable'!$A$3:$A$213,'DOE - FIPStoPayeeCodeConvTable'!$B$3:$B$213) -> Amherst Co | F10: 0 | G10: 0 | H10: 0 | S10: 0 | U10: 0 | V10: 0 | W10: =LOOKUP(A10,'DOE - FIPStoPayeeCodeConvTable'!$A$3:$A$213,'DOE - FIPStoPayeeCodeConvTable'!$E$3:$E$213) -> 0.2722 | X10: 0.34025 | Y10: 0 | Z10: 0
A11: 11 | B11: =LOOKUP(A11,'DOE - FIPStoPayeeCodeConvTable'!$A$3:$A$213,'DOE - FIPStoPayeeCodeConvTable'!$B$3:$B$213) -> Appomattox Co | F11: 0 | G11: 0 | H11: 0 | S11: 0 | U11: 0 | V11: 0 | W11: =LOOKUP(A11,'DOE - FIPStoPayeeCodeConvTable'!$A$3:$A$213,'DOE - FIPStoPayeeCodeConvTable'!$E$3:$E$213) -> 0.2639 | X11: 0.329875 | Y11: 0 | Z11: 0
A12: 13 | B12: =LOOKUP(A12,'DOE - FIPStoPayeeCodeConvTable'!$A$3:$A$213,'DOE - FIPStoPayeeCodeConvTable'!$B$3:$B$213) -> Arlington Co | F12: 0 | G12: 0 | H12: 0 | S12: 0 | U12: 0 | V12: 0 | W12: =LOOKUP(A12,'DOE - FIPStoPayeeCodeConvTable'!$A$3:$A$213,'DOE - FIPStoPayeeCodeConvTable'!$E$3:$E$213) -> 0.4602 | X12: 0.57525 | Y12: 0 | Z12: 0
A13: 15 | B13: =LOOKUP(A13,'DOE - FIPStoPayeeCodeConvTable'!$A$3:$A$213,'DOE - FIPStoPayeeCodeConvTable'!$B$3:$B$213) -> Augusta Co | F13: 0 | G13: 0 | H13: 0 | S13: 0 | U13: 0 | V13: 0 | W13: =LOOKUP(A13,'DOE - FIPStoPayeeCodeConvTable'!$A$3:$A$213,'DOE - FIPStoPayeeCodeConvTable'!$E$3:$E$213) -> 0.3302 | X13: 0.41275 | Y13: 0 | Z13: 0
A14: 17 | B14: =LOOKUP(A14,'DOE - FIPStoPayeeCodeConvTable'!$A$3:$A$213,'DOE - FIPStoPayeeCodeConvTable'!$B$3:$B$213) -> Bath Co | F14: 0 | G14: 0 | H14: 0 | S14: 0 | U14: 0 | V14: 0 | W14: =LOOKUP(A14,'DOE - FIPStoPayeeCodeConvTable'!$A$3:$A$213,'DOE - FIPStoPayeeCodeConvTable'!$E$3:$E$213) -> 0.4278 | X14: 0.53475 | Y14: 0 | Z14: 0
A15: 19 | B15: =LOOKUP(A15,'DOE - FIPStoPayeeCodeConvTable'!$A$3:$A$213,'DOE - FIPStoPayeeCodeConvTable'!$B$3:$B$213) -> Bedford Co | F15: 13772.5 | G15: 13772.5 | H15: 14559.5 | S15: 42104.5 | U15: 32209.94 | V15: 9894.56 | W15: =LOOKUP(A15,'DOE - FIPStoPayeeCodeConvTable'!$A$3:$A$213,'DOE - FIPStoPayeeCodeConvTable'!$E$3:$E$213) -> 0.31112 | X15: 0.3889 | Y15: 3847.99 | Z15: 6046.57
A16: 21 | B16: =LOOKUP(A16,'DOE - FIPStoPayeeCodeConvTable'!$A$3:$A$213,'DOE - FIPStoPayeeCodeConvTable'!$B$3:$B$213) -> Bland Co | F16: 0 | G16: 0 | H16: 0 | S16: 0 | U16: 0 | V16: 0 | W16: =LOOKUP(A16,'DOE - FIPStoPayeeCodeConvTable'!$A$3:$A$213,'DOE - FIPStoPayeeCodeConvTable'!$E$3:$E$213) -> 0.2109 | X16: 0.263625 | Y16: 0 | Z16: 0
A17: 23 | B17: =LOOKUP(A17,'DOE - FIPStoPayeeCodeConvTable'!$A$3:$A$213,'DOE - FIPStoPayeeCodeConvTable'!$B$3:$B$213) -> Botetourt Co | F17: 0 | G17: 0 | H17: 0 | S17: 0 | U17: 0 | V17: 0 | W17: =LOOKUP(A17,'DOE - FIPStoPayeeCodeConvTable'!$A$3:$A$213,'DOE - FIPStoPayeeCodeConvTable'!$E$3:$E$213) -> 0.3602 | X17: 0.45025 | Y17: 0 | Z17: 0
A18: 25 | B18: =LOOKUP(A18,'DOE - FIPStoPayeeCodeConvTable'!$A$3:$A$213,'DOE - FIPStoPayeeCodeConvTable'!$B$3:$B$213) -> Brunswick Co | F18: 0 | G18: 2361 | H18: 0 | S18: 2361 | U18: 1806.17 | V18: 554.83 | W18: =LOOKUP(A18,'DOE - FIPStoPayeeCodeConvTable'!$A$3:$A$213,'DOE - FIPStoPayeeCodeConvTable'!$E$3:$E$213) -> 0.2439 | X18: 0.304875 | Y18: 169.15 | Z18: 385.68
A19: 27 | B19: =LOOKUP(A19,'DOE - FIPStoPayeeCodeConvTable'!$A$3:$A$213,'DOE - FIPStoPayeeCodeConvTable'!$B$3:$B$213) -> Buchanan Co | F19: 0 | G19: 0 | H19: 0 | S19: 0 | U19: 0 | V19: 0 | W19: =LOOKUP(A19,'DOE - FIPStoPayeeCodeConvTable'!$A$3:$A$213,'DOE - FIPStoPayeeCodeConvTable'!$E$3:$E$213) -> 0.3156 | X19: 0.3945 | Y19: 0 | Z19: 0
A20: 29 | B20: =LOOKUP(A20,'DOE - FIPStoPayeeCodeConvTable'!$A$3:$A$213,'DOE - FIPStoPayeeCodeConvTable'!$B$3:$B$213) -> Buckingham Co | F20: 21282.29 | G20: 0 | H20: 21282.29 | S20: 42564.58 | U20: 32561.9 | V20: 10002.68 | W20: =LOOKUP(A20,'DOE - FIPStoPayeeCodeConvTable'!$A$3:$A$213,'DOE - FIPStoPayeeCodeConvTable'!$E$3:$E$213) -> 0.2023 | X20: 0.252875 | Y20: 2529.43 | Z20: 7473.25
A21: 31 | B21: =LOOKUP(A21,'DOE - FIPStoPayeeCodeConvTable'!$A$3:$A$213,'DOE - FIPStoPayeeCodeConvTable'!$B$3:$B$213) -> Campbell Co | F21: 0 | G21: 0 | H21: 0 | S21: 0 | U21: 0 | V21: 0 | W21: =LOOKUP(A21,'DOE - FIPStoPayeeCodeConvTable'!$A$3:$A$213,'DOE - FIPStoPayeeCodeConvTable'!$E$3:$E$213) -> 0.3107 | X21: 0.388375 | Y21: 0 | Z21: 0
A22: 33 | B22: =LOOKUP(A22,'DOE - FIPStoPayeeCodeConvTable'!$A$3:$A$213,'DOE - FIPStoPayeeCodeConvTable'!$B$3:$B$213) -> Caroline Co | F22: 0 | G22: 0 | H22: 0 | S22: 0 | U22: 0 | V22: 0 | W22: =LOOKUP(A22,'DOE - FIPStoPayeeCodeConvTable'!$A$3:$A$213,'DOE - FIPStoPayeeCodeConvTable'!$E$3:$E$213) -> 0.3308 | X22: 0.4135 | Y22: 0 | Z22: 0
A23: 35 | B23: =LOOKUP(A23,'DOE - FIPStoPayeeCodeConvTable'!$A$3:$A$213,'DOE - FIPStoPayeeCodeConvTable'!$B$3:$B$213) -> Carroll Co | F23: 0 | G23: 0 | H23: 0 | S23: 0 | U23: 0 | V23: 0 | W23: =LOOKUP(A23,'DOE - FIPStoPayeeCodeConvTable'!$A$3:$A$213,'DOE - FIPStoPayeeCodeConvTable'!$E$3:$E$213) -> 0.291 | X23: 0.36375 | Y23: 0 | Z23: 0
A24: 36 | B24: =LOOKUP(A24,'DOE - FIPStoPayeeCodeConvTable'!$A$3:$A$213,'DOE - FIPStoPayeeCodeConvTable'!$B$3:$B$213) -> Charles City Co | F24: 0 | G24: 0 | H24: 0 | S24: 0 | U24: 0 | V24: 0 | W24: =LOOKUP(A24,'DOE - FIPStoPayeeCodeConvTable'!$A$3:$A$213,'DOE - FIPStoPayeeCodeConvTable'!$E$3:$E$213) -> 0.3131 | X24: 0.391375 | Y24: 0 | Z24: 0
A25: 37 | B25: =LOOKUP(A25,'DOE - FIPStoPayeeCodeConvTable'!$A$3:$A$213,'DOE - FIPStoPayeeCodeConvTable'!$B$3:$B$213) -> Charlotte Co | F25: 0 | G25: 0 | H25: 0 | S25: 0 | U25: 0 | V25: 0 | W25: =LOOKUP(A25,'DOE - FIPStoPayeeCodeConvTable'!$A$3:$A$213,'DOE - FIPStoPayeeCodeConvTable'!$E$3:$E$213) -> 0.2204 | X25: 0.2755 | Y25: 0 | Z25: 0
A26: 41 | B26: =LOOKUP(A26,'DOE - FIPStoPayeeCodeConvTable'!$A$3:$A$213,'DOE - FIPStoPayeeCodeConvTable'!$B$3:$B$213) -> Chesterfield Co | F26: 7083 | G26: 0 | H26: 0 | S26: 7083 | U26: 5418.5 | V26: 1664.5 | W26: =LOOKUP(A26,'DOE - FIPStoPayeeCodeConvTable'!$A$3:$A$213,'DOE - FIPStoPayeeCodeConvTable'!$E$3:$E$213) -> 0.3853 | X26: 0.481625 | Y26: 801.66 | Z26: 862.84
A27: 43 | B27: =LOOKUP(A27,'DOE - FIPStoPayeeCodeConvTable'!$A$3:$A$213,'DOE - FIPStoPayeeCodeConvTable'!$B$3:$B$213) -> Clarke Co | F27: 0 | G27: 0 | H27: 0 | S27: 0 | U27: 0 | V27: 0 | W27: =LOOKUP(A27,'DOE - FIPStoPayeeCodeConvTable'!$A$3:$A$213,'DOE - FIPStoPayeeCodeConvTable'!$E$3:$E$213) -> 0.4797 | X27: 0.599625 | Y27: 0 | Z27: 0
A28: 45 | B28: =LOOKUP(A28,'DOE - FIPStoPayeeCodeConvTable'!$A$3:$A$213,'DOE - FIPStoPayeeCodeConvTable'!$B$3:$B$213) -> Craig Co | F28: 0 | G28: 0 | H28: 0 | S28: 0 | U28: 0 | V28: 0 | W28: =LOOKUP(A28,'DOE - FIPStoPayeeCodeConvTable'!$A$3:$A$213,'DOE - FIPStoPayeeCodeConvTable'!$E$3:$E$213) -> 0.2901 | X28: 0.362625 | Y28: 0 | Z28: 0
A29: 47 | B29: =LOOKUP(A29,'DOE - FIPStoPayeeCodeConvTable'!$A$3:$A$213,'DOE - FIPStoPayeeCodeConvTable'!$B$3:$B$213) -> Culpeper Co | F29: 0 | G29: 11805 | H29: 7083 | S29: 18888 | U29: 14449.32 | V29: 4438.68 | W29: =LOOKUP(A29,'DOE - FIPStoPayeeCodeConvTable'!$A$3:$A$213,'DOE - FIPStoPayeeCodeConvTable'!$E$3:$E$213) -> 0.3767 | X29: 0.470875 | Y29: 2090.06 | Z29: 2348.62
A30: 49 | B30: =LOOKUP(A30,'DOE - FIPStoPayeeCodeConvTable'!$A$3:$A$213,'DOE - FIPStoPayeeCodeConvTable'!$B$3:$B$213) -> Cumberland Co | F30: 0 | G30: 0 | H30: 0 | S30: 0 | U30: 0 | V30: 0 | W30: =LOOKUP(A30,'DOE - FIPStoPayeeCodeConvTable'!$A$3:$A$213,'DOE - FIPStoPayeeCodeConvTable'!$E$3:$E$213) -> 0.304 | X30: 0.38 | Y30: 0 | Z30: 0
A31: 51 | B31: =LOOKUP(A31,'DOE - FIPStoPayeeCodeConvTable'!$A$3:$A$213,'DOE - FIPStoPayeeCodeConvTable'!$B$3:$B$213) -> Dickenson Co | F31: 0 | G31: 0 | H31: 0 | S31: 0 | U31: 0 | V31: 0 | W31: =LOOKUP(A31,'DOE - FIPStoPayeeCodeConvTable'!$A$3:$A$213,'DOE - FIPStoPayeeCodeConvTable'!$E$3:$E$213) -> 0.3042 | X31: 0.38025 | Y31: 0 | Z31: 0
A32: 53 | B32: =LOOKUP(A32,'DOE - FIPStoPayeeCodeConvTable'!$A$3:$A$213,'DOE - FIPStoPayeeCodeConvTable'!$B$3:$B$213) -> Dinwiddie Co | F32: 0 | G32: 0 | H32: 0 | S32: 0 | U32: 0 | V32: 0 | W32: =LOOKUP(A32,'DOE - FIPStoPayeeCodeConvTable'!$A$3:$A$213,'DOE - FIPStoPayeeCodeConvTable'!$E$3:$E$213) -> 0.3358 | X32: 0.41975 | Y32: 0 | Z32: 0
A33: 57 | B33: =LOOKUP(A33,'DOE - FIPStoPayeeCodeConvTable'!$A$3:$A$213,'DOE - FIPStoPayeeCodeConvTable'!$B$3:$B$213) -> Essex Co | F33: 0 | G33: 0 | H33: 0 | S33: 0 | U33: 0 | V33: 0 | W33: =LOOKUP(A33,'DOE - FIPStoPayeeCodeConvTable'!$A$3:$A$213,'DOE - FIPStoPayeeCodeConvTable'!$E$3:$E$213) -> 0.3853 | X33: 0.481625 | Y33: 0 | Z33: 0
A34: 59 | B34: =LOOKUP(A34,'DOE - FIPStoPayeeCodeConvTable'!$A$3:$A$213,'DOE - FIPStoPayeeCodeConvTable'!$B$3:$B$213) -> Fairfax Co | F34: 2361 | G34: 39743.5 | H34: 13772.5 | S34: 55877 | U34: 42745.91 | V34: 13131.09 | W34: =LOOKUP(A34,'DOE - FIPStoPayeeCodeConvTable'!$A$3:$A$213,'DOE - FIPStoPayeeCodeConvTable'!$E$3:$E$213) -> 0.4611 | X34: 0.576375 | Y34: 7568.43 | Z34: 5562.66
A35: 61 | B35: =LOOKUP(A35,'DOE - FIPStoPayeeCodeConvTable'!$A$3:$A$213,'DOE - FIPStoPayeeCodeConvTable'!$B$3:$B$213) -> Fauquier Co | F35: 0 | G35: 0 | H35: 0 | S35: 0 | U35: 0 | V35: 0 | W35: =LOOKUP(A35,'DOE - FIPStoPayeeCodeConvTable'!$A$3:$A$213,'DOE - FIPStoPayeeCodeConvTable'!$E$3:$E$213) -> 0.4584 | X35: 0.573 | Y35: 0 | Z35: 0
A36: 63 | B36: =LOOKUP(A36,'DOE - FIPStoPayeeCodeConvTable'!$A$3:$A$213,'DOE - FIPStoPayeeCodeConvTable'!$B$3:$B$213) -> Floyd Co | F36: 0 | G36: 0 | H36: 0 | S36: 0 | U36: 0 | V36: 0 | W36: =LOOKUP(A36,'DOE - FIPStoPayeeCodeConvTable'!$A$3:$A$213,'DOE - FIPStoPayeeCodeConvTable'!$E$3:$E$213) -> 0.2324 | X36: 0.2905 | Y36: 0 | Z36: 0
A37: 65 | B37: =LOOKUP(A37,'DOE - FIPStoPayeeCodeConvTable'!$A$3:$A$213,'DOE - FIPStoPayeeCodeConvTable'!$B$3:$B$213) -> Fluvanna Co | F37: 0 | G37: 0 | H37: 0 | S37: 0 | U37: 0 | V37: 0 | W37: =LOOKUP(A37,'DOE - FIPStoPayeeCodeConvTable'!$A$3:$A$213,'DOE - FIPStoPayeeCodeConvTable'!$E$3:$E$213) -> 0.3811 | X37: 0.476375 | Y37: 0 | Z37: 0
A38: 67 | B38: =LOOKUP(A38,'DOE - FIPStoPayeeCodeConvTable'!$A$3:$A$213,'DOE - FIPStoPayeeCodeConvTable'!$B$3:$B$213) -> Franklin Co | F38: 0 | G38: 0 | H38: 0 | S38: 0 | U38: 0 | V38: 0 | W38: =LOOKUP(A38,'DOE - FIPStoPayeeCodeConvTable'!$A$3:$A$213,'DOE - FIPStoPayeeCodeConvTable'!$E$3:$E$213) -> 0.283 | X38: 0.35375 | Y38: 0 | Z38: 0
A39: 69 | B39: =LOOKUP(A39,'DOE - FIPStoPayeeCodeConvTable'!$A$3:$A$213,'DOE - FIPStoPayeeCodeConvTable'!$B$3:$B$213) -> Frederick Co | F39: 0 | G39: 0 | H39: 0 | S39: 0 | U39: 0 | V39: 0 | W39: =LOOKUP(A39,'DOE - FIPStoPayeeCodeConvTable'!$A$3:$A$213,'DOE - FIPStoPayeeCodeConvTable'!$E$3:$E$213) -> 0.4348 | X39: 0.5435 | Y39: 0 | Z39: 0
A40: 71 | B40: =LOOKUP(A40,'DOE - FIPStoPayeeCodeConvTable'!$A$3:$A$213,'DOE - FIPStoPayeeCodeConvTable'!$B$3:$B$213) -> Giles Co | F40: 0 | G40: 0 | H40: 0 | S40: 0 | U40: 0 | V40: 0 | W40: =LOOKUP(A40,'DOE - FIPStoPayeeCodeConvTable'!$A$3:$A$213,'DOE - FIPStoPayeeCodeConvTable'!$E$3:$E$213) -> 0.2898 | X40: 0.36225 | Y40: 0 | Z40: 0
A41: 73 | B41: =LOOKUP(A41,'DOE - FIPStoPayeeCodeConvTable'!$A$3:$A$213,'DOE - FIPStoPayeeCodeConvTable'!$B$3:$B$213) -> Gloucester Co | F41: 0 | G41: 0 | H41: 0 | S41: 0 | U41: 0 | V41: 0 | W41: =LOOKUP(A41,'DOE - FIPStoPayeeCodeConvTable'!$A$3:$A$213,'DOE - FIPStoPayeeCodeConvTable'!$E$3:$E$213) -> 0.3687 | X41: 0.460875 | Y41: 0 | Z41: 0
A42: 75 | B42: =LOOKUP(A42,'DOE - FIPStoPayeeCodeConvTable'!$A$3:$A$213,'DOE - FIPStoPayeeCodeConvTable'!$B$3:$B$213) -> Goochland Co | F42: 0 | G42: 0 | H42: 0 | S42: 0 | U42: 0 | V42: 0 | W42: =LOOKUP(A42,'DOE - FIPStoPayeeCodeConvTable'!$A$3:$A$213,'DOE - FIPStoPayeeCodeConvTable'!$E$3:$E$213) -> 0.4871 | X42: 0.608875 | Y42: 0 | Z42: 0
A43: 77 | B43: =LOOKUP(A43,'DOE - FIPStoPayeeCodeConvTable'!$A$3:$A$213,'DOE - FIPStoPayeeCodeConvTable'!$B$3:$B$213) -> Grayson Co | F43: 0 | G43: 0 | H43: 0 | S43: 0 | U43: 0 | V43: 0 | W43: =LOOKUP(A43,'DOE - FIPStoPayeeCodeConvTable'!$A$3:$A$213,'DOE - FIPStoPayeeCodeConvTable'!$E$3:$E$213) -> 0.2109 | X43: 0.263625 | Y43: 0 | Z43: 0
A44: 79 | B44: =LOOKUP(A44,'DOE - FIPStoPayeeCodeConvTable'!$A$3:$A$213,'DOE - FIPStoPayeeCodeConvTable'!$B$3:$B$213) -> Greene Co | F44: 0 | G44: 0 | H44: 0 | S44: 0 | U44: 0 | V44: 0 | W44: =LOOKUP(A44,'DOE - FIPStoPayeeCodeConvTable'!$A$3:$A$213,'DOE - FIPStoPayeeCodeConvTable'!$E$3:$E$213) -> 0.3471 | X44: 0.433875 | Y44: 0 | Z44: 0
A45: 81 | B45: =LOOKUP(A45,'DOE - FIPStoPayeeCodeConvTable'!$A$3:$A$213,'DOE - FIPStoPayeeCodeConvTable'!$B$3:$B$213) -> Greensville Co | F45: 4240.38 | G45: 0 | H45: 4094.16 | S45: 8334.54 | U45: 6375.92 | V45: 1958.62 | W45: =LOOKUP(A45,'DOE - FIPStoPayeeCodeConvTable'!$A$3:$A$213,'DOE - FIPStoPayeeCodeConvTable'!$E$3:$E$213) -> 0.2266 | X45: 0.28325 | Y45: 554.78 | Z45: 1403.84
A46: 83 | B46: =LOOKUP(A46,'DOE - FIPStoPayeeCodeConvTable'!$A$3:$A$213,'DOE - FIPStoPayeeCodeConvTable'!$B$3:$B$213) -> Halifax Co | F46: 2485.74 | G46: 0 | H46: 0 | S46: 2485.74 | U46: 1901.59 | V46: 584.15 | W46: =LOOKUP(A46,'DOE - FIPStoPayeeCodeConvTable'!$A$3:$A$213,'DOE - FIPStoPayeeCodeConvTable'!$E$3:$E$213) -> 0.2335 | X46: 0.291875 | Y46: 170.5 | Z46: 413.65
A47: 85 | B47: =LOOKUP(A47,'DOE - FIPStoPayeeCodeConvTable'!$A$3:$A$213,'DOE - FIPStoPayeeCodeConvTable'!$B$3:$B$213) -> Hanover Co | F47: 0 | G47: 0 | H47: 0 | S47: 0 | U47: 0 | V47: 0 | W47: =LOOKUP(A47,'DOE - FIPStoPayeeCodeConvTable'!$A$3:$A$213,'DOE - FIPStoPayeeCodeConvTable'!$E$3:$E$213) -> 0.4444 | X47: 0.5555 | Y47: 0 | Z47: 0
A48: 87 | B48: =LOOKUP(A48,'DOE - FIPStoPayeeCodeConvTable'!$A$3:$A$213,'DOE - FIPStoPayeeCodeConvTable'!$B$3:$B$213) -> Henrico Co | F48: 0 | G48: -14024.12 | H48: 0 | S48: -14024.12 | U48: -10728.45 | V48: -3295.67 | W48: =LOOKUP(A48,'DOE - FIPStoPayeeCodeConvTable'!$A$3:$A$213,'DOE - FIPStoPayeeCodeConvTable'!$E$3:$E$213) -> 0.3755 | X48: 0.469375 | Y48: -1546.91 | Z48: -1748.76
A49: 89 | B49: =LOOKUP(A49,'DOE - FIPStoPayeeCodeConvTable'!$A$3:$A$213,'DOE - FIPStoPayeeCodeConvTable'!$B$3:$B$213) -> Henry Co | F49: 0 | G49: 0 | H49: 0 | S49: 0 | U49: 0 | V49: 0 | W49: =LOOKUP(A49,'DOE - FIPStoPayeeCodeConvTable'!$A$3:$A$213,'DOE - FIPStoPayeeCodeConvTable'!$E$3:$E$213) -> 0.2786 | X49: 0.34825 | Y49: 0 | Z49: 0
A50: 91 | B50: =LOOKUP(A50,'DOE - FIPStoPayeeCodeConvTable'!$A$3:$A$213,'DOE - FIPStoPayeeCodeConvTable'!$B$3:$B$213) -> Highland Co | F50: 0 | G50: 0 | H50: 0 | S50: 0 | U50: 0 | V50: 0 | W50: =LOOKUP(A50,'DOE - FIPStoPayeeCodeConvTable'!$A$3:$A$213,'DOE - FIPStoPayeeCodeConvTable'!$E$3:$E$213) -> 0.3822 | X50: 0.47775 | Y50: 0 | Z50: 0
A51: 93 | B51: =LOOKUP(A51,'DOE - FIPStoPayeeCodeConvTable'!$A$3:$A$213,'DOE - FIPStoPayeeCodeConvTable'!$B$3:$B$213) -> Isle Of Wight Co | F51: 0 | G51: 0 | H51: 0 | S51: 0 | U51: 0 | V51: 0 | W51: =LOOKUP(A51,'DOE - FIPStoPayeeCodeConvTable'!$A$3:$A$213,'DOE - FIPStoPayeeCodeConvTable'!$E$3:$E$213) -> 0.3613 | X51: 0.451625 | Y51: 0 | Z51: 0
A52: 95 | B52: =LOOKUP(A52,'DOE - FIPStoPayeeCodeConvTable'!$A$3:$A$213,'DOE - FIPStoPayeeCodeConvTable'!$B$3:$B$213) -> James City Co | F52: 11805 | G52: 0 | H52: 24003.5 | S52: 35808.5 | U52: 27393.5 | V52: 8415 | W52: =LOOKUP(A52,'DOE - FIPStoPayeeCodeConvTable'!$A$3:$A$213,'DOE - FIPStoPayeeCodeConvTable'!$E$3:$E$213) -> 0.4483 | X52: 0.560375 | Y52: 4715.56 | Z52: 3699.44
A53: 97 | B53: =LOOKUP(A53,'DOE - FIPStoPayeeCodeConvTable'!$A$3:$A$213,'DOE - FIPStoPayeeCodeConvTable'!$B$3:$B$213) -> King And Queen Co | F53: 0 | G53: 0 | H53: 0 | S53: 0 | U53: 0 | V53: 0 | W53: =LOOKUP(A53,'DOE - FIPStoPayeeCodeConvTable'!$A$3:$A$213,'DOE - FIPStoPayeeCodeConvTable'!$E$3:$E$213) -> 0.3144 | X53: 0.393 | Y53: 0 | Z53: 0
A54: 99 | B54: =LOOKUP(A54,'DOE - FIPStoPayeeCodeConvTable'!$A$3:$A$213,'DOE - FIPStoPayeeCodeConvTable'!$B$3:$B$213) -> King George Co | F54: 0 | G54: 0 | H54: 0 | S54: 0 | U54: 0 | V54: 0 | W54: =LOOKUP(A54,'DOE - FIPStoPayeeCodeConvTable'!$A$3:$A$213,'DOE - FIPStoPayeeCodeConvTable'!$E$3:$E$213) -> 0.3627 | X54: 0.453375 | Y54: 0 | Z54: 0
A55: 101 | B55: =LOOKUP(A55,'DOE - FIPStoPayeeCodeConvTable'!$A$3:$A$213,'DOE - FIPStoPayeeCodeConvTable'!$B$3:$B$213) -> King William Co | F55: 0 | G55: 0 | H55: 0 | S55: 0 | U55: 0 | V55: 0 | W55: =LOOKUP(A55,'DOE - FIPStoPayeeCodeConvTable'!$A$3:$A$213,'DOE - FIPStoPayeeCodeConvTable'!$E$3:$E$213) -> 0.3853 | X55: 0.481625 | Y55: 0 | Z55: 0
A56: 103 | B56: =LOOKUP(A56,'DOE - FIPStoPayeeCodeConvTable'!$A$3:$A$213,'DOE - FIPStoPayeeCodeConvTable'!$B$3:$B$213) -> Lancaster Co | F56: 0 | G56: 0 | H56: 0 | S56: 0 | U56: 0 | V56: 0 | W56: =LOOKUP(A56,'DOE - FIPStoPayeeCodeConvTable'!$A$3:$A$213,'DOE - FIPStoPayeeCodeConvTable'!$E$3:$E$213) -> 0.4391 | X56: 0.548875 | Y56: 0 | Z56: 0
A57: 105 | B57: =LOOKUP(A57,'DOE - FIPStoPayeeCodeConvTable'!$A$3:$A$213,'DOE - FIPStoPayeeCodeConvTable'!$B$3:$B$213) -> Lee Co | F57: 0 | G57: 0 | H57: 0 | S57: 0 | U57: 0 | V57: 0 | W57: =LOOKUP(A57,'DOE - FIPStoPayeeCodeConvTable'!$A$3:$A$213,'DOE - FIPStoPayeeCodeConvTable'!$E$3:$E$213) -> 0.2245 | X57: 0.280625 | Y57: 0 | Z57: 0
A58: 107 | B58: =LOOKUP(A58,'DOE - FIPStoPayeeCodeConvTable'!$A$3:$A$213,'DOE - FIPStoPayeeCodeConvTable'!$B$3:$B$213) -> Loudoun Co | F58: 12198.5 | G58: 14166 | H58: 17314 | S58: 43678.5 | U58: 33414.05 | V58: 10264.45 | W58: =LOOKUP(A58,'DOE - FIPStoPayeeCodeConvTable'!$A$3:$A$213,'DOE - FIPStoPayeeCodeConvTable'!$E$3:$E$213) -> 0.4764 | X58: 0.5955 | Y58: 6112.48 | Z58: 4151.97
A59: 109 | B59: =LOOKUP(A59,'DOE - FIPStoPayeeCodeConvTable'!$A$3:$A$213,'DOE - FIPStoPayeeCodeConvTable'!$B$3:$B$213) -> Louisa Co | F59: 0 | G59: 0 | H59: 0 | S59: 0 | U59: 0 | V59: 0 | W59: =LOOKUP(A59,'DOE - FIPStoPayeeCodeConvTable'!$A$3:$A$213,'DOE - FIPStoPayeeCodeConvTable'!$E$3:$E$213) -> 0.4401 | X59: 0.550125 | Y59: 0 | Z59: 0
A60: 111 | B60: =LOOKUP(A60,'DOE - FIPStoPayeeCodeConvTable'!$A$3:$A$213,'DOE - FIPStoPayeeCodeConvTable'!$B$3:$B$213) -> Lunenburg Co | F60: 0 | G60: 0 | H60: 0 | S60: 0 | U60: 0 | V60: 0 | W60: =LOOKUP(A60,'DOE - FIPStoPayeeCodeConvTable'!$A$3:$A$213,'DOE - FIPStoPayeeCodeConvTable'!$E$3:$E$213) -> 0.1698 | X60: 0.21225 | Y60: 0 | Z60: 0
A61: 113 | B61: =LOOKUP(A61,'DOE - FIPStoPayeeCodeConvTable'!$A$3:$A$213,'DOE - FIPStoPayeeCodeConvTable'!$B$3:$B$213) -> Madison Co | F61: 0 | G61: 0 | H61: 0 | S61: 0 | U61: 0 | V61: 0 | W61: =LOOKUP(A61,'DOE - FIPStoPayeeCodeConvTable'!$A$3:$A$213,'DOE - FIPStoPayeeCodeConvTable'!$E$3:$E$213) -> 0.3355 | X61: 0.419375 | Y61: 0 | Z61: 0
A62: 115 | B62: =LOOKUP(A62,'DOE - FIPStoPayeeCodeConvTable'!$A$3:$A$213,'DOE - FIPStoPayeeCodeConvTable'!$B$3:$B$213) -> Mathews Co | F62: 0 | G62: 0 | H62: 0 | S62: 0 | U62: 0 | V62: 0 | W62: =LOOKUP(A62,'DOE - FIPStoPayeeCodeConvTable'!$A$3:$A$213,'DOE - FIPStoPayeeCodeConvTable'!$E$3:$E$213) -> 0.4271 | X62: 0.533875 | Y62: 0 | Z62: 0
A63: 117 | B63: =LOOKUP(A63,'DOE - FIPStoPayeeCodeConvTable'!$A$3:$A$213,'DOE - FIPStoPayeeCodeConvTable'!$B$3:$B$213) -> Mecklenburg Co | F63: 0 | G63: 0 | H63: 0 | S63: 0 | U63: 0 | V63: 0 | W63: =LOOKUP(A63,'DOE - FIPStoPayeeCodeConvTable'!$A$3:$A$213,'DOE - FIPStoPayeeCodeConvTable'!$E$3:$E$213) -> 0.2286 | X63: 0.28575 | Y63: 0 | Z63: 0
A64: 119 | B64: =LOOKUP(A64,'DOE - FIPStoPayeeCodeConvTable'!$A$3:$A$213,'DOE - FIPStoPayeeCodeConvTable'!$B$3:$B$213) -> Middlesex Co | F64: 0 | G64: 0 | H64: 0 | S64: 0 | U64: 0 | V64: 0 | W64: =LOOKUP(A64,'DOE - FIPStoPayeeCodeConvTable'!$A$3:$A$213,'DOE - FIPStoPayeeCodeConvTable'!$E$3:$E$213) -> 0.4333 | X64: 0.541625 | Y64: 0 | Z64: 0
A65: 121 | B65: =LOOKUP(A65,'DOE - FIPStoPayeeCodeConvTable'!$A$3:$A$213,'DOE - FIPStoPayeeCodeConvTable'!$B$3:$B$213) -> Montgomery Co | F65: 0 | G65: 0 | H65: 0 | S65: 0 | U65: 0 | V65: 0 | W65: =LOOKUP(A65,'DOE - FIPStoPayeeCodeConvTable'!$A$3:$A$213,'DOE - FIPStoPayeeCodeConvTable'!$E$3:$E$213) -> 0.2834 | X65: 0.35425 | Y65: 0 | Z65: 0
A66: 125 | B66: =LOOKUP(A66,'DOE - FIPStoPayeeCodeConvTable'!$A$3:$A$213,'DOE - FIPStoPayeeCodeConvTable'!$B$3:$B$213) -> Nelson Co | F66: 0 | G66: 0 | H66: 0 | S66: 0 | U66: 0 | V66: 0 | W66: =LOOKUP(A66,'DOE - FIPStoPayeeCodeConvTable'!$A$3:$A$213,'DOE - FIPStoPayeeCodeConvTable'!$E$3:$E$213) -> 0.3132 | X66: 0.3915 | Y66: 0 | Z66: 0
A67: 127 | B67: =LOOKUP(A67,'DOE - FIPStoPayeeCodeConvTable'!$A$3:$A$213,'DOE - FIPStoPayeeCodeConvTable'!$B$3:$B$213) -> New Kent Co | F67: 0 | G67: 0 | H67: 0 | S67: 0 | U67: 0 | V67: 0 | W67: =LOOKUP(A67,'DOE - FIPStoPayeeCodeConvTable'!$A$3:$A$213,'DOE - FIPStoPayeeCodeConvTable'!$E$3:$E$213) -> 0.4329 | X67: 0.541125 | Y67: 0 | Z67: 0
A68: 131 | B68: =LOOKUP(A68,'DOE - FIPStoPayeeCodeConvTable'!$A$3:$A$213,'DOE - FIPStoPayeeCodeConvTable'!$B$3:$B$213) -> Northampton Co | F68: 0 | G68: 0 | H68: 0 | S68: 0 | U68: 0 | V68: 0 | W68: =LOOKUP(A68,'DOE - FIPStoPayeeCodeConvTable'!$A$3:$A$213,'DOE - FIPStoPayeeCodeConvTable'!$E$3:$E$213) -> 0.1971 | X68: 0.246375 | Y68: 0 | Z68: 0
A69: 133 | B69: =LOOKUP(A69,'DOE - FIPStoPayeeCodeConvTable'!$A$3:$A$213,'DOE - FIPStoPayeeCodeConvTable'!$B$3:$B$213) -> Northumberland Co | F69: 0 | G69: 0 | H69: 0 | S69: 0 | U69: 0 | V69: 0 | W69: =LOOKUP(A69,'DOE - FIPStoPayeeCodeConvTable'!$A$3:$A$213,'DOE - FIPStoPayeeCodeConvTable'!$E$3:$E$213) -> 0.3304 | X69: 0.413 | Y69: 0 | Z69: 0
A70: 135 | B70: =LOOKUP(A70,'DOE - FIPStoPayeeCodeConvTable'!$A$3:$A$213,'DOE - FIPStoPayeeCodeConvTable'!$B$3:$B$213) -> Nottoway Co | F70: 0 | G70: 0 | H70: 0 | S70: 0 | U70: =ROUND($U$1*S70,2) -> 0 | V70: =SUM(S70)-SUM(U70) -> 0 | W70: =LOOKUP(A70,'DOE - FIPStoPayeeCodeConvTable'!$A$3:$A$213,'DOE - FIPStoPayeeCodeConvTable'!$E$3:$E$213) -> 0.2686 | X70: 0.33575 | Y70: 0 | Z70: 0
A71: 137 | B71: =LOOKUP(A71,'DOE - FIPStoPayeeCodeConvTable'!$A$3:$A$213,'DOE - FIPStoPayeeCodeConvTable'!$B$3:$B$213) -> Orange Co | F71: 0 | G71: 0 | H71: 0 | S71: =SUM(C71:R71) -> 0 | U71: 0 | V71: 0 | W71: =LOOKUP(A71,'DOE - FIPStoPayeeCodeConvTable'!$A$3:$A$213,'DOE - FIPStoPayeeCodeConvTable'!$E$3:$E$213) -> 0.4083 | X71: =$X$1*W71 -> 0.510375 | Y71: =ROUND(X71*V71,2) -> 0 | Z71: =SUM(V71)-SUM(Y71) -> 0
A72: 139 | B72: =LOOKUP(A72,'DOE - FIPStoPayeeCodeConvTable'!$A$3:$A$213,'DOE - FIPStoPayeeCodeConvTable'!$B$3:$B$213) -> Page Co | F72: 0 | G72: 0 | H72: 0 | S72: 0 | U72: 0 | V72: 0 | W72: =LOOKUP(A72,'DOE - FIPStoPayeeCodeConvTable'!$A$3:$A$213,'DOE - FIPStoPayeeCodeConvTable'!$E$3:$E$213) -> 0.2865 | X72: 0.358125 | Y72: 0 | Z72: 0
A73: 141 | B73: =LOOKUP(A73,'DOE - FIPStoPayeeCodeConvTable'!$A$3:$A$213,'DOE - FIPStoPayeeCodeConvTable'!$B$3:$B$213) -> Patrick Co | F73: 0 | G73: 0 | H73: 0 | S73: 0 | U73: 0 | V73: 0 | W73: =LOOKUP(A73,'DOE - FIPStoPayeeCodeConvTable'!$A$3:$A$213,'DOE - FIPStoPayeeCodeConvTable'!$E$3:$E$213) -> 0.2539 | X73: 0.317375 | Y73: 0 | Z73: 0
A74: 143 | B74: =LOOKUP(A74,'DOE - FIPStoPayeeCodeConvTable'!$A$3:$A$213,'DOE - FIPStoPayeeCodeConvTable'!$B$3:$B$213) -> Pittsylvania Co | F74: 0 | G74: 0 | H74: 3935 | S74: 3935 | U74: 3010.28 | V74: 924.72 | W74: =LOOKUP(A74,'DOE - FIPStoPayeeCodeConvTable'!$A$3:$A$213,'DOE - FIPStoPayeeCodeConvTable'!$E$3:$E$213) -> 0.2355 | X74: 0.294375 | Y74: 272.21 | Z74: 652.51
A75: 145 | B75: =LOOKUP(A75,'DOE - FIPStoPayeeCodeConvTable'!$A$3:$A$213,'DOE - FIPStoPayeeCodeConvTable'!$B$3:$B$213) -> Powhatan Co | F75: 0 | G75: 0 | H75: 0 | S75: 0 | U75: 0 | V75: 0 | W75: =LOOKUP(A75,'DOE - FIPStoPayeeCodeConvTable'!$A$3:$A$213,'DOE - FIPStoPayeeCodeConvTable'!$E$3:$E$213) -> 0.4342 | X75: 0.54275 | Y75: 0 | Z75: 0
A76: 147 | B76: =LOOKUP(A76,'DOE - FIPStoPayeeCodeConvTable'!$A$3:$A$213,'DOE - FIPStoPayeeCodeConvTable'!$B$3:$B$213) -> Prince Edward Co | F76: 0 | G76: 0 | H76: 0 | S76: 0 | U76: 0 | V76: 0 | W76: =LOOKUP(A76,'DOE - FIPStoPayeeCodeConvTable'!$A$3:$A$213,'DOE - FIPStoPayeeCodeConvTable'!$E$3:$E$213) -> 0.2232 | X76: 0.279 | Y76: 0 | Z76: 0
A77: 149 | B77: =LOOKUP(A77,'DOE - FIPStoPayeeCodeConvTable'!$A$3:$A$213,'DOE - FIPStoPayeeCodeConvTable'!$B$3:$B$213) -> Prince George Co | F77: 0 | G77: 0 | H77: 0 | S77: 0 | U77: 0 | V77: 0 | W77: =LOOKUP(A77,'DOE - FIPStoPayeeCodeConvTable'!$A$3:$A$213,'DOE - FIPStoPayeeCodeConvTable'!$E$3:$E$213) -> 0.3716 | X77: 0.4645 | Y77: 0 | Z77: 0
A78: 153 | B78: =LOOKUP(A78,'DOE - FIPStoPayeeCodeConvTable'!$A$3:$A$213,'DOE - FIPStoPayeeCodeConvTable'!$B$3:$B$213) -> Prince William Co | F78: 2754.5 | G78: 33447.5 | H78: 38563 | S78: 74765 | U78: 57195.23 | V78: 17569.77 | W78: =LOOKUP(A78,'DOE - FIPStoPayeeCodeConvTable'!$A$3:$A$213,'DOE - FIPStoPayeeCodeConvTable'!$E$3:$E$213) -> 0.3414 | X78: 0.42675 | Y78: 7497.9 | Z78: 10071.87
A79: 155 | B79: =LOOKUP(A79,'DOE - FIPStoPayeeCodeConvTable'!$A$3:$A$213,'DOE - FIPStoPayeeCodeConvTable'!$B$3:$B$213) -> Pulaski Co | F79: 0 | G79: 0 | H79: 0 | S79: 0 | U79: 0 | V79: 0 | W79: =LOOKUP(A79,'DOE - FIPStoPayeeCodeConvTable'!$A$3:$A$213,'DOE - FIPStoPayeeCodeConvTable'!$E$3:$E$213) -> 0.2923 | X79: 0.365375 | Y79: 0 | Z79: 0
A80: 157 | B80: =LOOKUP(A80,'DOE - FIPStoPayeeCodeConvTable'!$A$3:$A$213,'DOE - FIPStoPayeeCodeConvTable'!$B$3:$B$213) -> Rappahannock Co | F80: 0 | G80: 0 | H80: 0 | S80: 0 | U80: 0 | V80: 0 | W80: =LOOKUP(A80,'DOE - FIPStoPayeeCodeConvTable'!$A$3:$A$213,'DOE - FIPStoPayeeCodeConvTable'!$E$3:$E$213) -> 0.4199 | X80: 0.524875 | Y80: 0 | Z80: 0
A81: 159 | B81: =LOOKUP(A81,'DOE - FIPStoPayeeCodeConvTable'!$A$3:$A$213,'DOE - FIPStoPayeeCodeConvTable'!$B$3:$B$213) -> Richmond Co | F81: 0 | G81: 0 | H81: 0 | S81: 0 | U81: 0 | V81: 0 | W81: =LOOKUP(A81,'DOE - FIPStoPayeeCodeConvTable'!$A$3:$A$213,'DOE - FIPStoPayeeCodeConvTable'!$E$3:$E$213) -> 0.3227 | X81: 0.403375 | Y81: 0 | Z81: 0
A82: 161 | B82: =LOOKUP(A82,'DOE - FIPStoPayeeCodeConvTable'!$A$3:$A$213,'DOE - FIPStoPayeeCodeConvTable'!$B$3:$B$213) -> Roanoke Co | F82: 0 | G82: 0 | H82: 0 | S82: 0 | U82: 0 | V82: 0 | W82: =LOOKUP(A82,'DOE - FIPStoPayeeCodeConvTable'!$A$3:$A$213,'DOE - FIPStoPayeeCodeConvTable'!$E$3:$E$213) -> 0.4397 | X82: 0.549625 | Y82: 0 | Z82: 0
A83: 163 | B83: =LOOKUP(A83,'DOE - FIPStoPayeeCodeConvTable'!$A$3:$A$213,'DOE - FIPStoPayeeCodeConvTable'!$B$3:$B$213) -> Rockbridge Co | F83: 0 | G83: 0 | H83: 0 | S83: 0 | U83: 0 | V83: 0 | W83: =LOOKUP(A83,'DOE - FIPStoPayeeCodeConvTable'!$A$3:$A$213,'DOE - FIPStoPayeeCodeConvTable'!$E$3:$E$213) -> 0.2336 | X83: 0.292 | Y83: 0 | Z83: 0
A84: 165 | B84: =LOOKUP(A84,'DOE - FIPStoPayeeCodeConvTable'!$A$3:$A$213,'DOE - FIPStoPayeeCodeConvTable'!$B$3:$B$213) -> Rockingham Co | F84: 24003.5 | G84: 0 | H84: 46039.5 | S84: 70043 | U84: 53582.9 | V84: 16460.1 | W84: =LOOKUP(A84,'DOE - FIPStoPayeeCodeConvTable'!$A$3:$A$213,'DOE - FIPStoPayeeCodeConvTable'!$E$3:$E$213) -> 0.3445 | X84: 0.430625 | Y84: 7088.13 | Z84: 9371.97
A85: 167 | B85: =LOOKUP(A85,'DOE - FIPStoPayeeCodeConvTable'!$A$3:$A$213,'DOE - FIPStoPayeeCodeConvTable'!$B$3:$B$213) -> Russell Co | F85: 0 | G85: 0 | H85: 0 | S85: 0 | U85: 0 | V85: 0 | W85: =LOOKUP(A85,'DOE - FIPStoPayeeCodeConvTable'!$A$3:$A$213,'DOE - FIPStoPayeeCodeConvTable'!$E$3:$E$213) -> 0.1894 | X85: 0.23675 | Y85: 0 | Z85: 0
A86: 169 | B86: =LOOKUP(A86,'DOE - FIPStoPayeeCodeConvTable'!$A$3:$A$213,'DOE - FIPStoPayeeCodeConvTable'!$B$3:$B$213) -> Scott Co | F86: 0 | G86: 0 | H86: 0 | S86: 0 | U86: 0 | V86: 0 | W86: =LOOKUP(A86,'DOE - FIPStoPayeeCodeConvTable'!$A$3:$A$213,'DOE - FIPStoPayeeCodeConvTable'!$E$3:$E$213) -> 0.3154 | X86: 0.39425 | Y86: 0 | Z86: 0
A87: 171 | B87: =LOOKUP(A87,'DOE - FIPStoPayeeCodeConvTable'!$A$3:$A$213,'DOE - FIPStoPayeeCodeConvTable'!$B$3:$B$213) -> Shenandoah Co | F87: 0 | G87: 0 | H87: 0 | S87: 0 | U87: 0 | V87: 0 | W87: =LOOKUP(A87,'DOE - FIPStoPayeeCodeConvTable'!$A$3:$A$213,'DOE - FIPStoPayeeCodeConvTable'!$E$3:$E$213) -> 0.3517 | X87: 0.439625 | Y87: 0 | Z87: 0
A88: 173 | B88: =LOOKUP(A88,'DOE - FIPStoPayeeCodeConvTable'!$A$3:$A$213,'DOE - FIPStoPayeeCodeConvTable'!$B$3:$B$213) -> Smyth Co | F88: 0 | G88: 0 | H88: 0 | S88: 0 | U88: 0 | V88: 0 | W88: =LOOKUP(A88,'DOE - FIPStoPayeeCodeConvTable'!$A$3:$A$213,'DOE - FIPStoPayeeCodeConvTable'!$E$3:$E$213) -> 0.2337 | X88: 0.292125 | Y88: 0 | Z88: 0
A89: 175 | B89: =LOOKUP(A89,'DOE - FIPStoPayeeCodeConvTable'!$A$3:$A$213,'DOE - FIPStoPayeeCodeConvTable'!$B$3:$B$213) -> Southampton Co | F89: 11805 | G89: 6296 | H89: 17707.5 | S89: 35808.5 | U89: 27393.5 | V89: 8415 | W89: =LOOKUP(A89,'DOE - FIPStoPayeeCodeConvTable'!$A$3:$A$213,'DOE - FIPStoPayeeCodeConvTable'!$E$3:$E$213) -> 0.323 | X89: 0.40375 | Y89: 3397.56 | Z89: 5017.44
A90: 177 | B90: =LOOKUP(A90,'DOE - FIPStoPayeeCodeConvTable'!$A$3:$A$213,'DOE - FIPStoPayeeCodeConvTable'!$B$3:$B$213) -> Spotsylvania Co | F90: 0 | G90: 0 | H90: 0 | S90: 0 | U90: 0 | V90: 0 | W90: =LOOKUP(A90,'DOE - FIPStoPayeeCodeConvTable'!$A$3:$A$213,'DOE - FIPStoPayeeCodeConvTable'!$E$3:$E$213) -> 0.4588 | X90: 0.5735 | Y90: 0 | Z90: 0
A91: 179 | B91: =LOOKUP(A91,'DOE - FIPStoPayeeCodeConvTable'!$A$3:$A$213,'DOE - FIPStoPayeeCodeConvTable'!$B$3:$B$213) -> Stafford Co | F91: 0 | G91: 0 | H91: 0 | S91: 0 | U91: 0 | V91: 0 | W91: =LOOKUP(A91,'DOE - FIPStoPayeeCodeConvTable'!$A$3:$A$213,'DOE - FIPStoPayeeCodeConvTable'!$E$3:$E$213) -> 0.4439 | X91: 0.554875 | Y91: 0 | Z91: 0
A92: 181 | B92: =LOOKUP(A92,'DOE - FIPStoPayeeCodeConvTable'!$A$3:$A$213,'DOE - FIPStoPayeeCodeConvTable'!$B$3:$B$213) -> Surry Co | F92: 0 | G92: 0 | H92: 0 | S92: 0 | U92: 0 | V92: 0 | W92: =LOOKUP(A92,'DOE - FIPStoPayeeCodeConvTable'!$A$3:$A$213,'DOE - FIPStoPayeeCodeConvTable'!$E$3:$E$213) -> 0.3979 | X92: 0.497375 | Y92: 0 | Z92: 0
A93: 183 | B93: =LOOKUP(A93,'DOE - FIPStoPayeeCodeConvTable'!$A$3:$A$213,'DOE - FIPStoPayeeCodeConvTable'!$B$3:$B$213) -> Sussex Co | F93: 4532.82 | G93: 4386.6 | H93: 4532.82 | S93: 13452.24 | U93: 10290.96 | V93: 3161.28 | W93: =LOOKUP(A93,'DOE - FIPStoPayeeCodeConvTable'!$A$3:$A$213,'DOE - FIPStoPayeeCodeConvTable'!$E$3:$E$213) -> 0.2387 | X93: 0.298375 | Y93: 943.25 | Z93: 2218.03
A94: 185 | B94: =LOOKUP(A94,'DOE - FIPStoPayeeCodeConvTable'!$A$3:$A$213,'DOE - FIPStoPayeeCodeConvTable'!$B$3:$B$213) -> Tazewell Co | F94: 0 | G94: 0 | H94: 0 | S94: 0 | U94: 0 | V94: 0 | W94: =LOOKUP(A94,'DOE - FIPStoPayeeCodeConvTable'!$A$3:$A$213,'DOE - FIPStoPayeeCodeConvTable'!$E$3:$E$213) -> 0.2455 | X94: 0.306875 | Y94: 0 | Z94: 0
A95: 187 | B95: =LOOKUP(A95,'DOE - FIPStoPayeeCodeConvTable'!$A$3:$A$213,'DOE - FIPStoPayeeCodeConvTable'!$B$3:$B$213) -> Warren Co | F95: 0 | G95: 0 | H95: 0 | S95: 0 | U95: 0 | V95: 0 | W95: =LOOKUP(A95,'DOE - FIPStoPayeeCodeConvTable'!$A$3:$A$213,'DOE - FIPStoPayeeCodeConvTable'!$E$3:$E$213) -> 0.3853 | X95: 0.481625 | Y95: 0 | Z95: 0
A96: 191 | B96: =LOOKUP(A96,'DOE - FIPStoPayeeCodeConvTable'!$A$3:$A$213,'DOE - FIPStoPayeeCodeConvTable'!$B$3:$B$213) -> Washington Co | F96: 0 | G96: 0 | H96: 0 | S96: 0 | U96: 0 | V96: 0 | W96: =LOOKUP(A96,'DOE - FIPStoPayeeCodeConvTable'!$A$3:$A$213,'DOE - FIPStoPayeeCodeConvTable'!$E$3:$E$213) -> 0.276 | X96: 0.345 | Y96: 0 | Z96: 0
A97: 193 | B97: =LOOKUP(A97,'DOE - FIPStoPayeeCodeConvTable'!$A$3:$A$213,'DOE - FIPStoPayeeCodeConvTable'!$B$3:$B$213) -> Westmoreland Co | F97: 0 | G97: 0 | H97: 0 | S97: 0 | U97: 0 | V97: 0 | W97: =LOOKUP(A97,'DOE - FIPStoPayeeCodeConvTable'!$A$3:$A$213,'DOE - FIPStoPayeeCodeConvTable'!$E$3:$E$213) -> 0.3025 | X97: 0.378125 | Y97: 0 | Z97: 0
A98: 195 | B98: =LOOKUP(A98,'DOE - FIPStoPayeeCodeConvTable'!$A$3:$A$213,'DOE - FIPStoPayeeCodeConvTable'!$B$3:$B$213) -> Wise Co | F98: 0 | G98: 0 | H98: 0 | S98: 0 | U98: 0 | V98: 0 | W98: =LOOKUP(A98,'DOE - FIPStoPayeeCodeConvTable'!$A$3:$A$213,'DOE - FIPStoPayeeCodeConvTable'!$E$3:$E$213) -> 0.2755 | X98: 0.344375 | Y98: 0 | Z98: 0
A99: 197 | B99: =LOOKUP(A99,'DOE - FIPStoPayeeCodeConvTable'!$A$3:$A$213,'DOE - FIPStoPayeeCodeConvTable'!$B$3:$B$213) -> Wythe Co | F99: 0 | G99: 0 | H99: 0 | S99: 0 | U99: 0 | V99: 0 | W99: =LOOKUP(A99,'DOE - FIPStoPayeeCodeConvTable'!$A$3:$A$213,'DOE - FIPStoPayeeCodeConvTable'!$E$3:$E$213) -> 0.2708 | X99: 0.3385 | Y99: 0 | Z99: 0
A100: 199 | B100: =LOOKUP(A100,'DOE - FIPStoPayeeCodeConvTable'!$A$3:$A$213,'DOE - FIPStoPayeeCodeConvTable'!$B$3:$B$213) -> York Co | F100: 0 | G100: 0 | H100: 0 | S100: 0 | U100: 0 | V100: 0 | W100: =LOOKUP(A100,'DOE - FIPStoPayeeCodeConvTable'!$A$3:$A$213,'DOE - FIPStoPayeeCodeConvTable'!$E$3:$E$213) -> 0.3888 | X100: 0.486 | Y100: 0 | Z100: 0
A101: 510 | B101: =LOOKUP(A101,'DOE - FIPStoPayeeCodeConvTable'!$A$3:$A$213,'DOE - FIPStoPayeeCodeConvTable'!$B$3:$B$213) -> Alexandria City | F101: 0 | G101: 0 | H101: 0 | S101: 0 | U101: 0 | V101: 0 | W101: =LOOKUP(A101,'DOE - FIPStoPayeeCodeConvTable'!$A$3:$A$213,'DOE - FIPStoPayeeCodeConvTable'!$E$3:$E$213) -> 0.5309 | X101: 0.663625 | Y101: 0 | Z101: 0
A102: 520 | B102: =LOOKUP(A102,'DOE - FIPStoPayeeCodeConvTable'!$A$3:$A$213,'DOE - FIPStoPayeeCodeConvTable'!$B$3:$B$213) -> Bristol City | F102: 0 | G102: 0 | H102: 0 | S102: 0 | U102: 0 | V102: 0 | W102: =LOOKUP(A102,'DOE - FIPStoPayeeCodeConvTable'!$A$3:$A$213,'DOE - FIPStoPayeeCodeConvTable'!$E$3:$E$213) -> 0.2547 | X102: 0.318375 | Y102: 0 | Z102: 0
A103: 530 | B103: =LOOKUP(A103,'DOE - FIPStoPayeeCodeConvTable'!$A$3:$A$213,'DOE - FIPStoPayeeCodeConvTable'!$B$3:$B$213) -> Buena Vista City | F103: 0 | G103: 0 | H103: 0 | S103: 0 | U103: 0 | V103: 0 | W103: =LOOKUP(A103,'DOE - FIPStoPayeeCodeConvTable'!$A$3:$A$213,'DOE - FIPStoPayeeCodeConvTable'!$E$3:$E$213) -> 0.2329 | X103: 0.291125 | Y103: 0 | Z103: 0
A104: 540 | B104: =LOOKUP(A104,'DOE - FIPStoPayeeCodeConvTable'!$A$3:$A$213,'DOE - FIPStoPayeeCodeConvTable'!$B$3:$B$213) -> Charlottesville City | F104: 0 | G104: 0 | H104: 0 | S104: 0 | U104: 0 | V104: 0 | W104: =LOOKUP(A104,'DOE - FIPStoPayeeCodeConvTable'!$A$3:$A$213,'DOE - FIPStoPayeeCodeConvTable'!$E$3:$E$213) -> 0.3068 | X104: 0.3835 | Y104: 0 | Z104: 0
A105: 550 | B105: =LOOKUP(A105,'DOE - FIPStoPayeeCodeConvTable'!$A$3:$A$213,'DOE - FIPStoPayeeCodeConvTable'!$B$3:$B$213) -> Chesapeake City | F105: 0 | G105: 0 | H105: 0 | S105: 0 | U105: 0 | V105: 0 | W105: =LOOKUP(A105,'DOE - FIPStoPayeeCodeConvTable'!$A$3:$A$213,'DOE - FIPStoPayeeCodeConvTable'!$E$3:$E$213) -> 0.3715 | X105: 0.464375 | Y105: 0 | Z105: 0
A106: 570 | B106: =LOOKUP(A106,'DOE - FIPStoPayeeCodeConvTable'!$A$3:$A$213,'DOE - FIPStoPayeeCodeConvTable'!$B$3:$B$213) -> Colonial Heights City | F106: 16133.5 | G106: 0 | H106: 23610 | S106: 39743.5 | U106: 30403.78 | V106: 9339.72 | W106: =LOOKUP(A106,'DOE - FIPStoPayeeCodeConvTable'!$A$3:$A$213,'DOE - FIPStoPayeeCodeConvTable'!$E$3:$E$213) -> 0.4027 | X106: 0.503375 | Y106: 4701.38 | Z106: 4638.34
A107: 580 | B107: =LOOKUP(A107,'DOE - FIPStoPayeeCodeConvTable'!$A$3:$A$213,'DOE - FIPStoPayeeCodeConvTable'!$B$3:$B$213) -> Covington City | F107: 0 | G107: 0 | H107: 0 | S107: 0 | U107: 0 | V107: 0 | W107: =LOOKUP(A107,'DOE - FIPStoPayeeCodeConvTable'!$A$3:$A$213,'DOE - FIPStoPayeeCodeConvTable'!$E$3:$E$213) -> 0.2496 | X107: 0.312 | Y107: 0 | Z107: 0
A108: 590 | B108: =LOOKUP(A108,'DOE - FIPStoPayeeCodeConvTable'!$A$3:$A$213,'DOE - FIPStoPayeeCodeConvTable'!$B$3:$B$213) -> Danville City | F108: 0 | G108: 0 | H108: 0 | S108: 0 | U108: 0 | V108: 0 | W108: =LOOKUP(A108,'DOE - FIPStoPayeeCodeConvTable'!$A$3:$A$213,'DOE - FIPStoPayeeCodeConvTable'!$E$3:$E$213) -> 0.2223 | X108: 0.277875 | Y108: 0 | Z108: 0
A109: 620 | B109: =LOOKUP(A109,'DOE - FIPStoPayeeCodeConvTable'!$A$3:$A$213,'DOE - FIPStoPayeeCodeConvTable'!$B$3:$B$213) -> Franklin City | F109: 0 | G109: 0 | H109: 0 | S109: 0 | U109: 0 | V109: 0 | W109: =LOOKUP(A109,'DOE - FIPStoPayeeCodeConvTable'!$A$3:$A$213,'DOE - FIPStoPayeeCodeConvTable'!$E$3:$E$213) -> 0.371 | X109: 0.46375 | Y109: 0 | Z109: 0
A110: 630 | B110: =LOOKUP(A110,'DOE - FIPStoPayeeCodeConvTable'!$A$3:$A$213,'DOE - FIPStoPayeeCodeConvTable'!$B$3:$B$213) -> Fredericksburg City | F110: 0 | G110: 0 | H110: 0 | S110: 0 | U110: 0 | V110: 0 | W110: =LOOKUP(A110,'DOE - FIPStoPayeeCodeConvTable'!$A$3:$A$213,'DOE - FIPStoPayeeCodeConvTable'!$E$3:$E$213) -> 0.3441 | X110: 0.430125 | Y110: 0 | Z110: 0
A111: 640 | B111: =LOOKUP(A111,'DOE - FIPStoPayeeCodeConvTable'!$A$3:$A$213,'DOE - FIPStoPayeeCodeConvTable'!$B$3:$B$213) -> Galax City | F111: 0 | G111: 0 | H111: 0 | S111: 0 | U111: 0 | V111: 0 | W111: =LOOKUP(A111,'DOE - FIPStoPayeeCodeConvTable'!$A$3:$A$213,'DOE - FIPStoPayeeCodeConvTable'!$E$3:$E$213) -> 0.3146 | X111: 0.39325 | Y111: 0 | Z111: 0
A112: 650 | B112: =LOOKUP(A112,'DOE - FIPStoPayeeCodeConvTable'!$A$3:$A$213,'DOE - FIPStoPayeeCodeConvTable'!$B$3:$B$213) -> Hampton City | F112: 0 | G112: 0 | H112: 0 | S112: 0 | U112: 0 | V112: 0 | W112: =LOOKUP(A112,'DOE - FIPStoPayeeCodeConvTable'!$A$3:$A$213,'DOE - FIPStoPayeeCodeConvTable'!$E$3:$E$213) -> 0.3223 | X112: 0.402875 | Y112: 0 | Z112: 0
A113: 660 | B113: =LOOKUP(A113,'DOE - FIPStoPayeeCodeConvTable'!$A$3:$A$213,'DOE - FIPStoPayeeCodeConvTable'!$B$3:$B$213) -> Harrisonburg City | F113: 0 | G113: 0 | H113: 0 | S113: 0 | U113: 0 | V113: 0 | W113: =LOOKUP(A113,'DOE - FIPStoPayeeCodeConvTable'!$A$3:$A$213,'DOE - FIPStoPayeeCodeConvTable'!$E$3:$E$213) -> 0.3808 | X113: 0.476 | Y113: 0 | Z113: 0
A114: 670 | B114: =LOOKUP(A114,'DOE - FIPStoPayeeCodeConvTable'!$A$3:$A$213,'DOE - FIPStoPayeeCodeConvTable'!$B$3:$B$213) -> Hopewell City | F114: 0 | G114: 0 | H114: 0 | S114: 0 | U114: 0 | V114: 0 | W114: =LOOKUP(A114,'DOE - FIPStoPayeeCodeConvTable'!$A$3:$A$213,'DOE - FIPStoPayeeCodeConvTable'!$E$3:$E$213) -> 0.2667 | X114: 0.333375 | Y114: 0 | Z114: 0
A115: 678 | B115: =LOOKUP(A115,'DOE - FIPStoPayeeCodeConvTable'!$A$3:$A$213,'DOE - FIPStoPayeeCodeConvTable'!$B$3:$B$213) -> Lexington City | F115: 0 | G115: 0 | H115: 0 | S115: 0 | U115: 0 | V115: 0 | W115: =LOOKUP(A115,'DOE - FIPStoPayeeCodeConvTable'!$A$3:$A$213,'DOE - FIPStoPayeeCodeConvTable'!$E$3:$E$213) -> 0.3302 | X115: 0.41275 | Y115: 0 | Z115: 0
A116: 680 | B116: =LOOKUP(A116,'DOE - FIPStoPayeeCodeConvTable'!$A$3:$A$213,'DOE - FIPStoPayeeCodeConvTable'!$B$3:$B$213) -> Lynchburg City | F116: 0 | G116: 10466.7 | H116: 0 | S116: 10466.7 | U116: 8007.03 | V116: 2459.67 | W116: =LOOKUP(A116,'DOE - FIPStoPayeeCodeConvTable'!$A$3:$A$213,'DOE - FIPStoPayeeCodeConvTable'!$E$3:$E$213) -> 0.2736 | X116: 0.342 | Y116: 841.21 | Z116: 1618.46
A117: 683 | B117: =LOOKUP(A117,'DOE - FIPStoPayeeCodeConvTable'!$A$3:$A$213,'DOE - FIPStoPayeeCodeConvTable'!$B$3:$B$213) -> Manassas City | F117: 0 | G117: 0 | H117: 0 | S117: 0 | U117: 0 | V117: 0 | W117: =LOOKUP(A117,'DOE - FIPStoPayeeCodeConvTable'!$A$3:$A$213,'DOE - FIPStoPayeeCodeConvTable'!$E$3:$E$213) -> 0.4168 | X117: 0.521 | Y117: 0 | Z117: 0
A118: 685 | B118: =LOOKUP(A118,'DOE - FIPStoPayeeCodeConvTable'!$A$3:$A$213,'DOE - FIPStoPayeeCodeConvTable'!$B$3:$B$213) -> Manassas Park City | F118: 0 | G118: 0 | H118: 0 | S118: 0 | U118: 0 | V118: 0 | W118: =LOOKUP(A118,'DOE - FIPStoPayeeCodeConvTable'!$A$3:$A$213,'DOE - FIPStoPayeeCodeConvTable'!$E$3:$E$213) -> 0.4273 | X118: 0.534125 | Y118: 0 | Z118: 0
A119: 690 | B119: =LOOKUP(A119,'DOE - FIPStoPayeeCodeConvTable'!$A$3:$A$213,'DOE - FIPStoPayeeCodeConvTable'!$B$3:$B$213) -> Martinsville City | F119: 0 | G119: 0 | H119: 6287.46 | S119: 6287.46 | U119: 4809.91 | V119: 1477.55 | W119: =LOOKUP(A119,'DOE - FIPStoPayeeCodeConvTable'!$A$3:$A$213,'DOE - FIPStoPayeeCodeConvTable'!$E$3:$E$213) -> 0.3321 | X119: 0.415125 | Y119: 613.37 | Z119: 864.18
A120: 700 | B120: =LOOKUP(A120,'DOE - FIPStoPayeeCodeConvTable'!$A$3:$A$213,'DOE - FIPStoPayeeCodeConvTable'!$B$3:$B$213) -> Newport News City | F120: 0 | G120: 0 | H120: 0 | S120: 0 | U120: 0 | V120: 0 | W120: =LOOKUP(A120,'DOE - FIPStoPayeeCodeConvTable'!$A$3:$A$213,'DOE - FIPStoPayeeCodeConvTable'!$E$3:$E$213) -> 0.2773 | X120: 0.346625 | Y120: 0 | Z120: 0
A121: 710 | B121: =LOOKUP(A121,'DOE - FIPStoPayeeCodeConvTable'!$A$3:$A$213,'DOE - FIPStoPayeeCodeConvTable'!$B$3:$B$213) -> Norfolk City | F121: 0 | G121: 393.5 | H121: 0 | S121: 393.5 | U121: 301.03 | V121: 92.47 | W121: =LOOKUP(A121,'DOE - FIPStoPayeeCodeConvTable'!$A$3:$A$213,'DOE - FIPStoPayeeCodeConvTable'!$E$3:$E$213) -> 0.2455 | X121: 0.306875 | Y121: 28.38 | Z121: 64.09
A122: 720 | B122: =LOOKUP(A122,'DOE - FIPStoPayeeCodeConvTable'!$A$3:$A$213,'DOE - FIPStoPayeeCodeConvTable'!$B$3:$B$213) -> Norton City | F122: 0 | G122: 0 | H122: 0 | S122: 0 | U122: 0 | V122: 0 | W122: =LOOKUP(A122,'DOE - FIPStoPayeeCodeConvTable'!$A$3:$A$213,'DOE - FIPStoPayeeCodeConvTable'!$E$3:$E$213) -> 0.3254 | X122: 0.40675 | Y122: 0 | Z122: 0
A123: 730 | B123: =LOOKUP(A123,'DOE - FIPStoPayeeCodeConvTable'!$A$3:$A$213,'DOE - FIPStoPayeeCodeConvTable'!$B$3:$B$213) -> Petersburg City | F123: 0 | G123: 0 | H123: 0 | S123: 0 | U123: 0 | V123: 0 | W123: =LOOKUP(A123,'DOE - FIPStoPayeeCodeConvTable'!$A$3:$A$213,'DOE - FIPStoPayeeCodeConvTable'!$E$3:$E$213) -> 0.3535 | X123: 0.441875 | Y123: 0 | Z123: 0
A124: 735 | B124: =LOOKUP(A124,'DOE - FIPStoPayeeCodeConvTable'!$A$3:$A$213,'DOE - FIPStoPayeeCodeConvTable'!$B$3:$B$213) -> Poquoson City | F124: 0 | G124: 0 | H124: 0 | S124: 0 | U124: 0 | V124: 0 | W124: =LOOKUP(A124,'DOE - FIPStoPayeeCodeConvTable'!$A$3:$A$213,'DOE - FIPStoPayeeCodeConvTable'!$E$3:$E$213) -> 0.2787 | X124: 0.348375 | Y124: 0 | Z124: 0
A125: 740 | B125: =LOOKUP(A125,'DOE - FIPStoPayeeCodeConvTable'!$A$3:$A$213,'DOE - FIPStoPayeeCodeConvTable'!$B$3:$B$213) -> Portsmouth City | F125: 0 | G125: 0 | H125: 0 | S125: 0 | U125: 0 | V125: 0 | W125: =LOOKUP(A125,'DOE - FIPStoPayeeCodeConvTable'!$A$3:$A$213,'DOE - FIPStoPayeeCodeConvTable'!$E$3:$E$213) -> 0.2605 | X125: 0.325625 | Y125: 0 | Z125: 0
A126: 750 | B126: =LOOKUP(A126,'DOE - FIPStoPayeeCodeConvTable'!$A$3:$A$213,'DOE - FIPStoPayeeCodeConvTable'!$B$3:$B$213) -> Radford City | F126: 0 | G126: 0 | H126: 0 | S126: 0 | U126: 0 | V126: 0 | W126: =LOOKUP(A126,'DOE - FIPStoPayeeCodeConvTable'!$A$3:$A$213,'DOE - FIPStoPayeeCodeConvTable'!$E$3:$E$213) -> 0.2035 | X126: 0.254375 | Y126: 0 | Z126: 0
A127: 760 | B127: =LOOKUP(A127,'DOE - FIPStoPayeeCodeConvTable'!$A$3:$A$213,'DOE - FIPStoPayeeCodeConvTable'!$B$3:$B$213) -> Richmond City | F127: 5509 | G127: 1180.5 | H127: 0 | S127: 6689.5 | U127: 5117.47 | V127: 1572.03 | W127: =LOOKUP(A127,'DOE - FIPStoPayeeCodeConvTable'!$A$3:$A$213,'DOE - FIPStoPayeeCodeConvTable'!$E$3:$E$213) -> 0.3691 | X127: 0.461375 | Y127: 725.3 | Z127: 846.73
A128: 770 | B128: =LOOKUP(A128,'DOE - FIPStoPayeeCodeConvTable'!$A$3:$A$213,'DOE - FIPStoPayeeCodeConvTable'!$B$3:$B$213) -> Roanoke City | F128: 0 | G128: 11805 | H128: 12198.5 | S128: 24003.5 | U128: 18362.68 | V128: 5640.82 | W128: =LOOKUP(A128,'DOE - FIPStoPayeeCodeConvTable'!$A$3:$A$213,'DOE - FIPStoPayeeCodeConvTable'!$E$3:$E$213) -> 0.3072 | X128: 0.384 | Y128: 2166.07 | Z128: 3474.75
A129: 775 | B129: =LOOKUP(A129,'DOE - FIPStoPayeeCodeConvTable'!$A$3:$A$213,'DOE - FIPStoPayeeCodeConvTable'!$B$3:$B$213) -> Salem City | F129: 0 | G129: 0 | H129: 0 | S129: 0 | U129: 0 | V129: 0 | W129: =LOOKUP(A129,'DOE - FIPStoPayeeCodeConvTable'!$A$3:$A$213,'DOE - FIPStoPayeeCodeConvTable'!$E$3:$E$213) -> 0.3513 | X129: 0.439125 | Y129: 0 | Z129: 0
A130: 790 | B130: =LOOKUP(A130,'DOE - FIPStoPayeeCodeConvTable'!$A$3:$A$213,'DOE - FIPStoPayeeCodeConvTable'!$B$3:$B$213) -> Staunton City | F130: 0 | G130: 0 | H130: 0 | S130: 0 | U130: 0 | V130: 0 | W130: =LOOKUP(A130,'DOE - FIPStoPayeeCodeConvTable'!$A$3:$A$213,'DOE - FIPStoPayeeCodeConvTable'!$E$3:$E$213) -> 0.2699 | X130: 0.337375 | Y130: 0 | Z130: 0
A131: 800 | B131: =LOOKUP(A131,'DOE - FIPStoPayeeCodeConvTable'!$A$3:$A$213,'DOE - FIPStoPayeeCodeConvTable'!$B$3:$B$213) -> Suffolk City | F131: 0 | G131: 0 | H131: 1169.76 | S131: 1169.76 | U131: 894.87 | V131: 274.89 | W131: =LOOKUP(A131,'DOE - FIPStoPayeeCodeConvTable'!$A$3:$A$213,'DOE - FIPStoPayeeCodeConvTable'!$E$3:$E$213) -> 0.2432 | X131: 0.304 | Y131: 83.57 | Z131: 191.32
A132: 810 | B132: =LOOKUP(A132,'DOE - FIPStoPayeeCodeConvTable'!$A$3:$A$213,'DOE - FIPStoPayeeCodeConvTable'!$B$3:$B$213) -> Virginia Beach City | F132: 0 | G132: 0 | H132: 0 | S132: 0 | U132: 0 | V132: 0 | W132: =LOOKUP(A132,'DOE - FIPStoPayeeCodeConvTable'!$A$3:$A$213,'DOE - FIPStoPayeeCodeConvTable'!$E$3:$E$213) -> 0.3569 | X132: 0.446125 | Y132: 0 | Z132: 0
A133: 820 | B133: =LOOKUP(A133,'DOE - FIPStoPayeeCodeConvTable'!$A$3:$A$213,'DOE - FIPStoPayeeCodeConvTable'!$B$3:$B$213) -> Waynesboro City | F133: 348.89 | G133: 0 | H133: 0 | S133: 348.89 | U133: 266.9 | V133: =SUM(S133)-SUM(U133) -> 81.99 | W133: =LOOKUP(A133,'DOE - FIPStoPayeeCodeConvTable'!$A$3:$A$213,'DOE - FIPStoPayeeCodeConvTable'!$E$3:$E$213) -> 0.3843 | X133: 0.480375 | Y133: 39.39 | Z133: 42.6
A134: 830 | B134: =LOOKUP(A134,'DOE - FIPStoPayeeCodeConvTable'!$A$3:$A$213,'DOE - FIPStoPayeeCodeConvTable'!$B$3:$B$213) -> Williamsburg City | F134: 0 | G134: 0 | H134: 0 | S134: 0 | U134: =ROUND($U$1*S134,2) -> 0 | V134: 0 | W134: =LOOKUP(A134,'DOE - FIPStoPayeeCodeConvTable'!$A$3:$A$213,'DOE - FIPStoPayeeCodeConvTable'!$E$3:$E$213) -> 0.4553 | X134: 0.569125 | Y134: 0 | Z134: 0
A135: 840 | B135: =LOOKUP(A135,'DOE - FIPStoPayeeCodeConvTable'!$A$3:$A$213,'DOE - FIPStoPayeeCodeConvTable'!$B$3:$B$213) -> Winchester City | F135: 0 | G135: 0 | H135: 0 | S135: =SUM(C135:R135) -> 0 | U135: 0 | V135: 0 | W135: =LOOKUP(A135,'DOE - FIPStoPayeeCodeConvTable'!$A$3:$A$213,'DOE - FIPStoPayeeCodeConvTable'!$E$3:$E$213) -> 0.4587 | X135: =$X$1*W135 -> 0.573375 | Y135: =ROUND(X135*V135,2) -> 0 | Z135: =SUM(V135)-SUM(Y135) -> 0

Sheet Covid19 Extend rate chg (hidden)
A1: FY | B1: ='DOE - FIPStoPayeeCodeConvTable'!G1 -> 2020 | C1: MEDICAID ADJUSTMENTS--Extended Rate Chg for Covid 19 | O1: ="Extended to be paided in this SFY = " & B1 -> Extended to be paided in this SFY = 2020 | T1: xx | U1: 0.8084 | V1: =100%-U1 -> 0.1916 | W1: (POOL) | X1: 1.25
U2: FEDERAL | V2: STATE/ | W2: (RATE) | X2: Factor
A3: FIPS | S3: Grand | U3: MEDICAID | V3: LOCAL | W3: LOCAL | Y3: LOCAL | Z3: STATE
A4: CODE | B4: LOCALITY | C4: =TEXT("7/1/" & $B$1-1,"mmm-yyyy") -> Jul-2019 | D4: =TEXT("8/1/" & $B$1-1,"mmm-yyyy") -> Aug-2019 | E4: =TEXT("9/1/" & $B$1-1,"mmm-yyyy") -> Sep-2019 | F4: =TEXT("10/1/" & $B$1-1,"mmm-yyyy") -> Oct-2019 | G4: =TEXT("11/1/" & $B$1-1,"mmm-yyyy") -> Nov-2019 | H4: =TEXT("12/1/" & $B$1-1,"mmm-yyyy") -> Dec-2019 | I4: =TEXT("1/1/" & $B$1,"mmm-yyyy") -> Jan-2020 | J4: =TEXT("2/1/" & $B$1,"mmm-yyyy") -> Feb-2020 | K4: =TEXT("3/1/" & $B$1,"mmm-yyyy") -> Mar-2020 | L4: =TEXT("4/1/" & $B$1,"mmm-yyyy") -> Apr-2020 | M4: =TEXT("5/1/" & $B$1,"mmm-yyyy") -> May-2020 | N4: =TEXT("6/1/" & $B$1,"mmm-yyyy") -> Jun-2020 | O4: =TEXT("7/1/" & $B$1,"mmm-yyyy") -> Jul-2020 | P4: =TEXT("8/1/" & $B$1,"mmm-yyyy") -> Aug-2020 | Q4: =TEXT("9/1/" & $B$1,"mmm-yyyy") -> Sep-2020 | R4: =TEXT("10/1/" & $B$1,"mmm-yyyy") -> Oct-2020 | S4: Total | U4: RATE/Share | V4: SHARE | W4: MATCH Rate | Y4: MATCH | Z4: SHARE
A5: Totals | C5: =SUM(C6:C1200) -> 0 | D5: 0 | E5: 0 | F5: 0 | G5: 0 | H5: 0 | I5: 187372.61 | J5: 75107 | K5: 216206.61 | L5: 293849.68 | M5: 297390.24 | N5: 176887.86 | O5: 0 | P5: 0 | Q5: 0 | R5: 0 | S5: =SUM(C5:R5) -> 1246814 | T5: = | U5: =SUM(U6:U399) -> 1007924.45 | V5: =SUM(V6:V399) -> 238889.55 | W5: = | Y5: =SUM(Y6:Y399) -> 97548.55 | Z5: =SUM(Z6:Z399) -> 141341
A6: 1 | B6: =LOOKUP(A6,'DOE - FIPStoPayeeCodeConvTable'!$A$3:$A$213,'DOE - FIPStoPayeeCodeConvTable'!$B$3:$B$213) -> Accomack Co | I6: 2754.5 | J6: 6296 | K6: 18101 | L6: 12198.5 | M6: 14559.5 | N6: 9444 | S6: 63353.5 | U6: =ROUND($U$1*S6,2) -> 51214.97 | V6: =SUM(S6)-SUM(U6) -> 12138.53 | W6: =LOOKUP(A6,'DOE - FIPStoPayeeCodeConvTable'!$A$3:$A$213,'DOE - FIPStoPayeeCodeConvTable'!$E$3:$E$213) -> 0.2332 | X6: =$X$1*W6 -> 0.2915 | Y6: =ROUND(X6*V6,2) -> 3538.38 | Z6: =SUM(V6)-SUM(Y6) -> 8600.15
A7: 3 | B7: =LOOKUP(A7,'DOE - FIPStoPayeeCodeConvTable'!$A$3:$A$213,'DOE - FIPStoPayeeCodeConvTable'!$B$3:$B$213) -> Albemarle Co | I7: 4386.6 | J7: 0 | K7: 13189.82 | L7: 13772.5 | M7: 13772.5 | N7: 8263.5 | S7: 53384.92 | U7: 43156.37 | V7: 10228.55 | W7: =LOOKUP(A7,'DOE - FIPStoPayeeCodeConvTable'!$A$3:$A$213,'DOE - FIPStoPayeeCodeConvTable'!$E$3:$E$213) -> 0.4474 | X7: =$X$1*W7 -> 0.55925 | Y7: =ROUND(X7*V7,2) -> 5720.32 | Z7: =SUM(V7)-SUM(Y7) -> 4508.23
A8: 5 | B8: =LOOKUP(A8,'DOE - FIPStoPayeeCodeConvTable'!$A$3:$A$213,'DOE - FIPStoPayeeCodeConvTable'!$B$3:$B$213) -> Alleghany Co | I8: 0 | J8: 0 | K8: 0 | L8: 0 | M8: 0 | N8: 0 | S8: 0 | U8: 0 | V8: 0 | W8: =LOOKUP(A8,'DOE - FIPStoPayeeCodeConvTable'!$A$3:$A$213,'DOE - FIPStoPayeeCodeConvTable'!$E$3:$E$213) -> 0.1924 | X8: 0.2405 | Y8: 0 | Z8: 0 | AB8: =1-0.1916 -> 0.8084
A9: 7 | B9: =LOOKUP(A9,'DOE - FIPStoPayeeCodeConvTable'!$A$3:$A$213,'DOE - FIPStoPayeeCodeConvTable'!$B$3:$B$213) -> Amelia Co | I9: 2924.4 | J9: 0 | K9: 0 | L9: 0 | M9: 0 | N9: 0 | S9: 2924.4 | U9: 2364.08 | V9: 560.32 | W9: =LOOKUP(A9,'DOE - FIPStoPayeeCodeConvTable'!$A$3:$A$213,'DOE - FIPStoPayeeCodeConvTable'!$E$3:$E$213) -> 0.3268 | X9: 0.4085 | Y9: 228.89 | Z9: 331.43
A10: 9 | B10: =LOOKUP(A10,'DOE - FIPStoPayeeCodeConvTable'!$A$3:$A$213,'DOE - FIPStoPayeeCodeConvTable'!$B$3:$B$213) -> Amherst Co | I10: 0 | J10: 0 | K10: 0 | L10: 0 | M10: 0 | N10: 0 | S10: 0 | U10: 0 | V10: 0 | W10: =LOOKUP(A10,'DOE - FIPStoPayeeCodeConvTable'!$A$3:$A$213,'DOE - FIPStoPayeeCodeConvTable'!$E$3:$E$213) -> 0.2722 | X10: 0.34025 | Y10: 0 | Z10: 0
A11: 11 | B11: =LOOKUP(A11,'DOE - FIPStoPayeeCodeConvTable'!$A$3:$A$213,'DOE - FIPStoPayeeCodeConvTable'!$B$3:$B$213) -> Appomattox Co | I11: 0 | J11: 0 | K11: 0 | L11: 0 | M11: 0 | N11: 0 | S11: 0 | U11: 0 | V11: 0 | W11: =LOOKUP(A11,'DOE - FIPStoPayeeCodeConvTable'!$A$3:$A$213,'DOE - FIPStoPayeeCodeConvTable'!$E$3:$E$213) -> 0.2639 | X11: 0.329875 | Y11: 0 | Z11: 0
A12: 13 | B12: =LOOKUP(A12,'DOE - FIPStoPayeeCodeConvTable'!$A$3:$A$213,'DOE - FIPStoPayeeCodeConvTable'!$B$3:$B$213) -> Arlington Co | I12: 0 | J12: 0 | K12: 0 | L12: 0 | M12: 0 | N12: 0 | S12: 0 | U12: 0 | V12: 0 | W12: =LOOKUP(A12,'DOE - FIPStoPayeeCodeConvTable'!$A$3:$A$213,'DOE - FIPStoPayeeCodeConvTable'!$E$3:$E$213) -> 0.4602 | X12: 0.57525 | Y12: 0 | Z12: 0
A13: 15 | B13: =LOOKUP(A13,'DOE - FIPStoPayeeCodeConvTable'!$A$3:$A$213,'DOE - FIPStoPayeeCodeConvTable'!$B$3:$B$213) -> Augusta Co | I13: 0 | J13: 0 | K13: 0 | L13: 0 | M13: 0 | N13: 0 | S13: 0 | U13: 0 | V13: 0 | W13: =LOOKUP(A13,'DOE - FIPStoPayeeCodeConvTable'!$A$3:$A$213,'DOE - FIPStoPayeeCodeConvTable'!$E$3:$E$213) -> 0.3302 | X13: 0.41275 | Y13: 0 | Z13: 0
A14: 17 | B14: =LOOKUP(A14,'DOE - FIPStoPayeeCodeConvTable'!$A$3:$A$213,'DOE - FIPStoPayeeCodeConvTable'!$B$3:$B$213) -> Bath Co | I14: 0 | J14: 0 | K14: 0 | L14: 0 | M14: 0 | N14: 0 | S14: 0 | U14: 0 | V14: 0 | W14: =LOOKUP(A14,'DOE - FIPStoPayeeCodeConvTable'!$A$3:$A$213,'DOE - FIPStoPayeeCodeConvTable'!$E$3:$E$213) -> 0.4278 | X14: 0.53475 | Y14: 0 | Z14: 0
A15: 19 | B15: =LOOKUP(A15,'DOE - FIPStoPayeeCodeConvTable'!$A$3:$A$213,'DOE - FIPStoPayeeCodeConvTable'!$B$3:$B$213) -> Bedford Co | I15: 8657 | J15: 4328.5 | K15: 21642.5 | L15: 12198.5 | M15: 13379 | N15: 3947.94 | S15: 64153.44 | U15: 51861.64 | V15: 12291.8 | W15: =LOOKUP(A15,'DOE - FIPStoPayeeCodeConvTable'!$A$3:$A$213,'DOE - FIPStoPayeeCodeConvTable'!$E$3:$E$213) -> 0.31112 | X15: 0.3889 | Y15: 4780.28 | Z15: 7511.52
A16: 21 | B16: =LOOKUP(A16,'DOE - FIPStoPayeeCodeConvTable'!$A$3:$A$213,'DOE - FIPStoPayeeCodeConvTable'!$B$3:$B$213) -> Bland Co | I16: 0 | J16: 0 | K16: 0 | L16: 0 | M16: 0 | N16: 0 | S16: 0 | U16: 0 | V16: 0 | W16: =LOOKUP(A16,'DOE - FIPStoPayeeCodeConvTable'!$A$3:$A$213,'DOE - FIPStoPayeeCodeConvTable'!$E$3:$E$213) -> 0.2109 | X16: 0.263625 | Y16: 0 | Z16: 0
A17: 23 | B17: =LOOKUP(A17,'DOE - FIPStoPayeeCodeConvTable'!$A$3:$A$213,'DOE - FIPStoPayeeCodeConvTable'!$B$3:$B$213) -> Botetourt Co | I17: 0 | J17: 0 | K17: 0 | L17: 0 | M17: 0 | N17: 0 | S17: 0 | U17: 0 | V17: 0 | W17: =LOOKUP(A17,'DOE - FIPStoPayeeCodeConvTable'!$A$3:$A$213,'DOE - FIPStoPayeeCodeConvTable'!$E$3:$E$213) -> 0.3602 | X17: 0.45025 | Y17: 0 | Z17: 0
A18: 25 | B18: =LOOKUP(A18,'DOE - FIPStoPayeeCodeConvTable'!$A$3:$A$213,'DOE - FIPStoPayeeCodeConvTable'!$B$3:$B$213) -> Brunswick Co | I18: 0 | J18: 0 | K18: 0 | L18: 0 | M18: 0 | N18: 0 | S18: 0 | U18: 0 | V18: 0 | W18: =LOOKUP(A18,'DOE - FIPStoPayeeCodeConvTable'!$A$3:$A$213,'DOE - FIPStoPayeeCodeConvTable'!$E$3:$E$213) -> 0.2439 | X18: 0.304875 | Y18: 0 | Z18: 0
A19: 27 | B19: =LOOKUP(A19,'DOE - FIPStoPayeeCodeConvTable'!$A$3:$A$213,'DOE - FIPStoPayeeCodeConvTable'!$B$3:$B$213) -> Buchanan Co | I19: 0 | J19: 0 | K19: 0 | L19: 0 | M19: 0 | N19: 0 | S19: 0 | U19: 0 | V19: 0 | W19: =LOOKUP(A19,'DOE - FIPStoPayeeCodeConvTable'!$A$3:$A$213,'DOE - FIPStoPayeeCodeConvTable'!$E$3:$E$213) -> 0.3156 | X19: 0.3945 | Y19: 0 | Z19: 0
A20: 29 | B20: =LOOKUP(A20,'DOE - FIPStoPayeeCodeConvTable'!$A$3:$A$213,'DOE - FIPStoPayeeCodeConvTable'!$B$3:$B$213) -> Buckingham Co | I20: 10815.59 | J20: 0 | K20: 348.89 | L20: 0 | M20: 0 | N20: 0 | S20: 11164.48 | U20: 9025.37 | V20: 2139.11 | W20: =LOOKUP(A20,'DOE - FIPStoPayeeCodeConvTable'!$A$3:$A$213,'DOE - FIPStoPayeeCodeConvTable'!$E$3:$E$213) -> 0.2023 | X20: 0.252875 | Y20: 540.93 | Z20: 1598.18
A21: 31 | B21: =LOOKUP(A21,'DOE - FIPStoPayeeCodeConvTable'!$A$3:$A$213,'DOE - FIPStoPayeeCodeConvTable'!$B$3:$B$213) -> Campbell Co | I21: 0 | J21: 0 | K21: 0 | L21: 0 | M21: 0 | N21: 0 | S21: 0 | U21: 0 | V21: 0 | W21: =LOOKUP(A21,'DOE - FIPStoPayeeCodeConvTable'!$A$3:$A$213,'DOE - FIPStoPayeeCodeConvTable'!$E$3:$E$213) -> 0.3107 | X21: 0.388375 | Y21: 0 | Z21: 0
A22: 33 | B22: =LOOKUP(A22,'DOE - FIPStoPayeeCodeConvTable'!$A$3:$A$213,'DOE - FIPStoPayeeCodeConvTable'!$B$3:$B$213) -> Caroline Co | I22: 0 | J22: 0 | K22: 0 | L22: 0 | M22: 0 | N22: 0 | S22: 0 | U22: 0 | V22: 0 | W22: =LOOKUP(A22,'DOE - FIPStoPayeeCodeConvTable'!$A$3:$A$213,'DOE - FIPStoPayeeCodeConvTable'!$E$3:$E$213) -> 0.3308 | X22: 0.4135 | Y22: 0 | Z22: 0
A23: 35 | B23: =LOOKUP(A23,'DOE - FIPStoPayeeCodeConvTable'!$A$3:$A$213,'DOE - FIPStoPayeeCodeConvTable'!$B$3:$B$213) -> Carroll Co | I23: 0 | J23: 0 | K23: 0 | L23: 0 | M23: 0 | N23: 0 | S23: 0 | U23: 0 | V23: 0 | W23: =LOOKUP(A23,'DOE - FIPStoPayeeCodeConvTable'!$A$3:$A$213,'DOE - FIPStoPayeeCodeConvTable'!$E$3:$E$213) -> 0.291 | X23: 0.36375 | Y23: 0 | Z23: 0
A24: 36 | B24: =LOOKUP(A24,'DOE - FIPStoPayeeCodeConvTable'!$A$3:$A$213,'DOE - FIPStoPayeeCodeConvTable'!$B$3:$B$213) -> Charles City Co | I24: 0 | J24: 0 | K24: 0 | L24: 0 | M24: 0 | N24: 0 | S24: 0 | U24: 0 | V24: 0 | W24: =LOOKUP(A24,'DOE - FIPStoPayeeCodeConvTable'!$A$3:$A$213,'DOE - FIPStoPayeeCodeConvTable'!$E$3:$E$213) -> 0.3131 | X24: 0.391375 | Y24: 0 | Z24: 0
A25: 37 | B25: =LOOKUP(A25,'DOE - FIPStoPayeeCodeConvTable'!$A$3:$A$213,'DOE - FIPStoPayeeCodeConvTable'!$B$3:$B$213) -> Charlotte Co | I25: 0 | J25: 0 | K25: 0 | L25: 0 | M25: 0 | N25: 0 | S25: 0 | U25: 0 | V25: 0 | W25: =LOOKUP(A25,'DOE - FIPStoPayeeCodeConvTable'!$A$3:$A$213,'DOE - FIPStoPayeeCodeConvTable'!$E$3:$E$213) -> 0.2204 | X25: 0.2755 | Y25: 0 | Z25: 0
A26: 41 | B26: =LOOKUP(A26,'DOE - FIPStoPayeeCodeConvTable'!$A$3:$A$213,'DOE - FIPStoPayeeCodeConvTable'!$B$3:$B$213) -> Chesterfield Co | I26: 3541.5 | J26: 0 | K26: 11411.5 | L26: 0 | M26: 0 | N26: 0 | S26: 14953 | U26: 12088.01 | V26: 2864.99 | W26: =LOOKUP(A26,'DOE - FIPStoPayeeCodeConvTable'!$A$3:$A$213,'DOE - FIPStoPayeeCodeConvTable'!$E$3:$E$213) -> 0.3853 | X26: 0.481625 | Y26: 1379.85 | Z26: 1485.14
A27: 43 | B27: =LOOKUP(A27,'DOE - FIPStoPayeeCodeConvTable'!$A$3:$A$213,'DOE - FIPStoPayeeCodeConvTable'!$B$3:$B$213) -> Clarke Co | I27: 0 | J27: 0 | K27: 0 | L27: 0 | M27: 0 | N27: 0 | S27: 0 | U27: 0 | V27: 0 | W27: =LOOKUP(A27,'DOE - FIPStoPayeeCodeConvTable'!$A$3:$A$213,'DOE - FIPStoPayeeCodeConvTable'!$E$3:$E$213) -> 0.4797 | X27: 0.599625 | Y27: 0 | Z27: 0
A28: 45 | B28: =LOOKUP(A28,'DOE - FIPStoPayeeCodeConvTable'!$A$3:$A$213,'DOE - FIPStoPayeeCodeConvTable'!$B$3:$B$213) -> Craig Co | I28: 0 | J28: 0 | K28: 0 | L28: 0 | M28: 0 | N28: 0 | S28: 0 | U28: 0 | V28: 0 | W28: =LOOKUP(A28,'DOE - FIPStoPayeeCodeConvTable'!$A$3:$A$213,'DOE - FIPStoPayeeCodeConvTable'!$E$3:$E$213) -> 0.2901 | X28: 0.362625 | Y28: 0 | Z28: 0
A29: 47 | B29: =LOOKUP(A29,'DOE - FIPStoPayeeCodeConvTable'!$A$3:$A$213,'DOE - FIPStoPayeeCodeConvTable'!$B$3:$B$213) -> Culpeper Co | I29: 0 | J29: 0 | K29: 1967.5 | L29: 0 | M29: 0 | N29: 0 | S29: 1967.5 | U29: 1590.53 | V29: 376.97 | W29: =LOOKUP(A29,'DOE - FIPStoPayeeCodeConvTable'!$A$3:$A$213,'DOE - FIPStoPayeeCodeConvTable'!$E$3:$E$213) -> 0.3767 | X29: 0.470875 | Y29: 177.51 | Z29: 199.46
A30: 49 | B30: =LOOKUP(A30,'DOE - FIPStoPayeeCodeConvTable'!$A$3:$A$213,'DOE - FIPStoPayeeCodeConvTable'!$B$3:$B$213) -> Cumberland Co | I30: 0 | J30: 0 | K30: 0 | L30: 0 | M30: 0 | N30: 0 | S30: 0 | U30: 0 | V30: 0 | W30: =LOOKUP(A30,'DOE - FIPStoPayeeCodeConvTable'!$A$3:$A$213,'DOE - FIPStoPayeeCodeConvTable'!$E$3:$E$213) -> 0.304 | X30: 0.38 | Y30: 0 | Z30: 0
A31: 51 | B31: =LOOKUP(A31,'DOE - FIPStoPayeeCodeConvTable'!$A$3:$A$213,'DOE - FIPStoPayeeCodeConvTable'!$B$3:$B$213) -> Dickenson Co | I31: 0 | J31: 0 | K31: 0 | L31: 0 | M31: 0 | N31: 0 | S31: 0 | U31: 0 | V31: 0 | W31: =LOOKUP(A31,'DOE - FIPStoPayeeCodeConvTable'!$A$3:$A$213,'DOE - FIPStoPayeeCodeConvTable'!$E$3:$E$213) -> 0.3042 | X31: 0.38025 | Y31: 0 | Z31: 0
A32: 53 | B32: =LOOKUP(A32,'DOE - FIPStoPayeeCodeConvTable'!$A$3:$A$213,'DOE - FIPStoPayeeCodeConvTable'!$B$3:$B$213) -> Dinwiddie Co | I32: 0 | J32: 0 | K32: 0 | L32: 0 | M32: 0 | N32: 0 | S32: 0 | U32: 0 | V32: 0 | W32: =LOOKUP(A32,'DOE - FIPStoPayeeCodeConvTable'!$A$3:$A$213,'DOE - FIPStoPayeeCodeConvTable'!$E$3:$E$213) -> 0.3358 | X32: 0.41975 | Y32: 0 | Z32: 0
A33: 57 | B33: =LOOKUP(A33,'DOE - FIPStoPayeeCodeConvTable'!$A$3:$A$213,'DOE - FIPStoPayeeCodeConvTable'!$B$3:$B$213) -> Essex Co | I33: 0 | J33: 0 | K33: 0 | L33: 0 | M33: 0 | N33: 0 | S33: 0 | U33: 0 | V33: 0 | W33: =LOOKUP(A33,'DOE - FIPStoPayeeCodeConvTable'!$A$3:$A$213,'DOE - FIPStoPayeeCodeConvTable'!$E$3:$E$213) -> 0.3853 | X33: 0.481625 | Y33: 0 | Z33: 0
A34: 59 | B34: =LOOKUP(A34,'DOE - FIPStoPayeeCodeConvTable'!$A$3:$A$213,'DOE - FIPStoPayeeCodeConvTable'!$B$3:$B$213) -> Fairfax Co | I34: 0 | J34: 0 | K34: 0 | L34: 23216.5 | M34: 4328.5 | N34: 0 | S34: 27545 | U34: 22267.38 | V34: 5277.62 | W34: =LOOKUP(A34,'DOE - FIPStoPayeeCodeConvTable'!$A$3:$A$213,'DOE - FIPStoPayeeCodeConvTable'!$E$3:$E$213) -> 0.4611 | X34: 0.576375 | Y34: 3041.89 | Z34: 2235.73
A35: 61 | B35: =LOOKUP(A35,'DOE - FIPStoPayeeCodeConvTable'!$A$3:$A$213,'DOE - FIPStoPayeeCodeConvTable'!$B$3:$B$213) -> Fauquier Co | I35: 0 | J35: 0 | K35: 0 | L35: 0 | M35: 0 | N35: 0 | S35: 0 | U35: 0 | V35: 0 | W35: =LOOKUP(A35,'DOE - FIPStoPayeeCodeConvTable'!$A$3:$A$213,'DOE - FIPStoPayeeCodeConvTable'!$E$3:$E$213) -> 0.4584 | X35: 0.573 | Y35: 0 | Z35: 0
A36: 63 | B36: =LOOKUP(A36,'DOE - FIPStoPayeeCodeConvTable'!$A$3:$A$213,'DOE - FIPStoPayeeCodeConvTable'!$B$3:$B$213) -> Floyd Co | I36: 0 | J36: 0 | K36: 0 | L36: 0 | M36: 0 | N36: 0 | S36: 0 | U36: 0 | V36: 0 | W36: =LOOKUP(A36,'DOE - FIPStoPayeeCodeConvTable'!$A$3:$A$213,'DOE - FIPStoPayeeCodeConvTable'!$E$3:$E$213) -> 0.2324 | X36: 0.2905 | Y36: 0 | Z36: 0
A37: 65 | B37: =LOOKUP(A37,'DOE - FIPStoPayeeCodeConvTable'!$A$3:$A$213,'DOE - FIPStoPayeeCodeConvTable'!$B$3:$B$213) -> Fluvanna Co | I37: 0 | J37: 0 | K37: 0 | L37: 0 | M37: 0 | N37: 0 | S37: =SUM(C37:R37) -> 0 | U37: 0 | V37: 0 | W37: =LOOKUP(A37,'DOE - FIPStoPayeeCodeConvTable'!$A$3:$A$213,'DOE - FIPStoPayeeCodeConvTable'!$E$3:$E$213) -> 0.3811 | X37: 0.476375 | Y37: 0 | Z37: 0
A38: 67 | B38: =LOOKUP(A38,'DOE - FIPStoPayeeCodeConvTable'!$A$3:$A$213,'DOE - FIPStoPayeeCodeConvTable'!$B$3:$B$213) -> Franklin Co | I38: 0 | J38: 0 | K38: 20068.5 | L38: 8657 | M38: 0 | N38: 0 | S38: 28725.5 | U38: =ROUND($U$1*S38,2) -> 23221.69 | V38: =SUM(S38)-SUM(U38) -> 5503.81 | W38: =LOOKUP(A38,'DOE - FIPStoPayeeCodeConvTable'!$A$3:$A$213,'DOE - FIPStoPayeeCodeConvTable'!$E$3:$E$213) -> 0.283 | X38: 0.35375 | Y38: 1946.97 | Z38: 3556.84
A39: 69 | B39: =LOOKUP(A39,'DOE - FIPStoPayeeCodeConvTable'!$A$3:$A$213,'DOE - FIPStoPayeeCodeConvTable'!$B$3:$B$213) -> Frederick Co | I39: 0 | J39: 0 | K39: 0 | L39: 0 | M39: 0 | N39: 0 | S39: 0 | U39: 0 | V39: 0 | W39: =LOOKUP(A39,'DOE - FIPStoPayeeCodeConvTable'!$A$3:$A$213,'DOE - FIPStoPayeeCodeConvTable'!$E$3:$E$213) -> 0.4348 | X39: 0.5435 | Y39: 0 | Z39: 0
A40: 71 | B40: =LOOKUP(A40,'DOE - FIPStoPayeeCodeConvTable'!$A$3:$A$213,'DOE - FIPStoPayeeCodeConvTable'!$B$3:$B$213) -> Giles Co | I40: 12198.5 | J40: 0 | K40: 8657 | L40: 0 | M40: 0 | N40: 0 | S40: 20855.5 | U40: 16859.59 | V40: 3995.91 | W40: =LOOKUP(A40,'DOE - FIPStoPayeeCodeConvTable'!$A$3:$A$213,'DOE - FIPStoPayeeCodeConvTable'!$E$3:$E$213) -> 0.2898 | X40: 0.36225 | Y40: 1447.52 | Z40: 2548.39
A41: 73 | B41: =LOOKUP(A41,'DOE - FIPStoPayeeCodeConvTable'!$A$3:$A$213,'DOE - FIPStoPayeeCodeConvTable'!$B$3:$B$213) -> Gloucester Co | I41: 0 | J41: 0 | K41: 0 | L41: 0 | M41: 0 | N41: 0 | S41: 0 | U41: 0 | V41: 0 | W41: =LOOKUP(A41,'DOE - FIPStoPayeeCodeConvTable'!$A$3:$A$213,'DOE - FIPStoPayeeCodeConvTable'!$E$3:$E$213) -> 0.3687 | X41: 0.460875 | Y41: 0 | Z41: 0
A42: 75 | B42: =LOOKUP(A42,'DOE - FIPStoPayeeCodeConvTable'!$A$3:$A$213,'DOE - FIPStoPayeeCodeConvTable'!$B$3:$B$213) -> Goochland Co | I42: 0 | J42: 0 | K42: 0 | L42: 0 | M42: 0 | N42: 0 | S42: 0 | U42: 0 | V42: 0 | W42: =LOOKUP(A42,'DOE - FIPStoPayeeCodeConvTable'!$A$3:$A$213,'DOE - FIPStoPayeeCodeConvTable'!$E$3:$E$213) -> 0.4871 | X42: 0.608875 | Y42: 0 | Z42: 0
A43: 77 | B43: =LOOKUP(A43,'DOE - FIPStoPayeeCodeConvTable'!$A$3:$A$213,'DOE - FIPStoPayeeCodeConvTable'!$B$3:$B$213) -> Grayson Co | I43: 0 | J43: 0 | K43: 0 | L43: 0 | M43: 0 | N43: 0 | S43: 0 | U43: 0 | V43: 0 | W43: =LOOKUP(A43,'DOE - FIPStoPayeeCodeConvTable'!$A$3:$A$213,'DOE - FIPStoPayeeCodeConvTable'!$E$3:$E$213) -> 0.2109 | X43: 0.263625 | Y43: 0 | Z43: 0
A44: 79 | B44: =LOOKUP(A44,'DOE - FIPStoPayeeCodeConvTable'!$A$3:$A$213,'DOE - FIPStoPayeeCodeConvTable'!$B$3:$B$213) -> Greene Co | I44: 0 | J44: 0 | K44: 0 | L44: 0 | M44: 0 | N44: 0 | S44: 0 | U44: 0 | V44: 0 | W44: =LOOKUP(A44,'DOE - FIPStoPayeeCodeConvTable'!$A$3:$A$213,'DOE - FIPStoPayeeCodeConvTable'!$E$3:$E$213) -> 0.3471 | X44: 0.433875 | Y44: 0 | Z44: 0
A45: 81 | B45: =LOOKUP(A45,'DOE - FIPStoPayeeCodeConvTable'!$A$3:$A$213,'DOE - FIPStoPayeeCodeConvTable'!$B$3:$B$213) -> Greensville Co | I45: 0 | J45: 0 | K45: 0 | L45: 4386.6 | M45: 0 | N45: 0 | S45: 4386.6 | U45: 3546.13 | V45: 840.47 | W45: =LOOKUP(A45,'DOE - FIPStoPayeeCodeConvTable'!$A$3:$A$213,'DOE - FIPStoPayeeCodeConvTable'!$E$3:$E$213) -> 0.2266 | X45: 0.28325 | Y45: 238.06 | Z45: 602.41
A46: 83 | B46: =LOOKUP(A46,'DOE - FIPStoPayeeCodeConvTable'!$A$3:$A$213,'DOE - FIPStoPayeeCodeConvTable'!$B$3:$B$213) -> Halifax Co | I46: 24003.5 | J46: 0 | K46: 0 | L46: 11411.5 | M46: 0 | N46: 0 | S46: 35415 | U46: 28629.49 | V46: 6785.51 | W46: =LOOKUP(A46,'DOE - FIPStoPayeeCodeConvTable'!$A$3:$A$213,'DOE - FIPStoPayeeCodeConvTable'!$E$3:$E$213) -> 0.2335 | X46: 0.291875 | Y46: 1980.52 | Z46: 4804.99
A47: 85 | B47: =LOOKUP(A47,'DOE - FIPStoPayeeCodeConvTable'!$A$3:$A$213,'DOE - FIPStoPayeeCodeConvTable'!$B$3:$B$213) -> Hanover Co | I47: 0 | J47: 0 | K47: 0 | L47: 0 | M47: 0 | N47: 0 | S47: 0 | U47: 0 | V47: 0 | W47: =LOOKUP(A47,'DOE - FIPStoPayeeCodeConvTable'!$A$3:$A$213,'DOE - FIPStoPayeeCodeConvTable'!$E$3:$E$213) -> 0.4444 | X47: 0.5555 | Y47: 0 | Z47: 0
A48: 87 | B48: =LOOKUP(A48,'DOE - FIPStoPayeeCodeConvTable'!$A$3:$A$213,'DOE - FIPStoPayeeCodeConvTable'!$B$3:$B$213) -> Henrico Co | I48: 0 | J48: 0 | K48: 9050.5 | L48: 22429.5 | M48: 23610 | N48: 20068.5 | S48: 75158.5 | U48: 60758.13 | V48: 14400.37 | W48: =LOOKUP(A48,'DOE - FIPStoPayeeCodeConvTable'!$A$3:$A$213,'DOE - FIPStoPayeeCodeConvTable'!$E$3:$E$213) -> 0.3755 | X48: 0.469375 | Y48: 6759.17 | Z48: 7641.2
A49: 89 | B49: =LOOKUP(A49,'DOE - FIPStoPayeeCodeConvTable'!$A$3:$A$213,'DOE - FIPStoPayeeCodeConvTable'!$B$3:$B$213) -> Henry Co | I49: 0 | J49: 0 | K49: 0 | L49: 0 | M49: 0 | N49: 0 | S49: 0 | U49: 0 | V49: 0 | W49: =LOOKUP(A49,'DOE - FIPStoPayeeCodeConvTable'!$A$3:$A$213,'DOE - FIPStoPayeeCodeConvTable'!$E$3:$E$213) -> 0.2786 | X49: 0.34825 | Y49: 0 | Z49: 0
A50: 91 | B50: =LOOKUP(A50,'DOE - FIPStoPayeeCodeConvTable'!$A$3:$A$213,'DOE - FIPStoPayeeCodeConvTable'!$B$3:$B$213) -> Highland Co | I50: 0 | J50: 0 | K50: 0 | L50: 0 | M50: 0 | N50: 0 | S50: 0 | U50: 0 | V50: 0 | W50: =LOOKUP(A50,'DOE - FIPStoPayeeCodeConvTable'!$A$3:$A$213,'DOE - FIPStoPayeeCodeConvTable'!$E$3:$E$213) -> 0.3822 | X50: 0.47775 | Y50: 0 | Z50: 0
A51: 93 | B51: =LOOKUP(A51,'DOE - FIPStoPayeeCodeConvTable'!$A$3:$A$213,'DOE - FIPStoPayeeCodeConvTable'!$B$3:$B$213) -> Isle Of Wight Co | I51: 0 | J51: 0 | K51: 0 | L51: 0 | M51: 0 | N51: 0 | S51: 0 | U51: 0 | V51: 0 | W51: =LOOKUP(A51,'DOE - FIPStoPayeeCodeConvTable'!$A$3:$A$213,'DOE - FIPStoPayeeCodeConvTable'!$E$3:$E$213) -> 0.3613 | X51: 0.451625 | Y51: 0 | Z51: 0
A52: 95 | B52: =LOOKUP(A52,'DOE - FIPStoPayeeCodeConvTable'!$A$3:$A$213,'DOE - FIPStoPayeeCodeConvTable'!$B$3:$B$213) -> James City Co | I52: 1967.5 | J52: 0 | K52: 0 | L52: 0 | M52: 0 | N52: 0 | S52: 1967.5 | U52: 1590.53 | V52: 376.97 | W52: =LOOKUP(A52,'DOE - FIPStoPayeeCodeConvTable'!$A$3:$A$213,'DOE - FIPStoPayeeCodeConvTable'!$E$3:$E$213) -> 0.4483 | X52: 0.560375 | Y52: 211.24 | Z52: 165.73
A53: 97 | B53: =LOOKUP(A53,'DOE - FIPStoPayeeCodeConvTable'!$A$3:$A$213,'DOE - FIPStoPayeeCodeConvTable'!$B$3:$B$213) -> King And Queen Co | I53: 0 | J53: 0 | K53: 0 | L53: 0 | M53: 0 | N53: 0 | S53: 0 | U53: 0 | V53: 0 | W53: =LOOKUP(A53,'DOE - FIPStoPayeeCodeConvTable'!$A$3:$A$213,'DOE - FIPStoPayeeCodeConvTable'!$E$3:$E$213) -> 0.3144 | X53: 0.393 | Y53: 0 | Z53: 0
A54: 99 | B54: =LOOKUP(A54,'DOE - FIPStoPayeeCodeConvTable'!$A$3:$A$213,'DOE - FIPStoPayeeCodeConvTable'!$B$3:$B$213) -> King George Co | I54: 0 | J54: 0 | K54: 0 | L54: 0 | M54: 0 | N54: 0 | S54: 0 | U54: 0 | V54: 0 | W54: =LOOKUP(A54,'DOE - FIPStoPayeeCodeConvTable'!$A$3:$A$213,'DOE - FIPStoPayeeCodeConvTable'!$E$3:$E$213) -> 0.3627 | X54: 0.453375 | Y54: 0 | Z54: 0
A55: 101 | B55: =LOOKUP(A55,'DOE - FIPStoPayeeCodeConvTable'!$A$3:$A$213,'DOE - FIPStoPayeeCodeConvTable'!$B$3:$B$213) -> King William Co | I55: 0 | J55: 0 | K55: 0 | L55: 0 | M55: 0 | N55: 0 | S55: 0 | U55: 0 | V55: 0 | W55: =LOOKUP(A55,'DOE - FIPStoPayeeCodeConvTable'!$A$3:$A$213,'DOE - FIPStoPayeeCodeConvTable'!$E$3:$E$213) -> 0.3853 | X55: 0.481625 | Y55: 0 | Z55: 0
A56: 103 | B56: =LOOKUP(A56,'DOE - FIPStoPayeeCodeConvTable'!$A$3:$A$213,'DOE - FIPStoPayeeCodeConvTable'!$B$3:$B$213) -> Lancaster Co | I56: 0 | J56: 0 | K56: 0 | L56: 0 | M56: 0 | N56: 0 | S56: 0 | U56: 0 | V56: 0 | W56: =LOOKUP(A56,'DOE - FIPStoPayeeCodeConvTable'!$A$3:$A$213,'DOE - FIPStoPayeeCodeConvTable'!$E$3:$E$213) -> 0.4391 | X56: 0.548875 | Y56: 0 | Z56: 0
A57: 105 | B57: =LOOKUP(A57,'DOE - FIPStoPayeeCodeConvTable'!$A$3:$A$213,'DOE - FIPStoPayeeCodeConvTable'!$B$3:$B$213) -> Lee Co | I57: 0 | J57: 0 | K57: 0 | L57: 0 | M57: 0 | N57: 0 | S57: 0 | U57: 0 | V57: 0 | W57: =LOOKUP(A57,'DOE - FIPStoPayeeCodeConvTable'!$A$3:$A$213,'DOE - FIPStoPayeeCodeConvTable'!$E$3:$E$213) -> 0.2245 | X57: 0.280625 | Y57: 0 | Z57: 0
A58: 107 | B58: =LOOKUP(A58,'DOE - FIPStoPayeeCodeConvTable'!$A$3:$A$213,'DOE - FIPStoPayeeCodeConvTable'!$B$3:$B$213) -> Loudoun Co | I58: 11805 | J58: 393.5 | K58: 0 | L58: 6296 | M58: 23610 | N58: 0 | S58: 42104.5 | U58: 34037.28 | V58: 8067.22 | W58: =LOOKUP(A58,'DOE - FIPStoPayeeCodeConvTable'!$A$3:$A$213,'DOE - FIPStoPayeeCodeConvTable'!$E$3:$E$213) -> 0.4764 | X58: 0.5955 | Y58: 4804.03 | Z58: 3263.19
A59: 109 | B59: =LOOKUP(A59,'DOE - FIPStoPayeeCodeConvTable'!$A$3:$A$213,'DOE - FIPStoPayeeCodeConvTable'!$B$3:$B$213) -> Louisa Co | I59: 0 | J59: 0 | K59: 0 | L59: 0 | M59: 0 | N59: 0 | S59: 0 | U59: 0 | V59: 0 | W59: =LOOKUP(A59,'DOE - FIPStoPayeeCodeConvTable'!$A$3:$A$213,'DOE - FIPStoPayeeCodeConvTable'!$E$3:$E$213) -> 0.4401 | X59: 0.550125 | Y59: 0 | Z59: 0
A60: 111 | B60: =LOOKUP(A60,'DOE - FIPStoPayeeCodeConvTable'!$A$3:$A$213,'DOE - FIPStoPayeeCodeConvTable'!$B$3:$B$213) -> Lunenburg Co | I60: 0 | J60: 0 | K60: 0 | L60: 0 | M60: 0 | N60: 0 | S60: 0 | U60: 0 | V60: 0 | W60: =LOOKUP(A60,'DOE - FIPStoPayeeCodeConvTable'!$A$3:$A$213,'DOE - FIPStoPayeeCodeConvTable'!$E$3:$E$213) -> 0.1698 | X60: 0.21225 | Y60: 0 | Z60: 0
A61: 113 | B61: =LOOKUP(A61,'DOE - FIPStoPayeeCodeConvTable'!$A$3:$A$213,'DOE - FIPStoPayeeCodeConvTable'!$B$3:$B$213) -> Madison Co | I61: 0 | J61: 0 | K61: 0 | L61: 0 | M61: 0 | N61: 0 | S61: 0 | U61: 0 | V61: 0 | W61: =LOOKUP(A61,'DOE - FIPStoPayeeCodeConvTable'!$A$3:$A$213,'DOE - FIPStoPayeeCodeConvTable'!$E$3:$E$213) -> 0.3355 | X61: 0.419375 | Y61: 0 | Z61: 0
A62: 115 | B62: =LOOKUP(A62,'DOE - FIPStoPayeeCodeConvTable'!$A$3:$A$213,'DOE - FIPStoPayeeCodeConvTable'!$B$3:$B$213) -> Mathews Co | I62: 0 | J62: 0 | K62: 0 | L62: 0 | M62: 0 | N62: 0 | S62: 0 | U62: 0 | V62: 0 | W62: =LOOKUP(A62,'DOE - FIPStoPayeeCodeConvTable'!$A$3:$A$213,'DOE - FIPStoPayeeCodeConvTable'!$E$3:$E$213) -> 0.4271 | X62: 0.533875 | Y62: 0 | Z62: 0
A63: 117 | B63: =LOOKUP(A63,'DOE - FIPStoPayeeCodeConvTable'!$A$3:$A$213,'DOE - FIPStoPayeeCodeConvTable'!$B$3:$B$213) -> Mecklenburg Co | I63: 0 | J63: 0 | K63: 0 | L63: 0 | M63: 0 | N63: 0 | S63: 0 | U63: 0 | V63: 0 | W63: =LOOKUP(A63,'DOE - FIPStoPayeeCodeConvTable'!$A$3:$A$213,'DOE - FIPStoPayeeCodeConvTable'!$E$3:$E$213) -> 0.2286 | X63: 0.28575 | Y63: 0 | Z63: 0
A64: 119 | B64: =LOOKUP(A64,'DOE - FIPStoPayeeCodeConvTable'!$A$3:$A$213,'DOE - FIPStoPayeeCodeConvTable'!$B$3:$B$213) -> Middlesex Co | I64: 0 | J64: 0 | K64: 0 | L64: 0 | M64: 0 | N64: 0 | S64: 0 | U64: 0 | V64: 0 | W64: =LOOKUP(A64,'DOE - FIPStoPayeeCodeConvTable'!$A$3:$A$213,'DOE - FIPStoPayeeCodeConvTable'!$E$3:$E$213) -> 0.4333 | X64: 0.541625 | Y64: 0 | Z64: 0
A65: 121 | B65: =LOOKUP(A65,'DOE - FIPStoPayeeCodeConvTable'!$A$3:$A$213,'DOE - FIPStoPayeeCodeConvTable'!$B$3:$B$213) -> Montgomery Co | I65: 0 | J65: 0 | K65: 0 | L65: 0 | M65: 0 | N65: 0 | S65: 0 | U65: 0 | V65: 0 | W65: =LOOKUP(A65,'DOE - FIPStoPayeeCodeConvTable'!$A$3:$A$213,'DOE - FIPStoPayeeCodeConvTable'!$E$3:$E$213) -> 0.2834 | X65: 0.35425 | Y65: 0 | Z65: 0
A66: 125 | B66: =LOOKUP(A66,'DOE - FIPStoPayeeCodeConvTable'!$A$3:$A$213,'DOE - FIPStoPayeeCodeConvTable'!$B$3:$B$213) -> Nelson Co | I66: 0 | J66: 0 | K66: 0 | L66: 0 | M66: 0 | N66: 0 | S66: 0 | U66: 0 | V66: 0 | W66: =LOOKUP(A66,'DOE - FIPStoPayeeCodeConvTable'!$A$3:$A$213,'DOE - FIPStoPayeeCodeConvTable'!$E$3:$E$213) -> 0.3132 | X66: 0.3915 | Y66: 0 | Z66: 0
A67: 127 | B67: =LOOKUP(A67,'DOE - FIPStoPayeeCodeConvTable'!$A$3:$A$213,'DOE - FIPStoPayeeCodeConvTable'!$B$3:$B$213) -> New Kent Co | I67: 0 | J67: 0 | K67: 0 | L67: 0 | M67: 0 | N67: 0 | S67: 0 | U67: 0 | V67: 0 | W67: =LOOKUP(A67,'DOE - FIPStoPayeeCodeConvTable'!$A$3:$A$213,'DOE - FIPStoPayeeCodeConvTable'!$E$3:$E$213) -> 0.4329 | X67: 0.541125 | Y67: 0 | Z67: 0
A68: 131 | B68: =LOOKUP(A68,'DOE - FIPStoPayeeCodeConvTable'!$A$3:$A$213,'DOE - FIPStoPayeeCodeConvTable'!$B$3:$B$213) -> Northampton Co | I68: 0 | J68: 0 | K68: 0 | L68: 0 | M68: 0 | N68: 0 | S68: 0 | U68: 0 | V68: 0 | W68: =LOOKUP(A68,'DOE - FIPStoPayeeCodeConvTable'!$A$3:$A$213,'DOE - FIPStoPayeeCodeConvTable'!$E$3:$E$213) -> 0.1971 | X68: 0.246375 | Y68: 0 | Z68: 0
A69: 133 | B69: =LOOKUP(A69,'DOE - FIPStoPayeeCodeConvTable'!$A$3:$A$213,'DOE - FIPStoPayeeCodeConvTable'!$B$3:$B$213) -> Northumberland Co | I69: 0 | J69: 0 | K69: 0 | L69: 0 | M69: 0 | N69: 0 | S69: =SUM(C69:R69) -> 0 | U69: 0 | V69: 0 | W69: =LOOKUP(A69,'DOE - FIPStoPayeeCodeConvTable'!$A$3:$A$213,'DOE - FIPStoPayeeCodeConvTable'!$E$3:$E$213) -> 0.3304 | X69: 0.413 | Y69: 0 | Z69: 0
A70: 135 | B70: =LOOKUP(A70,'DOE - FIPStoPayeeCodeConvTable'!$A$3:$A$213,'DOE - FIPStoPayeeCodeConvTable'!$B$3:$B$213) -> Nottoway Co | I70: 0 | J70: 0 | K70: 0 | L70: 0 | M70: 0 | N70: 0 | S70: 0 | U70: =ROUND($U$1*S70,2) -> 0 | V70: =SUM(S70)-SUM(U70) -> 0 | W70: =LOOKUP(A70,'DOE - FIPStoPayeeCodeConvTable'!$A$3:$A$213,'DOE - FIPStoPayeeCodeConvTable'!$E$3:$E$213) -> 0.2686 | X70: 0.33575 | Y70: 0 | Z70: 0
A71: 137 | B71: =LOOKUP(A71,'DOE - FIPStoPayeeCodeConvTable'!$A$3:$A$213,'DOE - FIPStoPayeeCodeConvTable'!$B$3:$B$213) -> Orange Co | I71: 4532.82 | J71: 0 | K71: 4532.82 | L71: 15402.04 | M71: 13772.5 | N71: 8263.5 | S71: 46503.68 | U71: 37593.57 | V71: 8910.11 | W71: =LOOKUP(A71,'DOE - FIPStoPayeeCodeConvTable'!$A$3:$A$213,'DOE - FIPStoPayeeCodeConvTable'!$E$3:$E$213) -> 0.4083 | X71: =$X$1*W71 -> 0.510375 | Y71: =ROUND(X71*V71,2) -> 4547.5 | Z71: =SUM(V71)-SUM(Y71) -> 4362.61
A72: 139 | B72: =LOOKUP(A72,'DOE - FIPStoPayeeCodeConvTable'!$A$3:$A$213,'DOE - FIPStoPayeeCodeConvTable'!$B$3:$B$213) -> Page Co | I72: 0 | J72: 0 | K72: 0 | L72: 0 | M72: 0 | N72: 0 | S72: 0 | U72: 0 | V72: 0 | W72: =LOOKUP(A72,'DOE - FIPStoPayeeCodeConvTable'!$A$3:$A$213,'DOE - FIPStoPayeeCodeConvTable'!$E$3:$E$213) -> 0.2865 | X72: 0.358125 | Y72: 0 | Z72: 0
A73: 141 | B73: =LOOKUP(A73,'DOE - FIPStoPayeeCodeConvTable'!$A$3:$A$213,'DOE - FIPStoPayeeCodeConvTable'!$B$3:$B$213) -> Patrick Co | I73: 0 | J73: 0 | K73: 0 | L73: 0 | M73: 0 | N73: 0 | S73: 0 | U73: 0 | V73: 0 | W73: =LOOKUP(A73,'DOE - FIPStoPayeeCodeConvTable'!$A$3:$A$213,'DOE - FIPStoPayeeCodeConvTable'!$E$3:$E$213) -> 0.2539 | X73: 0.317375 | Y73: 0 | Z73: 0
A74: 143 | B74: =LOOKUP(A74,'DOE - FIPStoPayeeCodeConvTable'!$A$3:$A$213,'DOE - FIPStoPayeeCodeConvTable'!$B$3:$B$213) -> Pittsylvania Co | I74: 24003.5 | J74: 12198.5 | K74: 24397 | L74: 22823 | M74: 35808.5 | N74: 0 | S74: 119230.5 | U74: 96385.94 | V74: 22844.56 | W74: =LOOKUP(A74,'DOE - FIPStoPayeeCodeConvTable'!$A$3:$A$213,'DOE - FIPStoPayeeCodeConvTable'!$E$3:$E$213) -> 0.2355 | X74: 0.294375 | Y74: 6724.87 | Z74: 16119.69
A75: 145 | B75: =LOOKUP(A75,'DOE - FIPStoPayeeCodeConvTable'!$A$3:$A$213,'DOE - FIPStoPayeeCodeConvTable'!$B$3:$B$213) -> Powhatan Co | I75: 0 | J75: 0 | K75: 0 | L75: 0 | M75: 0 | N75: 0 | S75: 0 | U75: 0 | V75: 0 | W75: =LOOKUP(A75,'DOE - FIPStoPayeeCodeConvTable'!$A$3:$A$213,'DOE - FIPStoPayeeCodeConvTable'!$E$3:$E$213) -> 0.4342 | X75: 0.54275 | Y75: 0 | Z75: 0
A76: 147 | B76: =LOOKUP(A76,'DOE - FIPStoPayeeCodeConvTable'!$A$3:$A$213,'DOE - FIPStoPayeeCodeConvTable'!$B$3:$B$213) -> Prince Edward Co | I76: 0 | J76: 0 | K76: 0 | L76: 0 | M76: 0 | N76: 0 | S76: 0 | U76: 0 | V76: 0 | W76: =LOOKUP(A76,'DOE - FIPStoPayeeCodeConvTable'!$A$3:$A$213,'DOE - FIPStoPayeeCodeConvTable'!$E$3:$E$213) -> 0.2232 | X76: 0.279 | Y76: 0 | Z76: 0
A77: 149 | B77: =LOOKUP(A77,'DOE - FIPStoPayeeCodeConvTable'!$A$3:$A$213,'DOE - FIPStoPayeeCodeConvTable'!$B$3:$B$213) -> Prince George Co | I77: 0 | J77: 0 | K77: 0 | L77: 0 | M77: 0 | N77: 0 | S77: 0 | U77: 0 | V77: 0 | W77: =LOOKUP(A77,'DOE - FIPStoPayeeCodeConvTable'!$A$3:$A$213,'DOE - FIPStoPayeeCodeConvTable'!$E$3:$E$213) -> 0.3716 | X77: 0.4645 | Y77: 0 | Z77: 0
A78: 153 | B78: =LOOKUP(A78,'DOE - FIPStoPayeeCodeConvTable'!$A$3:$A$213,'DOE - FIPStoPayeeCodeConvTable'!$B$3:$B$213) -> Prince William Co | I78: 3935 | J78: 0 | K78: 1574 | L78: 11805 | M78: 2243.5 | N78: 6730.5 | S78: 26288 | U78: 21251.22 | V78: 5036.78 | W78: =LOOKUP(A78,'DOE - FIPStoPayeeCodeConvTable'!$A$3:$A$213,'DOE - FIPStoPayeeCodeConvTable'!$E$3:$E$213) -> 0.3414 | X78: 0.42675 | Y78: 2149.45 | Z78: 2887.33
A79: 155 | B79: =LOOKUP(A79,'DOE - FIPStoPayeeCodeConvTable'!$A$3:$A$213,'DOE - FIPStoPayeeCodeConvTable'!$B$3:$B$213) -> Pulaski Co | I79: 0 | J79: 0 | K79: 0 | L79: 0 | M79: 0 | N79: 0 | S79: 0 | U79: 0 | V79: 0 | W79: =LOOKUP(A79,'DOE - FIPStoPayeeCodeConvTable'!$A$3:$A$213,'DOE - FIPStoPayeeCodeConvTable'!$E$3:$E$213) -> 0.2923 | X79: 0.365375 | Y79: 0 | Z79: 0
A80: 157 | B80: =LOOKUP(A80,'DOE - FIPStoPayeeCodeConvTable'!$A$3:$A$213,'DOE - FIPStoPayeeCodeConvTable'!$B$3:$B$213) -> Rappahannock Co | I80: 0 | J80: 0 | K80: 0 | L80: 0 | M80: 0 | N80: 0 | S80: 0 | U80: 0 | V80: 0 | W80: =LOOKUP(A80,'DOE - FIPStoPayeeCodeConvTable'!$A$3:$A$213,'DOE - FIPStoPayeeCodeConvTable'!$E$3:$E$213) -> 0.4199 | X80: 0.524875 | Y80: 0 | Z80: 0
A81: 159 | B81: =LOOKUP(A81,'DOE - FIPStoPayeeCodeConvTable'!$A$3:$A$213,'DOE - FIPStoPayeeCodeConvTable'!$B$3:$B$213) -> Richmond Co | I81: 0 | J81: 0 | K81: 0 | L81: 0 | M81: 0 | N81: 0 | S81: 0 | U81: 0 | V81: 0 | W81: =LOOKUP(A81,'DOE - FIPStoPayeeCodeConvTable'!$A$3:$A$213,'DOE - FIPStoPayeeCodeConvTable'!$E$3:$E$213) -> 0.3227 | X81: 0.403375 | Y81: 0 | Z81: 0
A82: 161 | B82: =LOOKUP(A82,'DOE - FIPStoPayeeCodeConvTable'!$A$3:$A$213,'DOE - FIPStoPayeeCodeConvTable'!$B$3:$B$213) -> Roanoke Co | I82: 0 | J82: 0 | K82: 0 | L82: 0 | M82: 0 | N82: 0 | S82: 0 | U82: 0 | V82: 0 | W82: =LOOKUP(A82,'DOE - FIPStoPayeeCodeConvTable'!$A$3:$A$213,'DOE - FIPStoPayeeCodeConvTable'!$E$3:$E$213) -> 0.4397 | X82: 0.549625 | Y82: 0 | Z82: 0
A83: 163 | B83: =LOOKUP(A83,'DOE - FIPStoPayeeCodeConvTable'!$A$3:$A$213,'DOE - FIPStoPayeeCodeConvTable'!$B$3:$B$213) -> Rockbridge Co | I83: 0 | J83: 0 | K83: 0 | L83: 0 | M83: 0 | N83: 0 | S83: 0 | U83: 0 | V83: 0 | W83: =LOOKUP(A83,'DOE - FIPStoPayeeCodeConvTable'!$A$3:$A$213,'DOE - FIPStoPayeeCodeConvTable'!$E$3:$E$213) -> 0.2336 | X83: 0.292 | Y83: 0 | Z83: 0
A84: 165 | B84: =LOOKUP(A84,'DOE - FIPStoPayeeCodeConvTable'!$A$3:$A$213,'DOE - FIPStoPayeeCodeConvTable'!$B$3:$B$213) -> Rockingham Co | I84: 12198.5 | J84: 0 | K84: 3148 | L84: 9444 | M84: 15346.5 | N84: 9444 | S84: 49581 | U84: 40081.28 | V84: 9499.72 | W84: =LOOKUP(A84,'DOE - FIPStoPayeeCodeConvTable'!$A$3:$A$213,'DOE - FIPStoPayeeCodeConvTable'!$E$3:$E$213) -> 0.3445 | X84: 0.430625 | Y84: 4090.82 | Z84: 5408.9
A85: 167 | B85: =LOOKUP(A85,'DOE - FIPStoPayeeCodeConvTable'!$A$3:$A$213,'DOE - FIPStoPayeeCodeConvTable'!$B$3:$B$213) -> Russell Co | I85: 0 | J85: 0 | K85: 0 | L85: 0 | M85: 0 | N85: 0 | S85: 0 | U85: 0 | V85: 0 | W85: =LOOKUP(A85,'DOE - FIPStoPayeeCodeConvTable'!$A$3:$A$213,'DOE - FIPStoPayeeCodeConvTable'!$E$3:$E$213) -> 0.1894 | X85: 0.23675 | Y85: 0 | Z85: 0
A86: 169 | B86: =LOOKUP(A86,'DOE - FIPStoPayeeCodeConvTable'!$A$3:$A$213,'DOE - FIPStoPayeeCodeConvTable'!$B$3:$B$213) -> Scott Co | I86: 0 | J86: 0 | K86: 0 | L86: 0 | M86: 0 | N86: 0 | S86: 0 | U86: 0 | V86: 0 | W86: =LOOKUP(A86,'DOE - FIPStoPayeeCodeConvTable'!$A$3:$A$213,'DOE - FIPStoPayeeCodeConvTable'!$E$3:$E$213) -> 0.3154 | X86: 0.39425 | Y86: 0 | Z86: 0
A87: 171 | B87: =LOOKUP(A87,'DOE - FIPStoPayeeCodeConvTable'!$A$3:$A$213,'DOE - FIPStoPayeeCodeConvTable'!$B$3:$B$213) -> Shenandoah Co | I87: 0 | J87: 4386.6 | K87: 4532.82 | L87: 0 | M87: 31654.3 | N87: 24601.32 | S87: 65175.04 | U87: 52687.5 | V87: 12487.54 | W87: =LOOKUP(A87,'DOE - FIPStoPayeeCodeConvTable'!$A$3:$A$213,'DOE - FIPStoPayeeCodeConvTable'!$E$3:$E$213) -> 0.3517 | X87: 0.439625 | Y87: 5489.83 | Z87: 6997.71
A88: 173 | B88: =LOOKUP(A88,'DOE - FIPStoPayeeCodeConvTable'!$A$3:$A$213,'DOE - FIPStoPayeeCodeConvTable'!$B$3:$B$213) -> Smyth Co | I88: 0 | J88: 8657 | K88: 8657 | L88: 13772.5 | M88: 18888 | N88: 5902.5 | S88: 55877 | U88: 45170.97 | V88: 10706.03 | W88: =LOOKUP(A88,'DOE - FIPStoPayeeCodeConvTable'!$A$3:$A$213,'DOE - FIPStoPayeeCodeConvTable'!$E$3:$E$213) -> 0.2337 | X88: 0.292125 | Y88: 3127.5 | Z88: 7578.53
A89: 175 | B89: =LOOKUP(A89,'DOE - FIPStoPayeeCodeConvTable'!$A$3:$A$213,'DOE - FIPStoPayeeCodeConvTable'!$B$3:$B$213) -> Southampton Co | I89: 4328.5 | J89: 6296 | K89: 17314 | L89: 12985.5 | M89: 14559.5 | N89: 13458.18 | S89: 68941.68 | U89: 55732.45 | V89: 13209.23 | W89: =LOOKUP(A89,'DOE - FIPStoPayeeCodeConvTable'!$A$3:$A$213,'DOE - FIPStoPayeeCodeConvTable'!$E$3:$E$213) -> 0.323 | X89: 0.40375 | Y89: 5333.23 | Z89: 7876
A90: 177 | B90: =LOOKUP(A90,'DOE - FIPStoPayeeCodeConvTable'!$A$3:$A$213,'DOE - FIPStoPayeeCodeConvTable'!$B$3:$B$213) -> Spotsylvania Co | I90: 0 | J90: 0 | K90: 0 | L90: 11018 | M90: 2754.5 | N90: 0 | S90: 13772.5 | U90: 11133.69 | V90: 2638.81 | W90: =LOOKUP(A90,'DOE - FIPStoPayeeCodeConvTable'!$A$3:$A$213,'DOE - FIPStoPayeeCodeConvTable'!$E$3:$E$213) -> 0.4588 | X90: 0.5735 | Y90: 1513.36 | Z90: 1125.45
A91: 179 | B91: =LOOKUP(A91,'DOE - FIPStoPayeeCodeConvTable'!$A$3:$A$213,'DOE - FIPStoPayeeCodeConvTable'!$B$3:$B$213) -> Stafford Co | I91: 0 | J91: 0 | K91: 2754.5 | L91: 8263.5 | M91: 0 | N91: 0 | S91: 11018 | U91: 8906.95 | V91: 2111.05 | W91: =LOOKUP(A91,'DOE - FIPStoPayeeCodeConvTable'!$A$3:$A$213,'DOE - FIPStoPayeeCodeConvTable'!$E$3:$E$213) -> 0.4439 | X91: 0.554875 | Y91: 1171.37 | Z91: 939.68
A92: 181 | B92: =LOOKUP(A92,'DOE - FIPStoPayeeCodeConvTable'!$A$3:$A$213,'DOE - FIPStoPayeeCodeConvTable'!$B$3:$B$213) -> Surry Co | I92: 0 | J92: 0 | K92: 0 | L92: 0 | M92: 0 | N92: 0 | S92: 0 | U92: 0 | V92: 0 | W92: =LOOKUP(A92,'DOE - FIPStoPayeeCodeConvTable'!$A$3:$A$213,'DOE - FIPStoPayeeCodeConvTable'!$E$3:$E$213) -> 0.3979 | X92: 0.497375 | Y92: 0 | Z92: 0
A93: 183 | B93: =LOOKUP(A93,'DOE - FIPStoPayeeCodeConvTable'!$A$3:$A$213,'DOE - FIPStoPayeeCodeConvTable'!$B$3:$B$213) -> Sussex Co | I93: 4386.6 | J93: 2778.18 | K93: 0 | L93: 0 | M93: 0 | N93: 0 | S93: 7164.78 | U93: 5792.01 | V93: 1372.77 | W93: =LOOKUP(A93,'DOE - FIPStoPayeeCodeConvTable'!$A$3:$A$213,'DOE - FIPStoPayeeCodeConvTable'!$E$3:$E$213) -> 0.2387 | X93: 0.298375 | Y93: 409.6 | Z93: 963.17
A94: 185 | B94: =LOOKUP(A94,'DOE - FIPStoPayeeCodeConvTable'!$A$3:$A$213,'DOE - FIPStoPayeeCodeConvTable'!$B$3:$B$213) -> Tazewell Co | I94: 0 | J94: 0 | K94: 0 | L94: 0 | M94: 0 | N94: 0 | S94: 0 | U94: 0 | V94: 0 | W94: =LOOKUP(A94,'DOE - FIPStoPayeeCodeConvTable'!$A$3:$A$213,'DOE - FIPStoPayeeCodeConvTable'!$E$3:$E$213) -> 0.2455 | X94: 0.306875 | Y94: 0 | Z94: 0
A95: 187 | B95: =LOOKUP(A95,'DOE - FIPStoPayeeCodeConvTable'!$A$3:$A$213,'DOE - FIPStoPayeeCodeConvTable'!$B$3:$B$213) -> Warren Co | I95: 0 | J95: 0 | K95: 0 | L95: 0 | M95: 0 | N95: 0 | S95: 0 | U95: 0 | V95: 0 | W95: =LOOKUP(A95,'DOE - FIPStoPayeeCodeConvTable'!$A$3:$A$213,'DOE - FIPStoPayeeCodeConvTable'!$E$3:$E$213) -> 0.3853 | X95: 0.481625 | Y95: 0 | Z95: 0
A96: 191 | B96: =LOOKUP(A96,'DOE - FIPStoPayeeCodeConvTable'!$A$3:$A$213,'DOE - FIPStoPayeeCodeConvTable'!$B$3:$B$213) -> Washington Co | I96: 0 | J96: 0 | K96: 0 | L96: 0 | M96: 0 | N96: 0 | S96: 0 | U96: 0 | V96: 0 | W96: =LOOKUP(A96,'DOE - FIPStoPayeeCodeConvTable'!$A$3:$A$213,'DOE - FIPStoPayeeCodeConvTable'!$E$3:$E$213) -> 0.276 | X96: 0.345 | Y96: 0 | Z96: 0
A97: 193 | B97: =LOOKUP(A97,'DOE - FIPStoPayeeCodeConvTable'!$A$3:$A$213,'DOE - FIPStoPayeeCodeConvTable'!$B$3:$B$213) -> Westmoreland Co | I97: 0 | J97: 0 | K97: 0 | L97: 0 | M97: 0 | N97: 0 | S97: 0 | U97: 0 | V97: 0 | W97: =LOOKUP(A97,'DOE - FIPStoPayeeCodeConvTable'!$A$3:$A$213,'DOE - FIPStoPayeeCodeConvTable'!$E$3:$E$213) -> 0.3025 | X97: 0.378125 | Y97: 0 | Z97: 0
A98: 195 | B98: =LOOKUP(A98,'DOE - FIPStoPayeeCodeConvTable'!$A$3:$A$213,'DOE - FIPStoPayeeCodeConvTable'!$B$3:$B$213) -> Wise Co | I98: 0 | J98: 0 | K98: 0 | L98: 0 | M98: 0 | N98: 0 | S98: 0 | U98: 0 | V98: 0 | W98: =LOOKUP(A98,'DOE - FIPStoPayeeCodeConvTable'!$A$3:$A$213,'DOE - FIPStoPayeeCodeConvTable'!$E$3:$E$213) -> 0.2755 | X98: 0.344375 | Y98: 0 | Z98: 0
A99: 197 | B99: =LOOKUP(A99,'DOE - FIPStoPayeeCodeConvTable'!$A$3:$A$213,'DOE - FIPStoPayeeCodeConvTable'!$B$3:$B$213) -> Wythe Co | I99: 0 | J99: 0 | K99: 0 | L99: 0 | M99: 0 | N99: 0 | S99: 0 | U99: 0 | V99: 0 | W99: =LOOKUP(A99,'DOE - FIPStoPayeeCodeConvTable'!$A$3:$A$213,'DOE - FIPStoPayeeCodeConvTable'!$E$3:$E$213) -> 0.2708 | X99: 0.3385 | Y99: 0 | Z99: 0
A100: 199 | B100: =LOOKUP(A100,'DOE - FIPStoPayeeCodeConvTable'!$A$3:$A$213,'DOE - FIPStoPayeeCodeConvTable'!$B$3:$B$213) -> York Co | I100: 0 | J100: 0 | K100: 0 | L100: 0 | M100: 0 | N100: 0 | S100: 0 | U100: 0 | V100: 0 | W100: =LOOKUP(A100,'DOE - FIPStoPayeeCodeConvTable'!$A$3:$A$213,'DOE - FIPStoPayeeCodeConvTable'!$E$3:$E$213) -> 0.3888 | X100: 0.486 | Y100: 0 | Z100: 0
A101: 510 | B101: =LOOKUP(A101,'DOE - FIPStoPayeeCodeConvTable'!$A$3:$A$213,'DOE - FIPStoPayeeCodeConvTable'!$B$3:$B$213) -> Alexandria City | I101: 0 | J101: 0 | K101: 0 | L101: 0 | M101: 0 | N101: 0 | S101: =SUM(C101:R101) -> 0 | U101: 0 | V101: 0 | W101: =LOOKUP(A101,'DOE - FIPStoPayeeCodeConvTable'!$A$3:$A$213,'DOE - FIPStoPayeeCodeConvTable'!$E$3:$E$213) -> 0.5309 | X101: 0.663625 | Y101: 0 | Z101: 0
A102: 520 | B102: =LOOKUP(A102,'DOE - FIPStoPayeeCodeConvTable'!$A$3:$A$213,'DOE - FIPStoPayeeCodeConvTable'!$B$3:$B$213) -> Bristol City | I102: 0 | J102: 0 | K102: 0 | L102: 0 | M102: 0 | N102: 0 | S102: 0 | U102: =ROUND($U$1*S102,2) -> 0 | V102: =SUM(S102)-SUM(U102) -> 0 | W102: =LOOKUP(A102,'DOE - FIPStoPayeeCodeConvTable'!$A$3:$A$213,'DOE - FIPStoPayeeCodeConvTable'!$E$3:$E$213) -> 0.2547 | X102: 0.318375 | Y102: 0 | Z102: 0
A103: 530 | B103: =LOOKUP(A103,'DOE - FIPStoPayeeCodeConvTable'!$A$3:$A$213,'DOE - FIPStoPayeeCodeConvTable'!$B$3:$B$213) -> Buena Vista City | I103: 0 | J103: 0 | K103: 0 | L103: 0 | M103: 0 | N103: 0 | S103: 0 | U103: 0 | V103: 0 | W103: =LOOKUP(A103,'DOE - FIPStoPayeeCodeConvTable'!$A$3:$A$213,'DOE - FIPStoPayeeCodeConvTable'!$E$3:$E$213) -> 0.2329 | X103: 0.291125 | Y103: 0 | Z103: 0
A104: 540 | B104: =LOOKUP(A104,'DOE - FIPStoPayeeCodeConvTable'!$A$3:$A$213,'DOE - FIPStoPayeeCodeConvTable'!$B$3:$B$213) -> Charlottesville City | I104: 0 | J104: 0 | K104: 4240.38 | L104: 5509 | M104: 18946.1 | N104: 9444 | S104: 38139.48 | U104: 30831.96 | V104: 7307.52 | W104: =LOOKUP(A104,'DOE - FIPStoPayeeCodeConvTable'!$A$3:$A$213,'DOE - FIPStoPayeeCodeConvTable'!$E$3:$E$213) -> 0.3068 | X104: 0.3835 | Y104: 2802.43 | Z104: 4505.09
A105: 550 | B105: =LOOKUP(A105,'DOE - FIPStoPayeeCodeConvTable'!$A$3:$A$213,'DOE - FIPStoPayeeCodeConvTable'!$B$3:$B$213) -> Chesapeake City | I105: 0 | J105: 0 | K105: 0 | L105: 0 | M105: 0 | N105: 0 | S105: 0 | U105: 0 | V105: 0 | W105: =LOOKUP(A105,'DOE - FIPStoPayeeCodeConvTable'!$A$3:$A$213,'DOE - FIPStoPayeeCodeConvTable'!$E$3:$E$213) -> 0.3715 | X105: 0.464375 | Y105: 0 | Z105: 0
A106: 570 | B106: =LOOKUP(A106,'DOE - FIPStoPayeeCodeConvTable'!$A$3:$A$213,'DOE - FIPStoPayeeCodeConvTable'!$B$3:$B$213) -> Colonial Heights City | I106: 7476.5 | J106: 0 | K106: 0 | L106: 0 | M106: 0 | N106: 0 | S106: 7476.5 | U106: 6044 | V106: 1432.5 | W106: =LOOKUP(A106,'DOE - FIPStoPayeeCodeConvTable'!$A$3:$A$213,'DOE - FIPStoPayeeCodeConvTable'!$E$3:$E$213) -> 0.4027 | X106: 0.503375 | Y106: 721.08 | Z106: 711.42
A107: 580 | B107: =LOOKUP(A107,'DOE - FIPStoPayeeCodeConvTable'!$A$3:$A$213,'DOE - FIPStoPayeeCodeConvTable'!$B$3:$B$213) -> Covington City | I107: 0 | J107: 0 | K107: 0 | L107: 0 | M107: 0 | N107: 0 | S107: 0 | U107: 0 | V107: 0 | W107: =LOOKUP(A107,'DOE - FIPStoPayeeCodeConvTable'!$A$3:$A$213,'DOE - FIPStoPayeeCodeConvTable'!$E$3:$E$213) -> 0.2496 | X107: 0.312 | Y107: 0 | Z107: 0
A108: 590 | B108: =LOOKUP(A108,'DOE - FIPStoPayeeCodeConvTable'!$A$3:$A$213,'DOE - FIPStoPayeeCodeConvTable'!$B$3:$B$213) -> Danville City | I108: 0 | J108: 0 | K108: 0 | L108: 0 | M108: 0 | N108: 0 | S108: 0 | U108: 0 | V108: 0 | W108: =LOOKUP(A108,'DOE - FIPStoPayeeCodeConvTable'!$A$3:$A$213,'DOE - FIPStoPayeeCodeConvTable'!$E$3:$E$213) -> 0.2223 | X108: 0.277875 | Y108: 0 | Z108: 0
A109: 620 | B109: =LOOKUP(A109,'DOE - FIPStoPayeeCodeConvTable'!$A$3:$A$213,'DOE - FIPStoPayeeCodeConvTable'!$B$3:$B$213) -> Franklin City | I109: 0 | J109: 0 | K109: 0 | L109: 0 | M109: 0 | N109: 0 | S109: 0 | U109: 0 | V109: 0 | W109: =LOOKUP(A109,'DOE - FIPStoPayeeCodeConvTable'!$A$3:$A$213,'DOE - FIPStoPayeeCodeConvTable'!$E$3:$E$213) -> 0.371 | X109: 0.46375 | Y109: 0 | Z109: 0
A110: 630 | B110: =LOOKUP(A110,'DOE - FIPStoPayeeCodeConvTable'!$A$3:$A$213,'DOE - FIPStoPayeeCodeConvTable'!$B$3:$B$213) -> Fredericksburg City | I110: 0 | J110: 0 | K110: 0 | L110: 0 | M110: 0 | N110: 0 | S110: 0 | U110: 0 | V110: 0 | W110: =LOOKUP(A110,'DOE - FIPStoPayeeCodeConvTable'!$A$3:$A$213,'DOE - FIPStoPayeeCodeConvTable'!$E$3:$E$213) -> 0.3441 | X110: 0.430125 | Y110: 0 | Z110: 0
A111: 640 | B111: =LOOKUP(A111,'DOE - FIPStoPayeeCodeConvTable'!$A$3:$A$213,'DOE - FIPStoPayeeCodeConvTable'!$B$3:$B$213) -> Galax City | I111: 0 | J111: 0 | K111: 0 | L111: 0 | M111: 0 | N111: 0 | S111: 0 | U111: 0 | V111: 0 | W111: =LOOKUP(A111,'DOE - FIPStoPayeeCodeConvTable'!$A$3:$A$213,'DOE - FIPStoPayeeCodeConvTable'!$E$3:$E$213) -> 0.3146 | X111: 0.39325 | Y111: 0 | Z111: 0
A112: 650 | B112: =LOOKUP(A112,'DOE - FIPStoPayeeCodeConvTable'!$A$3:$A$213,'DOE - FIPStoPayeeCodeConvTable'!$B$3:$B$213) -> Hampton City | I112: 0 | J112: 0 | K112: 0 | L112: 0 | M112: 0 | N112: 0 | S112: 0 | U112: 0 | V112: 0 | W112: =LOOKUP(A112,'DOE - FIPStoPayeeCodeConvTable'!$A$3:$A$213,'DOE - FIPStoPayeeCodeConvTable'!$E$3:$E$213) -> 0.3223 | X112: 0.402875 | Y112: 0 | Z112: 0
A113: 660 | B113: =LOOKUP(A113,'DOE - FIPStoPayeeCodeConvTable'!$A$3:$A$213,'DOE - FIPStoPayeeCodeConvTable'!$B$3:$B$213) -> Harrisonburg City | I113: 0 | J113: 0 | K113: 0 | L113: 0 | M113: 0 | N113: 0 | S113: 0 | U113: 0 | V113: 0 | W113: =LOOKUP(A113,'DOE - FIPStoPayeeCodeConvTable'!$A$3:$A$213,'DOE - FIPStoPayeeCodeConvTable'!$E$3:$E$213) -> 0.3808 | X113: 0.476 | Y113: 0 | Z113: 0
A114: 670 | B114: =LOOKUP(A114,'DOE - FIPStoPayeeCodeConvTable'!$A$3:$A$213,'DOE - FIPStoPayeeCodeConvTable'!$B$3:$B$213) -> Hopewell City | I114: 0 | J114: 0 | K114: 0 | L114: 0 | M114: 0 | N114: 0 | S114: 0 | U114: 0 | V114: 0 | W114: =LOOKUP(A114,'DOE - FIPStoPayeeCodeConvTable'!$A$3:$A$213,'DOE - FIPStoPayeeCodeConvTable'!$E$3:$E$213) -> 0.2667 | X114: 0.333375 | Y114: 0 | Z114: 0
A115: 678 | B115: =LOOKUP(A115,'DOE - FIPStoPayeeCodeConvTable'!$A$3:$A$213,'DOE - FIPStoPayeeCodeConvTable'!$B$3:$B$213) -> Lexington City | I115: 0 | J115: 0 | K115: 0 | L115: 0 | M115: 0 | N115: 0 | S115: 0 | U115: 0 | V115: 0 | W115: =LOOKUP(A115,'DOE - FIPStoPayeeCodeConvTable'!$A$3:$A$213,'DOE - FIPStoPayeeCodeConvTable'!$E$3:$E$213) -> 0.3302 | X115: 0.41275 | Y115: 0 | Z115: 0
A116: 680 | B116: =LOOKUP(A116,'DOE - FIPStoPayeeCodeConvTable'!$A$3:$A$213,'DOE - FIPStoPayeeCodeConvTable'!$B$3:$B$213) -> Lynchburg City | I116: 0 | J116: 0 | K116: 0 | L116: 0 | M116: 0 | N116: 0 | S116: 0 | U116: 0 | V116: 0 | W116: =LOOKUP(A116,'DOE - FIPStoPayeeCodeConvTable'!$A$3:$A$213,'DOE - FIPStoPayeeCodeConvTable'!$E$3:$E$213) -> 0.2736 | X116: 0.342 | Y116: 0 | Z116: 0
A117: 683 | B117: =LOOKUP(A117,'DOE - FIPStoPayeeCodeConvTable'!$A$3:$A$213,'DOE - FIPStoPayeeCodeConvTable'!$B$3:$B$213) -> Manassas City | I117: 0 | J117: 0 | K117: 0 | L117: 0 | M117: 0 | N117: 0 | S117: 0 | U117: 0 | V117: 0 | W117: =LOOKUP(A117,'DOE - FIPStoPayeeCodeConvTable'!$A$3:$A$213,'DOE - FIPStoPayeeCodeConvTable'!$E$3:$E$213) -> 0.4168 | X117: 0.521 | Y117: 0 | Z117: 0
A118: 685 | B118: =LOOKUP(A118,'DOE - FIPStoPayeeCodeConvTable'!$A$3:$A$213,'DOE - FIPStoPayeeCodeConvTable'!$B$3:$B$213) -> Manassas Park City | I118: 0 | J118: 0 | K118: 0 | L118: 0 | M118: 0 | N118: 0 | S118: 0 | U118: 0 | V118: 0 | W118: =LOOKUP(A118,'DOE - FIPStoPayeeCodeConvTable'!$A$3:$A$213,'DOE - FIPStoPayeeCodeConvTable'!$E$3:$E$213) -> 0.4273 | X118: 0.534125 | Y118: 0 | Z118: 0
A119: 690 | B119: =LOOKUP(A119,'DOE - FIPStoPayeeCodeConvTable'!$A$3:$A$213,'DOE - FIPStoPayeeCodeConvTable'!$B$3:$B$213) -> Martinsville City | I119: 0 | J119: 0 | K119: 0 | L119: 0 | M119: 0 | N119: 0 | S119: 0 | U119: 0 | V119: 0 | W119: =LOOKUP(A119,'DOE - FIPStoPayeeCodeConvTable'!$A$3:$A$213,'DOE - FIPStoPayeeCodeConvTable'!$E$3:$E$213) -> 0.3321 | X119: 0.415125 | Y119: 0 | Z119: 0
A120: 700 | B120: =LOOKUP(A120,'DOE - FIPStoPayeeCodeConvTable'!$A$3:$A$213,'DOE - FIPStoPayeeCodeConvTable'!$B$3:$B$213) -> Newport News City | I120: 0 | J120: 0 | K120: 0 | L120: 0 | M120: 0 | N120: 0 | S120: 0 | U120: 0 | V120: 0 | W120: =LOOKUP(A120,'DOE - FIPStoPayeeCodeConvTable'!$A$3:$A$213,'DOE - FIPStoPayeeCodeConvTable'!$E$3:$E$213) -> 0.2773 | X120: 0.346625 | Y120: 0 | Z120: 0
A121: 710 | B121: =LOOKUP(A121,'DOE - FIPStoPayeeCodeConvTable'!$A$3:$A$213,'DOE - FIPStoPayeeCodeConvTable'!$B$3:$B$213) -> Norfolk City | I121: 5263.92 | J121: 3801.72 | K121: 4971.48 | L121: 4386.6 | M121: 4386.6 | N121: 4386.6 | S121: 27196.92 | U121: 21985.99 | V121: 5210.93 | W121: =LOOKUP(A121,'DOE - FIPStoPayeeCodeConvTable'!$A$3:$A$213,'DOE - FIPStoPayeeCodeConvTable'!$E$3:$E$213) -> 0.2455 | X121: 0.306875 | Y121: 1599.1 | Z121: 3611.83
A122: 720 | B122: =LOOKUP(A122,'DOE - FIPStoPayeeCodeConvTable'!$A$3:$A$213,'DOE - FIPStoPayeeCodeConvTable'!$B$3:$B$213) -> Norton City | I122: 0 | J122: 0 | K122: 0 | L122: 0 | M122: 0 | N122: 0 | S122: 0 | U122: 0 | V122: 0 | W122: =LOOKUP(A122,'DOE - FIPStoPayeeCodeConvTable'!$A$3:$A$213,'DOE - FIPStoPayeeCodeConvTable'!$E$3:$E$213) -> 0.3254 | X122: 0.40675 | Y122: 0 | Z122: 0
A123: 730 | B123: =LOOKUP(A123,'DOE - FIPStoPayeeCodeConvTable'!$A$3:$A$213,'DOE - FIPStoPayeeCodeConvTable'!$B$3:$B$213) -> Petersburg City | I123: 0 | J123: 0 | K123: 0 | L123: 0 | M123: 0 | N123: 0 | S123: 0 | U123: 0 | V123: 0 | W123: =LOOKUP(A123,'DOE - FIPStoPayeeCodeConvTable'!$A$3:$A$213,'DOE - FIPStoPayeeCodeConvTable'!$E$3:$E$213) -> 0.3535 | X123: 0.441875 | Y123: 0 | Z123: 0
A124: 735 | B124: =LOOKUP(A124,'DOE - FIPStoPayeeCodeConvTable'!$A$3:$A$213,'DOE - FIPStoPayeeCodeConvTable'!$B$3:$B$213) -> Poquoson City | I124: 0 | J124: 0 | K124: 0 | L124: 0 | M124: 0 | N124: 0 | S124: 0 | U124: 0 | V124: 0 | W124: =LOOKUP(A124,'DOE - FIPStoPayeeCodeConvTable'!$A$3:$A$213,'DOE - FIPStoPayeeCodeConvTable'!$E$3:$E$213) -> 0.2787 | X124: 0.348375 | Y124: 0 | Z124: 0
A125: 740 | B125: =LOOKUP(A125,'DOE - FIPStoPayeeCodeConvTable'!$A$3:$A$213,'DOE - FIPStoPayeeCodeConvTable'!$B$3:$B$213) -> Portsmouth City | I125: 0 | J125: 0 | K125: 0 | L125: 0 | M125: 0 | N125: 0 | S125: 0 | U125: 0 | V125: 0 | W125: =LOOKUP(A125,'DOE - FIPStoPayeeCodeConvTable'!$A$3:$A$213,'DOE - FIPStoPayeeCodeConvTable'!$E$3:$E$213) -> 0.2605 | X125: 0.325625 | Y125: 0 | Z125: 0
A126: 750 | B126: =LOOKUP(A126,'DOE - FIPStoPayeeCodeConvTable'!$A$3:$A$213,'DOE - FIPStoPayeeCodeConvTable'!$B$3:$B$213) -> Radford City | I126: 0 | J126: 0 | K126: 0 | L126: 0 | M126: 0 | N126: 0 | S126: 0 | U126: 0 | V126: 0 | W126: =LOOKUP(A126,'DOE - FIPStoPayeeCodeConvTable'!$A$3:$A$213,'DOE - FIPStoPayeeCodeConvTable'!$E$3:$E$213) -> 0.2035 | X126: 0.254375 | Y126: 0 | Z126: 0
A127: 760 | B127: =LOOKUP(A127,'DOE - FIPStoPayeeCodeConvTable'!$A$3:$A$213,'DOE - FIPStoPayeeCodeConvTable'!$B$3:$B$213) -> Richmond City | I127: 2778.18 | J127: 0 | K127: 3801.72 | L127: 35225.82 | M127: 22823 | N127: 24397 | S127: 89025.72 | U127: 71968.39 | V127: 17057.33 | W127: =LOOKUP(A127,'DOE - FIPStoPayeeCodeConvTable'!$A$3:$A$213,'DOE - FIPStoPayeeCodeConvTable'!$E$3:$E$213) -> 0.3691 | X127: 0.461375 | Y127: 7869.83 | Z127: 9187.5
A128: 770 | B128: =LOOKUP(A128,'DOE - FIPStoPayeeCodeConvTable'!$A$3:$A$213,'DOE - FIPStoPayeeCodeConvTable'!$B$3:$B$213) -> Roanoke City | I128: 9050.5 | J128: 14953 | K128: 0 | L128: 15346.5 | M128: 20462 | N128: 24003.5 | S128: 83815.5 | U128: 67756.45 | V128: 16059.05 | W128: =LOOKUP(A128,'DOE - FIPStoPayeeCodeConvTable'!$A$3:$A$213,'DOE - FIPStoPayeeCodeConvTable'!$E$3:$E$213) -> 0.3072 | X128: 0.384 | Y128: 6166.68 | Z128: 9892.37
A129: 775 | B129: =LOOKUP(A129,'DOE - FIPStoPayeeCodeConvTable'!$A$3:$A$213,'DOE - FIPStoPayeeCodeConvTable'!$B$3:$B$213) -> Salem City | I129: 0 | J129: 0 | K129: 0 | L129: 0 | M129: 0 | N129: 0 | S129: 0 | U129: 0 | V129: 0 | W129: =LOOKUP(A129,'DOE - FIPStoPayeeCodeConvTable'!$A$3:$A$213,'DOE - FIPStoPayeeCodeConvTable'!$E$3:$E$213) -> 0.3513 | X129: 0.439125 | Y129: 0 | Z129: 0
A130: 790 | B130: =LOOKUP(A130,'DOE - FIPStoPayeeCodeConvTable'!$A$3:$A$213,'DOE - FIPStoPayeeCodeConvTable'!$B$3:$B$213) -> Staunton City | I130: 0 | J130: 0 | K130: 0 | L130: 0 | M130: 0 | N130: 0 | S130: 0 | U130: 0 | V130: 0 | W130: =LOOKUP(A130,'DOE - FIPStoPayeeCodeConvTable'!$A$3:$A$213,'DOE - FIPStoPayeeCodeConvTable'!$E$3:$E$213) -> 0.2699 | X130: 0.337375 | Y130: 0 | Z130: 0
A131: 800 | B131: =LOOKUP(A131,'DOE - FIPStoPayeeCodeConvTable'!$A$3:$A$213,'DOE - FIPStoPayeeCodeConvTable'!$B$3:$B$213) -> Suffolk City | I131: 0 | J131: 0 | K131: 13744.68 | L131: 3070.62 | M131: 2485.74 | N131: 4532.82 | S131: 23833.86 | U131: 19267.29 | V131: 4566.57 | W131: =LOOKUP(A131,'DOE - FIPStoPayeeCodeConvTable'!$A$3:$A$213,'DOE - FIPStoPayeeCodeConvTable'!$E$3:$E$213) -> 0.2432 | X131: 0.304 | Y131: 1388.24 | Z131: 3178.33
A132: 810 | B132: =LOOKUP(A132,'DOE - FIPStoPayeeCodeConvTable'!$A$3:$A$213,'DOE - FIPStoPayeeCodeConvTable'!$B$3:$B$213) -> Virginia Beach City | I132: 26364.5 | J132: 6296 | K132: 18101 | L132: 10231 | M132: 0 | N132: 0 | S132: 60992.5 | U132: 49306.34 | V132: 11686.16 | W132: =LOOKUP(A132,'DOE - FIPStoPayeeCodeConvTable'!$A$3:$A$213,'DOE - FIPStoPayeeCodeConvTable'!$E$3:$E$213) -> 0.3569 | X132: 0.446125 | Y132: 5213.49 | Z132: 6472.67
A133: 820 | B133: =LOOKUP(A133,'DOE - FIPStoPayeeCodeConvTable'!$A$3:$A$213,'DOE - FIPStoPayeeCodeConvTable'!$B$3:$B$213) -> Waynesboro City | I133: 0 | J133: 4722 | K133: 0 | L133: 0 | M133: 0 | N133: 0 | S133: =SUM(C133:R133) -> 4722 | U133: 3817.26 | V133: =SUM(S133)-SUM(U133) -> 904.74 | W133: =LOOKUP(A133,'DOE - FIPStoPayeeCodeConvTable'!$A$3:$A$213,'DOE - FIPStoPayeeCodeConvTable'!$E$3:$E$213) -> 0.3843 | X133: 0.480375 | Y133: 434.61 | Z133: 470.13
A134: 830 | B134: =LOOKUP(A134,'DOE - FIPStoPayeeCodeConvTable'!$A$3:$A$213,'DOE - FIPStoPayeeCodeConvTable'!$B$3:$B$213) -> Williamsburg City | I134: 0 | J134: 0 | K134: 0 | L134: 0 | M134: 0 | N134: 0 | S134: 0 | U134: 0 | V134: 0 | W134: =LOOKUP(A134,'DOE - FIPStoPayeeCodeConvTable'!$A$3:$A$213,'DOE - FIPStoPayeeCodeConvTable'!$E$3:$E$213) -> 0.4553 | X134: =$X$1*W134 -> 0.569125 | Y134: =ROUND(X134*V134,2) -> 0 | Z134: =SUM(V134)-SUM(Y134) -> 0
A135: 840 | B135: =LOOKUP(A135,'DOE - FIPStoPayeeCodeConvTable'!$A$3:$A$213,'DOE - FIPStoPayeeCodeConvTable'!$B$3:$B$213) -> Winchester City | I135: 0 | J135: 0 | K135: 0 | L135: 0 | M135: 0 | N135: 0 | S135: 0 | U135: 0 | V135: 0 | W135: =LOOKUP(A135,'DOE - FIPStoPayeeCodeConvTable'!$A$3:$A$213,'DOE - FIPStoPayeeCodeConvTable'!$E$3:$E$213) -> 0.4587 | X135: 0.573375 | Y135: 0 | Z135: 0

Sheet Regular Covid 19 Rate Adj (hidden)
A1: FY | B1: ='DOE - FIPStoPayeeCodeConvTable'!G1 -> 2020 | C1: MEDICAID ADJUSTMENTS-- Regular Covid Rate Adj | O1: ="Extended to be paided in this SFY = " & B1 -> Extended to be paided in this SFY = 2020 | T1: xx | U1: 0.562 | V1: 0.438 | W1: (POOL) | X1: 1.25 | AA1: =1-0.438 -> 0.562
U2: FEDERAL | V2: STATE/ | W2: (RATE) | X2: Factor | AQ2: =+AQ3-AQ5 -> 0 | AR2: =+AR3-AR5 -> 0 | AS2: 0 | AT2: 0 | AU2: 0 | AV2: 0
A3: FIPS | S3: Grand | U3: MEDICAID | V3: LOCAL | W3: LOCAL | Y3: LOCAL | Z3: STATE | AD3: Regular | AJ3: TFC | AQ3: =+AD5+AJ5 -> 5393434.88 | AR3: =+AE5+AK5 -> 4324480.96 | AS3: 6833304.38 | AT3: 6118750.47 | AU3: 6802406.88 | AV3: 4879031.45
A4: CODE | B4: LOCALITY | C4: =TEXT("7/1/" & $B$1-1,"mmm-yyyy") -> Jul-2019 | D4: =TEXT("8/1/" & $B$1-1,"mmm-yyyy") -> Aug-2019 | E4: =TEXT("9/1/" & $B$1-1,"mmm-yyyy") -> Sep-2019 | F4: =TEXT("10/1/" & $B$1-1,"mmm-yyyy") -> Oct-2019 | G4: =TEXT("11/1/" & $B$1-1,"mmm-yyyy") -> Nov-2019 | H4: =TEXT("12/1/" & $B$1-1,"mmm-yyyy") -> Dec-2019 | I4: =TEXT("1/1/" & $B$1,"mmm-yyyy") -> Jan-2020 | J4: =TEXT("2/1/" & $B$1,"mmm-yyyy") -> Feb-2020 | K4: =TEXT("3/1/" & $B$1,"mmm-yyyy") -> Mar-2020 | L4: =TEXT("4/1/" & $B$1,"mmm-yyyy") -> Apr-2020 | M4: =TEXT("5/1/" & $B$1,"mmm-yyyy") -> May-2020 | N4: =TEXT("6/1/" & $B$1,"mmm-yyyy") -> Jun-2020 | O4: =TEXT("7/1/" & $B$1,"mmm-yyyy") -> Jul-2020 | P4: =TEXT("8/1/" & $B$1,"mmm-yyyy") -> Aug-2020 | Q4: =TEXT("9/1/" & $B$1,"mmm-yyyy") -> Sep-2020 | R4: =TEXT("10/1/" & $B$1,"mmm-yyyy") -> Oct-2020 | S4: Total | U4: RATE/Share | V4: SHARE | W4: MATCH Rate | Y4: MATCH | Z4: SHARE | AD4: =TEXT("1/1/" & $B$1,"mmm-yyyy") -> Jan-2020 | AE4: =TEXT("2/1/" & $B$1,"mmm-yyyy") -> Feb-2020 | AF4: =TEXT("3/1/" & $B$1,"mmm-yyyy") -> Mar-2020 | AG4: =TEXT("4/1/" & $B$1,"mmm-yyyy") -> Apr-2020 | AH4: =TEXT("5/1/" & $B$1,"mmm-yyyy") -> May-2020 | AI4: =TEXT("6/1/" & $B$1,"mmm-yyyy") -> Jun-2020 | AJ4: =TEXT("1/1/" & $B$1,"mmm-yyyy") -> Jan-2020 | AK4: =TEXT("2/1/" & $B$1,"mmm-yyyy") -> Feb-2020 | AL4: =TEXT("3/1/" & $B$1,"mmm-yyyy") -> Mar-2020 | AM4: =TEXT("4/1/" & $B$1,"mmm-yyyy") -> Apr-2020 | AN4: =TEXT("5/1/" & $B$1,"mmm-yyyy") -> May-2020 | AO4: =TEXT("6/1/" & $B$1,"mmm-yyyy") -> Jun-2020 | AQ4: =TEXT("1/1/" & $B$1,"mmm-yyyy") -> Jan-2020 | AR4: =TEXT("2/1/" & $B$1,"mmm-yyyy") -> Feb-2020 | AS4: =TEXT("3/1/" & $B$1,"mmm-yyyy") -> Mar-2020 | AT4: =TEXT("4/1/" & $B$1,"mmm-yyyy") -> Apr-2020 | AU4: =TEXT("5/1/" & $B$1,"mmm-yyyy") -> May-2020 | AV4: =TEXT("6/1/" & $B$1,"mmm-yyyy") -> Jun-2020
A5: Totals | C5: =SUM(C6:C1200) -> 0 | D5: 0 | E5: 0 | F5: 0 | G5: 0 | H5: 0 | I5: 5393434.88 | J5: 4324480.96 | K5: 6833304.38 | L5: 6118750.47 | M5: 6802406.88 | N5: 4879031.45 | O5: 0 | P5: 0 | Q5: 0 | R5: 0 | S5: =SUM(C5:R5) -> 34351409.02 | T5: = | U5: =SUM(U6:U399) -> 19305491.84 | V5: =SUM(V6:V399) -> 15045917.18 | W5: = | Y5: =SUM(Y6:Y399) -> 6400951.14 | Z5: =SUM(Z6:Z399) -> 8644966.04 | AD5: =SUM(AD6:AD1201) -> 5393434.88 | AE5: 4324480.96 | AF5: =SUM(AF6:AF1200) -> 6833304.38 | AG5: =SUM(AG6:AG1200) -> 6118750.47 | AH5: =SUM(AH6:AH1200) -> 6802406.88 | AI5: =SUM(AI6:AI1200) -> 4879031.45 | AJ5: =SUM(AJ6:AJ1201) -> 0 | AK5: =SUM(AK6:AK1200) -> 0 | AL5: =SUM(AL6:AL1200) -> 0 | AM5: =SUM(AM6:AM1200) -> 0 | AN5: =SUM(AN6:AN1200) -> 0 | AO5: =SUM(AO6:AO1200) -> 0 | AQ5: 5393434.88 | AR5: =SUM(AR6:AR1200) -> 4324480.96 | AS5: =SUM(AS6:AS1200) -> 6833304.38 | AT5: =SUM(AT6:AT1200) -> 6118750.47 | AU5: =SUM(AU6:AU1200) -> 6802406.88 | AV5: =SUM(AV6:AV1200) -> 4879031.45
A6: 1 | B6: =LOOKUP(A6,'DOE - FIPStoPayeeCodeConvTable'!$A$3:$A$213,'DOE - FIPStoPayeeCodeConvTable'!$B$3:$B$213) -> Accomack Co | I6: 0 | J6: 0 | K6: 0 | L6: 0 | M6: 0 | N6: 0 | S6: 0 | U6: =ROUND($U$1*S6,2) -> 0 | V6: =SUM(S6)-SUM(U6) -> 0 | W6: =LOOKUP(A6,'DOE - FIPStoPayeeCodeConvTable'!$A$3:$A$213,'DOE - FIPStoPayeeCodeConvTable'!$E$3:$E$213) -> 0.2332 | X6: =$X$1*W6 -> 0.2915 | Y6: =ROUND(X6*V6,2) -> 0 | Z6: =SUM(V6)-SUM(Y6) -> 0 | AD6: 0 | AE6: 0 | AF6: 0 | AG6: 0 | AH6: 0 | AI6: 0 | AQ6: =+AD6+AJ6 -> 0 | AR6: =+AE6+AK6 -> 0 | AS6: 0 | AT6: 0 | AU6: 0 | AV6: 0
A7: 3 | B7: =LOOKUP(A7,'DOE - FIPStoPayeeCodeConvTable'!$A$3:$A$213,'DOE - FIPStoPayeeCodeConvTable'!$B$3:$B$213) -> Albemarle Co | I7: 52803.13 | J7: 106249.05 | K7: 144494.56 | L7: 57576.78 | M7: 59467.83 | N7: 101887.89 | S7: 522479.24 | U7: 293633.33 | V7: 228845.91 | W7: =LOOKUP(A7,'DOE - FIPStoPayeeCodeConvTable'!$A$3:$A$213,'DOE - FIPStoPayeeCodeConvTable'!$E$3:$E$213) -> 0.4474 | X7: =$X$1*W7 -> 0.55925 | Y7: =ROUND(X7*V7,2) -> 127982.08 | Z7: =SUM(V7)-SUM(Y7) -> 100863.83 | AD7: 52803.13 | AE7: 106249.05 | AF7: 144494.56 | AG7: 57576.78 | AH7: 59467.83 | AI7: 101887.89 | AQ7: =+AD7+AJ7 -> 52803.13 | AR7: =+AE7+AK7 -> 106249.05 | AS7: =+AF7+AL7 -> 144494.56 | AT7: =+AG7+AM7 -> 57576.78 | AU7: =+AH7+AN7 -> 59467.83 | AV7: =+AI7+AO7 -> 101887.89
A8: 5 | B8: =LOOKUP(A8,'DOE - FIPStoPayeeCodeConvTable'!$A$3:$A$213,'DOE - FIPStoPayeeCodeConvTable'!$B$3:$B$213) -> Alleghany Co | I8: 36376.01 | J8: 13598.46 | K8: 36237.78 | L8: 26147.72 | M8: 58284.47 | N8: 18468.71 | S8: 189113.15 | U8: 106281.59 | V8: 82831.56 | W8: =LOOKUP(A8,'DOE - FIPStoPayeeCodeConvTable'!$A$3:$A$213,'DOE - FIPStoPayeeCodeConvTable'!$E$3:$E$213) -> 0.1924 | X8: 0.2405 | Y8: 19920.99 | Z8: 62910.57 | AD8: 36376.01 | AE8: 13598.46 | AF8: 36237.78 | AG8: 26147.72 | AH8: 58284.47 | AI8: 18468.71 | AQ8: 36376.01 | AR8: 13598.46 | AS8: 36237.78 | AT8: 26147.72 | AU8: 58284.47 | AV8: 18468.71
A9: 7 | B9: =LOOKUP(A9,'DOE - FIPStoPayeeCodeConvTable'!$A$3:$A$213,'DOE - FIPStoPayeeCodeConvTable'!$B$3:$B$213) -> Amelia Co | I9: 13864.61 | J9: 21059.82 | K9: 27355.82 | L9: 35808.5 | M9: 27781.54 | N9: 32961.89 | S9: 158832.18 | U9: 89263.69 | V9: 69568.49 | W9: =LOOKUP(A9,'DOE - FIPStoPayeeCodeConvTable'!$A$3:$A$213,'DOE - FIPStoPayeeCodeConvTable'!$E$3:$E$213) -> 0.3268 | X9: 0.4085 | Y9: 28418.73 | Z9: 41149.76 | AD9: 13864.61 | AE9: 21059.82 | AF9: 27355.82 | AG9: 35808.5 | AH9: 27781.54 | AI9: 32961.89 | AQ9: 13864.61 | AR9: 21059.82 | AS9: 27355.82 | AT9: 35808.5 | AU9: 27781.54 | AV9: 32961.89
A10: 9 | B10: =LOOKUP(A10,'DOE - FIPStoPayeeCodeConvTable'!$A$3:$A$213,'DOE - FIPStoPayeeCodeConvTable'!$B$3:$B$213) -> Amherst Co | I10: 44263.09 | J10: 32230.09 | K10: 26232.58 | L10: 42104.5 | M10: 62388.58 | N10: 77521.41 | S10: 284740.25 | U10: 160024.02 | V10: 124716.23 | W10: =LOOKUP(A10,'DOE - FIPStoPayeeCodeConvTable'!$A$3:$A$213,'DOE - FIPStoPayeeCodeConvTable'!$E$3:$E$213) -> 0.2722 | X10: 0.34025 | Y10: 42434.7 | Z10: 82281.53 | AD10: 44263.09 | AE10: 32230.09 | AF10: 26232.58 | AG10: 42104.5 | AH10: 62388.58 | AI10: 77521.41 | AQ10: 44263.09 | AR10: 32230.09 | AS10: 26232.58 | AT10: 42104.5 | AU10: 62388.58 | AV10: 77521.41
A11: 11 | B11: =LOOKUP(A11,'DOE - FIPStoPayeeCodeConvTable'!$A$3:$A$213,'DOE - FIPStoPayeeCodeConvTable'!$B$3:$B$213) -> Appomattox Co | I11: 88919.68 | J11: 25577.5 | K11: 83885.41 | L11: 86570 | M11: 75787.7 | N11: 59216.09 | S11: 419956.38 | U11: 236015.49 | V11: 183940.89 | W11: =LOOKUP(A11,'DOE - FIPStoPayeeCodeConvTable'!$A$3:$A$213,'DOE - FIPStoPayeeCodeConvTable'!$E$3:$E$213) -> 0.2639 | X11: 0.329875 | Y11: 60677.5 | Z11: 123263.39 | AD11: 88919.68 | AE11: 25577.5 | AF11: 83885.41 | AG11: 86570 | AH11: 75787.7 | AI11: 59216.09 | AQ11: 88919.68 | AR11: 25577.5 | AS11: 83885.41 | AT11: 86570 | AU11: 75787.7 | AV11: 59216.09
A12: 13 | B12: =LOOKUP(A12,'DOE - FIPStoPayeeCodeConvTable'!$A$3:$A$213,'DOE - FIPStoPayeeCodeConvTable'!$B$3:$B$213) -> Arlington Co | I12: 9693.48 | J12: 97459.06 | K12: 38498.56 | L12: 17314 | M12: 26650.6 | N12: 15843.26 | S12: 205458.96 | U12: 115467.94 | V12: 89991.02 | W12: =LOOKUP(A12,'DOE - FIPStoPayeeCodeConvTable'!$A$3:$A$213,'DOE - FIPStoPayeeCodeConvTable'!$E$3:$E$213) -> 0.4602 | X12: 0.57525 | Y12: 51767.33 | Z12: 38223.69 | AD12: 9693.48 | AE12: 97459.06 | AF12: 38498.56 | AG12: 17314 | AH12: 26650.6 | AI12: 15843.26 | AQ12: 9693.48 | AR12: 97459.06 | AS12: 38498.56 | AT12: 17314 | AU12: 26650.6 | AV12: 15843.26
A13: 15 | B13: =LOOKUP(A13,'DOE - FIPStoPayeeCodeConvTable'!$A$3:$A$213,'DOE - FIPStoPayeeCodeConvTable'!$B$3:$B$213) -> Augusta Co | I13: 42745.36 | J13: 28474.24 | K13: 78050.17 | L13: 61075.47 | M13: 104456.32 | N13: 44076.95 | S13: 358878.51 | U13: 201689.72 | V13: 157188.79 | W13: =LOOKUP(A13,'DOE - FIPStoPayeeCodeConvTable'!$A$3:$A$213,'DOE - FIPStoPayeeCodeConvTable'!$E$3:$E$213) -> 0.3302 | X13: 0.41275 | Y13: 64879.67 | Z13: 92309.12 | AD13: 42745.36 | AE13: 28474.24 | AF13: 78050.17 | AG13: 61075.47 | AH13: 104456.32 | AI13: 44076.95 | AQ13: 42745.36 | AR13: 28474.24 | AS13: 78050.17 | AT13: 61075.47 | AU13: 104456.32 | AV13: 44076.95
A14: 17 | B14: =LOOKUP(A14,'DOE - FIPStoPayeeCodeConvTable'!$A$3:$A$213,'DOE - FIPStoPayeeCodeConvTable'!$B$3:$B$213) -> Bath Co | I14: 0 | J14: 0 | K14: 3801.72 | L14: 0 | M14: 4386.6 | N14: 4532.82 | S14: 12721.14 | U14: 7149.28 | V14: 5571.86 | W14: =LOOKUP(A14,'DOE - FIPStoPayeeCodeConvTable'!$A$3:$A$213,'DOE - FIPStoPayeeCodeConvTable'!$E$3:$E$213) -> 0.4278 | X14: 0.53475 | Y14: 2979.55 | Z14: 2592.31 | AD14: 0 | AE14: 0 | AF14: 3801.72 | AG14: 0 | AH14: 4386.6 | AI14: 4532.82 | AQ14: 0 | AR14: 0 | AS14: 3801.72 | AT14: 0 | AU14: 4386.6 | AV14: 4532.82
A15: 19 | B15: =LOOKUP(A15,'DOE - FIPStoPayeeCodeConvTable'!$A$3:$A$213,'DOE - FIPStoPayeeCodeConvTable'!$B$3:$B$213) -> Bedford Co | I15: 181173.24 | J15: 200387.69 | K15: 248733.79 | L15: 200895.54 | M15: 181215.82 | N15: 145402.85 | S15: 1157808.93 | U15: 650688.62 | V15: 507120.31 | W15: =LOOKUP(A15,'DOE - FIPStoPayeeCodeConvTable'!$A$3:$A$213,'DOE - FIPStoPayeeCodeConvTable'!$E$3:$E$213) -> 0.31112 | X15: 0.3889 | Y15: 197219.09 | Z15: 309901.22 | AD15: 181173.24 | AE15: 200387.69 | AF15: 248733.79 | AG15: 200895.54 | AH15: 181215.82 | AI15: 145402.85 | AQ15: 181173.24 | AR15: 200387.69 | AS15: 248733.79 | AT15: 200895.54 | AU15: 181215.82 | AV15: 145402.85
A16: 21 | B16: =LOOKUP(A16,'DOE - FIPStoPayeeCodeConvTable'!$A$3:$A$213,'DOE - FIPStoPayeeCodeConvTable'!$B$3:$B$213) -> Bland Co | I16: 0 | J16: 0 | K16: 0 | L16: 0 | M16: 0 | N16: 0 | S16: 0 | U16: 0 | V16: 0 | W16: =LOOKUP(A16,'DOE - FIPStoPayeeCodeConvTable'!$A$3:$A$213,'DOE - FIPStoPayeeCodeConvTable'!$E$3:$E$213) -> 0.2109 | X16: 0.263625 | Y16: 0 | Z16: 0 | AD16: 0 | AE16: 0 | AF16: 0 | AG16: 0 | AH16: 0 | AI16: 0 | AQ16: 0 | AR16: 0 | AS16: 0 | AT16: 0 | AU16: 0 | AV16: 0
A17: 23 | B17: =LOOKUP(A17,'DOE - FIPStoPayeeCodeConvTable'!$A$3:$A$213,'DOE - FIPStoPayeeCodeConvTable'!$B$3:$B$213) -> Botetourt Co | I17: 18055.55 | J17: 7319 | K17: 22844 | L17: 19410 | M17: 8163 | N17: 32131 | S17: 107922.55 | U17: 60652.47 | V17: 47270.08 | W17: =LOOKUP(A17,'DOE - FIPStoPayeeCodeConvTable'!$A$3:$A$213,'DOE - FIPStoPayeeCodeConvTable'!$E$3:$E$213) -> 0.3602 | X17: 0.45025 | Y17: 21283.35 | Z17: 25986.73 | AD17: 18055.55 | AE17: 7319 | AF17: 22844 | AG17: 19410 | AH17: 8163 | AI17: 32131 | AQ17: 18055.55 | AR17: 7319 | AS17: 22844 | AT17: 19410 | AU17: 8163 | AV17: 32131
A18: 25 | B18: =LOOKUP(A18,'DOE - FIPStoPayeeCodeConvTable'!$A$3:$A$213,'DOE - FIPStoPayeeCodeConvTable'!$B$3:$B$213) -> Brunswick Co | I18: 54696.5 | J18: 11018 | K18: 11411.5 | L18: 0 | M18: 4386.6 | N18: 5848.8 | S18: 87361.4 | U18: 49097.11 | V18: 38264.29 | W18: =LOOKUP(A18,'DOE - FIPStoPayeeCodeConvTable'!$A$3:$A$213,'DOE - FIPStoPayeeCodeConvTable'!$E$3:$E$213) -> 0.2439 | X18: 0.304875 | Y18: 11665.83 | Z18: 26598.46 | AD18: 54696.5 | AE18: 11018 | AF18: 11411.5 | AG18: 0 | AH18: 4386.6 | AI18: 5848.8 | AQ18: 54696.5 | AR18: 11018 | AS18: 11411.5 | AT18: 0 | AU18: 4386.6 | AV18: 5848.8
A19: 27 | B19: =LOOKUP(A19,'DOE - FIPStoPayeeCodeConvTable'!$A$3:$A$213,'DOE - FIPStoPayeeCodeConvTable'!$B$3:$B$213) -> Buchanan Co | I19: 42536.65 | J19: -30023.74 | K19: 28987.75 | L19: 22745.07 | M19: 32073.75 | N19: 4560.97 | S19: 100880.45 | U19: 56694.81 | V19: 44185.64 | W19: =LOOKUP(A19,'DOE - FIPStoPayeeCodeConvTable'!$A$3:$A$213,'DOE - FIPStoPayeeCodeConvTable'!$E$3:$E$213) -> 0.3156 | X19: 0.3945 | Y19: 17431.23 | Z19: 26754.41 | AD19: 42536.65 | AE19: -30023.74 | AF19: 28987.75 | AG19: 22745.07 | AH19: 32073.75 | AI19: 4560.97 | AQ19: 42536.65 | AR19: -30023.74 | AS19: 28987.75 | AT19: 22745.07 | AU19: 32073.75 | AV19: 4560.97
A20: 29 | B20: =LOOKUP(A20,'DOE - FIPStoPayeeCodeConvTable'!$A$3:$A$213,'DOE - FIPStoPayeeCodeConvTable'!$B$3:$B$213) -> Buckingham Co | I20: 0 | J20: 0 | K20: 0 | L20: 0 | M20: 0 | N20: 0 | S20: 0 | U20: 0 | V20: 0 | W20: =LOOKUP(A20,'DOE - FIPStoPayeeCodeConvTable'!$A$3:$A$213,'DOE - FIPStoPayeeCodeConvTable'!$E$3:$E$213) -> 0.2023 | X20: 0.252875 | Y20: 0 | Z20: 0 | AD20: 0 | AE20: 0 | AF20: 0 | AG20: 0 | AH20: 0 | AI20: 0 | AQ20: 0 | AR20: 0 | AS20: 0 | AT20: 0 | AU20: 0 | AV20: 0
A21: 31 | B21: =LOOKUP(A21,'DOE - FIPStoPayeeCodeConvTable'!$A$3:$A$213,'DOE - FIPStoPayeeCodeConvTable'!$B$3:$B$213) -> Campbell Co | I21: 84597.97 | J21: 90263.41 | K21: 121663.84 | L21: 82776.98 | M21: 97525.76 | N21: 97331.4 | S21: 574159.36 | U21: 322677.56 | V21: 251481.8 | W21: =LOOKUP(A21,'DOE - FIPStoPayeeCodeConvTable'!$A$3:$A$213,'DOE - FIPStoPayeeCodeConvTable'!$E$3:$E$213) -> 0.3107 | X21: 0.388375 | Y21: 97669.24 | Z21: 153812.56 | AD21: 84597.97 | AE21: 90263.41 | AF21: 121663.84 | AG21: 82776.98 | AH21: 97525.76 | AI21: 97331.4 | AQ21: 84597.97 | AR21: 90263.41 | AS21: 121663.84 | AT21: 82776.98 | AU21: 97525.76 | AV21: 97331.4
A22: 33 | B22: =LOOKUP(A22,'DOE - FIPStoPayeeCodeConvTable'!$A$3:$A$213,'DOE - FIPStoPayeeCodeConvTable'!$B$3:$B$213) -> Caroline Co | I22: 19281.5 | J22: 24003.5 | K22: 21642.5 | L22: 24003.5 | M22: 14953 | N22: 11805 | S22: 115689 | U22: 65017.22 | V22: 50671.78 | W22: =LOOKUP(A22,'DOE - FIPStoPayeeCodeConvTable'!$A$3:$A$213,'DOE - FIPStoPayeeCodeConvTable'!$E$3:$E$213) -> 0.3308 | X22: 0.4135 | Y22: 20952.78 | Z22: 29719 | AD22: 19281.5 | AE22: 24003.5 | AF22: 21642.5 | AG22: 24003.5 | AH22: 14953 | AI22: 11805 | AQ22: 19281.5 | AR22: 24003.5 | AS22: 21642.5 | AT22: 24003.5 | AU22: 14953 | AV22: 11805
A23: 35 | B23: =LOOKUP(A23,'DOE - FIPStoPayeeCodeConvTable'!$A$3:$A$213,'DOE - FIPStoPayeeCodeConvTable'!$B$3:$B$213) -> Carroll Co | I23: 109029.62 | J23: 88528.96 | K23: 85330.23 | L23: 126267.07 | M23: 180249.86 | N23: 63590.04 | S23: 652995.78 | U23: 366983.63 | V23: 286012.15 | W23: =LOOKUP(A23,'DOE - FIPStoPayeeCodeConvTable'!$A$3:$A$213,'DOE - FIPStoPayeeCodeConvTable'!$E$3:$E$213) -> 0.291 | X23: 0.36375 | Y23: 104036.92 | Z23: 181975.23 | AD23: 109029.62 | AE23: 88528.96 | AF23: 85330.23 | AG23: 126267.07 | AH23: 180249.86 | AI23: 63590.04 | AQ23: 109029.62 | AR23: 88528.96 | AS23: 85330.23 | AT23: 126267.07 | AU23: 180249.86 | AV23: 63590.04
A24: 36 | B24: =LOOKUP(A24,'DOE - FIPStoPayeeCodeConvTable'!$A$3:$A$213,'DOE - FIPStoPayeeCodeConvTable'!$B$3:$B$213) -> Charles City Co | I24: 0 | J24: 0 | K24: 0 | L24: 11805 | M24: 11805 | N24: 11805 | S24: 35415 | U24: 19903.23 | V24: 15511.77 | W24: =LOOKUP(A24,'DOE - FIPStoPayeeCodeConvTable'!$A$3:$A$213,'DOE - FIPStoPayeeCodeConvTable'!$E$3:$E$213) -> 0.3131 | X24: 0.391375 | Y24: 6070.92 | Z24: 9440.85 | AD24: 0 | AE24: 0 | AF24: 0 | AG24: 11805 | AH24: 11805 | AI24: 11805 | AQ24: 0 | AR24: 0 | AS24: 0 | AT24: 11805 | AU24: 11805 | AV24: 11805
A25: 37 | B25: =LOOKUP(A25,'DOE - FIPStoPayeeCodeConvTable'!$A$3:$A$213,'DOE - FIPStoPayeeCodeConvTable'!$B$3:$B$213) -> Charlotte Co | I25: 0 | J25: 0 | K25: 0 | L25: 0 | M25: 0 | N25: 0 | S25: 0 | U25: 0 | V25: 0 | W25: =LOOKUP(A25,'DOE - FIPStoPayeeCodeConvTable'!$A$3:$A$213,'DOE - FIPStoPayeeCodeConvTable'!$E$3:$E$213) -> 0.2204 | X25: 0.2755 | Y25: 0 | Z25: 0 | AD25: 0 | AE25: 0 | AF25: 0 | AG25: 0 | AH25: 0 | AI25: 0 | AQ25: 0 | AR25: 0 | AS25: 0 | AT25: 0 | AU25: 0 | AV25: 0
A26: 41 | B26: =LOOKUP(A26,'DOE - FIPStoPayeeCodeConvTable'!$A$3:$A$213,'DOE - FIPStoPayeeCodeConvTable'!$B$3:$B$213) -> Chesterfield Co | I26: 137351.25 | J26: 159642.96 | K26: 184122.4 | L26: 212795.08 | M26: 192184.41 | N26: 217805.55 | S26: 1103901.65 | U26: 620392.73 | V26: 483508.92 | W26: =LOOKUP(A26,'DOE - FIPStoPayeeCodeConvTable'!$A$3:$A$213,'DOE - FIPStoPayeeCodeConvTable'!$E$3:$E$213) -> 0.3853 | X26: 0.481625 | Y26: 232869.98 | Z26: 250638.94 | AD26: 137351.25 | AE26: 159642.96 | AF26: 184122.4 | AG26: 212795.08 | AH26: 192184.41 | AI26: 217805.55 | AQ26: 137351.25 | AR26: 159642.96 | AS26: 184122.4 | AT26: 212795.08 | AU26: 192184.41 | AV26: 217805.55
A27: 43 | B27: =LOOKUP(A27,'DOE - FIPStoPayeeCodeConvTable'!$A$3:$A$213,'DOE - FIPStoPayeeCodeConvTable'!$B$3:$B$213) -> Clarke Co | I27: 4386.6 | J27: 2778.18 | K27: 0 | L27: 0 | M27: 0 | N27: 292.44 | S27: 7457.22 | U27: 4190.96 | V27: 3266.26 | W27: =LOOKUP(A27,'DOE - FIPStoPayeeCodeConvTable'!$A$3:$A$213,'DOE - FIPStoPayeeCodeConvTable'!$E$3:$E$213) -> 0.4797 | X27: 0.599625 | Y27: 1958.53 | Z27: 1307.73 | AD27: 4386.6 | AE27: 2778.18 | AF27: 0 | AG27: 0 | AH27: 0 | AI27: 292.44 | AQ27: 4386.6 | AR27: 2778.18 | AS27: 0 | AT27: 0 | AU27: 0 | AV27: 292.44
A28: 45 | B28: =LOOKUP(A28,'DOE - FIPStoPayeeCodeConvTable'!$A$3:$A$213,'DOE - FIPStoPayeeCodeConvTable'!$B$3:$B$213) -> Craig Co | I28: 3541.5 | J28: 0 | K28: 372 | L28: 11018 | M28: 11411.5 | N28: 45646 | S28: 71989 | U28: 40457.82 | V28: 31531.18 | W28: =LOOKUP(A28,'DOE - FIPStoPayeeCodeConvTable'!$A$3:$A$213,'DOE - FIPStoPayeeCodeConvTable'!$E$3:$E$213) -> 0.2901 | X28: 0.362625 | Y28: 11433.99 | Z28: 20097.19 | AD28: 3541.5 | AE28: 0 | AF28: 372 | AG28: 11018 | AH28: 11411.5 | AI28: 45646 | AQ28: 3541.5 | AR28: 0 | AS28: 372 | AT28: 11018 | AU28: 11411.5 | AV28: 45646
A29: 47 | B29: =LOOKUP(A29,'DOE - FIPStoPayeeCodeConvTable'!$A$3:$A$213,'DOE - FIPStoPayeeCodeConvTable'!$B$3:$B$213) -> Culpeper Co | I29: 50239.12 | J29: 48426.38 | K29: 72161.12 | L29: 46982.88 | M29: 114336.66 | N29: 57178.1 | S29: 389324.26 | U29: 218800.23 | V29: 170524.03 | W29: =LOOKUP(A29,'DOE - FIPStoPayeeCodeConvTable'!$A$3:$A$213,'DOE - FIPStoPayeeCodeConvTable'!$E$3:$E$213) -> 0.3767 | X29: 0.470875 | Y29: 80295.5 | Z29: 90228.53 | AD29: 50239.12 | AE29: 48426.38 | AF29: 72161.12 | AG29: 46982.88 | AH29: 114336.66 | AI29: 57178.1 | AQ29: 50239.12 | AR29: 48426.38 | AS29: 72161.12 | AT29: 46982.88 | AU29: 114336.66 | AV29: 57178.1
A30: 49 | B30: =LOOKUP(A30,'DOE - FIPStoPayeeCodeConvTable'!$A$3:$A$213,'DOE - FIPStoPayeeCodeConvTable'!$B$3:$B$213) -> Cumberland Co | I30: 0 | J30: 12198.5 | K30: 1574 | L30: 10231 | M30: 12198.5 | N30: 13267.2 | S30: 49469.2 | U30: 27801.69 | V30: 21667.51 | W30: =LOOKUP(A30,'DOE - FIPStoPayeeCodeConvTable'!$A$3:$A$213,'DOE - FIPStoPayeeCodeConvTable'!$E$3:$E$213) -> 0.304 | X30: 0.38 | Y30: 8233.65 | Z30: 13433.86 | AD30: 0 | AE30: 12198.5 | AF30: 1574 | AG30: 10231 | AH30: 12198.5 | AI30: 13267.2 | AQ30: 0 | AR30: 12198.5 | AS30: 1574 | AT30: 10231 | AU30: 12198.5 | AV30: 13267.2
A31: 51 | B31: =LOOKUP(A31,'DOE - FIPStoPayeeCodeConvTable'!$A$3:$A$213,'DOE - FIPStoPayeeCodeConvTable'!$B$3:$B$213) -> Dickenson Co | I31: 34628 | J31: 43285 | K31: 46039.5 | L31: 37776 | M31: 43678.5 | N31: 393.5 | S31: 205800.5 | U31: 115659.88 | V31: 90140.62 | W31: =LOOKUP(A31,'DOE - FIPStoPayeeCodeConvTable'!$A$3:$A$213,'DOE - FIPStoPayeeCodeConvTable'!$E$3:$E$213) -> 0.3042 | X31: 0.38025 | Y31: 34275.97 | Z31: 55864.65 | AD31: 34628 | AE31: 43285 | AF31: 46039.5 | AG31: 37776 | AH31: 43678.5 | AI31: 393.5 | AQ31: 34628 | AR31: 43285 | AS31: 46039.5 | AT31: 37776 | AU31: 43678.5 | AV31: 393.5
A32: 53 | B32: =LOOKUP(A32,'DOE - FIPStoPayeeCodeConvTable'!$A$3:$A$213,'DOE - FIPStoPayeeCodeConvTable'!$B$3:$B$213) -> Dinwiddie Co | I32: 69279.68 | J32: 30293.16 | K32: 66617.7 | L32: 27151.5 | M32: 59412.16 | N32: 45267.64 | S32: 298021.84 | U32: 167488.27 | V32: 130533.57 | W32: =LOOKUP(A32,'DOE - FIPStoPayeeCodeConvTable'!$A$3:$A$213,'DOE - FIPStoPayeeCodeConvTable'!$E$3:$E$213) -> 0.3358 | X32: 0.41975 | Y32: 54791.47 | Z32: 75742.1 | AD32: 69279.68 | AE32: 30293.16 | AF32: 66617.7 | AG32: 27151.5 | AH32: 59412.16 | AI32: 45267.64 | AQ32: 69279.68 | AR32: 30293.16 | AS32: 66617.7 | AT32: 27151.5 | AU32: 59412.16 | AV32: 45267.64
A33: 57 | B33: =LOOKUP(A33,'DOE - FIPStoPayeeCodeConvTable'!$A$3:$A$213,'DOE - FIPStoPayeeCodeConvTable'!$B$3:$B$213) -> Essex Co | I33: 3070.62 | J33: 3363.06 | K33: 877.32 | L33: 0 | M33: 13159.8 | N33: 7031.02 | S33: 27501.82 | U33: 15456.02 | V33: 12045.8 | W33: =LOOKUP(A33,'DOE - FIPStoPayeeCodeConvTable'!$A$3:$A$213,'DOE - FIPStoPayeeCodeConvTable'!$E$3:$E$213) -> 0.3853 | X33: 0.481625 | Y33: 5801.56 | Z33: 6244.24 | AD33: 3070.62 | AE33: 3363.06 | AF33: 877.32 | AG33: 0 | AH33: 13159.8 | AI33: 7031.02 | AQ33: 3070.62 | AR33: 3363.06 | AS33: 877.32 | AT33: 0 | AU33: 13159.8 | AV33: 7031.02
A34: 59 | B34: =LOOKUP(A34,'DOE - FIPStoPayeeCodeConvTable'!$A$3:$A$213,'DOE - FIPStoPayeeCodeConvTable'!$B$3:$B$213) -> Fairfax Co | I34: 182466.52 | J34: 62585.31 | K34: 189695.24 | L34: 120068.64 | M34: 146962 | N34: 95108.86 | S34: 796886.57 | U34: 447850.25 | V34: 349036.32 | W34: =LOOKUP(A34,'DOE - FIPStoPayeeCodeConvTable'!$A$3:$A$213,'DOE - FIPStoPayeeCodeConvTable'!$E$3:$E$213) -> 0.4611 | X34: 0.576375 | Y34: 201175.81 | Z34: 147860.51 | AD34: 182466.52 | AE34: 62585.31 | AF34: 189695.24 | AG34: 120068.64 | AH34: 146962 | AI34: 95108.86 | AQ34: 182466.52 | AR34: 62585.31 | AS34: 189695.24 | AT34: 120068.64 | AU34: 146962 | AV34: 95108.86
A35: 61 | B35: =LOOKUP(A35,'DOE - FIPStoPayeeCodeConvTable'!$A$3:$A$213,'DOE - FIPStoPayeeCodeConvTable'!$B$3:$B$213) -> Fauquier Co | I35: 41130.8 | J35: 41130.3 | K35: 70483.27 | L35: 57479.71 | M35: 52267.7 | N35: 49525.38 | S35: 312017.16 | U35: 175353.64 | V35: 136663.52 | W35: =LOOKUP(A35,'DOE - FIPStoPayeeCodeConvTable'!$A$3:$A$213,'DOE - FIPStoPayeeCodeConvTable'!$E$3:$E$213) -> 0.4584 | X35: 0.573 | Y35: 78308.2 | Z35: 58355.32 | AD35: 41130.8 | AE35: 41130.3 | AF35: 70483.27 | AG35: 57479.71 | AH35: 52267.7 | AI35: 49525.38 | AQ35: 41130.8 | AR35: 41130.3 | AS35: 70483.27 | AT35: 57479.71 | AU35: 52267.7 | AV35: 49525.38
A36: 63 | B36: =LOOKUP(A36,'DOE - FIPStoPayeeCodeConvTable'!$A$3:$A$213,'DOE - FIPStoPayeeCodeConvTable'!$B$3:$B$213) -> Floyd Co | I36: 24254.5 | J36: 19690.14 | K36: 27829.5 | L36: 12784.9 | M36: 34790.76 | N36: 25510.18 | S36: 144859.98 | U36: 81411.31 | V36: 63448.67 | W36: =LOOKUP(A36,'DOE - FIPStoPayeeCodeConvTable'!$A$3:$A$213,'DOE - FIPStoPayeeCodeConvTable'!$E$3:$E$213) -> 0.2324 | X36: 0.2905 | Y36: 18431.84 | Z36: 45016.83 | AD36: 24254.5 | AE36: 19690.14 | AF36: 27829.5 | AG36: 12784.9 | AH36: 34790.76 | AI36: 25510.18 | AQ36: 24254.5 | AR36: 19690.14 | AS36: 27829.5 | AT36: 12784.9 | AU36: 34790.76 | AV36: 25510.18
A37: 65 | B37: =LOOKUP(A37,'DOE - FIPStoPayeeCodeConvTable'!$A$3:$A$213,'DOE - FIPStoPayeeCodeConvTable'!$B$3:$B$213) -> Fluvanna Co | I37: 44385.11 | J37: 11741.45 | K37: 54447.75 | L37: 61449.83 | M37: 24322.94 | N37: 74371.5 | S37: =SUM(C37:R37) -> 270718.58 | U37: 152143.84 | V37: 118574.74 | W37: =LOOKUP(A37,'DOE - FIPStoPayeeCodeConvTable'!$A$3:$A$213,'DOE - FIPStoPayeeCodeConvTable'!$E$3:$E$213) -> 0.3811 | X37: 0.476375 | Y37: 56486.04 | Z37: 62088.7 | AD37: 44385.11 | AE37: 11741.45 | AF37: 54447.75 | AG37: 61449.83 | AH37: 24322.94 | AI37: 74371.5 | AQ37: 44385.11 | AR37: 11741.45 | AS37: 54447.75 | AT37: 61449.83 | AU37: 24322.94 | AV37: 74371.5
A38: 67 | B38: =LOOKUP(A38,'DOE - FIPStoPayeeCodeConvTable'!$A$3:$A$213,'DOE - FIPStoPayeeCodeConvTable'!$B$3:$B$213) -> Franklin Co | I38: 155361.43 | J38: 85443.46 | K38: 160408.9 | L38: 153312.44 | M38: 238072.68 | N38: 92593.36 | S38: 885192.27 | U38: 497478.06 | V38: 387714.21 | W38: =LOOKUP(A38,'DOE - FIPStoPayeeCodeConvTable'!$A$3:$A$213,'DOE - FIPStoPayeeCodeConvTable'!$E$3:$E$213) -> 0.283 | X38: 0.35375 | Y38: 137153.9 | Z38: 250560.31 | AD38: 155361.43 | AE38: 85443.46 | AF38: 160408.9 | AG38: 153312.44 | AH38: 238072.68 | AI38: 92593.36 | AQ38: 155361.43 | AR38: 85443.46 | AS38: 160408.9 | AT38: 153312.44 | AU38: 238072.68 | AV38: 92593.36
A39: 69 | B39: =LOOKUP(A39,'DOE - FIPStoPayeeCodeConvTable'!$A$3:$A$213,'DOE - FIPStoPayeeCodeConvTable'!$B$3:$B$213) -> Frederick Co | I39: 69923.21 | J39: 63977.2 | K39: 190184.58 | L39: 74379.36 | M39: 120368.6 | N39: 61666.08 | S39: 580499.03 | U39: 326240.45 | V39: 254258.58 | W39: =LOOKUP(A39,'DOE - FIPStoPayeeCodeConvTable'!$A$3:$A$213,'DOE - FIPStoPayeeCodeConvTable'!$E$3:$E$213) -> 0.4348 | X39: 0.5435 | Y39: 138189.54 | Z39: 116069.04 | AD39: 69923.21 | AE39: 63977.2 | AF39: 190184.58 | AG39: 74379.36 | AH39: 120368.6 | AI39: 61666.08 | AQ39: 69923.21 | AR39: 63977.2 | AS39: 190184.58 | AT39: 74379.36 | AU39: 120368.6 | AV39: 61666.08
A40: 71 | B40: =LOOKUP(A40,'DOE - FIPStoPayeeCodeConvTable'!$A$3:$A$213,'DOE - FIPStoPayeeCodeConvTable'!$B$3:$B$213) -> Giles Co | I40: 7302.3 | J40: 6087.86 | K40: 12565.74 | L40: 1263.47 | M40: 23647.84 | N40: 19204.49 | S40: 70071.7 | U40: 39380.3 | V40: 30691.4 | W40: =LOOKUP(A40,'DOE - FIPStoPayeeCodeConvTable'!$A$3:$A$213,'DOE - FIPStoPayeeCodeConvTable'!$E$3:$E$213) -> 0.2898 | X40: 0.36225 | Y40: 11117.96 | Z40: 19573.44 | AD40: 7302.3 | AE40: 6087.86 | AF40: 12565.74 | AG40: 1263.47 | AH40: 23647.84 | AI40: 19204.49 | AQ40: 7302.3 | AR40: 6087.86 | AS40: 12565.74 | AT40: 1263.47 | AU40: 23647.84 | AV40: 19204.49
A41: 73 | B41: =LOOKUP(A41,'DOE - FIPStoPayeeCodeConvTable'!$A$3:$A$213,'DOE - FIPStoPayeeCodeConvTable'!$B$3:$B$213) -> Gloucester Co | I41: 12198.5 | J41: 5902.5 | K41: 17707.5 | L41: 3148 | M41: 0 | N41: 0 | S41: 38956.5 | U41: 21893.55 | V41: 17062.95 | W41: =LOOKUP(A41,'DOE - FIPStoPayeeCodeConvTable'!$A$3:$A$213,'DOE - FIPStoPayeeCodeConvTable'!$E$3:$E$213) -> 0.3687 | X41: 0.460875 | Y41: 7863.89 | Z41: 9199.06 | AD41: 12198.5 | AE41: 5902.5 | AF41: 17707.5 | AG41: 3148 | AH41: 0 | AI41: 0 | AQ41: 12198.5 | AR41: 5902.5 | AS41: 17707.5 | AT41: 3148 | AU41: 0 | AV41: 0
A42: 75 | B42: =LOOKUP(A42,'DOE - FIPStoPayeeCodeConvTable'!$A$3:$A$213,'DOE - FIPStoPayeeCodeConvTable'!$B$3:$B$213) -> Goochland Co | I42: 14953 | J42: 0 | K42: 0 | L42: 0 | M42: 0 | N42: 0 | S42: 14953 | U42: 8403.59 | V42: 6549.41 | W42: =LOOKUP(A42,'DOE - FIPStoPayeeCodeConvTable'!$A$3:$A$213,'DOE - FIPStoPayeeCodeConvTable'!$E$3:$E$213) -> 0.4871 | X42: 0.608875 | Y42: 3987.77 | Z42: 2561.64 | AD42: 14953 | AE42: 0 | AF42: 0 | AG42: 0 | AH42: 0 | AI42: 0 | AQ42: 14953 | AR42: 0 | AS42: 0 | AT42: 0 | AU42: 0 | AV42: 0
A43: 77 | B43: =LOOKUP(A43,'DOE - FIPStoPayeeCodeConvTable'!$A$3:$A$213,'DOE - FIPStoPayeeCodeConvTable'!$B$3:$B$213) -> Grayson Co | I43: 4709.5 | J43: 14953 | K43: 20153.25 | L43: 35085.51 | M43: 30711.35 | N43: 8970.48 | S43: 114583.09 | U43: 64395.7 | V43: 50187.39 | W43: =LOOKUP(A43,'DOE - FIPStoPayeeCodeConvTable'!$A$3:$A$213,'DOE - FIPStoPayeeCodeConvTable'!$E$3:$E$213) -> 0.2109 | X43: 0.263625 | Y43: 13230.65 | Z43: 36956.74 | AD43: 4709.5 | AE43: 14953 | AF43: 20153.25 | AG43: 35085.51 | AH43: 30711.35 | AI43: 8970.48 | AQ43: 4709.5 | AR43: 14953 | AS43: 20153.25 | AT43: 35085.51 | AU43: 30711.35 | AV43: 8970.48
A44: 79 | B44: =LOOKUP(A44,'DOE - FIPStoPayeeCodeConvTable'!$A$3:$A$213,'DOE - FIPStoPayeeCodeConvTable'!$B$3:$B$213) -> Greene Co | I44: 19948.16 | J44: 12796.32 | K44: 113662.24 | L44: 11411.5 | M44: 31221.98 | N44: 10231 | S44: 199271.2 | U44: 111990.41 | V44: 87280.79 | W44: =LOOKUP(A44,'DOE - FIPStoPayeeCodeConvTable'!$A$3:$A$213,'DOE - FIPStoPayeeCodeConvTable'!$E$3:$E$213) -> 0.3471 | X44: 0.433875 | Y44: 37868.95 | Z44: 49411.84 | AD44: 19948.16 | AE44: 12796.32 | AF44: 113662.24 | AG44: 11411.5 | AH44: 31221.98 | AI44: 10231 | AQ44: 19948.16 | AR44: 12796.32 | AS44: 113662.24 | AT44: 11411.5 | AU44: 31221.98 | AV44: 10231
A45: 81 | B45: =LOOKUP(A45,'DOE - FIPStoPayeeCodeConvTable'!$A$3:$A$213,'DOE - FIPStoPayeeCodeConvTable'!$B$3:$B$213) -> Greensville Co | I45: 0 | J45: 9444 | K45: 14953 | L45: 17707.5 | M45: 0 | N45: 9504.3 | S45: 51608.8 | U45: 29004.15 | V45: 22604.65 | W45: =LOOKUP(A45,'DOE - FIPStoPayeeCodeConvTable'!$A$3:$A$213,'DOE - FIPStoPayeeCodeConvTable'!$E$3:$E$213) -> 0.2266 | X45: 0.28325 | Y45: 6402.77 | Z45: 16201.88 | AD45: 0 | AE45: 9444 | AF45: 14953 | AG45: 17707.5 | AH45: 0 | AI45: 9504.3 | AQ45: 0 | AR45: 9444 | AS45: 14953 | AT45: 17707.5 | AU45: 0 | AV45: 9504.3
A46: 83 | B46: =LOOKUP(A46,'DOE - FIPStoPayeeCodeConvTable'!$A$3:$A$213,'DOE - FIPStoPayeeCodeConvTable'!$B$3:$B$213) -> Halifax Co | I46: 60093.8 | J46: 45661.14 | K46: 85075.95 | L46: 68862.5 | M46: 59741.22 | N46: 19770.02 | S46: 339204.63 | U46: 190633 | V46: 148571.63 | W46: =LOOKUP(A46,'DOE - FIPStoPayeeCodeConvTable'!$A$3:$A$213,'DOE - FIPStoPayeeCodeConvTable'!$E$3:$E$213) -> 0.2335 | X46: 0.291875 | Y46: 43364.34 | Z46: 105207.29 | AD46: 60093.8 | AE46: 45661.14 | AF46: 85075.95 | AG46: 68862.5 | AH46: 59741.22 | AI46: 19770.02 | AQ46: 60093.8 | AR46: 45661.14 | AS46: 85075.95 | AT46: 68862.5 | AU46: 59741.22 | AV46: 19770.02
A47: 85 | B47: =LOOKUP(A47,'DOE - FIPStoPayeeCodeConvTable'!$A$3:$A$213,'DOE - FIPStoPayeeCodeConvTable'!$B$3:$B$213) -> Hanover Co | I47: 64356.68 | J47: 26253.54 | K47: 125904.84 | L47: 189462.3 | M47: 125249.2 | N47: 101583.3 | S47: 632809.86 | U47: 355639.14 | V47: 277170.72 | W47: =LOOKUP(A47,'DOE - FIPStoPayeeCodeConvTable'!$A$3:$A$213,'DOE - FIPStoPayeeCodeConvTable'!$E$3:$E$213) -> 0.4444 | X47: 0.5555 | Y47: 153968.33 | Z47: 123202.39 | AD47: 64356.68 | AE47: 26253.54 | AF47: 125904.84 | AG47: 189462.3 | AH47: 125249.2 | AI47: 101583.3 | AQ47: 64356.68 | AR47: 26253.54 | AS47: 125904.84 | AT47: 189462.3 | AU47: 125249.2 | AV47: 101583.3
A48: 87 | B48: =LOOKUP(A48,'DOE - FIPStoPayeeCodeConvTable'!$A$3:$A$213,'DOE - FIPStoPayeeCodeConvTable'!$B$3:$B$213) -> Henrico Co | I48: 228919.36 | J48: 150489.57 | K48: 375254.56 | L48: 415447.36 | M48: 280600.57 | N48: 346824.22 | S48: 1797535.64 | U48: 1010215.03 | V48: 787320.61 | W48: =LOOKUP(A48,'DOE - FIPStoPayeeCodeConvTable'!$A$3:$A$213,'DOE - FIPStoPayeeCodeConvTable'!$E$3:$E$213) -> 0.3755 | X48: 0.469375 | Y48: 369548.61 | Z48: 417772 | AD48: 228919.36 | AE48: 150489.57 | AF48: 375254.56 | AG48: 415447.36 | AH48: 280600.57 | AI48: 346824.22 | AQ48: 228919.36 | AR48: 150489.57 | AS48: 375254.56 | AT48: 415447.36 | AU48: 280600.57 | AV48: 346824.22
A49: 89 | B49: =LOOKUP(A49,'DOE - FIPStoPayeeCodeConvTable'!$A$3:$A$213,'DOE - FIPStoPayeeCodeConvTable'!$B$3:$B$213) -> Henry Co | I49: 49181.38 | J49: 45646 | K49: 76558.72 | L49: 50232.78 | M49: 48450.06 | N49: 50824.22 | S49: 320893.16 | U49: 180341.96 | V49: 140551.2 | W49: =LOOKUP(A49,'DOE - FIPStoPayeeCodeConvTable'!$A$3:$A$213,'DOE - FIPStoPayeeCodeConvTable'!$E$3:$E$213) -> 0.2786 | X49: 0.34825 | Y49: 48946.96 | Z49: 91604.24 | AD49: 49181.38 | AE49: 45646 | AF49: 76558.72 | AG49: 50232.78 | AH49: 48450.06 | AI49: 50824.22 | AQ49: 49181.38 | AR49: 45646 | AS49: 76558.72 | AT49: 50232.78 | AU49: 48450.06 | AV49: 50824.22
A50: 91 | B50: =LOOKUP(A50,'DOE - FIPStoPayeeCodeConvTable'!$A$3:$A$213,'DOE - FIPStoPayeeCodeConvTable'!$B$3:$B$213) -> Highland Co | I50: 0 | J50: 0 | K50: 0 | L50: 0 | M50: 0 | N50: 0 | S50: 0 | U50: 0 | V50: 0 | W50: =LOOKUP(A50,'DOE - FIPStoPayeeCodeConvTable'!$A$3:$A$213,'DOE - FIPStoPayeeCodeConvTable'!$E$3:$E$213) -> 0.3822 | X50: 0.47775 | Y50: 0 | Z50: 0 | AD50: 0 | AE50: 0 | AF50: 0 | AG50: 0 | AH50: 0 | AI50: 0 | AQ50: 0 | AR50: 0 | AS50: 0 | AT50: 0 | AU50: 0 | AV50: 0
A51: 93 | B51: =LOOKUP(A51,'DOE - FIPStoPayeeCodeConvTable'!$A$3:$A$213,'DOE - FIPStoPayeeCodeConvTable'!$B$3:$B$213) -> Isle Of Wight Co | I51: 0 | J51: 0 | K51: 0 | L51: 0 | M51: 0 | N51: 0 | S51: 0 | U51: 0 | V51: 0 | W51: =LOOKUP(A51,'DOE - FIPStoPayeeCodeConvTable'!$A$3:$A$213,'DOE - FIPStoPayeeCodeConvTable'!$E$3:$E$213) -> 0.3613 | X51: 0.451625 | Y51: 0 | Z51: 0 | AD51: 0 | AE51: 0 | AF51: 0 | AG51: 0 | AH51: 0 | AI51: 0 | AQ51: 0 | AR51: 0 | AS51: 0 | AT51: 0 | AU51: 0 | AV51: 0
A52: 95 | B52: =LOOKUP(A52,'DOE - FIPStoPayeeCodeConvTable'!$A$3:$A$213,'DOE - FIPStoPayeeCodeConvTable'!$B$3:$B$213) -> James City Co | I52: 11805 | J52: 108606 | K52: 40137 | L52: 14574.64 | M52: 21500.68 | N52: 109059.8 | S52: 305683.12 | U52: 171793.91 | V52: 133889.21 | W52: =LOOKUP(A52,'DOE - FIPStoPayeeCodeConvTable'!$A$3:$A$213,'DOE - FIPStoPayeeCodeConvTable'!$E$3:$E$213) -> 0.4483 | X52: 0.560375 | Y52: 75028.17 | Z52: 58861.04 | AD52: 11805 | AE52: 108606 | AF52: 40137 | AG52: 14574.64 | AH52: 21500.68 | AI52: 109059.8 | AQ52: 11805 | AR52: 108606 | AS52: 40137 | AT52: 14574.64 | AU52: 21500.68 | AV52: 109059.8
A53: 97 | B53: =LOOKUP(A53,'DOE - FIPStoPayeeCodeConvTable'!$A$3:$A$213,'DOE - FIPStoPayeeCodeConvTable'!$B$3:$B$213) -> King And Queen Co | I53: 0 | J53: 0 | K53: 0 | L53: 0 | M53: 0 | N53: 0 | S53: 0 | U53: 0 | V53: 0 | W53: =LOOKUP(A53,'DOE - FIPStoPayeeCodeConvTable'!$A$3:$A$213,'DOE - FIPStoPayeeCodeConvTable'!$E$3:$E$213) -> 0.3144 | X53: 0.393 | Y53: 0 | Z53: 0 | AD53: 0 | AE53: 0 | AF53: 0 | AG53: 0 | AH53: 0 | AI53: 0 | AQ53: 0 | AR53: 0 | AS53: 0 | AT53: 0 | AU53: 0 | AV53: 0
A54: 99 | B54: =LOOKUP(A54,'DOE - FIPStoPayeeCodeConvTable'!$A$3:$A$213,'DOE - FIPStoPayeeCodeConvTable'!$B$3:$B$213) -> King George Co | I54: 15404.6 | J54: 16707.64 | K54: 30727.42 | L54: 17202.2 | M54: 33447.5 | N54: 8657 | S54: 122146.36 | U54: 68646.25 | V54: 53500.11 | W54: =LOOKUP(A54,'DOE - FIPStoPayeeCodeConvTable'!$A$3:$A$213,'DOE - FIPStoPayeeCodeConvTable'!$E$3:$E$213) -> 0.3627 | X54: 0.453375 | Y54: 24255.61 | Z54: 29244.5 | AD54: 15404.6 | AE54: 16707.64 | AF54: 30727.42 | AG54: 17202.2 | AH54: 33447.5 | AI54: 8657 | AQ54: 15404.6 | AR54: 16707.64 | AS54: 30727.42 | AT54: 17202.2 | AU54: 33447.5 | AV54: 8657
A55: 101 | B55: =LOOKUP(A55,'DOE - FIPStoPayeeCodeConvTable'!$A$3:$A$213,'DOE - FIPStoPayeeCodeConvTable'!$B$3:$B$213) -> King William Co | I55: 4386.6 | J55: 18698.82 | K55: 4532.82 | L55: 0 | M55: 8773.2 | N55: 4386.6 | S55: 40778.04 | U55: 22917.26 | V55: 17860.78 | W55: =LOOKUP(A55,'DOE - FIPStoPayeeCodeConvTable'!$A$3:$A$213,'DOE - FIPStoPayeeCodeConvTable'!$E$3:$E$213) -> 0.3853 | X55: 0.481625 | Y55: 8602.2 | Z55: 9258.58 | AD55: 4386.6 | AE55: 18698.82 | AF55: 4532.82 | AG55: 0 | AH55: 8773.2 | AI55: 4386.6 | AQ55: 4386.6 | AR55: 18698.82 | AS55: 4532.82 | AT55: 0 | AU55: 8773.2 | AV55: 4386.6
A56: 103 | B56: =LOOKUP(A56,'DOE - FIPStoPayeeCodeConvTable'!$A$3:$A$213,'DOE - FIPStoPayeeCodeConvTable'!$B$3:$B$213) -> Lancaster Co | I56: 11112.72 | J56: 6141.24 | K56: 14529.48 | L56: 4094.16 | M56: 4094.16 | N56: 9311.22 | S56: 49282.98 | U56: 27697.03 | V56: 21585.95 | W56: =LOOKUP(A56,'DOE - FIPStoPayeeCodeConvTable'!$A$3:$A$213,'DOE - FIPStoPayeeCodeConvTable'!$E$3:$E$213) -> 0.4391 | X56: 0.548875 | Y56: 11847.99 | Z56: 9737.96 | AD56: 11112.72 | AE56: 6141.24 | AF56: 14529.48 | AG56: 4094.16 | AH56: 4094.16 | AI56: 9311.22 | AQ56: 11112.72 | AR56: 6141.24 | AS56: 14529.48 | AT56: 4094.16 | AU56: 4094.16 | AV56: 9311.22
A57: 105 | B57: =LOOKUP(A57,'DOE - FIPStoPayeeCodeConvTable'!$A$3:$A$213,'DOE - FIPStoPayeeCodeConvTable'!$B$3:$B$213) -> Lee Co | I57: 14122.87 | J57: 15704.78 | K57: 11808.01 | L57: 0 | M57: 10674.06 | N57: 0 | S57: 52309.72 | U57: 29398.06 | V57: 22911.66 | W57: =LOOKUP(A57,'DOE - FIPStoPayeeCodeConvTable'!$A$3:$A$213,'DOE - FIPStoPayeeCodeConvTable'!$E$3:$E$213) -> 0.2245 | X57: 0.280625 | Y57: 6429.58 | Z57: 16482.08 | AD57: 14122.87 | AE57: 15704.78 | AF57: 11808.01 | AG57: 0 | AH57: 10674.06 | AI57: 0 | AQ57: 14122.87 | AR57: 15704.78 | AS57: 11808.01 | AT57: 0 | AU57: 10674.06 | AV57: 0
A58: 107 | B58: =LOOKUP(A58,'DOE - FIPStoPayeeCodeConvTable'!$A$3:$A$213,'DOE - FIPStoPayeeCodeConvTable'!$B$3:$B$213) -> Loudoun Co | I58: 59771.46 | J58: 93726.24 | K58: 101834.98 | L58: 99201 | M58: 69234.34 | N58: 59885.24 | S58: 483653.26 | U58: 271813.13 | V58: 211840.13 | W58: =LOOKUP(A58,'DOE - FIPStoPayeeCodeConvTable'!$A$3:$A$213,'DOE - FIPStoPayeeCodeConvTable'!$E$3:$E$213) -> 0.4764 | X58: 0.5955 | Y58: 126150.8 | Z58: 85689.33 | AD58: 59771.46 | AE58: 93726.24 | AF58: 101834.98 | AG58: 99201 | AH58: 69234.34 | AI58: 59885.24 | AQ58: 59771.46 | AR58: 93726.24 | AS58: 101834.98 | AT58: 99201 | AU58: 69234.34 | AV58: 59885.24
A59: 109 | B59: =LOOKUP(A59,'DOE - FIPStoPayeeCodeConvTable'!$A$3:$A$213,'DOE - FIPStoPayeeCodeConvTable'!$B$3:$B$213) -> Louisa Co | I59: 82909.66 | J59: 51428.34 | K59: 78622.52 | L59: 79854.9 | M59: 17252.6 | N59: 21249 | S59: 331317.02 | U59: 186200.17 | V59: 145116.85 | W59: =LOOKUP(A59,'DOE - FIPStoPayeeCodeConvTable'!$A$3:$A$213,'DOE - FIPStoPayeeCodeConvTable'!$E$3:$E$213) -> 0.4401 | X59: 0.550125 | Y59: 79832.41 | Z59: 65284.44 | AD59: 82909.66 | AE59: 51428.34 | AF59: 78622.52 | AG59: 79854.9 | AH59: 17252.6 | AI59: 21249 | AQ59: 82909.66 | AR59: 51428.34 | AS59: 78622.52 | AT59: 79854.9 | AU59: 17252.6 | AV59: 21249
A60: 111 | B60: =LOOKUP(A60,'DOE - FIPStoPayeeCodeConvTable'!$A$3:$A$213,'DOE - FIPStoPayeeCodeConvTable'!$B$3:$B$213) -> Lunenburg Co | I60: 85384.56 | J60: 40530.5 | K60: 18888 | L60: 58238 | M60: 49377.8 | N60: 90250.62 | S60: 342669.48 | U60: 192580.25 | V60: 150089.23 | W60: =LOOKUP(A60,'DOE - FIPStoPayeeCodeConvTable'!$A$3:$A$213,'DOE - FIPStoPayeeCodeConvTable'!$E$3:$E$213) -> 0.1698 | X60: 0.21225 | Y60: 31856.44 | Z60: 118232.79 | AD60: 85384.56 | AE60: 40530.5 | AF60: 18888 | AG60: 58238 | AH60: 49377.8 | AI60: 90250.62 | AQ60: 85384.56 | AR60: 40530.5 | AS60: 18888 | AT60: 58238 | AU60: 49377.8 | AV60: 90250.62
A61: 113 | B61: =LOOKUP(A61,'DOE - FIPStoPayeeCodeConvTable'!$A$3:$A$213,'DOE - FIPStoPayeeCodeConvTable'!$B$3:$B$213) -> Madison Co | I61: 6872.34 | J61: 18159.1 | K61: 20971.7 | L61: 11411.5 | M61: 21117.92 | N61: 10435.32 | S61: 88967.88 | U61: 49999.95 | V61: 38967.93 | W61: =LOOKUP(A61,'DOE - FIPStoPayeeCodeConvTable'!$A$3:$A$213,'DOE - FIPStoPayeeCodeConvTable'!$E$3:$E$213) -> 0.3355 | X61: 0.419375 | Y61: 16342.18 | Z61: 22625.75 | AD61: 6872.34 | AE61: 18159.1 | AF61: 20971.7 | AG61: 11411.5 | AH61: 21117.92 | AI61: 10435.32 | AQ61: 6872.34 | AR61: 18159.1 | AS61: 20971.7 | AT61: 11411.5 | AU61: 21117.92 | AV61: 10435.32
A62: 115 | B62: =LOOKUP(A62,'DOE - FIPStoPayeeCodeConvTable'!$A$3:$A$213,'DOE - FIPStoPayeeCodeConvTable'!$B$3:$B$213) -> Mathews Co | I62: 4532.82 | J62: 0 | K62: 11921.2 | L62: 4532.82 | M62: 4386.6 | N62: 877.32 | S62: 26250.76 | U62: 14752.93 | V62: 11497.83 | W62: =LOOKUP(A62,'DOE - FIPStoPayeeCodeConvTable'!$A$3:$A$213,'DOE - FIPStoPayeeCodeConvTable'!$E$3:$E$213) -> 0.4271 | X62: 0.533875 | Y62: 6138.4 | Z62: 5359.43 | AD62: 4532.82 | AE62: 0 | AF62: 11921.2 | AG62: 4532.82 | AH62: 4386.6 | AI62: 877.32 | AQ62: 4532.82 | AR62: 0 | AS62: 11921.2 | AT62: 4532.82 | AU62: 4386.6 | AV62: 877.32
A63: 117 | B63: =LOOKUP(A63,'DOE - FIPStoPayeeCodeConvTable'!$A$3:$A$213,'DOE - FIPStoPayeeCodeConvTable'!$B$3:$B$213) -> Mecklenburg Co | I63: 60443.11 | J63: 51359.32 | K63: 74754.78 | L63: 37586.82 | M63: 81533.24 | N63: 93423.06 | S63: 399100.33 | U63: 224294.39 | V63: 174805.94 | W63: =LOOKUP(A63,'DOE - FIPStoPayeeCodeConvTable'!$A$3:$A$213,'DOE - FIPStoPayeeCodeConvTable'!$E$3:$E$213) -> 0.2286 | X63: 0.28575 | Y63: 49950.8 | Z63: 124855.14 | AD63: 60443.11 | AE63: 51359.32 | AF63: 74754.78 | AG63: 37586.82 | AH63: 81533.24 | AI63: 93423.06 | AQ63: 60443.11 | AR63: 51359.32 | AS63: 74754.78 | AT63: 37586.82 | AU63: 81533.24 | AV63: 93423.06
A64: 119 | B64: =LOOKUP(A64,'DOE - FIPStoPayeeCodeConvTable'!$A$3:$A$213,'DOE - FIPStoPayeeCodeConvTable'!$B$3:$B$213) -> Middlesex Co | I64: 0 | J64: 0 | K64: 0 | L64: 0 | M64: 0 | N64: 0 | S64: 0 | U64: 0 | V64: 0 | W64: =LOOKUP(A64,'DOE - FIPStoPayeeCodeConvTable'!$A$3:$A$213,'DOE - FIPStoPayeeCodeConvTable'!$E$3:$E$213) -> 0.4333 | X64: 0.541625 | Y64: 0 | Z64: 0 | AD64: 0 | AE64: 0 | AF64: 0 | AG64: 0 | AH64: 0 | AI64: 0 | AQ64: 0 | AR64: 0 | AS64: 0 | AT64: 0 | AU64: 0 | AV64: 0
A65: 121 | B65: =LOOKUP(A65,'DOE - FIPStoPayeeCodeConvTable'!$A$3:$A$213,'DOE - FIPStoPayeeCodeConvTable'!$B$3:$B$213) -> Montgomery Co | I65: 27546.91 | J65: 23567.04 | K65: 33614.62 | L65: 32317 | M65: 45332.64 | N65: 28203 | S65: 190581.21 | U65: 107106.64 | V65: 83474.57 | W65: =LOOKUP(A65,'DOE - FIPStoPayeeCodeConvTable'!$A$3:$A$213,'DOE - FIPStoPayeeCodeConvTable'!$E$3:$E$213) -> 0.2834 | X65: 0.35425 | Y65: 29570.87 | Z65: 53903.7 | AD65: 27546.91 | AE65: 23567.04 | AF65: 33614.62 | AG65: 32317 | AH65: 45332.64 | AI65: 28203 | AQ65: 27546.91 | AR65: 23567.04 | AS65: 33614.62 | AT65: 32317 | AU65: 45332.64 | AV65: 28203
A66: 125 | B66: =LOOKUP(A66,'DOE - FIPStoPayeeCodeConvTable'!$A$3:$A$213,'DOE - FIPStoPayeeCodeConvTable'!$B$3:$B$213) -> Nelson Co | I66: 30632.41 | J66: 12198.5 | K66: 22823 | L66: 12592 | M66: 35415 | N66: 25577.5 | S66: 139238.41 | U66: 78251.99 | V66: 60986.42 | W66: =LOOKUP(A66,'DOE - FIPStoPayeeCodeConvTable'!$A$3:$A$213,'DOE - FIPStoPayeeCodeConvTable'!$E$3:$E$213) -> 0.3132 | X66: 0.3915 | Y66: 23876.18 | Z66: 37110.24 | AD66: 30632.41 | AE66: 12198.5 | AF66: 22823 | AG66: 12592 | AH66: 35415 | AI66: 25577.5 | AQ66: 30632.41 | AR66: 12198.5 | AS66: 22823 | AT66: 12592 | AU66: 35415 | AV66: 25577.5
A67: 127 | B67: =LOOKUP(A67,'DOE - FIPStoPayeeCodeConvTable'!$A$3:$A$213,'DOE - FIPStoPayeeCodeConvTable'!$B$3:$B$213) -> New Kent Co | I67: 0 | J67: 0 | K67: 0 | L67: 0 | M67: 0 | N67: 0 | S67: 0 | U67: 0 | V67: 0 | W67: =LOOKUP(A67,'DOE - FIPStoPayeeCodeConvTable'!$A$3:$A$213,'DOE - FIPStoPayeeCodeConvTable'!$E$3:$E$213) -> 0.4329 | X67: 0.541125 | Y67: 0 | Z67: 0 | AD67: 0 | AE67: 0 | AF67: 0 | AG67: 0 | AH67: 0 | AI67: 0 | AQ67: 0 | AR67: 0 | AS67: 0 | AT67: 0 | AU67: 0 | AV67: 0
A68: 131 | B68: =LOOKUP(A68,'DOE - FIPStoPayeeCodeConvTable'!$A$3:$A$213,'DOE - FIPStoPayeeCodeConvTable'!$B$3:$B$213) -> Northampton Co | I68: 8263.5 | J68: 13379 | K68: 8657 | L68: 5902.5 | M68: 3363.06 | N68: 4386.6 | S68: 43951.66 | U68: 24700.83 | V68: 19250.83 | W68: =LOOKUP(A68,'DOE - FIPStoPayeeCodeConvTable'!$A$3:$A$213,'DOE - FIPStoPayeeCodeConvTable'!$E$3:$E$213) -> 0.1971 | X68: 0.246375 | Y68: 4742.92 | Z68: 14507.91 | AD68: 8263.5 | AE68: 13379 | AF68: 8657 | AG68: 5902.5 | AH68: 3363.06 | AI68: 4386.6 | AQ68: 8263.5 | AR68: 13379 | AS68: 8657 | AT68: 5902.5 | AU68: 3363.06 | AV68: 4386.6
A69: 133 | B69: =LOOKUP(A69,'DOE - FIPStoPayeeCodeConvTable'!$A$3:$A$213,'DOE - FIPStoPayeeCodeConvTable'!$B$3:$B$213) -> Northumberland Co | I69: 0 | J69: 0 | K69: 0 | L69: 0 | M69: 0 | N69: 0 | S69: 0 | U69: 0 | V69: 0 | W69: =LOOKUP(A69,'DOE - FIPStoPayeeCodeConvTable'!$A$3:$A$213,'DOE - FIPStoPayeeCodeConvTable'!$E$3:$E$213) -> 0.3304 | X69: 0.413 | Y69: 0 | Z69: 0 | AD69: 0 | AE69: 0 | AF69: 0 | AG69: 0 | AH69: 0 | AI69: 0 | AQ69: 0 | AR69: 0 | AS69: 0 | AT69: 0 | AU69: 0 | AV69: 0
A70: 135 | B70: =LOOKUP(A70,'DOE - FIPStoPayeeCodeConvTable'!$A$3:$A$213,'DOE - FIPStoPayeeCodeConvTable'!$B$3:$B$213) -> Nottoway Co | I70: 39678.77 | J70: 9050.5 | K70: 55722.21 | L70: 21092.04 | M70: 37382.5 | N70: 29119 | S70: 192045.02 | U70: =ROUND($U$1*S70,2) -> 107929.3 | V70: =SUM(S70)-SUM(U70) -> 84115.72 | W70: =LOOKUP(A70,'DOE - FIPStoPayeeCodeConvTable'!$A$3:$A$213,'DOE - FIPStoPayeeCodeConvTable'!$E$3:$E$213) -> 0.2686 | X70: 0.33575 | Y70: 28241.85 | Z70: 55873.87 | AD70: 39678.77 | AE70: 9050.5 | AF70: 55722.21 | AG70: 21092.04 | AH70: 37382.5 | AI70: 29119 | AQ70: 39678.77 | AR70: 9050.5 | AS70: 55722.21 | AT70: 21092.04 | AU70: 37382.5 | AV70: 29119
A71: 137 | B71: =LOOKUP(A71,'DOE - FIPStoPayeeCodeConvTable'!$A$3:$A$213,'DOE - FIPStoPayeeCodeConvTable'!$B$3:$B$213) -> Orange Co | I71: 18159.1 | J71: 19485.82 | K71: 29658.72 | L71: 38169.5 | M71: 52082.28 | N71: 15496.64 | S71: 173052.06 | U71: 97255.26 | V71: 75796.8 | W71: =LOOKUP(A71,'DOE - FIPStoPayeeCodeConvTable'!$A$3:$A$213,'DOE - FIPStoPayeeCodeConvTable'!$E$3:$E$213) -> 0.4083 | X71: =$X$1*W71 -> 0.510375 | Y71: =ROUND(X71*V71,2) -> 38684.79 | Z71: =SUM(V71)-SUM(Y71) -> 37112.01 | AD71: 18159.1 | AE71: 19485.82 | AF71: 29658.72 | AG71: 38169.5 | AH71: 52082.28 | AI71: 15496.64 | AQ71: =+AD71+AJ71 -> 18159.1 | AR71: =+AE71+AK71 -> 19485.82 | AS71: =+AF71+AL71 -> 29658.72 | AT71: =+AG71+AM71 -> 38169.5 | AU71: =+AH71+AN71 -> 52082.28 | AV71: =+AI71+AO71 -> 15496.64
A72: 139 | B72: =LOOKUP(A72,'DOE - FIPStoPayeeCodeConvTable'!$A$3:$A$213,'DOE - FIPStoPayeeCodeConvTable'!$B$3:$B$213) -> Page Co | I72: 29119 | J72: 57451 | K72: 43888.58 | L72: 24397 | M72: 29119 | N72: 18888 | S72: 202862.58 | U72: 114008.77 | V72: 88853.81 | W72: =LOOKUP(A72,'DOE - FIPStoPayeeCodeConvTable'!$A$3:$A$213,'DOE - FIPStoPayeeCodeConvTable'!$E$3:$E$213) -> 0.2865 | X72: 0.358125 | Y72: 31820.77 | Z72: 57033.04 | AD72: 29119 | AE72: 57451 | AF72: 43888.58 | AG72: 24397 | AH72: 29119 | AI72: 18888 | AQ72: 29119 | AR72: 57451 | AS72: 43888.58 | AT72: 24397 | AU72: 29119 | AV72: 18888
A73: 141 | B73: =LOOKUP(A73,'DOE - FIPStoPayeeCodeConvTable'!$A$3:$A$213,'DOE - FIPStoPayeeCodeConvTable'!$B$3:$B$213) -> Patrick Co | I73: 8263.5 | J73: 13379 | K73: 27151.5 | L73: 32660.5 | M73: 27545 | N73: 12592 | S73: 121591.5 | U73: 68334.42 | V73: 53257.08 | W73: =LOOKUP(A73,'DOE - FIPStoPayeeCodeConvTable'!$A$3:$A$213,'DOE - FIPStoPayeeCodeConvTable'!$E$3:$E$213) -> 0.2539 | X73: 0.317375 | Y73: 16902.47 | Z73: 36354.61 | AD73: 8263.5 | AE73: 13379 | AF73: 27151.5 | AG73: 32660.5 | AH73: 27545 | AI73: 12592 | AQ73: 8263.5 | AR73: 13379 | AS73: 27151.5 | AT73: 32660.5 | AU73: 27545 | AV73: 12592
A74: 143 | B74: =LOOKUP(A74,'DOE - FIPStoPayeeCodeConvTable'!$A$3:$A$213,'DOE - FIPStoPayeeCodeConvTable'!$B$3:$B$213) -> Pittsylvania Co | I74: 69649.5 | J74: 22949 | K74: 99204.12 | L74: 138460.68 | M74: 133883.8 | N74: 50052.14 | S74: 514199.24 | U74: 288979.97 | V74: 225219.27 | W74: =LOOKUP(A74,'DOE - FIPStoPayeeCodeConvTable'!$A$3:$A$213,'DOE - FIPStoPayeeCodeConvTable'!$E$3:$E$213) -> 0.2355 | X74: 0.294375 | Y74: 66298.92 | Z74: 158920.35 | AD74: 69649.5 | AE74: 22949 | AF74: 99204.12 | AG74: 138460.68 | AH74: 133883.8 | AI74: 50052.14 | AQ74: 69649.5 | AR74: 22949 | AS74: 99204.12 | AT74: 138460.68 | AU74: 133883.8 | AV74: 50052.14
A75: 145 | B75: =LOOKUP(A75,'DOE - FIPStoPayeeCodeConvTable'!$A$3:$A$213,'DOE - FIPStoPayeeCodeConvTable'!$B$3:$B$213) -> Powhatan Co | I75: 51819.17 | J75: 45646 | K75: 54249.82 | L75: 31369.9 | M75: 43735.76 | N75: 28389.81 | S75: 255210.46 | U75: 143428.28 | V75: 111782.18 | W75: =LOOKUP(A75,'DOE - FIPStoPayeeCodeConvTable'!$A$3:$A$213,'DOE - FIPStoPayeeCodeConvTable'!$E$3:$E$213) -> 0.4342 | X75: 0.54275 | Y75: 60669.78 | Z75: 51112.4 | AD75: 51819.17 | AE75: 45646 | AF75: 54249.82 | AG75: 31369.9 | AH75: 43735.76 | AI75: 28389.81 | AQ75: 51819.17 | AR75: 45646 | AS75: 54249.82 | AT75: 31369.9 | AU75: 43735.76 | AV75: 28389.81
A76: 147 | B76: =LOOKUP(A76,'DOE - FIPStoPayeeCodeConvTable'!$A$3:$A$213,'DOE - FIPStoPayeeCodeConvTable'!$B$3:$B$213) -> Prince Edward Co | I76: 6704.47 | J76: 4532.82 | K76: 6850.69 | L76: 43485.83 | M76: 55503.28 | N76: 8613.87 | S76: 125690.96 | U76: 70638.32 | V76: 55052.64 | W76: =LOOKUP(A76,'DOE - FIPStoPayeeCodeConvTable'!$A$3:$A$213,'DOE - FIPStoPayeeCodeConvTable'!$E$3:$E$213) -> 0.2232 | X76: 0.279 | Y76: 15359.69 | Z76: 39692.95 | AD76: 6704.47 | AE76: 4532.82 | AF76: 6850.69 | AG76: 43485.83 | AH76: 55503.28 | AI76: 8613.87 | AQ76: 6704.47 | AR76: 4532.82 | AS76: 6850.69 | AT76: 43485.83 | AU76: 55503.28 | AV76: 8613.87
A77: 149 | B77: =LOOKUP(A77,'DOE - FIPStoPayeeCodeConvTable'!$A$3:$A$213,'DOE - FIPStoPayeeCodeConvTable'!$B$3:$B$213) -> Prince George Co | I77: 12198.5 | J77: 33841 | K77: 54303 | L77: 30693 | M77: 28069.7 | N77: 11622.3 | S77: 170727.5 | U77: 95948.86 | V77: 74778.64 | W77: =LOOKUP(A77,'DOE - FIPStoPayeeCodeConvTable'!$A$3:$A$213,'DOE - FIPStoPayeeCodeConvTable'!$E$3:$E$213) -> 0.3716 | X77: 0.4645 | Y77: 34734.68 | Z77: 40043.96 | AD77: 12198.5 | AE77: 33841 | AF77: 54303 | AG77: 30693 | AH77: 28069.7 | AI77: 11622.3 | AQ77: 12198.5 | AR77: 33841 | AS77: 54303 | AT77: 30693 | AU77: 28069.7 | AV77: 11622.3
A78: 153 | B78: =LOOKUP(A78,'DOE - FIPStoPayeeCodeConvTable'!$A$3:$A$213,'DOE - FIPStoPayeeCodeConvTable'!$B$3:$B$213) -> Prince William Co | I78: 118360.61 | J78: 187944.15 | K78: 117804.72 | L78: 225021.75 | M78: 171118.32 | N78: 120507.82 | S78: 940757.37 | U78: 528705.64 | V78: 412051.73 | W78: =LOOKUP(A78,'DOE - FIPStoPayeeCodeConvTable'!$A$3:$A$213,'DOE - FIPStoPayeeCodeConvTable'!$E$3:$E$213) -> 0.3414 | X78: 0.42675 | Y78: 175843.08 | Z78: 236208.65 | AD78: 118360.61 | AE78: 187944.15 | AF78: 117804.72 | AG78: 225021.75 | AH78: 171118.32 | AI78: 120507.82 | AQ78: 118360.61 | AR78: 187944.15 | AS78: 117804.72 | AT78: 225021.75 | AU78: 171118.32 | AV78: 120507.82
A79: 155 | B79: =LOOKUP(A79,'DOE - FIPStoPayeeCodeConvTable'!$A$3:$A$213,'DOE - FIPStoPayeeCodeConvTable'!$B$3:$B$213) -> Pulaski Co | I79: 41711 | J79: 75945.5 | K79: 61779.5 | L79: 36989 | M79: 54685.76 | N79: 42702.32 | S79: 313813.08 | U79: 176362.95 | V79: 137450.13 | W79: =LOOKUP(A79,'DOE - FIPStoPayeeCodeConvTable'!$A$3:$A$213,'DOE - FIPStoPayeeCodeConvTable'!$E$3:$E$213) -> 0.2923 | X79: 0.365375 | Y79: 50220.84 | Z79: 87229.29 | AD79: 41711 | AE79: 75945.5 | AF79: 61779.5 | AG79: 36989 | AH79: 54685.76 | AI79: 42702.32 | AQ79: 41711 | AR79: 75945.5 | AS79: 61779.5 | AT79: 36989 | AU79: 54685.76 | AV79: 42702.32
A80: 157 | B80: =LOOKUP(A80,'DOE - FIPStoPayeeCodeConvTable'!$A$3:$A$213,'DOE - FIPStoPayeeCodeConvTable'!$B$3:$B$213) -> Rappahannock Co | I80: 59229.32 | J80: 33258.32 | K80: 22341.38 | L80: 26175.32 | M80: -6237.9 | N80: 109990.82 | S80: 244757.26 | U80: 137553.58 | V80: 107203.68 | W80: =LOOKUP(A80,'DOE - FIPStoPayeeCodeConvTable'!$A$3:$A$213,'DOE - FIPStoPayeeCodeConvTable'!$E$3:$E$213) -> 0.4199 | X80: 0.524875 | Y80: 56268.53 | Z80: 50935.15 | AD80: 59229.32 | AE80: 33258.32 | AF80: 22341.38 | AG80: 26175.32 | AH80: -6237.9 | AI80: 109990.82 | AQ80: 59229.32 | AR80: 33258.32 | AS80: 22341.38 | AT80: 26175.32 | AU80: -6237.9 | AV80: 109990.82
A81: 159 | B81: =LOOKUP(A81,'DOE - FIPStoPayeeCodeConvTable'!$A$3:$A$213,'DOE - FIPStoPayeeCodeConvTable'!$B$3:$B$213) -> Richmond Co | I81: 3655.5 | J81: -3655.5 | K81: 0 | L81: 0 | M81: 0 | N81: 0 | S81: 0 | U81: 0 | V81: 0 | W81: =LOOKUP(A81,'DOE - FIPStoPayeeCodeConvTable'!$A$3:$A$213,'DOE - FIPStoPayeeCodeConvTable'!$E$3:$E$213) -> 0.3227 | X81: 0.403375 | Y81: 0 | Z81: 0 | AD81: 3655.5 | AE81: -3655.5 | AF81: 0 | AG81: 0 | AH81: 0 | AI81: 0 | AQ81: 3655.5 | AR81: -3655.5 | AS81: 0 | AT81: 0 | AU81: 0 | AV81: 0
A82: 161 | B82: =LOOKUP(A82,'DOE - FIPStoPayeeCodeConvTable'!$A$3:$A$213,'DOE - FIPStoPayeeCodeConvTable'!$B$3:$B$213) -> Roanoke Co | I82: 142348.66 | J82: 155313.88 | K82: 150040.74 | L82: 142837.72 | M82: 163536.26 | N82: 108903.91 | S82: 862981.17 | U82: 484995.42 | V82: 377985.75 | W82: =LOOKUP(A82,'DOE - FIPStoPayeeCodeConvTable'!$A$3:$A$213,'DOE - FIPStoPayeeCodeConvTable'!$E$3:$E$213) -> 0.4397 | X82: 0.549625 | Y82: 207750.42 | Z82: 170235.33 | AD82: 142348.66 | AE82: 155313.88 | AF82: 150040.74 | AG82: 142837.72 | AH82: 163536.26 | AI82: 108903.91 | AQ82: 142348.66 | AR82: 155313.88 | AS82: 150040.74 | AT82: 142837.72 | AU82: 163536.26 | AV82: 108903.91
A83: 163 | B83: =LOOKUP(A83,'DOE - FIPStoPayeeCodeConvTable'!$A$3:$A$213,'DOE - FIPStoPayeeCodeConvTable'!$B$3:$B$213) -> Rockbridge Co | I83: 42584.18 | J83: 35225.82 | K83: 109887.76 | L83: 65402.78 | M83: 92983.85 | N83: 25592.64 | S83: 371677.03 | U83: 208882.49 | V83: 162794.54 | W83: =LOOKUP(A83,'DOE - FIPStoPayeeCodeConvTable'!$A$3:$A$213,'DOE - FIPStoPayeeCodeConvTable'!$E$3:$E$213) -> 0.2336 | X83: 0.292 | Y83: 47536.01 | Z83: 115258.53 | AD83: 42584.18 | AE83: 35225.82 | AF83: 109887.76 | AG83: 65402.78 | AH83: 92983.85 | AI83: 25592.64 | AQ83: 42584.18 | AR83: 35225.82 | AS83: 109887.76 | AT83: 65402.78 | AU83: 92983.85 | AV83: 25592.64
A84: 165 | B84: =LOOKUP(A84,'DOE - FIPStoPayeeCodeConvTable'!$A$3:$A$213,'DOE - FIPStoPayeeCodeConvTable'!$B$3:$B$213) -> Rockingham Co | I84: 97815.5 | J84: 82394.02 | K84: 124265.44 | L84: 130601.04 | M84: 149986.12 | N84: 50972.82 | S84: 636034.94 | U84: 357451.64 | V84: 278583.3 | W84: =LOOKUP(A84,'DOE - FIPStoPayeeCodeConvTable'!$A$3:$A$213,'DOE - FIPStoPayeeCodeConvTable'!$E$3:$E$213) -> 0.3445 | X84: 0.430625 | Y84: 119964.93 | Z84: 158618.37 | AD84: 97815.5 | AE84: 82394.02 | AF84: 124265.44 | AG84: 130601.04 | AH84: 149986.12 | AI84: 50972.82 | AQ84: 97815.5 | AR84: 82394.02 | AS84: 124265.44 | AT84: 130601.04 | AU84: 149986.12 | AV84: 50972.82
A85: 167 | B85: =LOOKUP(A85,'DOE - FIPStoPayeeCodeConvTable'!$A$3:$A$213,'DOE - FIPStoPayeeCodeConvTable'!$B$3:$B$213) -> Russell Co | I85: 81061 | J85: 10624.5 | K85: 46628.78 | L85: 16527 | M85: 67856.3 | N85: 18305.32 | S85: 241002.9 | U85: 135443.63 | V85: 105559.27 | W85: =LOOKUP(A85,'DOE - FIPStoPayeeCodeConvTable'!$A$3:$A$213,'DOE - FIPStoPayeeCodeConvTable'!$E$3:$E$213) -> 0.1894 | X85: 0.23675 | Y85: 24991.16 | Z85: 80568.11 | AD85: 81061 | AE85: 10624.5 | AF85: 46628.78 | AG85: 16527 | AH85: 67856.3 | AI85: 18305.32 | AQ85: 81061 | AR85: 10624.5 | AS85: 46628.78 | AT85: 16527 | AU85: 67856.3 | AV85: 18305.32
A86: 169 | B86: =LOOKUP(A86,'DOE - FIPStoPayeeCodeConvTable'!$A$3:$A$213,'DOE - FIPStoPayeeCodeConvTable'!$B$3:$B$213) -> Scott Co | I86: 5053.88 | J86: 0 | K86: 0 | L86: 0 | M86: 2924.4 | N86: 7749.66 | S86: 15727.94 | U86: 8839.1 | V86: 6888.84 | W86: =LOOKUP(A86,'DOE - FIPStoPayeeCodeConvTable'!$A$3:$A$213,'DOE - FIPStoPayeeCodeConvTable'!$E$3:$E$213) -> 0.3154 | X86: 0.39425 | Y86: 2715.93 | Z86: 4172.91 | AD86: 5053.88 | AE86: 0 | AF86: 0 | AG86: 0 | AH86: 2924.4 | AI86: 7749.66 | AQ86: 5053.88 | AR86: 0 | AS86: 0 | AT86: 0 | AU86: 2924.4 | AV86: 7749.66
A87: 171 | B87: =LOOKUP(A87,'DOE - FIPStoPayeeCodeConvTable'!$A$3:$A$213,'DOE - FIPStoPayeeCodeConvTable'!$B$3:$B$213) -> Shenandoah Co | I87: 107946.31 | J87: 110456.75 | K87: 138688.5 | L87: 156875.42 | M87: 107963.28 | N87: 115414.16 | S87: 737344.42 | U87: 414387.56 | V87: 322956.86 | W87: =LOOKUP(A87,'DOE - FIPStoPayeeCodeConvTable'!$A$3:$A$213,'DOE - FIPStoPayeeCodeConvTable'!$E$3:$E$213) -> 0.3517 | X87: 0.439625 | Y87: 141979.91 | Z87: 180976.95 | AD87: 107946.31 | AE87: 110456.75 | AF87: 138688.5 | AG87: 156875.42 | AH87: 107963.28 | AI87: 115414.16 | AQ87: 107946.31 | AR87: 110456.75 | AS87: 138688.5 | AT87: 156875.42 | AU87: 107963.28 | AV87: 115414.16
A88: 173 | B88: =LOOKUP(A88,'DOE - FIPStoPayeeCodeConvTable'!$A$3:$A$213,'DOE - FIPStoPayeeCodeConvTable'!$B$3:$B$213) -> Smyth Co | I88: 53122.5 | J88: 59352.22 | K88: 72315.88 | L88: 65918.82 | M88: 103548.6 | N88: 35105.48 | S88: 389363.5 | U88: 218822.29 | V88: 170541.21 | W88: =LOOKUP(A88,'DOE - FIPStoPayeeCodeConvTable'!$A$3:$A$213,'DOE - FIPStoPayeeCodeConvTable'!$E$3:$E$213) -> 0.2337 | X88: 0.292125 | Y88: 49819.35 | Z88: 120721.86 | AD88: 53122.5 | AE88: 59352.22 | AF88: 72315.88 | AG88: 65918.82 | AH88: 103548.6 | AI88: 35105.48 | AQ88: 53122.5 | AR88: 59352.22 | AS88: 72315.88 | AT88: 65918.82 | AU88: 103548.6 | AV88: 35105.48
A89: 175 | B89: =LOOKUP(A89,'DOE - FIPStoPayeeCodeConvTable'!$A$3:$A$213,'DOE - FIPStoPayeeCodeConvTable'!$B$3:$B$213) -> Southampton Co | I89: 0 | J89: 0 | K89: 58162.45 | L89: 0 | M89: 29512.5 | N89: 11805 | S89: 99479.95 | U89: 55907.73 | V89: 43572.22 | W89: =LOOKUP(A89,'DOE - FIPStoPayeeCodeConvTable'!$A$3:$A$213,'DOE - FIPStoPayeeCodeConvTable'!$E$3:$E$213) -> 0.323 | X89: 0.40375 | Y89: 17592.28 | Z89: 25979.94 | AD89: 0 | AE89: 0 | AF89: 58162.45 | AG89: 0 | AH89: 29512.5 | AI89: 11805 | AQ89: 0 | AR89: 0 | AS89: 58162.45 | AT89: 0 | AU89: 29512.5 | AV89: 11805
A90: 177 | B90: =LOOKUP(A90,'DOE - FIPStoPayeeCodeConvTable'!$A$3:$A$213,'DOE - FIPStoPayeeCodeConvTable'!$B$3:$B$213) -> Spotsylvania Co | I90: 93184.32 | J90: 129924.04 | K90: 78645.78 | L90: 110236.82 | M90: 141856.98 | N90: 78738.82 | S90: 632586.76 | U90: 355513.76 | V90: 277073 | W90: =LOOKUP(A90,'DOE - FIPStoPayeeCodeConvTable'!$A$3:$A$213,'DOE - FIPStoPayeeCodeConvTable'!$E$3:$E$213) -> 0.4588 | X90: 0.5735 | Y90: 158901.37 | Z90: 118171.63 | AD90: 93184.32 | AE90: 129924.04 | AF90: 78645.78 | AG90: 110236.82 | AH90: 141856.98 | AI90: 78738.82 | AQ90: 93184.32 | AR90: 129924.04 | AS90: 78645.78 | AT90: 110236.82 | AU90: 141856.98 | AV90: 78738.82
A91: 179 | B91: =LOOKUP(A91,'DOE - FIPStoPayeeCodeConvTable'!$A$3:$A$213,'DOE - FIPStoPayeeCodeConvTable'!$B$3:$B$213) -> Stafford Co | I91: 12198.5 | J91: 0 | K91: 48400.5 | L91: 22823 | M91: 26343.02 | N91: 11805 | S91: 121570.02 | U91: 68322.35 | V91: 53247.67 | W91: =LOOKUP(A91,'DOE - FIPStoPayeeCodeConvTable'!$A$3:$A$213,'DOE - FIPStoPayeeCodeConvTable'!$E$3:$E$213) -> 0.4439 | X91: 0.554875 | Y91: 29545.8 | Z91: 23701.87 | AD91: 12198.5 | AE91: 0 | AF91: 48400.5 | AG91: 22823 | AH91: 26343.02 | AI91: 11805 | AQ91: 12198.5 | AR91: 0 | AS91: 48400.5 | AT91: 22823 | AU91: 26343.02 | AV91: 11805
A92: 181 | B92: =LOOKUP(A92,'DOE - FIPStoPayeeCodeConvTable'!$A$3:$A$213,'DOE - FIPStoPayeeCodeConvTable'!$B$3:$B$213) -> Surry Co | I92: 0 | J92: 0 | K92: 0 | L92: 0 | M92: 0 | N92: 7326.69 | S92: 7326.69 | U92: 4117.6 | V92: 3209.09 | W92: =LOOKUP(A92,'DOE - FIPStoPayeeCodeConvTable'!$A$3:$A$213,'DOE - FIPStoPayeeCodeConvTable'!$E$3:$E$213) -> 0.3979 | X92: 0.497375 | Y92: 1596.12 | Z92: 1612.97 | AD92: 0 | AE92: 0 | AF92: 0 | AG92: 0 | AH92: 0 | AI92: 7326.69 | AQ92: 0 | AR92: 0 | AS92: 0 | AT92: 0 | AU92: 0 | AV92: 7326.69
A93: 183 | B93: =LOOKUP(A93,'DOE - FIPStoPayeeCodeConvTable'!$A$3:$A$213,'DOE - FIPStoPayeeCodeConvTable'!$B$3:$B$213) -> Sussex Co | I93: 0 | J93: 0 | K93: 0 | L93: 0 | M93: 0 | N93: 0 | S93: 0 | U93: 0 | V93: 0 | W93: =LOOKUP(A93,'DOE - FIPStoPayeeCodeConvTable'!$A$3:$A$213,'DOE - FIPStoPayeeCodeConvTable'!$E$3:$E$213) -> 0.2387 | X93: 0.298375 | Y93: 0 | Z93: 0 | AD93: 0 | AE93: 0 | AF93: 0 | AG93: 0 | AH93: 0 | AI93: 0 | AQ93: 0 | AR93: 0 | AS93: 0 | AT93: 0 | AU93: 0 | AV93: 0
A94: 185 | B94: =LOOKUP(A94,'DOE - FIPStoPayeeCodeConvTable'!$A$3:$A$213,'DOE - FIPStoPayeeCodeConvTable'!$B$3:$B$213) -> Tazewell Co | I94: 31873.5 | J94: 0 | K94: 24397 | L94: 58765.26 | M94: 78255.54 | N94: 52505.32 | S94: 245796.62 | U94: 138137.7 | V94: 107658.92 | W94: =LOOKUP(A94,'DOE - FIPStoPayeeCodeConvTable'!$A$3:$A$213,'DOE - FIPStoPayeeCodeConvTable'!$E$3:$E$213) -> 0.2455 | X94: 0.306875 | Y94: 33037.83 | Z94: 74621.09 | AD94: 31873.5 | AE94: 0 | AF94: 24397 | AG94: 58765.26 | AH94: 78255.54 | AI94: 52505.32 | AQ94: 31873.5 | AR94: 0 | AS94: 24397 | AT94: 58765.26 | AU94: 78255.54 | AV94: 52505.32
A95: 187 | B95: =LOOKUP(A95,'DOE - FIPStoPayeeCodeConvTable'!$A$3:$A$213,'DOE - FIPStoPayeeCodeConvTable'!$B$3:$B$213) -> Warren Co | I95: 0 | J95: 4793.5 | K95: 21958 | L95: 37790.5 | M95: 1900.86 | N95: 7335.6 | S95: 73778.46 | U95: 41463.49 | V95: 32314.97 | W95: =LOOKUP(A95,'DOE - FIPStoPayeeCodeConvTable'!$A$3:$A$213,'DOE - FIPStoPayeeCodeConvTable'!$E$3:$E$213) -> 0.3853 | X95: 0.481625 | Y95: 15563.7 | Z95: 16751.27 | AD95: 0 | AE95: 4793.5 | AF95: 21958 | AG95: 37790.5 | AH95: 1900.86 | AI95: 7335.6 | AQ95: 0 | AR95: 4793.5 | AS95: 21958 | AT95: 37790.5 | AU95: 1900.86 | AV95: 7335.6
A96: 191 | B96: =LOOKUP(A96,'DOE - FIPStoPayeeCodeConvTable'!$A$3:$A$213,'DOE - FIPStoPayeeCodeConvTable'!$B$3:$B$213) -> Washington Co | I96: 57397.67 | J96: 33803.54 | K96: 55348.85 | L96: 52875.98 | M96: 87837.58 | N96: 80466.49 | S96: 367730.11 | U96: 206664.32 | V96: 161065.79 | W96: =LOOKUP(A96,'DOE - FIPStoPayeeCodeConvTable'!$A$3:$A$213,'DOE - FIPStoPayeeCodeConvTable'!$E$3:$E$213) -> 0.276 | X96: 0.345 | Y96: 55567.7 | Z96: 105498.09 | AD96: 57397.67 | AE96: 33803.54 | AF96: 55348.85 | AG96: 52875.98 | AH96: 87837.58 | AI96: 80466.49 | AQ96: 57397.67 | AR96: 33803.54 | AS96: 55348.85 | AT96: 52875.98 | AU96: 87837.58 | AV96: 80466.49
A97: 193 | B97: =LOOKUP(A97,'DOE - FIPStoPayeeCodeConvTable'!$A$3:$A$213,'DOE - FIPStoPayeeCodeConvTable'!$B$3:$B$213) -> Westmoreland Co | I97: 33228.3 | J97: 24872.28 | K97: 20666.32 | L97: 35021.5 | M97: 55322.4 | N97: 16021.7 | S97: 185132.5 | U97: 104044.47 | V97: 81088.03 | W97: =LOOKUP(A97,'DOE - FIPStoPayeeCodeConvTable'!$A$3:$A$213,'DOE - FIPStoPayeeCodeConvTable'!$E$3:$E$213) -> 0.3025 | X97: 0.378125 | Y97: 30661.41 | Z97: 50426.62 | AD97: 33228.3 | AE97: 24872.28 | AF97: 20666.32 | AG97: 35021.5 | AH97: 55322.4 | AI97: 16021.7 | AQ97: 33228.3 | AR97: 24872.28 | AS97: 20666.32 | AT97: 35021.5 | AU97: 55322.4 | AV97: 16021.7
A98: 195 | B98: =LOOKUP(A98,'DOE - FIPStoPayeeCodeConvTable'!$A$3:$A$213,'DOE - FIPStoPayeeCodeConvTable'!$B$3:$B$213) -> Wise Co | I98: 5292.31 | J98: 2624.13 | K98: 3207.27 | L98: 1263.47 | M98: 10668.84 | N98: 10966.5 | S98: 34022.52 | U98: 19120.66 | V98: 14901.86 | W98: =LOOKUP(A98,'DOE - FIPStoPayeeCodeConvTable'!$A$3:$A$213,'DOE - FIPStoPayeeCodeConvTable'!$E$3:$E$213) -> 0.2755 | X98: 0.344375 | Y98: 5131.83 | Z98: 9770.03 | AD98: 5292.31 | AE98: 2624.13 | AF98: 3207.27 | AG98: 1263.47 | AH98: 10668.84 | AI98: 10966.5 | AQ98: 5292.31 | AR98: 2624.13 | AS98: 3207.27 | AT98: 1263.47 | AU98: 10668.84 | AV98: 10966.5
A99: 197 | B99: =LOOKUP(A99,'DOE - FIPStoPayeeCodeConvTable'!$A$3:$A$213,'DOE - FIPStoPayeeCodeConvTable'!$B$3:$B$213) -> Wythe Co | I99: 33051.97 | J99: 11018 | K99: 37987.73 | L99: 73584.5 | M99: 36202 | N99: 48400.5 | S99: 240244.7 | U99: 135017.52 | V99: 105227.18 | W99: =LOOKUP(A99,'DOE - FIPStoPayeeCodeConvTable'!$A$3:$A$213,'DOE - FIPStoPayeeCodeConvTable'!$E$3:$E$213) -> 0.2708 | X99: 0.3385 | Y99: 35619.4 | Z99: 69607.78 | AD99: 33051.97 | AE99: 11018 | AF99: 37987.73 | AG99: 73584.5 | AH99: 36202 | AI99: 48400.5 | AQ99: 33051.97 | AR99: 11018 | AS99: 37987.73 | AT99: 73584.5 | AU99: 36202 | AV99: 48400.5
A100: 199 | B100: =LOOKUP(A100,'DOE - FIPStoPayeeCodeConvTable'!$A$3:$A$213,'DOE - FIPStoPayeeCodeConvTable'!$B$3:$B$213) -> York Co | I100: 27938.5 | J100: 10231 | K100: 13806.92 | L100: 0 | M100: 12198.5 | N100: 1755 | S100: 65929.92 | U100: 37052.62 | V100: 28877.3 | W100: =LOOKUP(A100,'DOE - FIPStoPayeeCodeConvTable'!$A$3:$A$213,'DOE - FIPStoPayeeCodeConvTable'!$E$3:$E$213) -> 0.3888 | X100: 0.486 | Y100: 14034.37 | Z100: 14842.93 | AD100: 27938.5 | AE100: 10231 | AF100: 13806.92 | AG100: 0 | AH100: 12198.5 | AI100: 1755 | AQ100: 27938.5 | AR100: 10231 | AS100: 13806.92 | AT100: 0 | AU100: 12198.5 | AV100: 1755
A101: 510 | B101: =LOOKUP(A101,'DOE - FIPStoPayeeCodeConvTable'!$A$3:$A$213,'DOE - FIPStoPayeeCodeConvTable'!$B$3:$B$213) -> Alexandria City | I101: 2317.87 | J101: 5619.24 | K101: 40137 | L101: 42498 | M101: 25768.88 | N101: 3148 | S101: =SUM(C101:R101) -> 119488.99 | U101: 67152.81 | V101: 52336.18 | W101: =LOOKUP(A101,'DOE - FIPStoPayeeCodeConvTable'!$A$3:$A$213,'DOE - FIPStoPayeeCodeConvTable'!$E$3:$E$213) -> 0.5309 | X101: 0.663625 | Y101: 34731.6 | Z101: 17604.58 | AD101: 2317.87 | AE101: 5619.24 | AF101: 40137 | AG101: 42498 | AH101: 25768.88 | AI101: 3148 | AQ101: 2317.87 | AR101: 5619.24 | AS101: 40137 | AT101: 42498 | AU101: 25768.88 | AV101: 3148
A102: 520 | B102: =LOOKUP(A102,'DOE - FIPStoPayeeCodeConvTable'!$A$3:$A$213,'DOE - FIPStoPayeeCodeConvTable'!$B$3:$B$213) -> Bristol City | I102: 31796.49 | J102: 21716.45 | K102: 24504.09 | L102: 39716.77 | M102: 43299.86 | N102: 14051.77 | S102: 175085.43 | U102: 98398.01 | V102: 76687.42 | W102: =LOOKUP(A102,'DOE - FIPStoPayeeCodeConvTable'!$A$3:$A$213,'DOE - FIPStoPayeeCodeConvTable'!$E$3:$E$213) -> 0.2547 | X102: 0.318375 | Y102: 24415.36 | Z102: 52272.06 | AD102: 31796.49 | AE102: 21716.45 | AF102: 24504.09 | AG102: 39716.77 | AH102: 43299.86 | AI102: 14051.77 | AQ102: 31796.49 | AR102: 21716.45 | AS102: 24504.09 | AT102: 39716.77 | AU102: 43299.86 | AV102: 14051.77
A103: 530 | B103: =LOOKUP(A103,'DOE - FIPStoPayeeCodeConvTable'!$A$3:$A$213,'DOE - FIPStoPayeeCodeConvTable'!$B$3:$B$213) -> Buena Vista City | I103: 8657 | J103: 18494.5 | K103: 33821.72 | L103: 24207.82 | M103: 43185.3 | N103: 33055.91 | S103: 161422.25 | U103: 90719.3 | V103: 70702.95 | W103: =LOOKUP(A103,'DOE - FIPStoPayeeCodeConvTable'!$A$3:$A$213,'DOE - FIPStoPayeeCodeConvTable'!$E$3:$E$213) -> 0.2329 | X103: 0.291125 | Y103: 20583.4 | Z103: 50119.55 | AD103: 8657 | AE103: 18494.5 | AF103: 33821.72 | AG103: 24207.82 | AH103: 43185.3 | AI103: 33055.91 | AQ103: 8657 | AR103: 18494.5 | AS103: 33821.72 | AT103: 24207.82 | AU103: 43185.3 | AV103: 33055.91
A104: 540 | B104: =LOOKUP(A104,'DOE - FIPStoPayeeCodeConvTable'!$A$3:$A$213,'DOE - FIPStoPayeeCodeConvTable'!$B$3:$B$213) -> Charlottesville City | I104: 38265.14 | J104: 78332.34 | K104: -58429.98 | L104: 26352.4 | M104: 31820.64 | N104: -6363.12 | S104: 109977.42 | U104: 61807.31 | V104: 48170.11 | W104: =LOOKUP(A104,'DOE - FIPStoPayeeCodeConvTable'!$A$3:$A$213,'DOE - FIPStoPayeeCodeConvTable'!$E$3:$E$213) -> 0.3068 | X104: 0.3835 | Y104: 18473.24 | Z104: 29696.87 | AD104: 38265.14 | AE104: 78332.34 | AF104: -58429.98 | AG104: 26352.4 | AH104: 31820.64 | AI104: -6363.12 | AQ104: 38265.14 | AR104: 78332.34 | AS104: -58429.98 | AT104: 26352.4 | AU104: 31820.64 | AV104: -6363.12
A105: 550 | B105: =LOOKUP(A105,'DOE - FIPStoPayeeCodeConvTable'!$A$3:$A$213,'DOE - FIPStoPayeeCodeConvTable'!$B$3:$B$213) -> Chesapeake City | I105: 7311 | J105: 17329.14 | K105: 9065.64 | L105: 0 | M105: 3947.94 | N105: 0 | S105: 37653.72 | U105: 21161.39 | V105: 16492.33 | W105: =LOOKUP(A105,'DOE - FIPStoPayeeCodeConvTable'!$A$3:$A$213,'DOE - FIPStoPayeeCodeConvTable'!$E$3:$E$213) -> 0.3715 | X105: 0.464375 | Y105: 7658.63 | Z105: 8833.7 | AD105: 7311 | AE105: 17329.14 | AF105: 9065.64 | AG105: 0 | AH105: 3947.94 | AI105: 0 | AQ105: 7311 | AR105: 17329.14 | AS105: 9065.64 | AT105: 0 | AU105: 3947.94 | AV105: 0
A106: 570 | B106: =LOOKUP(A106,'DOE - FIPStoPayeeCodeConvTable'!$A$3:$A$213,'DOE - FIPStoPayeeCodeConvTable'!$B$3:$B$213) -> Colonial Heights City | I106: 16090.37 | J106: 5682.52 | K106: 2317.87 | L106: 5383.44 | M106: 0 | N106: 0 | S106: 29474.2 | U106: 16564.5 | V106: 12909.7 | W106: =LOOKUP(A106,'DOE - FIPStoPayeeCodeConvTable'!$A$3:$A$213,'DOE - FIPStoPayeeCodeConvTable'!$E$3:$E$213) -> 0.4027 | X106: 0.503375 | Y106: 6498.42 | Z106: 6411.28 | AD106: 16090.37 | AE106: 5682.52 | AF106: 2317.87 | AG106: 5383.44 | AH106: 0 | AI106: 0 | AQ106: 16090.37 | AR106: 5682.52 | AS106: 2317.87 | AT106: 5383.44 | AU106: 0 | AV106: 0
A107: 580 | B107: =LOOKUP(A107,'DOE - FIPStoPayeeCodeConvTable'!$A$3:$A$213,'DOE - FIPStoPayeeCodeConvTable'!$B$3:$B$213) -> Covington City | I107: 12198.5 | J107: 0 | K107: 12198.5 | L107: 11411.5 | M107: 11805 | N107: 0 | S107: 47613.5 | U107: 26758.79 | V107: 20854.71 | W107: =LOOKUP(A107,'DOE - FIPStoPayeeCodeConvTable'!$A$3:$A$213,'DOE - FIPStoPayeeCodeConvTable'!$E$3:$E$213) -> 0.2496 | X107: 0.312 | Y107: 6506.67 | Z107: 14348.04 | AD107: 12198.5 | AE107: 0 | AF107: 12198.5 | AG107: 11411.5 | AH107: 11805 | AI107: 0 | AQ107: 12198.5 | AR107: 0 | AS107: 12198.5 | AT107: 11411.5 | AU107: 11805 | AV107: 0
A108: 590 | B108: =LOOKUP(A108,'DOE - FIPStoPayeeCodeConvTable'!$A$3:$A$213,'DOE - FIPStoPayeeCodeConvTable'!$B$3:$B$213) -> Danville City | I108: 45439.74 | J108: 13686.58 | K108: 45700.14 | L108: 68164.68 | M108: 72572.68 | N108: 33558.6 | S108: 279122.42 | U108: 156866.8 | V108: 122255.62 | W108: =LOOKUP(A108,'DOE - FIPStoPayeeCodeConvTable'!$A$3:$A$213,'DOE - FIPStoPayeeCodeConvTable'!$E$3:$E$213) -> 0.2223 | X108: 0.277875 | Y108: 33971.78 | Z108: 88283.84 | AD108: 45439.74 | AE108: 13686.58 | AF108: 45700.14 | AG108: 68164.68 | AH108: 72572.68 | AI108: 33558.6 | AQ108: 45439.74 | AR108: 13686.58 | AS108: 45700.14 | AT108: 68164.68 | AU108: 72572.68 | AV108: 33558.6
A109: 620 | B109: =LOOKUP(A109,'DOE - FIPStoPayeeCodeConvTable'!$A$3:$A$213,'DOE - FIPStoPayeeCodeConvTable'!$B$3:$B$213) -> Franklin City | I109: 2188.29 | J109: 1058.85 | K109: 3176.55 | L109: 2188.29 | M109: 2117.7 | N109: 33917.62 | S109: 44647.3 | U109: 25091.78 | V109: 19555.52 | W109: =LOOKUP(A109,'DOE - FIPStoPayeeCodeConvTable'!$A$3:$A$213,'DOE - FIPStoPayeeCodeConvTable'!$E$3:$E$213) -> 0.371 | X109: 0.46375 | Y109: 9068.87 | Z109: 10486.65 | AD109: 2188.29 | AE109: 1058.85 | AF109: 3176.55 | AG109: 2188.29 | AH109: 2117.7 | AI109: 33917.62 | AQ109: 2188.29 | AR109: 1058.85 | AS109: 3176.55 | AT109: 2188.29 | AU109: 2117.7 | AV109: 33917.62
A110: 630 | B110: =LOOKUP(A110,'DOE - FIPStoPayeeCodeConvTable'!$A$3:$A$213,'DOE - FIPStoPayeeCodeConvTable'!$B$3:$B$213) -> Fredericksburg City | I110: 28011.74 | J110: 25796.96 | K110: 13013.58 | L110: 9065.64 | M110: 6814.24 | N110: 53909.5 | S110: 136611.66 | U110: 76775.75 | V110: 59835.91 | W110: =LOOKUP(A110,'DOE - FIPStoPayeeCodeConvTable'!$A$3:$A$213,'DOE - FIPStoPayeeCodeConvTable'!$E$3:$E$213) -> 0.3441 | X110: 0.430125 | Y110: 25736.92 | Z110: 34098.99 | AD110: 28011.74 | AE110: 25796.96 | AF110: 13013.58 | AG110: 9065.64 | AH110: 6814.24 | AI110: 53909.5 | AQ110: 28011.74 | AR110: 25796.96 | AS110: 13013.58 | AT110: 9065.64 | AU110: 6814.24 | AV110: 53909.5
A111: 640 | B111: =LOOKUP(A111,'DOE - FIPStoPayeeCodeConvTable'!$A$3:$A$213,'DOE - FIPStoPayeeCodeConvTable'!$B$3:$B$213) -> Galax City | I111: 6500.32 | J111: 11617.5 | K111: 6287.46 | L111: 3428.56 | M111: 3655.5 | N111: 8042.1 | S111: 39531.44 | U111: 22216.67 | V111: 17314.77 | W111: =LOOKUP(A111,'DOE - FIPStoPayeeCodeConvTable'!$A$3:$A$213,'DOE - FIPStoPayeeCodeConvTable'!$E$3:$E$213) -> 0.3146 | X111: 0.39325 | Y111: 6809.03 | Z111: 10505.74 | AD111: 6500.32 | AE111: 11617.5 | AF111: 6287.46 | AG111: 3428.56 | AH111: 3655.5 | AI111: 8042.1 | AQ111: 6500.32 | AR111: 11617.5 | AS111: 6287.46 | AT111: 3428.56 | AU111: 3655.5 | AV111: 8042.1
A112: 650 | B112: =LOOKUP(A112,'DOE - FIPStoPayeeCodeConvTable'!$A$3:$A$213,'DOE - FIPStoPayeeCodeConvTable'!$B$3:$B$213) -> Hampton City | I112: 0 | J112: 0 | K112: 0 | L112: 0 | M112: 0 | N112: 0 | S112: 0 | U112: 0 | V112: 0 | W112: =LOOKUP(A112,'DOE - FIPStoPayeeCodeConvTable'!$A$3:$A$213,'DOE - FIPStoPayeeCodeConvTable'!$E$3:$E$213) -> 0.3223 | X112: 0.402875 | Y112: 0 | Z112: 0 | AD112: 0 | AE112: 0 | AF112: 0 | AG112: 0 | AH112: 0 | AI112: 0 | AQ112: 0 | AR112: 0 | AS112: 0 | AT112: 0 | AU112: 0 | AV112: 0
A113: 660 | B113: =LOOKUP(A113,'DOE - FIPStoPayeeCodeConvTable'!$A$3:$A$213,'DOE - FIPStoPayeeCodeConvTable'!$B$3:$B$213) -> Harrisonburg City | I113: 180549.59 | J113: 89767.02 | K113: 232147.81 | L113: 192926.44 | M113: 355462.02 | N113: 141115.94 | S113: 1191968.82 | U113: 669886.48 | V113: 522082.34 | W113: =LOOKUP(A113,'DOE - FIPStoPayeeCodeConvTable'!$A$3:$A$213,'DOE - FIPStoPayeeCodeConvTable'!$E$3:$E$213) -> 0.3808 | X113: 0.476 | Y113: 248511.19 | Z113: 273571.15 | AD113: 180549.59 | AE113: 89767.02 | AF113: 232147.81 | AG113: 192926.44 | AH113: 355462.02 | AI113: 141115.94 | AQ113: 180549.59 | AR113: 89767.02 | AS113: 232147.81 | AT113: 192926.44 | AU113: 355462.02 | AV113: 141115.94
A114: 670 | B114: =LOOKUP(A114,'DOE - FIPStoPayeeCodeConvTable'!$A$3:$A$213,'DOE - FIPStoPayeeCodeConvTable'!$B$3:$B$213) -> Hopewell City | I114: 0 | J114: 0 | K114: 0 | L114: 0 | M114: 0 | N114: 0 | S114: 0 | U114: 0 | V114: 0 | W114: =LOOKUP(A114,'DOE - FIPStoPayeeCodeConvTable'!$A$3:$A$213,'DOE - FIPStoPayeeCodeConvTable'!$E$3:$E$213) -> 0.2667 | X114: 0.333375 | Y114: 0 | Z114: 0 | AD114: 0 | AE114: 0 | AF114: 0 | AG114: 0 | AH114: 0 | AI114: 0 | AQ114: 0 | AR114: 0 | AS114: 0 | AT114: 0 | AU114: 0 | AV114: 0
A115: 678 | B115: =LOOKUP(A115,'DOE - FIPStoPayeeCodeConvTable'!$A$3:$A$213,'DOE - FIPStoPayeeCodeConvTable'!$B$3:$B$213) -> Lexington City | I115: 0 | J115: 0 | K115: 0 | L115: 5902.5 | M115: 0 | N115: 0 | S115: 5902.5 | U115: 3317.21 | V115: 2585.29 | W115: =LOOKUP(A115,'DOE - FIPStoPayeeCodeConvTable'!$A$3:$A$213,'DOE - FIPStoPayeeCodeConvTable'!$E$3:$E$213) -> 0.3302 | X115: 0.41275 | Y115: 1067.08 | Z115: 1518.21 | AD115: 0 | AE115: 0 | AF115: 0 | AG115: 5902.5 | AH115: 0 | AI115: 0 | AQ115: 0 | AR115: 0 | AS115: 0 | AT115: 5902.5 | AU115: 0 | AV115: 0
A116: 680 | B116: =LOOKUP(A116,'DOE - FIPStoPayeeCodeConvTable'!$A$3:$A$213,'DOE - FIPStoPayeeCodeConvTable'!$B$3:$B$213) -> Lynchburg City | I116: 166782.2 | J116: 56565.74 | K116: 207624.59 | L116: 180914.5 | M116: 206041.16 | N116: 119657.85 | S116: 937586.04 | U116: 526923.35 | V116: 410662.69 | W116: =LOOKUP(A116,'DOE - FIPStoPayeeCodeConvTable'!$A$3:$A$213,'DOE - FIPStoPayeeCodeConvTable'!$E$3:$E$213) -> 0.2736 | X116: 0.342 | Y116: 140446.64 | Z116: 270216.05 | AD116: 166782.2 | AE116: 56565.74 | AF116: 207624.59 | AG116: 180914.5 | AH116: 206041.16 | AI116: 119657.85 | AQ116: 166782.2 | AR116: 56565.74 | AS116: 207624.59 | AT116: 180914.5 | AU116: 206041.16 | AV116: 119657.85
A117: 683 | B117: =LOOKUP(A117,'DOE - FIPStoPayeeCodeConvTable'!$A$3:$A$213,'DOE - FIPStoPayeeCodeConvTable'!$B$3:$B$213) -> Manassas City | I117: 15022.02 | J117: 13922.64 | K117: 12501.02 | L117: 35808.5 | M117: 11805 | N117: 7870 | S117: 96929.18 | U117: 54474.2 | V117: 42454.98 | W117: =LOOKUP(A117,'DOE - FIPStoPayeeCodeConvTable'!$A$3:$A$213,'DOE - FIPStoPayeeCodeConvTable'!$E$3:$E$213) -> 0.4168 | X117: 0.521 | Y117: 22119.04 | Z117: 20335.94 | AD117: 15022.02 | AE117: 13922.64 | AF117: 12501.02 | AG117: 35808.5 | AH117: 11805 | AI117: 7870 | AQ117: 15022.02 | AR117: 13922.64 | AS117: 12501.02 | AT117: 35808.5 | AU117: 11805 | AV117: 7870
A118: 685 | B118: =LOOKUP(A118,'DOE - FIPStoPayeeCodeConvTable'!$A$3:$A$213,'DOE - FIPStoPayeeCodeConvTable'!$B$3:$B$213) -> Manassas Park City | I118: 0 | J118: 0 | K118: 0 | L118: 3541.5 | M118: 22429.5 | N118: 3655.5 | S118: 29626.5 | U118: 16650.09 | V118: 12976.41 | W118: =LOOKUP(A118,'DOE - FIPStoPayeeCodeConvTable'!$A$3:$A$213,'DOE - FIPStoPayeeCodeConvTable'!$E$3:$E$213) -> 0.4273 | X118: 0.534125 | Y118: 6931.02 | Z118: 6045.39 | AD118: 0 | AE118: 0 | AF118: 0 | AG118: 3541.5 | AH118: 22429.5 | AI118: 3655.5 | AQ118: 0 | AR118: 0 | AS118: 0 | AT118: 3541.5 | AU118: 22429.5 | AV118: 3655.5
A119: 690 | B119: =LOOKUP(A119,'DOE - FIPStoPayeeCodeConvTable'!$A$3:$A$213,'DOE - FIPStoPayeeCodeConvTable'!$B$3:$B$213) -> Martinsville City | I119: 47652.32 | J119: 4532.82 | K119: 21169.42 | L119: 7416.2 | M119: 18238.68 | N119: 31473.66 | S119: 130483.1 | U119: 73331.5 | V119: 57151.6 | W119: =LOOKUP(A119,'DOE - FIPStoPayeeCodeConvTable'!$A$3:$A$213,'DOE - FIPStoPayeeCodeConvTable'!$E$3:$E$213) -> 0.3321 | X119: 0.415125 | Y119: 23725.06 | Z119: 33426.54 | AD119: 47652.32 | AE119: 4532.82 | AF119: 21169.42 | AG119: 7416.2 | AH119: 18238.68 | AI119: 31473.66 | AQ119: 47652.32 | AR119: 4532.82 | AS119: 21169.42 | AT119: 7416.2 | AU119: 18238.68 | AV119: 31473.66
A120: 700 | B120: =LOOKUP(A120,'DOE - FIPStoPayeeCodeConvTable'!$A$3:$A$213,'DOE - FIPStoPayeeCodeConvTable'!$B$3:$B$213) -> Newport News City | I120: 31609.14 | J120: 23376.78 | K120: 46500.22 | L120: 54891.96 | M120: 31650.3 | N120: 19273.86 | S120: 207302.26 | U120: 116503.87 | V120: 90798.39 | W120: =LOOKUP(A120,'DOE - FIPStoPayeeCodeConvTable'!$A$3:$A$213,'DOE - FIPStoPayeeCodeConvTable'!$E$3:$E$213) -> 0.2773 | X120: 0.346625 | Y120: 31472.99 | Z120: 59325.4 | AD120: 31609.14 | AE120: 23376.78 | AF120: 46500.22 | AG120: 54891.96 | AH120: 31650.3 | AI120: 19273.86 | AQ120: 31609.14 | AR120: 23376.78 | AS120: 46500.22 | AT120: 54891.96 | AU120: 31650.3 | AV120: 19273.86
A121: 710 | B121: =LOOKUP(A121,'DOE - FIPStoPayeeCodeConvTable'!$A$3:$A$213,'DOE - FIPStoPayeeCodeConvTable'!$B$3:$B$213) -> Norfolk City | I121: 132678.6 | J121: 74885.3 | K121: 178266.76 | L121: 73434.14 | M121: 137009.3 | N121: 52026.24 | S121: 648300.34 | U121: 364344.79 | V121: 283955.55 | W121: =LOOKUP(A121,'DOE - FIPStoPayeeCodeConvTable'!$A$3:$A$213,'DOE - FIPStoPayeeCodeConvTable'!$E$3:$E$213) -> 0.2455 | X121: 0.306875 | Y121: 87138.86 | Z121: 196816.69 | AD121: 132678.6 | AE121: 74885.3 | AF121: 178266.76 | AG121: 73434.14 | AH121: 137009.3 | AI121: 52026.24 | AQ121: 132678.6 | AR121: 74885.3 | AS121: 178266.76 | AT121: 73434.14 | AU121: 137009.3 | AV121: 52026.24
A122: 720 | B122: =LOOKUP(A122,'DOE - FIPStoPayeeCodeConvTable'!$A$3:$A$213,'DOE - FIPStoPayeeCodeConvTable'!$B$3:$B$213) -> Norton City | I122: 0 | J122: 0 | K122: 0 | L122: 0 | M122: 0 | N122: 0 | S122: 0 | U122: 0 | V122: 0 | W122: =LOOKUP(A122,'DOE - FIPStoPayeeCodeConvTable'!$A$3:$A$213,'DOE - FIPStoPayeeCodeConvTable'!$E$3:$E$213) -> 0.3254 | X122: 0.40675 | Y122: 0 | Z122: 0 | AD122: 0 | AE122: 0 | AF122: 0 | AG122: 0 | AH122: 0 | AI122: 0 | AQ122: 0 | AR122: 0 | AS122: 0 | AT122: 0 | AU122: 0 | AV122: 0
A123: 730 | B123: =LOOKUP(A123,'DOE - FIPStoPayeeCodeConvTable'!$A$3:$A$213,'DOE - FIPStoPayeeCodeConvTable'!$B$3:$B$213) -> Petersburg City | I123: 3663.73 | J123: 2611.83 | K123: 5494.42 | L123: 5179.09 | M123: 19431.7 | N123: 11805 | S123: 48185.77 | U123: 27080.4 | V123: 21105.37 | W123: =LOOKUP(A123,'DOE - FIPStoPayeeCodeConvTable'!$A$3:$A$213,'DOE - FIPStoPayeeCodeConvTable'!$E$3:$E$213) -> 0.3535 | X123: 0.441875 | Y123: 9325.94 | Z123: 11779.43 | AD123: 3663.73 | AE123: 2611.83 | AF123: 5494.42 | AG123: 5179.09 | AH123: 19431.7 | AI123: 11805 | AQ123: 3663.73 | AR123: 2611.83 | AS123: 5494.42 | AT123: 5179.09 | AU123: 19431.7 | AV123: 11805
A124: 735 | B124: =LOOKUP(A124,'DOE - FIPStoPayeeCodeConvTable'!$A$3:$A$213,'DOE - FIPStoPayeeCodeConvTable'!$B$3:$B$213) -> Poquoson City | I124: 8263.5 | J124: 5902.5 | K124: 17707.5 | L124: 12198.5 | M124: 11805 | N124: 0 | S124: 55877 | U124: 31402.87 | V124: 24474.13 | W124: =LOOKUP(A124,'DOE - FIPStoPayeeCodeConvTable'!$A$3:$A$213,'DOE - FIPStoPayeeCodeConvTable'!$E$3:$E$213) -> 0.2787 | X124: 0.348375 | Y124: 8526.18 | Z124: 15947.95 | AD124: 8263.5 | AE124: 5902.5 | AF124: 17707.5 | AG124: 12198.5 | AH124: 11805 | AI124: 0 | AQ124: 8263.5 | AR124: 5902.5 | AS124: 17707.5 | AT124: 12198.5 | AU124: 11805 | AV124: 0
A125: 740 | B125: =LOOKUP(A125,'DOE - FIPStoPayeeCodeConvTable'!$A$3:$A$213,'DOE - FIPStoPayeeCodeConvTable'!$B$3:$B$213) -> Portsmouth City | I125: 4371 | J125: 4371 | K125: 4089 | L125: 4517.22 | M125: 0 | N125: 8601 | S125: 25949.22 | U125: 14583.46 | V125: 11365.76 | W125: =LOOKUP(A125,'DOE - FIPStoPayeeCodeConvTable'!$A$3:$A$213,'DOE - FIPStoPayeeCodeConvTable'!$E$3:$E$213) -> 0.2605 | X125: 0.325625 | Y125: 3700.98 | Z125: 7664.78 | AD125: 4371 | AE125: 4371 | AF125: 4089 | AG125: 4517.22 | AH125: 0 | AI125: 8601 | AQ125: 4371 | AR125: 4371 | AS125: 4089 | AT125: 4517.22 | AU125: 0 | AV125: 8601
A126: 750 | B126: =LOOKUP(A126,'DOE - FIPStoPayeeCodeConvTable'!$A$3:$A$213,'DOE - FIPStoPayeeCodeConvTable'!$B$3:$B$213) -> Radford City | I126: 27151.5 | J126: 3541.5 | K126: 22429.5 | L126: 23216.5 | M126: 14211.16 | N126: 16933.44 | S126: 107483.6 | U126: 60405.78 | V126: 47077.82 | W126: =LOOKUP(A126,'DOE - FIPStoPayeeCodeConvTable'!$A$3:$A$213,'DOE - FIPStoPayeeCodeConvTable'!$E$3:$E$213) -> 0.2035 | X126: 0.254375 | Y126: 11975.42 | Z126: 35102.4 | AD126: 27151.5 | AE126: 3541.5 | AF126: 22429.5 | AG126: 23216.5 | AH126: 14211.16 | AI126: 16933.44 | AQ126: 27151.5 | AR126: 3541.5 | AS126: 22429.5 | AT126: 23216.5 | AU126: 14211.16 | AV126: 16933.44
A127: 760 | B127: =LOOKUP(A127,'DOE - FIPStoPayeeCodeConvTable'!$A$3:$A$213,'DOE - FIPStoPayeeCodeConvTable'!$B$3:$B$213) -> Richmond City | I127: 276147.83 | J127: 186579.76 | K127: 323187.44 | L127: 211745.22 | M127: 327055.8 | N127: 154939.03 | S127: 1479655.08 | U127: 831566.15 | V127: 648088.93 | W127: =LOOKUP(A127,'DOE - FIPStoPayeeCodeConvTable'!$A$3:$A$213,'DOE - FIPStoPayeeCodeConvTable'!$E$3:$E$213) -> 0.3691 | X127: 0.461375 | Y127: 299012.03 | Z127: 349076.9 | AD127: 276147.83 | AE127: 186579.76 | AF127: 323187.44 | AG127: 211745.22 | AH127: 327055.8 | AI127: 154939.03 | AQ127: 276147.83 | AR127: 186579.76 | AS127: 323187.44 | AT127: 211745.22 | AU127: 327055.8 | AV127: 154939.03
A128: 770 | B128: =LOOKUP(A128,'DOE - FIPStoPayeeCodeConvTable'!$A$3:$A$213,'DOE - FIPStoPayeeCodeConvTable'!$B$3:$B$213) -> Roanoke City | I128: 168775.29 | J128: 86951.17 | K128: 179400.08 | L128: 143042.25 | M128: 193486.13 | N128: 124940.63 | S128: 896595.55 | U128: 503886.7 | V128: 392708.85 | W128: =LOOKUP(A128,'DOE - FIPStoPayeeCodeConvTable'!$A$3:$A$213,'DOE - FIPStoPayeeCodeConvTable'!$E$3:$E$213) -> 0.3072 | X128: 0.384 | Y128: 150800.2 | Z128: 241908.65 | AD128: 168775.29 | AE128: 86951.17 | AF128: 179400.08 | AG128: 143042.25 | AH128: 193486.13 | AI128: 124940.63 | AQ128: 168775.29 | AR128: 86951.17 | AS128: 179400.08 | AT128: 143042.25 | AU128: 193486.13 | AV128: 124940.63
A129: 775 | B129: =LOOKUP(A129,'DOE - FIPStoPayeeCodeConvTable'!$A$3:$A$213,'DOE - FIPStoPayeeCodeConvTable'!$B$3:$B$213) -> Salem City | I129: 54623.52 | J129: 18597.76 | K129: 15673.36 | L129: 15412.56 | M129: 10466.7 | N129: 10815.59 | S129: 125589.49 | U129: 70581.29 | V129: 55008.2 | W129: =LOOKUP(A129,'DOE - FIPStoPayeeCodeConvTable'!$A$3:$A$213,'DOE - FIPStoPayeeCodeConvTable'!$E$3:$E$213) -> 0.3513 | X129: 0.439125 | Y129: 24155.48 | Z129: 30852.72 | AD129: 54623.52 | AE129: 18597.76 | AF129: 15673.36 | AG129: 15412.56 | AH129: 10466.7 | AI129: 10815.59 | AQ129: 54623.52 | AR129: 18597.76 | AS129: 15673.36 | AT129: 15412.56 | AU129: 10466.7 | AV129: 10815.59
A130: 790 | B130: =LOOKUP(A130,'DOE - FIPStoPayeeCodeConvTable'!$A$3:$A$213,'DOE - FIPStoPayeeCodeConvTable'!$B$3:$B$213) -> Staunton City | I130: 2023.97 | J130: 13295.2 | K130: 9812.87 | L130: 18875.89 | M130: 37788.77 | N130: 66319.75 | S130: 148116.45 | U130: 83241.44 | V130: 64875.01 | W130: =LOOKUP(A130,'DOE - FIPStoPayeeCodeConvTable'!$A$3:$A$213,'DOE - FIPStoPayeeCodeConvTable'!$E$3:$E$213) -> 0.2699 | X130: 0.337375 | Y130: 21887.21 | Z130: 42987.8 | AD130: 2023.97 | AE130: 13295.2 | AF130: 9812.87 | AG130: 18875.89 | AH130: 37788.77 | AI130: 66319.75 | AQ130: 2023.97 | AR130: 13295.2 | AS130: 9812.87 | AT130: 18875.89 | AU130: 37788.77 | AV130: 66319.75
A131: 800 | B131: =LOOKUP(A131,'DOE - FIPStoPayeeCodeConvTable'!$A$3:$A$213,'DOE - FIPStoPayeeCodeConvTable'!$B$3:$B$213) -> Suffolk City | I131: 15627.8 | J131: 23471.26 | K131: 53638.1 | L131: 80971.52 | M131: 41658.14 | N131: 10903.7 | S131: 226270.52 | U131: 127164.03 | V131: 99106.49 | W131: =LOOKUP(A131,'DOE - FIPStoPayeeCodeConvTable'!$A$3:$A$213,'DOE - FIPStoPayeeCodeConvTable'!$E$3:$E$213) -> 0.2432 | X131: 0.304 | Y131: 30128.37 | Z131: 68978.12 | AD131: 15627.8 | AE131: 23471.26 | AF131: 53638.1 | AG131: 80971.52 | AH131: 41658.14 | AI131: 10903.7 | AQ131: 15627.8 | AR131: 23471.26 | AS131: 53638.1 | AT131: 80971.52 | AU131: 41658.14 | AV131: 10903.7
A132: 810 | B132: =LOOKUP(A132,'DOE - FIPStoPayeeCodeConvTable'!$A$3:$A$213,'DOE - FIPStoPayeeCodeConvTable'!$B$3:$B$213) -> Virginia Beach City | I132: 192029.08 | J132: 197326.26 | K132: 316277.78 | L132: 246410.2 | M132: 239961.65 | N132: 211918.95 | S132: 1403923.92 | U132: 789005.24 | V132: 614918.68 | W132: =LOOKUP(A132,'DOE - FIPStoPayeeCodeConvTable'!$A$3:$A$213,'DOE - FIPStoPayeeCodeConvTable'!$E$3:$E$213) -> 0.3569 | X132: 0.446125 | Y132: 274330.6 | Z132: 340588.08 | AD132: 192029.08 | AE132: 197326.26 | AF132: 316277.78 | AG132: 246410.2 | AH132: 239961.65 | AI132: 211918.95 | AQ132: 192029.08 | AR132: 197326.26 | AS132: 316277.78 | AT132: 246410.2 | AU132: 239961.65 | AV132: 211918.95
A133: 820 | B133: =LOOKUP(A133,'DOE - FIPStoPayeeCodeConvTable'!$A$3:$A$213,'DOE - FIPStoPayeeCodeConvTable'!$B$3:$B$213) -> Waynesboro City | I133: 27695.14 | J133: 29230.98 | K133: 42874.6 | L133: 42567.02 | M133: 26352.4 | N133: -2210.86 | S133: 166509.28 | U133: 93578.22 | V133: =SUM(S133)-SUM(U133) -> 72931.06 | W133: =LOOKUP(A133,'DOE - FIPStoPayeeCodeConvTable'!$A$3:$A$213,'DOE - FIPStoPayeeCodeConvTable'!$E$3:$E$213) -> 0.3843 | X133: 0.480375 | Y133: 35034.26 | Z133: 37896.8 | AD133: 27695.14 | AE133: 29230.98 | AF133: 42874.6 | AG133: 42567.02 | AH133: 26352.4 | AI133: -2210.86 | AQ133: 27695.14 | AR133: 29230.98 | AS133: 42874.6 | AT133: 42567.02 | AU133: 26352.4 | AV133: -2210.86
A134: 830 | B134: =LOOKUP(A134,'DOE - FIPStoPayeeCodeConvTable'!$A$3:$A$213,'DOE - FIPStoPayeeCodeConvTable'!$B$3:$B$213) -> Williamsburg City | I134: 0 | J134: 0 | K134: 0 | L134: 0 | M134: 0 | N134: 0 | S134: 0 | U134: =ROUND($U$1*S134,2) -> 0 | V134: 0 | W134: =LOOKUP(A134,'DOE - FIPStoPayeeCodeConvTable'!$A$3:$A$213,'DOE - FIPStoPayeeCodeConvTable'!$E$3:$E$213) -> 0.4553 | X134: 0.569125 | Y134: 0 | Z134: 0 | AD134: 0 | AE134: 0 | AF134: 0 | AG134: 0 | AH134: 0 | AI134: 0 | AQ134: 0 | AR134: 0 | AS134: 0 | AT134: 0 | AU134: 0 | AV134: 0
A135: 840 | B135: =LOOKUP(A135,'DOE - FIPStoPayeeCodeConvTable'!$A$3:$A$213,'DOE - FIPStoPayeeCodeConvTable'!$B$3:$B$213) -> Winchester City | I135: 54440.68 | J135: 31615.48 | K135: 75713.36 | L135: 98265.4 | M135: 38913.54 | N135: 33271.26 | S135: 332219.72 | U135: 186707.48 | V135: 145512.24 | W135: =LOOKUP(A135,'DOE - FIPStoPayeeCodeConvTable'!$A$3:$A$213,'DOE - FIPStoPayeeCodeConvTable'!$E$3:$E$213) -> 0.4587 | X135: =$X$1*W135 -> 0.573375 | Y135: =ROUND(X135*V135,2) -> 83433.08 | Z135: =SUM(V135)-SUM(Y135) -> 62079.16 | AD135: 54440.68 | AE135: 31615.48 | AF135: 75713.36 | AG135: 98265.4 | AH135: 38913.54 | AI135: 33271.26 | AQ135: =+AD135+AJ135 -> 54440.68 | AR135: =+AE135+AK135 -> 31615.48 | AS135: =+AF135+AL135 -> 75713.36 | AT135: =+AG135+AM135 -> 98265.4 | AU135: =+AH135+AN135 -> 38913.54 | AV135: =+AI135+AO135 -> 33271.26

Sheet Regular (hidden)
A1: FY | B1: ='DOE - FIPStoPayeeCodeConvTable'!G1 -> 2020 | C1: MEDICAID ADJUSTMENTS--Regular PAYMENTS TO PROVIDERS | O1: ="Extended to be paided in this SFY = " & B1 -> Extended to be paided in this SFY = 2020 | T1: xx | U1: 0.5 | V1: 0.5 | W1: (POOL) | X1: 1.25
U2: FEDERAL | V2: STATE/ | W2: (RATE) | X2: Factor
A3: FIPS | S3: Grand | U3: MEDICAID | V3: LOCAL | W3: LOCAL | Y3: LOCAL | Z3: STATE
A4: CODE | B4: LOCALITY | C4: =TEXT("7/1/" & $B$1-1,"mmm-yyyy") -> Jul-2019 | D4: =TEXT("8/1/" & $B$1-1,"mmm-yyyy") -> Aug-2019 | E4: =TEXT("9/1/" & $B$1-1,"mmm-yyyy") -> Sep-2019 | F4: =TEXT("10/1/" & $B$1-1,"mmm-yyyy") -> Oct-2019 | G4: =TEXT("11/1/" & $B$1-1,"mmm-yyyy") -> Nov-2019 | H4: =TEXT("12/1/" & $B$1-1,"mmm-yyyy") -> Dec-2019 | I4: =TEXT("1/1/" & $B$1,"mmm-yyyy") -> Jan-2020 | J4: =TEXT("2/1/" & $B$1,"mmm-yyyy") -> Feb-2020 | K4: =TEXT("3/1/" & $B$1,"mmm-yyyy") -> Mar-2020 | L4: =TEXT("4/1/" & $B$1,"mmm-yyyy") -> Apr-2020 | M4: =TEXT("5/1/" & $B$1,"mmm-yyyy") -> May-2020 | N4: =TEXT("6/1/" & $B$1,"mmm-yyyy") -> Jun-2020 | O4: =TEXT("7/1/" & $B$1,"mmm-yyyy") -> Jul-2020 | P4: =TEXT("8/1/" & $B$1,"mmm-yyyy") -> Aug-2020 | Q4: =TEXT("9/1/" & $B$1,"mmm-yyyy") -> Sep-2020 | R4: =TEXT("10/1/" & $B$1,"mmm-yyyy") -> Oct-2020 | S4: Total | U4: RATE/Share | V4: SHARE | W4: MATCH Rate | Y4: MATCH | Z4: SHARE
A5: Totals | C5: =SUM(C6:C1201) -> 5774585.12 | D5: 5160372.98 | E5: =SUM(E6:E1201) -> 6003633.6 | F5: =SUM(F6:F1201) -> 7517744.86 | G5: =SUM(G6:G1201) -> 5517303.35 | H5: =SUM(H6:H1201) -> 8788628.41 | I5: 0 | J5: 0 | K5: =SUM(K6:K1200) -> 0 | L5: =SUM(L6:L1200) -> 0 | M5: =SUM(M6:M1200) -> 0 | N5: =SUM(N6:N1200) -> 0 | O5: 0 | P5: 0 | Q5: 0 | R5: 0 | S5: =SUM(C5:R5) -> 38762268.32 | T5: = | U5: =SUM(U6:U399) -> 19381134.32 | V5: =SUM(V6:V399) -> 19381134 | W5: = | Y5: =SUM(Y6:Y399) -> 8248834.97 | Z5: =SUM(Z6:Z399) -> 11132299.03
A6: 1 | B6: =LOOKUP(A6,'DOE - FIPStoPayeeCodeConvTable'!$A$3:$A$213,'DOE - FIPStoPayeeCodeConvTable'!$B$3:$B$213) -> Accomack Co | C6: 0 | D6: 14583.18 | E6: 15415.34 | F6: 11018 | G6: 0 | H6: 0 | S6: 41016.52 | U6: =ROUND($U$1*S6,2) -> 20508.26 | V6: =SUM(S6)-SUM(U6) -> 20508.26 | W6: =LOOKUP(A6,'DOE - FIPStoPayeeCodeConvTable'!$A$3:$A$213,'DOE - FIPStoPayeeCodeConvTable'!$E$3:$E$213) -> 0.2332 | X6: =$X$1*W6 -> 0.2915 | Y6: =ROUND(X6*V6,2) -> 5978.16 | Z6: =SUM(V6)-SUM(Y6) -> 14530.1
A7: 3 | B7: =LOOKUP(A7,'DOE - FIPStoPayeeCodeConvTable'!$A$3:$A$213,'DOE - FIPStoPayeeCodeConvTable'!$B$3:$B$213) -> Albemarle Co | C7: 183222.29 | D7: 94882.61 | E7: 90173.66 | F7: 105331.78 | G7: 36953 | H7: 81676 | S7: 592239.34 | U7: 296119.67 | V7: 296119.67 | W7: =LOOKUP(A7,'DOE - FIPStoPayeeCodeConvTable'!$A$3:$A$213,'DOE - FIPStoPayeeCodeConvTable'!$E$3:$E$213) -> 0.4474 | X7: =$X$1*W7 -> 0.55925 | Y7: =ROUND(X7*V7,2) -> 165604.93 | Z7: =SUM(V7)-SUM(Y7) -> 130514.74
A8: 5 | B8: =LOOKUP(A8,'DOE - FIPStoPayeeCodeConvTable'!$A$3:$A$213,'DOE - FIPStoPayeeCodeConvTable'!$B$3:$B$213) -> Alleghany Co | C8: 50337.66 | D8: 24213.32 | E8: 16877.54 | F8: 40403.53 | G8: 10466.7 | H8: 53158.25 | S8: 195457 | U8: 97728.5 | V8: 97728.5 | W8: =LOOKUP(A8,'DOE - FIPStoPayeeCodeConvTable'!$A$3:$A$213,'DOE - FIPStoPayeeCodeConvTable'!$E$3:$E$213) -> 0.1924 | X8: 0.2405 | Y8: 23503.7 | Z8: 74224.8
A9: 7 | B9: =LOOKUP(A9,'DOE - FIPStoPayeeCodeConvTable'!$A$3:$A$213,'DOE - FIPStoPayeeCodeConvTable'!$B$3:$B$213) -> Amelia Co | C9: 14704.7 | D9: 19722 | E9: 15814 | F9: 16133.5 | G9: 11805 | H9: 8263.5 | S9: 86442.7 | U9: 43221.35 | V9: 43221.35 | W9: =LOOKUP(A9,'DOE - FIPStoPayeeCodeConvTable'!$A$3:$A$213,'DOE - FIPStoPayeeCodeConvTable'!$E$3:$E$213) -> 0.3268 | X9: 0.4085 | Y9: 17655.92 | Z9: 25565.43
A10: 9 | B10: =LOOKUP(A10,'DOE - FIPStoPayeeCodeConvTable'!$A$3:$A$213,'DOE - FIPStoPayeeCodeConvTable'!$B$3:$B$213) -> Amherst Co | C10: 47898.47 | D10: 101174.28 | E10: 47255.2 | F10: 107852.2 | G10: 38211.62 | H10: 63342.7 | S10: 405734.47 | U10: 202867.24 | V10: 202867.23 | W10: =LOOKUP(A10,'DOE - FIPStoPayeeCodeConvTable'!$A$3:$A$213,'DOE - FIPStoPayeeCodeConvTable'!$E$3:$E$213) -> 0.2722 | X10: 0.34025 | Y10: 69025.58 | Z10: 133841.65
A11: 11 | B11: =LOOKUP(A11,'DOE - FIPStoPayeeCodeConvTable'!$A$3:$A$213,'DOE - FIPStoPayeeCodeConvTable'!$B$3:$B$213) -> Appomattox Co | C11: 78467.51 | D11: 60832.47 | E11: 15740 | F11: 118870.29 | G11: 29066.4 | H11: 217937.74 | S11: 520914.41 | U11: 260457.21 | V11: 260457.2 | W11: =LOOKUP(A11,'DOE - FIPStoPayeeCodeConvTable'!$A$3:$A$213,'DOE - FIPStoPayeeCodeConvTable'!$E$3:$E$213) -> 0.2639 | X11: 0.329875 | Y11: 85918.32 | Z11: 174538.88
A12: 13 | B12: =LOOKUP(A12,'DOE - FIPStoPayeeCodeConvTable'!$A$3:$A$213,'DOE - FIPStoPayeeCodeConvTable'!$B$3:$B$213) -> Arlington Co | C12: 13379 | D12: 7895.88 | E12: 43110.96 | F12: 25388.32 | G12: 41106.84 | H12: 49391.82 | S12: 180272.82 | U12: 90136.41 | V12: 90136.41 | W12: =LOOKUP(A12,'DOE - FIPStoPayeeCodeConvTable'!$A$3:$A$213,'DOE - FIPStoPayeeCodeConvTable'!$E$3:$E$213) -> 0.4602 | X12: 0.57525 | Y12: 51850.97 | Z12: 38285.44
A13: 15 | B13: =LOOKUP(A13,'DOE - FIPStoPayeeCodeConvTable'!$A$3:$A$213,'DOE - FIPStoPayeeCodeConvTable'!$B$3:$B$213) -> Augusta Co | C13: 2390.96 | D13: 46339.06 | E13: 67425.6 | F13: 101102.54 | G13: 38544.34 | H13: 152401.47 | S13: 408203.97 | U13: 204101.99 | V13: 204101.98 | W13: =LOOKUP(A13,'DOE - FIPStoPayeeCodeConvTable'!$A$3:$A$213,'DOE - FIPStoPayeeCodeConvTable'!$E$3:$E$213) -> 0.3302 | X13: 0.41275 | Y13: 84243.09 | Z13: 119858.89
A14: 17 | B14: =LOOKUP(A14,'DOE - FIPStoPayeeCodeConvTable'!$A$3:$A$213,'DOE - FIPStoPayeeCodeConvTable'!$B$3:$B$213) -> Bath Co | C14: 0 | D14: 0 | E14: 0 | F14: 0 | G14: 0 | H14: 0 | S14: 0 | U14: 0 | V14: 0 | W14: =LOOKUP(A14,'DOE - FIPStoPayeeCodeConvTable'!$A$3:$A$213,'DOE - FIPStoPayeeCodeConvTable'!$E$3:$E$213) -> 0.4278 | X14: 0.53475 | Y14: 0 | Z14: 0
A15: 19 | B15: =LOOKUP(A15,'DOE - FIPStoPayeeCodeConvTable'!$A$3:$A$213,'DOE - FIPStoPayeeCodeConvTable'!$B$3:$B$213) -> Bedford Co | C15: 159125.91 | D15: 298266.96 | E15: 278780.26 | F15: 273087.09 | G15: 188008.06 | H15: 330913.31 | S15: 1528181.59 | U15: 764090.8 | V15: 764090.79 | W15: =LOOKUP(A15,'DOE - FIPStoPayeeCodeConvTable'!$A$3:$A$213,'DOE - FIPStoPayeeCodeConvTable'!$E$3:$E$213) -> 0.31112 | X15: 0.3889 | Y15: 297154.91 | Z15: 466935.88
A16: 21 | B16: =LOOKUP(A16,'DOE - FIPStoPayeeCodeConvTable'!$A$3:$A$213,'DOE - FIPStoPayeeCodeConvTable'!$B$3:$B$213) -> Bland Co | C16: 0 | D16: 0 | E16: 0 | F16: 0 | G16: 0 | H16: 0 | S16: 0 | U16: 0 | V16: 0 | W16: =LOOKUP(A16,'DOE - FIPStoPayeeCodeConvTable'!$A$3:$A$213,'DOE - FIPStoPayeeCodeConvTable'!$E$3:$E$213) -> 0.2109 | X16: 0.263625 | Y16: 0 | Z16: 0
A17: 23 | B17: =LOOKUP(A17,'DOE - FIPStoPayeeCodeConvTable'!$A$3:$A$213,'DOE - FIPStoPayeeCodeConvTable'!$B$3:$B$213) -> Botetourt Co | C17: 6006.32 | D17: 0 | E17: 7192 | F17: 2243.1 | G17: 37849.94 | H17: 7315.47 | S17: 60606.83 | U17: 30303.42 | V17: 30303.41 | W17: =LOOKUP(A17,'DOE - FIPStoPayeeCodeConvTable'!$A$3:$A$213,'DOE - FIPStoPayeeCodeConvTable'!$E$3:$E$213) -> 0.3602 | X17: 0.45025 | Y17: 13644.11 | Z17: 16659.3
A18: 25 | B18: =LOOKUP(A18,'DOE - FIPStoPayeeCodeConvTable'!$A$3:$A$213,'DOE - FIPStoPayeeCodeConvTable'!$B$3:$B$213) -> Brunswick Co | C18: 9837.5 | D18: 12592 | E18: 12592 | F18: 44072 | G18: 35808.5 | H18: 25184 | S18: 140086 | U18: 70043 | V18: 70043 | W18: =LOOKUP(A18,'DOE - FIPStoPayeeCodeConvTable'!$A$3:$A$213,'DOE - FIPStoPayeeCodeConvTable'!$E$3:$E$213) -> 0.2439 | X18: 0.304875 | Y18: 21354.36 | Z18: 48688.64
A19: 27 | B19: =LOOKUP(A19,'DOE - FIPStoPayeeCodeConvTable'!$A$3:$A$213,'DOE - FIPStoPayeeCodeConvTable'!$B$3:$B$213) -> Buchanan Co | C19: 12460.92 | D19: 18580.92 | E19: 29430.81 | F19: 29043.54 | G19: 23756.22 | H19: 86293.03 | S19: 199565.44 | U19: 99782.72 | V19: 99782.72 | W19: =LOOKUP(A19,'DOE - FIPStoPayeeCodeConvTable'!$A$3:$A$213,'DOE - FIPStoPayeeCodeConvTable'!$E$3:$E$213) -> 0.3156 | X19: 0.3945 | Y19: 39364.28 | Z19: 60418.44
A20: 29 | B20: =LOOKUP(A20,'DOE - FIPStoPayeeCodeConvTable'!$A$3:$A$213,'DOE - FIPStoPayeeCodeConvTable'!$B$3:$B$213) -> Buckingham Co | C20: 0 | D20: 0 | E20: 0 | F20: 0 | G20: 0 | H20: 0 | S20: 0 | U20: 0 | V20: 0 | W20: =LOOKUP(A20,'DOE - FIPStoPayeeCodeConvTable'!$A$3:$A$213,'DOE - FIPStoPayeeCodeConvTable'!$E$3:$E$213) -> 0.2023 | X20: 0.252875 | Y20: 0 | Z20: 0
A21: 31 | B21: =LOOKUP(A21,'DOE - FIPStoPayeeCodeConvTable'!$A$3:$A$213,'DOE - FIPStoPayeeCodeConvTable'!$B$3:$B$213) -> Campbell Co | C21: 141269.74 | D21: 129788.59 | E21: 161695.12 | F21: 134851.89 | G21: 34970.44 | H21: 191402.53 | S21: 793978.31 | U21: 396989.16 | V21: 396989.15 | W21: =LOOKUP(A21,'DOE - FIPStoPayeeCodeConvTable'!$A$3:$A$213,'DOE - FIPStoPayeeCodeConvTable'!$E$3:$E$213) -> 0.3107 | X21: 0.388375 | Y21: 154180.66 | Z21: 242808.49
A22: 33 | B22: =LOOKUP(A22,'DOE - FIPStoPayeeCodeConvTable'!$A$3:$A$213,'DOE - FIPStoPayeeCodeConvTable'!$B$3:$B$213) -> Caroline Co | C22: 60599 | D22: 20068.5 | E22: 18462.28 | F22: 45252.5 | G22: 35842.92 | H22: 107032 | S22: 287257.2 | U22: 143628.6 | V22: 143628.6 | W22: =LOOKUP(A22,'DOE - FIPStoPayeeCodeConvTable'!$A$3:$A$213,'DOE - FIPStoPayeeCodeConvTable'!$E$3:$E$213) -> 0.3308 | X22: 0.4135 | Y22: 59390.43 | Z22: 84238.17
A23: 35 | B23: =LOOKUP(A23,'DOE - FIPStoPayeeCodeConvTable'!$A$3:$A$213,'DOE - FIPStoPayeeCodeConvTable'!$B$3:$B$213) -> Carroll Co | C23: 100103.85 | D23: 71443.66 | E23: 157077.12 | F23: 162011.62 | G23: 106126.12 | H23: 118558.37 | S23: 715320.74 | U23: 357660.37 | V23: 357660.37 | W23: =LOOKUP(A23,'DOE - FIPStoPayeeCodeConvTable'!$A$3:$A$213,'DOE - FIPStoPayeeCodeConvTable'!$E$3:$E$213) -> 0.291 | X23: 0.36375 | Y23: 130098.96 | Z23: 227561.41
A24: 36 | B24: =LOOKUP(A24,'DOE - FIPStoPayeeCodeConvTable'!$A$3:$A$213,'DOE - FIPStoPayeeCodeConvTable'!$B$3:$B$213) -> Charles City Co | C24: 0 | D24: 0 | E24: 0 | F24: 0 | G24: 0 | H24: 0 | S24: 0 | U24: 0 | V24: 0 | W24: =LOOKUP(A24,'DOE - FIPStoPayeeCodeConvTable'!$A$3:$A$213,'DOE - FIPStoPayeeCodeConvTable'!$E$3:$E$213) -> 0.3131 | X24: 0.391375 | Y24: 0 | Z24: 0
A25: 37 | B25: =LOOKUP(A25,'DOE - FIPStoPayeeCodeConvTable'!$A$3:$A$213,'DOE - FIPStoPayeeCodeConvTable'!$B$3:$B$213) -> Charlotte Co | C25: 0 | D25: 2485.74 | E25: 0 | F25: 0 | G25: 0 | H25: 0 | S25: 2485.74 | U25: 1242.87 | V25: 1242.87 | W25: =LOOKUP(A25,'DOE - FIPStoPayeeCodeConvTable'!$A$3:$A$213,'DOE - FIPStoPayeeCodeConvTable'!$E$3:$E$213) -> 0.2204 | X25: 0.2755 | Y25: 342.41 | Z25: 900.46
A26: 41 | B26: =LOOKUP(A26,'DOE - FIPStoPayeeCodeConvTable'!$A$3:$A$213,'DOE - FIPStoPayeeCodeConvTable'!$B$3:$B$213) -> Chesterfield Co | C26: 153532.07 | D26: 259593.44 | E26: 123064.63 | F26: 283546.97 | G26: 195880.81 | H26: 212345.32 | S26: 1227963.24 | U26: 613981.62 | V26: 613981.62 | W26: =LOOKUP(A26,'DOE - FIPStoPayeeCodeConvTable'!$A$3:$A$213,'DOE - FIPStoPayeeCodeConvTable'!$E$3:$E$213) -> 0.3853 | X26: 0.481625 | Y26: 295708.9 | Z26: 318272.72
A27: 43 | B27: =LOOKUP(A27,'DOE - FIPStoPayeeCodeConvTable'!$A$3:$A$213,'DOE - FIPStoPayeeCodeConvTable'!$B$3:$B$213) -> Clarke Co | C27: 0 | D27: 0 | E27: 4532.82 | F27: 25184 | G27: 7928.1 | H27: 2754.5 | S27: 40399.42 | U27: 20199.71 | V27: 20199.71 | W27: =LOOKUP(A27,'DOE - FIPStoPayeeCodeConvTable'!$A$3:$A$213,'DOE - FIPStoPayeeCodeConvTable'!$E$3:$E$213) -> 0.4797 | X27: 0.599625 | Y27: 12112.25 | Z27: 8087.46
A28: 45 | B28: =LOOKUP(A28,'DOE - FIPStoPayeeCodeConvTable'!$A$3:$A$213,'DOE - FIPStoPayeeCodeConvTable'!$B$3:$B$213) -> Craig Co | C28: 1072.08 | D28: 21847.22 | E28: 930 | F28: 27258.5 | G28: 2403.36 | H28: 25842 | S28: 79353.16 | U28: 39676.58 | V28: 39676.58 | W28: =LOOKUP(A28,'DOE - FIPStoPayeeCodeConvTable'!$A$3:$A$213,'DOE - FIPStoPayeeCodeConvTable'!$E$3:$E$213) -> 0.2901 | X28: 0.362625 | Y28: 14387.72 | Z28: 25288.86
A29: 47 | B29: =LOOKUP(A29,'DOE - FIPStoPayeeCodeConvTable'!$A$3:$A$213,'DOE - FIPStoPayeeCodeConvTable'!$B$3:$B$213) -> Culpeper Co | C29: 10751.44 | D29: 3040.6 | E29: 23063.94 | F29: 12561.98 | G29: 25078.8 | H29: 67847.76 | S29: 142344.52 | U29: 71172.26 | V29: 71172.26 | W29: =LOOKUP(A29,'DOE - FIPStoPayeeCodeConvTable'!$A$3:$A$213,'DOE - FIPStoPayeeCodeConvTable'!$E$3:$E$213) -> 0.3767 | X29: 0.470875 | Y29: 33513.24 | Z29: 37659.02
A30: 49 | B30: =LOOKUP(A30,'DOE - FIPStoPayeeCodeConvTable'!$A$3:$A$213,'DOE - FIPStoPayeeCodeConvTable'!$B$3:$B$213) -> Cumberland Co | C30: 7937.96 | D30: 0 | E30: 9065.64 | F30: 27175.18 | G30: 11805 | H30: 32660.5 | S30: 88644.28 | U30: 44322.14 | V30: 44322.14 | W30: =LOOKUP(A30,'DOE - FIPStoPayeeCodeConvTable'!$A$3:$A$213,'DOE - FIPStoPayeeCodeConvTable'!$E$3:$E$213) -> 0.304 | X30: 0.38 | Y30: 16842.41 | Z30: 27479.73
A31: 51 | B31: =LOOKUP(A31,'DOE - FIPStoPayeeCodeConvTable'!$A$3:$A$213,'DOE - FIPStoPayeeCodeConvTable'!$B$3:$B$213) -> Dickenson Co | C31: 0 | D31: 0 | E31: 40137 | F31: 25577.5 | G31: 20855.5 | H31: 37382.5 | S31: 123952.5 | U31: 61976.25 | V31: 61976.25 | W31: =LOOKUP(A31,'DOE - FIPStoPayeeCodeConvTable'!$A$3:$A$213,'DOE - FIPStoPayeeCodeConvTable'!$E$3:$E$213) -> 0.3042 | X31: 0.38025 | Y31: 23566.47 | Z31: 38409.78
A32: 53 | B32: =LOOKUP(A32,'DOE - FIPStoPayeeCodeConvTable'!$A$3:$A$213,'DOE - FIPStoPayeeCodeConvTable'!$B$3:$B$213) -> Dinwiddie Co | C32: 40924 | D32: 43566.7 | E32: 24397 | F32: 48400.5 | G32: 47796.34 | H32: 51359.32 | S32: 256443.86 | U32: 128221.93 | V32: 128221.93 | W32: =LOOKUP(A32,'DOE - FIPStoPayeeCodeConvTable'!$A$3:$A$213,'DOE - FIPStoPayeeCodeConvTable'!$E$3:$E$213) -> 0.3358 | X32: 0.41975 | Y32: 53821.16 | Z32: 74400.77
A33: 57 | B33: =LOOKUP(A33,'DOE - FIPStoPayeeCodeConvTable'!$A$3:$A$213,'DOE - FIPStoPayeeCodeConvTable'!$B$3:$B$213) -> Essex Co | C33: 0 | D33: 0 | E33: 9065.64 | F33: 4386.6 | G33: 4532.82 | H33: 4386.6 | S33: 22371.66 | U33: 11185.83 | V33: 11185.83 | W33: =LOOKUP(A33,'DOE - FIPStoPayeeCodeConvTable'!$A$3:$A$213,'DOE - FIPStoPayeeCodeConvTable'!$E$3:$E$213) -> 0.3853 | X33: 0.481625 | Y33: 5387.38 | Z33: 5798.45
A34: 59 | B34: =LOOKUP(A34,'DOE - FIPStoPayeeCodeConvTable'!$A$3:$A$213,'DOE - FIPStoPayeeCodeConvTable'!$B$3:$B$213) -> Fairfax Co | C34: 193292.44 | D34: 98210.06 | E34: 134011.66 | F34: 230490.63 | G34: 178962.35 | H34: 315449.67 | S34: 1150416.81 | U34: 575208.41 | V34: 575208.4 | W34: =LOOKUP(A34,'DOE - FIPStoPayeeCodeConvTable'!$A$3:$A$213,'DOE - FIPStoPayeeCodeConvTable'!$E$3:$E$213) -> 0.4611 | X34: 0.576375 | Y34: 331535.74 | Z34: 243672.66
A35: 61 | B35: =LOOKUP(A35,'DOE - FIPStoPayeeCodeConvTable'!$A$3:$A$213,'DOE - FIPStoPayeeCodeConvTable'!$B$3:$B$213) -> Fauquier Co | C35: 72715.96 | D35: 64802.54 | E35: 58060.1 | F35: 69440.56 | G35: 57756.78 | H35: 94011.18 | S35: 416787.12 | U35: 208393.56 | V35: 208393.56 | W35: =LOOKUP(A35,'DOE - FIPStoPayeeCodeConvTable'!$A$3:$A$213,'DOE - FIPStoPayeeCodeConvTable'!$E$3:$E$213) -> 0.4584 | X35: 0.573 | Y35: 119409.51 | Z35: 88984.05
A36: 63 | B36: =LOOKUP(A36,'DOE - FIPStoPayeeCodeConvTable'!$A$3:$A$213,'DOE - FIPStoPayeeCodeConvTable'!$B$3:$B$213) -> Floyd Co | C36: 13679.28 | D36: 17701.84 | E36: 9473.98 | F36: 11098.91 | G36: 4791.32 | H36: 35101.8 | S36: 91847.13 | U36: 45923.57 | V36: 45923.56 | W36: =LOOKUP(A36,'DOE - FIPStoPayeeCodeConvTable'!$A$3:$A$213,'DOE - FIPStoPayeeCodeConvTable'!$E$3:$E$213) -> 0.2324 | X36: 0.2905 | Y36: 13340.79 | Z36: 32582.77
A37: 65 | B37: =LOOKUP(A37,'DOE - FIPStoPayeeCodeConvTable'!$A$3:$A$213,'DOE - FIPStoPayeeCodeConvTable'!$B$3:$B$213) -> Fluvanna Co | C37: 11805 | D37: 1608.42 | E37: 18131.28 | F37: 12721.14 | G37: 20126.6 | H37: 55982.46 | S37: =SUM(C37:R37) -> 120374.9 | U37: 60187.45 | V37: 60187.45 | W37: =LOOKUP(A37,'DOE - FIPStoPayeeCodeConvTable'!$A$3:$A$213,'DOE - FIPStoPayeeCodeConvTable'!$E$3:$E$213) -> 0.3811 | X37: 0.476375 | Y37: 28671.8 | Z37: 31515.65
A38: 67 | B38: =LOOKUP(A38,'DOE - FIPStoPayeeCodeConvTable'!$A$3:$A$213,'DOE - FIPStoPayeeCodeConvTable'!$B$3:$B$213) -> Franklin Co | C38: 226233.33 | D38: 103738.05 | E38: 195991.7 | F38: 162102.3 | G38: 174352.19 | H38: 259049.73 | S38: 1121467.3 | U38: =ROUND($U$1*S38,2) -> 560733.65 | V38: =SUM(S38)-SUM(U38) -> 560733.65 | W38: =LOOKUP(A38,'DOE - FIPStoPayeeCodeConvTable'!$A$3:$A$213,'DOE - FIPStoPayeeCodeConvTable'!$E$3:$E$213) -> 0.283 | X38: 0.35375 | Y38: 198359.53 | Z38: 362374.12
A39: 69 | B39: =LOOKUP(A39,'DOE - FIPStoPayeeCodeConvTable'!$A$3:$A$213,'DOE - FIPStoPayeeCodeConvTable'!$B$3:$B$213) -> Frederick Co | C39: 21208.88 | D39: 43659.04 | E39: 49338.7 | F39: 136217.12 | G39: 56336.48 | H39: 128543.72 | S39: 435303.94 | U39: 217651.97 | V39: 217651.97 | W39: =LOOKUP(A39,'DOE - FIPStoPayeeCodeConvTable'!$A$3:$A$213,'DOE - FIPStoPayeeCodeConvTable'!$E$3:$E$213) -> 0.4348 | X39: 0.5435 | Y39: 118293.85 | Z39: 99358.12
A40: 71 | B40: =LOOKUP(A40,'DOE - FIPStoPayeeCodeConvTable'!$A$3:$A$213,'DOE - FIPStoPayeeCodeConvTable'!$B$3:$B$213) -> Giles Co | C40: 12198.5 | D40: 22036 | E40: 29906 | F40: 163546.85 | G40: 15188.7 | H40: 49043.74 | S40: 291919.79 | U40: 145959.9 | V40: 145959.89 | W40: =LOOKUP(A40,'DOE - FIPStoPayeeCodeConvTable'!$A$3:$A$213,'DOE - FIPStoPayeeCodeConvTable'!$E$3:$E$213) -> 0.2898 | X40: 0.36225 | Y40: 52873.97 | Z40: 93085.92
A41: 73 | B41: =LOOKUP(A41,'DOE - FIPStoPayeeCodeConvTable'!$A$3:$A$213,'DOE - FIPStoPayeeCodeConvTable'!$B$3:$B$213) -> Gloucester Co | C41: 9444 | D41: 0 | E41: 20855.5 | F41: 11805 | G41: 6149.88 | H41: 18101 | S41: 66355.38 | U41: 33177.69 | V41: 33177.69 | W41: =LOOKUP(A41,'DOE - FIPStoPayeeCodeConvTable'!$A$3:$A$213,'DOE - FIPStoPayeeCodeConvTable'!$E$3:$E$213) -> 0.3687 | X41: 0.460875 | Y41: 15290.77 | Z41: 17886.92
A42: 75 | B42: =LOOKUP(A42,'DOE - FIPStoPayeeCodeConvTable'!$A$3:$A$213,'DOE - FIPStoPayeeCodeConvTable'!$B$3:$B$213) -> Goochland Co | C42: 88144 | D42: 946.16 | E42: 35823.64 | F42: 5902.5 | G42: 5567.1 | H42: 36180.52 | S42: 172563.92 | U42: 86281.96 | V42: 86281.96 | W42: =LOOKUP(A42,'DOE - FIPStoPayeeCodeConvTable'!$A$3:$A$213,'DOE - FIPStoPayeeCodeConvTable'!$E$3:$E$213) -> 0.4871 | X42: 0.608875 | Y42: 52534.93 | Z42: 33747.03
A43: 77 | B43: =LOOKUP(A43,'DOE - FIPStoPayeeCodeConvTable'!$A$3:$A$213,'DOE - FIPStoPayeeCodeConvTable'!$B$3:$B$213) -> Grayson Co | C43: 0 | D43: 438.66 | E43: 0 | F43: 0 | G43: 0 | H43: 0 | S43: 438.66 | U43: 219.33 | V43: 219.33 | W43: =LOOKUP(A43,'DOE - FIPStoPayeeCodeConvTable'!$A$3:$A$213,'DOE - FIPStoPayeeCodeConvTable'!$E$3:$E$213) -> 0.2109 | X43: 0.263625 | Y43: 57.82 | Z43: 161.51
A44: 79 | B44: =LOOKUP(A44,'DOE - FIPStoPayeeCodeConvTable'!$A$3:$A$213,'DOE - FIPStoPayeeCodeConvTable'!$B$3:$B$213) -> Greene Co | C44: 26364.5 | D44: 16585.1 | E44: 20419.04 | F44: 40646.7 | G44: 34292.6 | H44: 42885.16 | S44: 181193.1 | U44: 90596.55 | V44: 90596.55 | W44: =LOOKUP(A44,'DOE - FIPStoPayeeCodeConvTable'!$A$3:$A$213,'DOE - FIPStoPayeeCodeConvTable'!$E$3:$E$213) -> 0.3471 | X44: 0.433875 | Y44: 39307.58 | Z44: 51288.97
A45: 81 | B45: =LOOKUP(A45,'DOE - FIPStoPayeeCodeConvTable'!$A$3:$A$213,'DOE - FIPStoPayeeCodeConvTable'!$B$3:$B$213) -> Greensville Co | C45: 0 | D45: 4386.6 | E45: 1023.54 | F45: 9444 | G45: 7476.5 | H45: 4722 | S45: 27052.64 | U45: 13526.32 | V45: 13526.32 | W45: =LOOKUP(A45,'DOE - FIPStoPayeeCodeConvTable'!$A$3:$A$213,'DOE - FIPStoPayeeCodeConvTable'!$E$3:$E$213) -> 0.2266 | X45: 0.28325 | Y45: 3831.33 | Z45: 9694.99
A46: 83 | B46: =LOOKUP(A46,'DOE - FIPStoPayeeCodeConvTable'!$A$3:$A$213,'DOE - FIPStoPayeeCodeConvTable'!$B$3:$B$213) -> Halifax Co | C46: 62753.8 | D46: 99897.5 | E46: 106290.28 | F46: 163672.58 | G46: 69297.02 | H46: 86335.55 | S46: 588246.73 | U46: 294123.37 | V46: 294123.36 | W46: =LOOKUP(A46,'DOE - FIPStoPayeeCodeConvTable'!$A$3:$A$213,'DOE - FIPStoPayeeCodeConvTable'!$E$3:$E$213) -> 0.2335 | X46: 0.291875 | Y46: 85847.26 | Z46: 208276.1
A47: 85 | B47: =LOOKUP(A47,'DOE - FIPStoPayeeCodeConvTable'!$A$3:$A$213,'DOE - FIPStoPayeeCodeConvTable'!$B$3:$B$213) -> Hanover Co | C47: 128894.38 | D47: 42958.24 | E47: 121618.92 | F47: 205683.61 | G47: 73226.42 | H47: 88042.17 | S47: 660423.74 | U47: 330211.87 | V47: 330211.87 | W47: =LOOKUP(A47,'DOE - FIPStoPayeeCodeConvTable'!$A$3:$A$213,'DOE - FIPStoPayeeCodeConvTable'!$E$3:$E$213) -> 0.4444 | X47: 0.5555 | Y47: 183432.69 | Z47: 146779.18
A48: 87 | B48: =LOOKUP(A48,'DOE - FIPStoPayeeCodeConvTable'!$A$3:$A$213,'DOE - FIPStoPayeeCodeConvTable'!$B$3:$B$213) -> Henrico Co | C48: 152690.32 | D48: 104087.48 | E48: 212393.12 | F48: 221695.67 | G48: 236620.78 | H48: 270929.72 | S48: 1198417.09 | U48: 599208.55 | V48: 599208.54 | W48: =LOOKUP(A48,'DOE - FIPStoPayeeCodeConvTable'!$A$3:$A$213,'DOE - FIPStoPayeeCodeConvTable'!$E$3:$E$213) -> 0.3755 | X48: 0.469375 | Y48: 281253.51 | Z48: 317955.03
A49: 89 | B49: =LOOKUP(A49,'DOE - FIPStoPayeeCodeConvTable'!$A$3:$A$213,'DOE - FIPStoPayeeCodeConvTable'!$B$3:$B$213) -> Henry Co | C49: 69105.9 | D49: 31215.64 | E49: 23287.54 | F49: 45132.16 | G49: 27977.32 | H49: 106339.94 | S49: 303058.5 | U49: 151529.25 | V49: 151529.25 | W49: =LOOKUP(A49,'DOE - FIPStoPayeeCodeConvTable'!$A$3:$A$213,'DOE - FIPStoPayeeCodeConvTable'!$E$3:$E$213) -> 0.2786 | X49: 0.34825 | Y49: 52770.06 | Z49: 98759.19
A50: 91 | B50: =LOOKUP(A50,'DOE - FIPStoPayeeCodeConvTable'!$A$3:$A$213,'DOE - FIPStoPayeeCodeConvTable'!$B$3:$B$213) -> Highland Co | C50: 0 | D50: 0 | E50: 0 | F50: 0 | G50: 0 | H50: 0 | S50: 0 | U50: 0 | V50: 0 | W50: =LOOKUP(A50,'DOE - FIPStoPayeeCodeConvTable'!$A$3:$A$213,'DOE - FIPStoPayeeCodeConvTable'!$E$3:$E$213) -> 0.3822 | X50: 0.47775 | Y50: 0 | Z50: 0
A51: 93 | B51: =LOOKUP(A51,'DOE - FIPStoPayeeCodeConvTable'!$A$3:$A$213,'DOE - FIPStoPayeeCodeConvTable'!$B$3:$B$213) -> Isle Of Wight Co | C51: 0 | D51: 0 | E51: 0 | F51: 0 | G51: 0 | H51: 0 | S51: 0 | U51: 0 | V51: 0 | W51: =LOOKUP(A51,'DOE - FIPStoPayeeCodeConvTable'!$A$3:$A$213,'DOE - FIPStoPayeeCodeConvTable'!$E$3:$E$213) -> 0.3613 | X51: 0.451625 | Y51: 0 | Z51: 0
A52: 95 | B52: =LOOKUP(A52,'DOE - FIPStoPayeeCodeConvTable'!$A$3:$A$213,'DOE - FIPStoPayeeCodeConvTable'!$B$3:$B$213) -> James City Co | C52: 14953 | D52: 48007 | E52: 61656.96 | F52: 49256.34 | G52: 31538.1 | H52: 55533.06 | S52: 260944.46 | U52: 130472.23 | V52: 130472.23 | W52: =LOOKUP(A52,'DOE - FIPStoPayeeCodeConvTable'!$A$3:$A$213,'DOE - FIPStoPayeeCodeConvTable'!$E$3:$E$213) -> 0.4483 | X52: 0.560375 | Y52: 73113.38 | Z52: 57358.85
A53: 97 | B53: =LOOKUP(A53,'DOE - FIPStoPayeeCodeConvTable'!$A$3:$A$213,'DOE - FIPStoPayeeCodeConvTable'!$B$3:$B$213) -> King And Queen Co | C53: 0 | D53: 0 | E53: 0 | F53: 0 | G53: 0 | H53: 0 | S53: 0 | U53: 0 | V53: 0 | W53: =LOOKUP(A53,'DOE - FIPStoPayeeCodeConvTable'!$A$3:$A$213,'DOE - FIPStoPayeeCodeConvTable'!$E$3:$E$213) -> 0.3144 | X53: 0.393 | Y53: 0 | Z53: 0
A54: 99 | B54: =LOOKUP(A54,'DOE - FIPStoPayeeCodeConvTable'!$A$3:$A$213,'DOE - FIPStoPayeeCodeConvTable'!$B$3:$B$213) -> King George Co | C54: 80198.82 | D54: 61590.32 | E54: 10231 | F54: 38563 | G54: 8252.76 | H54: 49716.48 | S54: 248552.38 | U54: 124276.19 | V54: 124276.19 | W54: =LOOKUP(A54,'DOE - FIPStoPayeeCodeConvTable'!$A$3:$A$213,'DOE - FIPStoPayeeCodeConvTable'!$E$3:$E$213) -> 0.3627 | X54: 0.453375 | Y54: 56343.72 | Z54: 67932.47
A55: 101 | B55: =LOOKUP(A55,'DOE - FIPStoPayeeCodeConvTable'!$A$3:$A$213,'DOE - FIPStoPayeeCodeConvTable'!$B$3:$B$213) -> King William Co | C55: 0 | D55: 3655.5 | E55: 4532.82 | F55: 4532.82 | G55: 4386.6 | H55: 4532.82 | S55: 21640.56 | U55: 10820.28 | V55: 10820.28 | W55: =LOOKUP(A55,'DOE - FIPStoPayeeCodeConvTable'!$A$3:$A$213,'DOE - FIPStoPayeeCodeConvTable'!$E$3:$E$213) -> 0.3853 | X55: 0.481625 | Y55: 5211.32 | Z55: 5608.96
A56: 103 | B56: =LOOKUP(A56,'DOE - FIPStoPayeeCodeConvTable'!$A$3:$A$213,'DOE - FIPStoPayeeCodeConvTable'!$B$3:$B$213) -> Lancaster Co | C56: 11805 | D56: 11772.78 | E56: 14953 | F56: 13772.5 | G56: 6476.64 | H56: 5117.7 | S56: 63897.62 | U56: 31948.81 | V56: 31948.81 | W56: =LOOKUP(A56,'DOE - FIPStoPayeeCodeConvTable'!$A$3:$A$213,'DOE - FIPStoPayeeCodeConvTable'!$E$3:$E$213) -> 0.4391 | X56: 0.548875 | Y56: 17535.9 | Z56: 14412.91
A57: 105 | B57: =LOOKUP(A57,'DOE - FIPStoPayeeCodeConvTable'!$A$3:$A$213,'DOE - FIPStoPayeeCodeConvTable'!$B$3:$B$213) -> Lee Co | C57: 31969.76 | D57: 36315.08 | E57: 23218.42 | F57: 34431.42 | G57: 22762.54 | H57: 45183.66 | S57: 193880.88 | U57: 96940.44 | V57: 96940.44 | W57: =LOOKUP(A57,'DOE - FIPStoPayeeCodeConvTable'!$A$3:$A$213,'DOE - FIPStoPayeeCodeConvTable'!$E$3:$E$213) -> 0.2245 | X57: 0.280625 | Y57: 27203.91 | Z57: 69736.53
A58: 107 | B58: =LOOKUP(A58,'DOE - FIPStoPayeeCodeConvTable'!$A$3:$A$213,'DOE - FIPStoPayeeCodeConvTable'!$B$3:$B$213) -> Loudoun Co | C58: 100933.34 | D58: 35867.71 | E58: 32877.76 | F58: 81595.78 | G58: 88518.22 | H58: 91862 | S58: 431654.81 | U58: 215827.41 | V58: 215827.4 | W58: =LOOKUP(A58,'DOE - FIPStoPayeeCodeConvTable'!$A$3:$A$213,'DOE - FIPStoPayeeCodeConvTable'!$E$3:$E$213) -> 0.4764 | X58: 0.5955 | Y58: 128525.22 | Z58: 87302.18
A59: 109 | B59: =LOOKUP(A59,'DOE - FIPStoPayeeCodeConvTable'!$A$3:$A$213,'DOE - FIPStoPayeeCodeConvTable'!$B$3:$B$213) -> Louisa Co | C59: 128091.82 | D59: 32267 | E59: 83646.26 | F59: 39542.22 | G59: 70884.68 | H59: 102819.22 | S59: 457251.2 | U59: 228625.6 | V59: 228625.6 | W59: =LOOKUP(A59,'DOE - FIPStoPayeeCodeConvTable'!$A$3:$A$213,'DOE - FIPStoPayeeCodeConvTable'!$E$3:$E$213) -> 0.4401 | X59: 0.550125 | Y59: 125772.66 | Z59: 102852.94
A60: 111 | B60: =LOOKUP(A60,'DOE - FIPStoPayeeCodeConvTable'!$A$3:$A$213,'DOE - FIPStoPayeeCodeConvTable'!$B$3:$B$213) -> Lunenburg Co | C60: 6280.02 | D60: 22271.7 | E60: 10815.59 | F60: 85816.29 | G60: 14166 | H60: 43425.69 | S60: 182775.29 | U60: 91387.65 | V60: 91387.64 | W60: =LOOKUP(A60,'DOE - FIPStoPayeeCodeConvTable'!$A$3:$A$213,'DOE - FIPStoPayeeCodeConvTable'!$E$3:$E$213) -> 0.1698 | X60: 0.21225 | Y60: 19397.03 | Z60: 71990.61
A61: 113 | B61: =LOOKUP(A61,'DOE - FIPStoPayeeCodeConvTable'!$A$3:$A$213,'DOE - FIPStoPayeeCodeConvTable'!$B$3:$B$213) -> Madison Co | C61: 0 | D61: 0 | E61: 0 | F61: 1315.98 | G61: 4386.6 | H61: 13452.24 | S61: 19154.82 | U61: 9577.41 | V61: 9577.41 | W61: =LOOKUP(A61,'DOE - FIPStoPayeeCodeConvTable'!$A$3:$A$213,'DOE - FIPStoPayeeCodeConvTable'!$E$3:$E$213) -> 0.3355 | X61: 0.419375 | Y61: 4016.53 | Z61: 5560.88
A62: 115 | B62: =LOOKUP(A62,'DOE - FIPStoPayeeCodeConvTable'!$A$3:$A$213,'DOE - FIPStoPayeeCodeConvTable'!$B$3:$B$213) -> Mathews Co | C62: 0 | D62: 0 | E62: 0 | F62: 0 | G62: 0 | H62: 3947.94 | S62: 3947.94 | U62: 1973.97 | V62: 1973.97 | W62: =LOOKUP(A62,'DOE - FIPStoPayeeCodeConvTable'!$A$3:$A$213,'DOE - FIPStoPayeeCodeConvTable'!$E$3:$E$213) -> 0.4271 | X62: 0.533875 | Y62: 1053.85 | Z62: 920.12
A63: 117 | B63: =LOOKUP(A63,'DOE - FIPStoPayeeCodeConvTable'!$A$3:$A$213,'DOE - FIPStoPayeeCodeConvTable'!$B$3:$B$213) -> Mecklenburg Co | C63: 16585.1 | D63: 107576.64 | E63: 38825.42 | F63: 97859.16 | G63: 63018.1 | H63: 88235.39 | S63: 412099.81 | U63: 206049.91 | V63: 206049.9 | W63: =LOOKUP(A63,'DOE - FIPStoPayeeCodeConvTable'!$A$3:$A$213,'DOE - FIPStoPayeeCodeConvTable'!$E$3:$E$213) -> 0.2286 | X63: 0.28575 | Y63: 58878.76 | Z63: 147171.14
A64: 119 | B64: =LOOKUP(A64,'DOE - FIPStoPayeeCodeConvTable'!$A$3:$A$213,'DOE - FIPStoPayeeCodeConvTable'!$B$3:$B$213) -> Middlesex Co | C64: 0 | D64: 0 | E64: 0 | F64: 0 | G64: 0 | H64: 0 | S64: 0 | U64: 0 | V64: 0 | W64: =LOOKUP(A64,'DOE - FIPStoPayeeCodeConvTable'!$A$3:$A$213,'DOE - FIPStoPayeeCodeConvTable'!$E$3:$E$213) -> 0.4333 | X64: 0.541625 | Y64: 0 | Z64: 0
A65: 121 | B65: =LOOKUP(A65,'DOE - FIPStoPayeeCodeConvTable'!$A$3:$A$213,'DOE - FIPStoPayeeCodeConvTable'!$B$3:$B$213) -> Montgomery Co | C65: 20868.44 | D65: 42569.04 | E65: 21952.28 | F65: 38468.25 | G65: 68875.44 | H65: 81832.25 | S65: 274565.7 | U65: 137282.85 | V65: 137282.85 | W65: =LOOKUP(A65,'DOE - FIPStoPayeeCodeConvTable'!$A$3:$A$213,'DOE - FIPStoPayeeCodeConvTable'!$E$3:$E$213) -> 0.2834 | X65: 0.35425 | Y65: 48632.45 | Z65: 88650.4
A66: 125 | B66: =LOOKUP(A66,'DOE - FIPStoPayeeCodeConvTable'!$A$3:$A$213,'DOE - FIPStoPayeeCodeConvTable'!$B$3:$B$213) -> Nelson Co | C66: 10815.59 | D66: 36284.56 | E66: 15497.38 | F66: 22462.79 | G66: 22823 | H66: 45285.79 | S66: 153169.11 | U66: 76584.56 | V66: 76584.55 | W66: =LOOKUP(A66,'DOE - FIPStoPayeeCodeConvTable'!$A$3:$A$213,'DOE - FIPStoPayeeCodeConvTable'!$E$3:$E$213) -> 0.3132 | X66: 0.3915 | Y66: 29982.85 | Z66: 46601.7
A67: 127 | B67: =LOOKUP(A67,'DOE - FIPStoPayeeCodeConvTable'!$A$3:$A$213,'DOE - FIPStoPayeeCodeConvTable'!$B$3:$B$213) -> New Kent Co | C67: 0 | D67: 0 | E67: 4971.48 | F67: 2778.18 | G67: 0 | H67: 0 | S67: 7749.66 | U67: 3874.83 | V67: 3874.83 | W67: =LOOKUP(A67,'DOE - FIPStoPayeeCodeConvTable'!$A$3:$A$213,'DOE - FIPStoPayeeCodeConvTable'!$E$3:$E$213) -> 0.4329 | X67: 0.541125 | Y67: 2096.77 | Z67: 1778.06
A68: 131 | B68: =LOOKUP(A68,'DOE - FIPStoPayeeCodeConvTable'!$A$3:$A$213,'DOE - FIPStoPayeeCodeConvTable'!$B$3:$B$213) -> Northampton Co | C68: 14953 | D68: 10164.36 | E68: 16527 | F68: 13772.5 | G68: 8263.5 | H68: 16527 | S68: 80207.36 | U68: 40103.68 | V68: 40103.68 | W68: =LOOKUP(A68,'DOE - FIPStoPayeeCodeConvTable'!$A$3:$A$213,'DOE - FIPStoPayeeCodeConvTable'!$E$3:$E$213) -> 0.1971 | X68: 0.246375 | Y68: 9880.54 | Z68: 30223.14
A69: 133 | B69: =LOOKUP(A69,'DOE - FIPStoPayeeCodeConvTable'!$A$3:$A$213,'DOE - FIPStoPayeeCodeConvTable'!$B$3:$B$213) -> Northumberland Co | C69: 0 | D69: 0 | E69: 787 | F69: 0 | G69: 393.5 | H69: 0 | S69: =SUM(C69:R69) -> 1180.5 | U69: 590.25 | V69: 590.25 | W69: =LOOKUP(A69,'DOE - FIPStoPayeeCodeConvTable'!$A$3:$A$213,'DOE - FIPStoPayeeCodeConvTable'!$E$3:$E$213) -> 0.3304 | X69: 0.413 | Y69: 243.77 | Z69: 346.48
A70: 135 | B70: =LOOKUP(A70,'DOE - FIPStoPayeeCodeConvTable'!$A$3:$A$213,'DOE - FIPStoPayeeCodeConvTable'!$B$3:$B$213) -> Nottoway Co | C70: 9637.58 | D70: 10820.28 | E70: 22151.36 | F70: 39354.47 | G70: 36015.02 | H70: 57273.63 | S70: 175252.34 | U70: =ROUND($U$1*S70,2) -> 87626.17 | V70: =SUM(S70)-SUM(U70) -> 87626.17 | W70: =LOOKUP(A70,'DOE - FIPStoPayeeCodeConvTable'!$A$3:$A$213,'DOE - FIPStoPayeeCodeConvTable'!$E$3:$E$213) -> 0.2686 | X70: 0.33575 | Y70: 29420.49 | Z70: 58205.68
A71: 137 | B71: =LOOKUP(A71,'DOE - FIPStoPayeeCodeConvTable'!$A$3:$A$213,'DOE - FIPStoPayeeCodeConvTable'!$B$3:$B$213) -> Orange Co | C71: 6689.5 | D71: 23610 | E71: 36765.4 | F71: 36799.82 | G71: 51606.6 | H71: 43267.42 | S71: 198738.74 | U71: 99369.37 | V71: 99369.37 | W71: =LOOKUP(A71,'DOE - FIPStoPayeeCodeConvTable'!$A$3:$A$213,'DOE - FIPStoPayeeCodeConvTable'!$E$3:$E$213) -> 0.4083 | X71: =$X$1*W71 -> 0.510375 | Y71: =ROUND(X71*V71,2) -> 50715.64 | Z71: =SUM(V71)-SUM(Y71) -> 48653.73
A72: 139 | B72: =LOOKUP(A72,'DOE - FIPStoPayeeCodeConvTable'!$A$3:$A$213,'DOE - FIPStoPayeeCodeConvTable'!$B$3:$B$213) -> Page Co | C72: 23319.76 | D72: 0 | E72: 26061.32 | F72: 28658.86 | G72: 11411.5 | H72: 49604.68 | S72: 139056.12 | U72: 69528.06 | V72: 69528.06 | W72: =LOOKUP(A72,'DOE - FIPStoPayeeCodeConvTable'!$A$3:$A$213,'DOE - FIPStoPayeeCodeConvTable'!$E$3:$E$213) -> 0.2865 | X72: 0.358125 | Y72: 24899.74 | Z72: 44628.32
A73: 141 | B73: =LOOKUP(A73,'DOE - FIPStoPayeeCodeConvTable'!$A$3:$A$213,'DOE - FIPStoPayeeCodeConvTable'!$B$3:$B$213) -> Patrick Co | C73: 12136.26 | D73: 16527 | E73: 19675 | F73: 13772.5 | G73: 8263.5 | H73: 16527 | S73: 86901.26 | U73: 43450.63 | V73: 43450.63 | W73: =LOOKUP(A73,'DOE - FIPStoPayeeCodeConvTable'!$A$3:$A$213,'DOE - FIPStoPayeeCodeConvTable'!$E$3:$E$213) -> 0.2539 | X73: 0.317375 | Y73: 13790.14 | Z73: 29660.49
A74: 143 | B74: =LOOKUP(A74,'DOE - FIPStoPayeeCodeConvTable'!$A$3:$A$213,'DOE - FIPStoPayeeCodeConvTable'!$B$3:$B$213) -> Pittsylvania Co | C74: 83106.73 | D74: 114854.45 | E74: 162173.58 | F74: 111521.7 | G74: 98564.64 | H74: 91932.4 | S74: 662153.5 | U74: 331076.75 | V74: 331076.75 | W74: =LOOKUP(A74,'DOE - FIPStoPayeeCodeConvTable'!$A$3:$A$213,'DOE - FIPStoPayeeCodeConvTable'!$E$3:$E$213) -> 0.2355 | X74: 0.294375 | Y74: 97460.72 | Z74: 233616.03
A75: 145 | B75: =LOOKUP(A75,'DOE - FIPStoPayeeCodeConvTable'!$A$3:$A$213,'DOE - FIPStoPayeeCodeConvTable'!$B$3:$B$213) -> Powhatan Co | C75: 18148.36 | D75: 20870.64 | E75: 43852.8 | F75: 56768.04 | G75: 22023.68 | H75: 64436.21 | S75: 226099.73 | U75: 113049.87 | V75: 113049.86 | W75: =LOOKUP(A75,'DOE - FIPStoPayeeCodeConvTable'!$A$3:$A$213,'DOE - FIPStoPayeeCodeConvTable'!$E$3:$E$213) -> 0.4342 | X75: 0.54275 | Y75: 61357.81 | Z75: 51692.05
A76: 147 | B76: =LOOKUP(A76,'DOE - FIPStoPayeeCodeConvTable'!$A$3:$A$213,'DOE - FIPStoPayeeCodeConvTable'!$B$3:$B$213) -> Prince Edward Co | C76: 0 | D76: 0 | E76: 1967.5 | F76: 14559.5 | G76: 1169.76 | H76: 6925.46 | S76: 24622.22 | U76: 12311.11 | V76: 12311.11 | W76: =LOOKUP(A76,'DOE - FIPStoPayeeCodeConvTable'!$A$3:$A$213,'DOE - FIPStoPayeeCodeConvTable'!$E$3:$E$213) -> 0.2232 | X76: 0.279 | Y76: 3434.8 | Z76: 8876.31
A77: 149 | B77: =LOOKUP(A77,'DOE - FIPStoPayeeCodeConvTable'!$A$3:$A$213,'DOE - FIPStoPayeeCodeConvTable'!$B$3:$B$213) -> Prince George Co | C77: 33815.38 | D77: 31675.78 | E77: 27405.38 | F77: 56646.92 | G77: 132858.98 | H77: 93259.5 | S77: 375661.94 | U77: 187830.97 | V77: 187830.97 | W77: =LOOKUP(A77,'DOE - FIPStoPayeeCodeConvTable'!$A$3:$A$213,'DOE - FIPStoPayeeCodeConvTable'!$E$3:$E$213) -> 0.3716 | X77: 0.4645 | Y77: 87247.49 | Z77: 100583.48
A78: 153 | B78: =LOOKUP(A78,'DOE - FIPStoPayeeCodeConvTable'!$A$3:$A$213,'DOE - FIPStoPayeeCodeConvTable'!$B$3:$B$213) -> Prince William Co | C78: 220005.66 | D78: 229756.85 | E78: 289303.28 | F78: 233426.04 | G78: 272601.93 | H78: 262433.02 | S78: 1507526.78 | U78: 753763.39 | V78: 753763.39 | W78: =LOOKUP(A78,'DOE - FIPStoPayeeCodeConvTable'!$A$3:$A$213,'DOE - FIPStoPayeeCodeConvTable'!$E$3:$E$213) -> 0.3414 | X78: 0.42675 | Y78: 321668.53 | Z78: 432094.86
A79: 155 | B79: =LOOKUP(A79,'DOE - FIPStoPayeeCodeConvTable'!$A$3:$A$213,'DOE - FIPStoPayeeCodeConvTable'!$B$3:$B$213) -> Pulaski Co | C79: 15640.85 | D79: 33005.8 | E79: 22442.44 | F79: 52766.34 | G79: 1023.54 | H79: 42104.5 | S79: 166983.47 | U79: 83491.74 | V79: 83491.73 | W79: =LOOKUP(A79,'DOE - FIPStoPayeeCodeConvTable'!$A$3:$A$213,'DOE - FIPStoPayeeCodeConvTable'!$E$3:$E$213) -> 0.2923 | X79: 0.365375 | Y79: 30505.79 | Z79: 52985.94
A80: 157 | B80: =LOOKUP(A80,'DOE - FIPStoPayeeCodeConvTable'!$A$3:$A$213,'DOE - FIPStoPayeeCodeConvTable'!$B$3:$B$213) -> Rappahannock Co | C80: 45581.92 | D80: 44437.8 | E80: 41712.5 | F80: 41726.98 | G80: 57222.78 | H80: 54784.18 | S80: 285466.16 | U80: 142733.08 | V80: 142733.08 | W80: =LOOKUP(A80,'DOE - FIPStoPayeeCodeConvTable'!$A$3:$A$213,'DOE - FIPStoPayeeCodeConvTable'!$E$3:$E$213) -> 0.4199 | X80: 0.524875 | Y80: 74917.03 | Z80: 67816.05
A81: 159 | B81: =LOOKUP(A81,'DOE - FIPStoPayeeCodeConvTable'!$A$3:$A$213,'DOE - FIPStoPayeeCodeConvTable'!$B$3:$B$213) -> Richmond Co | C81: -21348.12 | D81: 0 | E81: 0 | F81: 0 | G81: 0 | H81: 0 | S81: -21348.12 | U81: -10674.06 | V81: -10674.06 | W81: =LOOKUP(A81,'DOE - FIPStoPayeeCodeConvTable'!$A$3:$A$213,'DOE - FIPStoPayeeCodeConvTable'!$E$3:$E$213) -> 0.3227 | X81: 0.403375 | Y81: -4305.65 | Z81: -6368.41
A82: 161 | B82: =LOOKUP(A82,'DOE - FIPStoPayeeCodeConvTable'!$A$3:$A$213,'DOE - FIPStoPayeeCodeConvTable'!$B$3:$B$213) -> Roanoke Co | C82: 83931.58 | D82: 86320.49 | E82: 207239.25 | F82: 222295.75 | G82: 188762.12 | H82: 235874.36 | S82: 1024423.55 | U82: 512211.78 | V82: 512211.77 | W82: =LOOKUP(A82,'DOE - FIPStoPayeeCodeConvTable'!$A$3:$A$213,'DOE - FIPStoPayeeCodeConvTable'!$E$3:$E$213) -> 0.4397 | X82: 0.549625 | Y82: 281524.39 | Z82: 230687.38
A83: 163 | B83: =LOOKUP(A83,'DOE - FIPStoPayeeCodeConvTable'!$A$3:$A$213,'DOE - FIPStoPayeeCodeConvTable'!$B$3:$B$213) -> Rockbridge Co | C83: 171260.88 | D83: 122798.95 | E83: 34060.46 | F83: 86767.98 | G83: 66772.46 | H83: 111036.1 | S83: 592696.83 | U83: 296348.42 | V83: 296348.41 | W83: =LOOKUP(A83,'DOE - FIPStoPayeeCodeConvTable'!$A$3:$A$213,'DOE - FIPStoPayeeCodeConvTable'!$E$3:$E$213) -> 0.2336 | X83: 0.292 | Y83: 86533.74 | Z83: 209814.67
A84: 165 | B84: =LOOKUP(A84,'DOE - FIPStoPayeeCodeConvTable'!$A$3:$A$213,'DOE - FIPStoPayeeCodeConvTable'!$B$3:$B$213) -> Rockingham Co | C84: 135892.44 | D84: 212250.82 | E84: 153577.08 | F84: 137692.26 | G84: 127099.7 | H84: 201443.22 | S84: 967955.52 | U84: 483977.76 | V84: 483977.76 | W84: =LOOKUP(A84,'DOE - FIPStoPayeeCodeConvTable'!$A$3:$A$213,'DOE - FIPStoPayeeCodeConvTable'!$E$3:$E$213) -> 0.3445 | X84: 0.430625 | Y84: 208412.92 | Z84: 275564.84
A85: 167 | B85: =LOOKUP(A85,'DOE - FIPStoPayeeCodeConvTable'!$A$3:$A$213,'DOE - FIPStoPayeeCodeConvTable'!$B$3:$B$213) -> Russell Co | C85: 14619.85 | D85: 53733.52 | E85: 6623.66 | F85: 3490.71 | G85: 13452.24 | H85: 24880.82 | S85: 116800.8 | U85: 58400.4 | V85: 58400.4 | W85: =LOOKUP(A85,'DOE - FIPStoPayeeCodeConvTable'!$A$3:$A$213,'DOE - FIPStoPayeeCodeConvTable'!$E$3:$E$213) -> 0.1894 | X85: 0.23675 | Y85: 13826.29 | Z85: 44574.11
A86: 169 | B86: =LOOKUP(A86,'DOE - FIPStoPayeeCodeConvTable'!$A$3:$A$213,'DOE - FIPStoPayeeCodeConvTable'!$B$3:$B$213) -> Scott Co | C86: 1071.98 | D86: 0 | E86: 0 | F86: 0 | G86: 0 | H86: 0 | S86: 1071.98 | U86: 535.99 | V86: 535.99 | W86: =LOOKUP(A86,'DOE - FIPStoPayeeCodeConvTable'!$A$3:$A$213,'DOE - FIPStoPayeeCodeConvTable'!$E$3:$E$213) -> 0.3154 | X86: 0.39425 | Y86: 211.31 | Z86: 324.68
A87: 171 | B87: =LOOKUP(A87,'DOE - FIPStoPayeeCodeConvTable'!$A$3:$A$213,'DOE - FIPStoPayeeCodeConvTable'!$B$3:$B$213) -> Shenandoah Co | C87: 62287 | D87: 68462.66 | E87: 59205.9 | F87: 122058.24 | G87: 157922.64 | H87: 181051.2 | S87: 650987.64 | U87: 325493.82 | V87: 325493.82 | W87: =LOOKUP(A87,'DOE - FIPStoPayeeCodeConvTable'!$A$3:$A$213,'DOE - FIPStoPayeeCodeConvTable'!$E$3:$E$213) -> 0.3517 | X87: 0.439625 | Y87: 143095.22 | Z87: 182398.6
A88: 173 | B88: =LOOKUP(A88,'DOE - FIPStoPayeeCodeConvTable'!$A$3:$A$213,'DOE - FIPStoPayeeCodeConvTable'!$B$3:$B$213) -> Smyth Co | C88: 81061 | D88: 81454.5 | E88: 93370.58 | F88: 99555.5 | G88: 48738.46 | H88: 131429 | S88: 535609.04 | U88: 267804.52 | V88: 267804.52 | W88: =LOOKUP(A88,'DOE - FIPStoPayeeCodeConvTable'!$A$3:$A$213,'DOE - FIPStoPayeeCodeConvTable'!$E$3:$E$213) -> 0.2337 | X88: 0.292125 | Y88: 78232.4 | Z88: 189572.12
A89: 175 | B89: =LOOKUP(A89,'DOE - FIPStoPayeeCodeConvTable'!$A$3:$A$213,'DOE - FIPStoPayeeCodeConvTable'!$B$3:$B$213) -> Southampton Co | C89: 0 | D89: 0 | E89: 0 | F89: 0 | G89: 0 | H89: 0 | S89: 0 | U89: 0 | V89: 0 | W89: =LOOKUP(A89,'DOE - FIPStoPayeeCodeConvTable'!$A$3:$A$213,'DOE - FIPStoPayeeCodeConvTable'!$E$3:$E$213) -> 0.323 | X89: 0.40375 | Y89: 0 | Z89: 0
A90: 177 | B90: =LOOKUP(A90,'DOE - FIPStoPayeeCodeConvTable'!$A$3:$A$213,'DOE - FIPStoPayeeCodeConvTable'!$B$3:$B$213) -> Spotsylvania Co | C90: 114689.72 | D90: 103152.04 | E90: 152212.52 | F90: 120185.65 | G90: 94132.68 | H90: 175085.07 | S90: 759457.68 | U90: 379728.84 | V90: 379728.84 | W90: =LOOKUP(A90,'DOE - FIPStoPayeeCodeConvTable'!$A$3:$A$213,'DOE - FIPStoPayeeCodeConvTable'!$E$3:$E$213) -> 0.4588 | X90: 0.5735 | Y90: 217774.49 | Z90: 161954.35
A91: 179 | B91: =LOOKUP(A91,'DOE - FIPStoPayeeCodeConvTable'!$A$3:$A$213,'DOE - FIPStoPayeeCodeConvTable'!$B$3:$B$213) -> Stafford Co | C91: 36202 | D91: 87991.12 | E91: 40341.03 | F91: 93751.28 | G91: 54303 | H91: -46102.75 | S91: 266485.68 | U91: 133242.84 | V91: 133242.84 | W91: =LOOKUP(A91,'DOE - FIPStoPayeeCodeConvTable'!$A$3:$A$213,'DOE - FIPStoPayeeCodeConvTable'!$E$3:$E$213) -> 0.4439 | X91: 0.554875 | Y91: 73933.12 | Z91: 59309.72
A92: 181 | B92: =LOOKUP(A92,'DOE - FIPStoPayeeCodeConvTable'!$A$3:$A$213,'DOE - FIPStoPayeeCodeConvTable'!$B$3:$B$213) -> Surry Co | C92: 42913.47 | D92: 0 | E92: 0 | F92: 0 | G92: 0 | H92: 0 | S92: 42913.47 | U92: 21456.74 | V92: 21456.73 | W92: =LOOKUP(A92,'DOE - FIPStoPayeeCodeConvTable'!$A$3:$A$213,'DOE - FIPStoPayeeCodeConvTable'!$E$3:$E$213) -> 0.3979 | X92: 0.497375 | Y92: 10672.04 | Z92: 10784.69
A93: 183 | B93: =LOOKUP(A93,'DOE - FIPStoPayeeCodeConvTable'!$A$3:$A$213,'DOE - FIPStoPayeeCodeConvTable'!$B$3:$B$213) -> Sussex Co | C93: 4386.6 | D93: 731.1 | E93: 7895.88 | F93: 4386.6 | G93: 1169.76 | H93: 0 | S93: 18569.94 | U93: 9284.97 | V93: 9284.97 | W93: =LOOKUP(A93,'DOE - FIPStoPayeeCodeConvTable'!$A$3:$A$213,'DOE - FIPStoPayeeCodeConvTable'!$E$3:$E$213) -> 0.2387 | X93: 0.298375 | Y93: 2770.4 | Z93: 6514.57
A94: 185 | B94: =LOOKUP(A94,'DOE - FIPStoPayeeCodeConvTable'!$A$3:$A$213,'DOE - FIPStoPayeeCodeConvTable'!$B$3:$B$213) -> Tazewell Co | C94: 8348.25 | D94: 21031.25 | E94: 12198.5 | F94: 30693 | G94: 18378.5 | H94: 72010.5 | S94: 162660 | U94: 81330 | V94: 81330 | W94: =LOOKUP(A94,'DOE - FIPStoPayeeCodeConvTable'!$A$3:$A$213,'DOE - FIPStoPayeeCodeConvTable'!$E$3:$E$213) -> 0.2455 | X94: 0.306875 | Y94: 24958.14 | Z94: 56371.86
A95: 187 | B95: =LOOKUP(A95,'DOE - FIPStoPayeeCodeConvTable'!$A$3:$A$213,'DOE - FIPStoPayeeCodeConvTable'!$B$3:$B$213) -> Warren Co | C95: 12198.5 | D95: 11805 | E95: 12198.5 | F95: 24003.5 | G95: 1180.5 | H95: 0 | S95: 61386 | U95: 30693 | V95: 30693 | W95: =LOOKUP(A95,'DOE - FIPStoPayeeCodeConvTable'!$A$3:$A$213,'DOE - FIPStoPayeeCodeConvTable'!$E$3:$E$213) -> 0.3853 | X95: 0.481625 | Y95: 14782.52 | Z95: 15910.48
A96: 191 | B96: =LOOKUP(A96,'DOE - FIPStoPayeeCodeConvTable'!$A$3:$A$213,'DOE - FIPStoPayeeCodeConvTable'!$B$3:$B$213) -> Washington Co | C96: 18572.73 | D96: 21623.54 | E96: 32885.71 | F96: 52496.7 | G96: 35454.14 | H96: 91509.15 | S96: 252541.97 | U96: 126270.99 | V96: 126270.98 | W96: =LOOKUP(A96,'DOE - FIPStoPayeeCodeConvTable'!$A$3:$A$213,'DOE - FIPStoPayeeCodeConvTable'!$E$3:$E$213) -> 0.276 | X96: 0.345 | Y96: 43563.49 | Z96: 82707.49
A97: 193 | B97: =LOOKUP(A97,'DOE - FIPStoPayeeCodeConvTable'!$A$3:$A$213,'DOE - FIPStoPayeeCodeConvTable'!$B$3:$B$213) -> Westmoreland Co | C97: 0 | D97: 14329.56 | E97: 8334.54 | F97: 16084.2 | G97: 8773.2 | H97: 13598.46 | S97: 61119.96 | U97: 30559.98 | V97: 30559.98 | W97: =LOOKUP(A97,'DOE - FIPStoPayeeCodeConvTable'!$A$3:$A$213,'DOE - FIPStoPayeeCodeConvTable'!$E$3:$E$213) -> 0.3025 | X97: 0.378125 | Y97: 11555.49 | Z97: 19004.49
A98: 195 | B98: =LOOKUP(A98,'DOE - FIPStoPayeeCodeConvTable'!$A$3:$A$213,'DOE - FIPStoPayeeCodeConvTable'!$B$3:$B$213) -> Wise Co | C98: 6689.5 | D98: 15011.1 | E98: 10044.5 | F98: 24397 | G98: 11411.5 | H98: 6689.5 | S98: 74243.1 | U98: 37121.55 | V98: 37121.55 | W98: =LOOKUP(A98,'DOE - FIPStoPayeeCodeConvTable'!$A$3:$A$213,'DOE - FIPStoPayeeCodeConvTable'!$E$3:$E$213) -> 0.2755 | X98: 0.344375 | Y98: 12783.73 | Z98: 24337.82
A99: 197 | B99: =LOOKUP(A99,'DOE - FIPStoPayeeCodeConvTable'!$A$3:$A$213,'DOE - FIPStoPayeeCodeConvTable'!$B$3:$B$213) -> Wythe Co | C99: 42891.5 | D99: 51942 | E99: 53122.5 | F99: 109056.76 | G99: 30299.5 | H99: 64567.29 | S99: 351879.55 | U99: 175939.78 | V99: 175939.77 | W99: =LOOKUP(A99,'DOE - FIPStoPayeeCodeConvTable'!$A$3:$A$213,'DOE - FIPStoPayeeCodeConvTable'!$E$3:$E$213) -> 0.2708 | X99: 0.3385 | Y99: 59555.61 | Z99: 116384.16
A100: 199 | B100: =LOOKUP(A100,'DOE - FIPStoPayeeCodeConvTable'!$A$3:$A$213,'DOE - FIPStoPayeeCodeConvTable'!$B$3:$B$213) -> York Co | C100: 12198.5 | D100: 0 | E100: 23216.5 | F100: 45252.5 | G100: 27151.5 | H100: 19675 | S100: 127494 | U100: 63747 | V100: 63747 | W100: =LOOKUP(A100,'DOE - FIPStoPayeeCodeConvTable'!$A$3:$A$213,'DOE - FIPStoPayeeCodeConvTable'!$E$3:$E$213) -> 0.3888 | X100: 0.486 | Y100: 30981.04 | Z100: 32765.96
A101: 510 | B101: =LOOKUP(A101,'DOE - FIPStoPayeeCodeConvTable'!$A$3:$A$213,'DOE - FIPStoPayeeCodeConvTable'!$B$3:$B$213) -> Alexandria City | C101: 4386.6 | D101: 4094.16 | E101: 10626.7 | F101: 9668.68 | G101: 16367.43 | H101: 6486.63 | S101: =SUM(C101:R101) -> 51630.2 | U101: 25815.1 | V101: 25815.1 | W101: =LOOKUP(A101,'DOE - FIPStoPayeeCodeConvTable'!$A$3:$A$213,'DOE - FIPStoPayeeCodeConvTable'!$E$3:$E$213) -> 0.5309 | X101: 0.663625 | Y101: 17131.55 | Z101: 8683.55
A102: 520 | B102: =LOOKUP(A102,'DOE - FIPStoPayeeCodeConvTable'!$A$3:$A$213,'DOE - FIPStoPayeeCodeConvTable'!$B$3:$B$213) -> Bristol City | C102: 17707.5 | D102: 32998.1 | E102: 27455.38 | F102: 38767.32 | G102: 17012.82 | H102: 44283.36 | S102: 178224.48 | U102: =ROUND($U$1*S102,2) -> 89112.24 | V102: =SUM(S102)-SUM(U102) -> 89112.24 | W102: =LOOKUP(A102,'DOE - FIPStoPayeeCodeConvTable'!$A$3:$A$213,'DOE - FIPStoPayeeCodeConvTable'!$E$3:$E$213) -> 0.2547 | X102: 0.318375 | Y102: 28371.11 | Z102: 60741.13
A103: 530 | B103: =LOOKUP(A103,'DOE - FIPStoPayeeCodeConvTable'!$A$3:$A$213,'DOE - FIPStoPayeeCodeConvTable'!$B$3:$B$213) -> Buena Vista City | C103: -24027.9 | D103: 0 | E103: 9436.4 | F103: 23216.5 | G103: 24790.5 | H103: 33054 | S103: 66469.5 | U103: 33234.75 | V103: 33234.75 | W103: =LOOKUP(A103,'DOE - FIPStoPayeeCodeConvTable'!$A$3:$A$213,'DOE - FIPStoPayeeCodeConvTable'!$E$3:$E$213) -> 0.2329 | X103: 0.291125 | Y103: 9675.47 | Z103: 23559.28
A104: 540 | B104: =LOOKUP(A104,'DOE - FIPStoPayeeCodeConvTable'!$A$3:$A$213,'DOE - FIPStoPayeeCodeConvTable'!$B$3:$B$213) -> Charlottesville City | C104: -66319.28 | D104: 19423.48 | E104: 22756.64 | F104: 54554.44 | G104: 24909.7 | H104: 25651.41 | S104: 80976.39 | U104: 40488.2 | V104: 40488.19 | W104: =LOOKUP(A104,'DOE - FIPStoPayeeCodeConvTable'!$A$3:$A$213,'DOE - FIPStoPayeeCodeConvTable'!$E$3:$E$213) -> 0.3068 | X104: 0.3835 | Y104: 15527.22 | Z104: 24960.97
A105: 550 | B105: =LOOKUP(A105,'DOE - FIPStoPayeeCodeConvTable'!$A$3:$A$213,'DOE - FIPStoPayeeCodeConvTable'!$B$3:$B$213) -> Chesapeake City | C105: 49903.29 | D105: 40877.14 | E105: 44248.33 | F105: 53925.96 | G105: 68451.92 | H105: 15845.46 | S105: 273252.1 | U105: 136626.05 | V105: 136626.05 | W105: =LOOKUP(A105,'DOE - FIPStoPayeeCodeConvTable'!$A$3:$A$213,'DOE - FIPStoPayeeCodeConvTable'!$E$3:$E$213) -> 0.3715 | X105: 0.464375 | Y105: 63445.72 | Z105: 73180.33
A106: 570 | B106: =LOOKUP(A106,'DOE - FIPStoPayeeCodeConvTable'!$A$3:$A$213,'DOE - FIPStoPayeeCodeConvTable'!$B$3:$B$213) -> Colonial Heights City | C106: 13074 | D106: 11805 | E106: 12592 | F106: 20487.5 | G106: 17264.95 | H106: 18333.47 | S106: 93556.92 | U106: 46778.46 | V106: 46778.46 | W106: =LOOKUP(A106,'DOE - FIPStoPayeeCodeConvTable'!$A$3:$A$213,'DOE - FIPStoPayeeCodeConvTable'!$E$3:$E$213) -> 0.4027 | X106: 0.503375 | Y106: 23547.11 | Z106: 23231.35
A107: 580 | B107: =LOOKUP(A107,'DOE - FIPStoPayeeCodeConvTable'!$A$3:$A$213,'DOE - FIPStoPayeeCodeConvTable'!$B$3:$B$213) -> Covington City | C107: 12198.5 | D107: 11805 | E107: 11805 | F107: 0 | G107: 24397 | H107: 24003.5 | S107: 84209 | U107: 42104.5 | V107: 42104.5 | W107: =LOOKUP(A107,'DOE - FIPStoPayeeCodeConvTable'!$A$3:$A$213,'DOE - FIPStoPayeeCodeConvTable'!$E$3:$E$213) -> 0.2496 | X107: 0.312 | Y107: 13136.6 | Z107: 28967.9
A108: 590 | B108: =LOOKUP(A108,'DOE - FIPStoPayeeCodeConvTable'!$A$3:$A$213,'DOE - FIPStoPayeeCodeConvTable'!$B$3:$B$213) -> Danville City | C108: 77120.92 | D108: 120916.68 | E108: 93137.36 | F108: 135019.26 | G108: 19668.66 | H108: 66978.98 | S108: 512841.86 | U108: 256420.93 | V108: 256420.93 | W108: =LOOKUP(A108,'DOE - FIPStoPayeeCodeConvTable'!$A$3:$A$213,'DOE - FIPStoPayeeCodeConvTable'!$E$3:$E$213) -> 0.2223 | X108: 0.277875 | Y108: 71252.97 | Z108: 185167.96
A109: 620 | B109: =LOOKUP(A109,'DOE - FIPStoPayeeCodeConvTable'!$A$3:$A$213,'DOE - FIPStoPayeeCodeConvTable'!$B$3:$B$213) -> Franklin City | C109: 0 | D109: 0 | E109: 0 | F109: 0 | G109: 1623.57 | H109: 2117.7 | S109: 3741.27 | U109: 1870.64 | V109: 1870.63 | W109: =LOOKUP(A109,'DOE - FIPStoPayeeCodeConvTable'!$A$3:$A$213,'DOE - FIPStoPayeeCodeConvTable'!$E$3:$E$213) -> 0.371 | X109: 0.46375 | Y109: 867.5 | Z109: 1003.13
A110: 630 | B110: =LOOKUP(A110,'DOE - FIPStoPayeeCodeConvTable'!$A$3:$A$213,'DOE - FIPStoPayeeCodeConvTable'!$B$3:$B$213) -> Fredericksburg City | C110: 57656.81 | D110: 7585.52 | E110: 39324.15 | F110: 31755.91 | G110: 35881.74 | H110: 30410.24 | S110: 202614.37 | U110: 101307.19 | V110: 101307.18 | W110: =LOOKUP(A110,'DOE - FIPStoPayeeCodeConvTable'!$A$3:$A$213,'DOE - FIPStoPayeeCodeConvTable'!$E$3:$E$213) -> 0.3441 | X110: 0.430125 | Y110: 43574.75 | Z110: 57732.43
A111: 640 | B111: =LOOKUP(A111,'DOE - FIPStoPayeeCodeConvTable'!$A$3:$A$213,'DOE - FIPStoPayeeCodeConvTable'!$B$3:$B$213) -> Galax City | C111: 0 | D111: 9254.82 | E111: 19509.5 | F111: 30054.42 | G111: 0 | H111: 242.42 | S111: 59061.16 | U111: 29530.58 | V111: 29530.58 | W111: =LOOKUP(A111,'DOE - FIPStoPayeeCodeConvTable'!$A$3:$A$213,'DOE - FIPStoPayeeCodeConvTable'!$E$3:$E$213) -> 0.3146 | X111: 0.39325 | Y111: 11612.9 | Z111: 17917.68
A112: 650 | B112: =LOOKUP(A112,'DOE - FIPStoPayeeCodeConvTable'!$A$3:$A$213,'DOE - FIPStoPayeeCodeConvTable'!$B$3:$B$213) -> Hampton City | C112: 0 | D112: 0 | E112: 0 | F112: 0 | G112: 0 | H112: 0 | S112: 0 | U112: 0 | V112: 0 | W112: =LOOKUP(A112,'DOE - FIPStoPayeeCodeConvTable'!$A$3:$A$213,'DOE - FIPStoPayeeCodeConvTable'!$E$3:$E$213) -> 0.3223 | X112: 0.402875 | Y112: 0 | Z112: 0
A113: 660 | B113: =LOOKUP(A113,'DOE - FIPStoPayeeCodeConvTable'!$A$3:$A$213,'DOE - FIPStoPayeeCodeConvTable'!$B$3:$B$213) -> Harrisonburg City | C113: 188678.88 | D113: 111503.01 | E113: 165615.92 | F113: 241665.13 | G113: 135456.45 | H113: 287186.15 | S113: 1130105.54 | U113: 565052.77 | V113: 565052.77 | W113: =LOOKUP(A113,'DOE - FIPStoPayeeCodeConvTable'!$A$3:$A$213,'DOE - FIPStoPayeeCodeConvTable'!$E$3:$E$213) -> 0.3808 | X113: 0.476 | Y113: 268965.12 | Z113: 296087.65
A114: 670 | B114: =LOOKUP(A114,'DOE - FIPStoPayeeCodeConvTable'!$A$3:$A$213,'DOE - FIPStoPayeeCodeConvTable'!$B$3:$B$213) -> Hopewell City | C114: 0 | D114: 0 | E114: 0 | F114: 0 | G114: 0 | H114: 0 | S114: 0 | U114: 0 | V114: 0 | W114: =LOOKUP(A114,'DOE - FIPStoPayeeCodeConvTable'!$A$3:$A$213,'DOE - FIPStoPayeeCodeConvTable'!$E$3:$E$213) -> 0.2667 | X114: 0.333375 | Y114: 0 | Z114: 0
A115: 678 | B115: =LOOKUP(A115,'DOE - FIPStoPayeeCodeConvTable'!$A$3:$A$213,'DOE - FIPStoPayeeCodeConvTable'!$B$3:$B$213) -> Lexington City | C115: 0 | D115: 0 | E115: 0 | F115: 0 | G115: 0 | H115: 0 | S115: 0 | U115: 0 | V115: 0 | W115: =LOOKUP(A115,'DOE - FIPStoPayeeCodeConvTable'!$A$3:$A$213,'DOE - FIPStoPayeeCodeConvTable'!$E$3:$E$213) -> 0.3302 | X115: 0.41275 | Y115: 0 | Z115: 0
A116: 680 | B116: =LOOKUP(A116,'DOE - FIPStoPayeeCodeConvTable'!$A$3:$A$213,'DOE - FIPStoPayeeCodeConvTable'!$B$3:$B$213) -> Lynchburg City | C116: 178766.61 | D116: 118833.01 | E116: 152955.19 | F116: 215752.38 | G116: 158268.27 | H116: 248891.67 | S116: 1073467.13 | U116: 536733.57 | V116: 536733.56 | W116: =LOOKUP(A116,'DOE - FIPStoPayeeCodeConvTable'!$A$3:$A$213,'DOE - FIPStoPayeeCodeConvTable'!$E$3:$E$213) -> 0.2736 | X116: 0.342 | Y116: 183562.88 | Z116: 353170.68
A117: 683 | B117: =LOOKUP(A117,'DOE - FIPStoPayeeCodeConvTable'!$A$3:$A$213,'DOE - FIPStoPayeeCodeConvTable'!$B$3:$B$213) -> Manassas City | C117: 26893.48 | D117: 13216.76 | E117: 40941.48 | F117: 22417.4 | G117: 13507.66 | H117: 102216.78 | S117: 219193.56 | U117: 109596.78 | V117: 109596.78 | W117: =LOOKUP(A117,'DOE - FIPStoPayeeCodeConvTable'!$A$3:$A$213,'DOE - FIPStoPayeeCodeConvTable'!$E$3:$E$213) -> 0.4168 | X117: 0.521 | Y117: 57099.92 | Z117: 52496.86
A118: 685 | B118: =LOOKUP(A118,'DOE - FIPStoPayeeCodeConvTable'!$A$3:$A$213,'DOE - FIPStoPayeeCodeConvTable'!$B$3:$B$213) -> Manassas Park City | C118: 2339.52 | D118: 0 | E118: 0 | F118: 0 | G118: 6317.48 | H118: 8263.5 | S118: 16920.5 | U118: 8460.25 | V118: 8460.25 | W118: =LOOKUP(A118,'DOE - FIPStoPayeeCodeConvTable'!$A$3:$A$213,'DOE - FIPStoPayeeCodeConvTable'!$E$3:$E$213) -> 0.4273 | X118: 0.534125 | Y118: 4518.83 | Z118: 3941.42
A119: 690 | B119: =LOOKUP(A119,'DOE - FIPStoPayeeCodeConvTable'!$A$3:$A$213,'DOE - FIPStoPayeeCodeConvTable'!$B$3:$B$213) -> Martinsville City | C119: -23287.8 | D119: 27142.96 | E119: 393.5 | F119: 0 | G119: 11845.76 | H119: 32776.7 | S119: 48871.12 | U119: 24435.56 | V119: 24435.56 | W119: =LOOKUP(A119,'DOE - FIPStoPayeeCodeConvTable'!$A$3:$A$213,'DOE - FIPStoPayeeCodeConvTable'!$E$3:$E$213) -> 0.3321 | X119: 0.415125 | Y119: 10143.81 | Z119: 14291.75
A120: 700 | B120: =LOOKUP(A120,'DOE - FIPStoPayeeCodeConvTable'!$A$3:$A$213,'DOE - FIPStoPayeeCodeConvTable'!$B$3:$B$213) -> Newport News City | C120: 18358.91 | D120: 10089.18 | E120: 31456.16 | F120: 22648.96 | G120: 11112.72 | H120: 10089.18 | S120: 103755.11 | U120: 51877.56 | V120: 51877.55 | W120: =LOOKUP(A120,'DOE - FIPStoPayeeCodeConvTable'!$A$3:$A$213,'DOE - FIPStoPayeeCodeConvTable'!$E$3:$E$213) -> 0.2773 | X120: 0.346625 | Y120: 17982.06 | Z120: 33895.49
A121: 710 | B121: =LOOKUP(A121,'DOE - FIPStoPayeeCodeConvTable'!$A$3:$A$213,'DOE - FIPStoPayeeCodeConvTable'!$B$3:$B$213) -> Norfolk City | C121: 207153.31 | D121: 141907.54 | E121: 215275.04 | F121: 140305.72 | G121: 127980.28 | H121: 171873.84 | S121: 1004495.73 | U121: 502247.87 | V121: 502247.86 | W121: =LOOKUP(A121,'DOE - FIPStoPayeeCodeConvTable'!$A$3:$A$213,'DOE - FIPStoPayeeCodeConvTable'!$E$3:$E$213) -> 0.2455 | X121: 0.306875 | Y121: 154127.31 | Z121: 348120.55
A122: 720 | B122: =LOOKUP(A122,'DOE - FIPStoPayeeCodeConvTable'!$A$3:$A$213,'DOE - FIPStoPayeeCodeConvTable'!$B$3:$B$213) -> Norton City | C122: 0 | D122: 0 | E122: 0 | F122: 0 | G122: 0 | H122: 0 | S122: 0 | U122: 0 | V122: 0 | W122: =LOOKUP(A122,'DOE - FIPStoPayeeCodeConvTable'!$A$3:$A$213,'DOE - FIPStoPayeeCodeConvTable'!$E$3:$E$213) -> 0.3254 | X122: 0.40675 | Y122: 0 | Z122: 0
A123: 730 | B123: =LOOKUP(A123,'DOE - FIPStoPayeeCodeConvTable'!$A$3:$A$213,'DOE - FIPStoPayeeCodeConvTable'!$B$3:$B$213) -> Petersburg City | C123: 54690.16 | D123: 19062.54 | E123: 38330.69 | F123: 26443.26 | G123: 11805 | H123: 19804.54 | S123: 170136.19 | U123: 85068.1 | V123: 85068.09 | W123: =LOOKUP(A123,'DOE - FIPStoPayeeCodeConvTable'!$A$3:$A$213,'DOE - FIPStoPayeeCodeConvTable'!$E$3:$E$213) -> 0.3535 | X123: 0.441875 | Y123: 37589.46 | Z123: 47478.63
A124: 735 | B124: =LOOKUP(A124,'DOE - FIPStoPayeeCodeConvTable'!$A$3:$A$213,'DOE - FIPStoPayeeCodeConvTable'!$B$3:$B$213) -> Poquoson City | C124: 0 | D124: 0 | E124: 0 | F124: 0 | G124: 0 | H124: 0 | S124: 0 | U124: 0 | V124: 0 | W124: =LOOKUP(A124,'DOE - FIPStoPayeeCodeConvTable'!$A$3:$A$213,'DOE - FIPStoPayeeCodeConvTable'!$E$3:$E$213) -> 0.2787 | X124: 0.348375 | Y124: 0 | Z124: 0
A125: 740 | B125: =LOOKUP(A125,'DOE - FIPStoPayeeCodeConvTable'!$A$3:$A$213,'DOE - FIPStoPayeeCodeConvTable'!$B$3:$B$213) -> Portsmouth City | C125: 6278 | D125: 45201.88 | E125: 23814.32 | F125: 12207.18 | G125: 8509.5 | H125: 8994.5 | S125: 105005.38 | U125: 52502.69 | V125: 52502.69 | W125: =LOOKUP(A125,'DOE - FIPStoPayeeCodeConvTable'!$A$3:$A$213,'DOE - FIPStoPayeeCodeConvTable'!$E$3:$E$213) -> 0.2605 | X125: 0.325625 | Y125: 17096.19 | Z125: 35406.5
A126: 750 | B126: =LOOKUP(A126,'DOE - FIPStoPayeeCodeConvTable'!$A$3:$A$213,'DOE - FIPStoPayeeCodeConvTable'!$B$3:$B$213) -> Radford City | C126: 0 | D126: 0 | E126: 0 | F126: 0 | G126: 0 | H126: 23610 | S126: 23610 | U126: 11805 | V126: 11805 | W126: =LOOKUP(A126,'DOE - FIPStoPayeeCodeConvTable'!$A$3:$A$213,'DOE - FIPStoPayeeCodeConvTable'!$E$3:$E$213) -> 0.2035 | X126: 0.254375 | Y126: 3002.9 | Z126: 8802.1
A127: 760 | B127: =LOOKUP(A127,'DOE - FIPStoPayeeCodeConvTable'!$A$3:$A$213,'DOE - FIPStoPayeeCodeConvTable'!$B$3:$B$213) -> Richmond City | C127: 186672.27 | D127: 174479.12 | E127: 192092.26 | F127: 275380.75 | G127: 190294.22 | H127: 460004.84 | S127: 1478923.46 | U127: 739461.73 | V127: 739461.73 | W127: =LOOKUP(A127,'DOE - FIPStoPayeeCodeConvTable'!$A$3:$A$213,'DOE - FIPStoPayeeCodeConvTable'!$E$3:$E$213) -> 0.3691 | X127: 0.461375 | Y127: 341169.16 | Z127: 398292.57
A128: 770 | B128: =LOOKUP(A128,'DOE - FIPStoPayeeCodeConvTable'!$A$3:$A$213,'DOE - FIPStoPayeeCodeConvTable'!$B$3:$B$213) -> Roanoke City | C128: 227011.6 | D128: 116009.74 | E128: 190579.66 | F128: 144635.04 | G128: 200761.09 | H128: 242603.46 | S128: 1121600.59 | U128: 560800.3 | V128: 560800.29 | W128: =LOOKUP(A128,'DOE - FIPStoPayeeCodeConvTable'!$A$3:$A$213,'DOE - FIPStoPayeeCodeConvTable'!$E$3:$E$213) -> 0.3072 | X128: 0.384 | Y128: 215347.31 | Z128: 345452.98
A129: 775 | B129: =LOOKUP(A129,'DOE - FIPStoPayeeCodeConvTable'!$A$3:$A$213,'DOE - FIPStoPayeeCodeConvTable'!$B$3:$B$213) -> Salem City | C129: 4498.4 | D129: 14999.52 | E129: 25389.39 | F129: 4971.48 | G129: -50.59 | H129: 10820.28 | S129: 60628.48 | U129: 30314.24 | V129: 30314.24 | W129: =LOOKUP(A129,'DOE - FIPStoPayeeCodeConvTable'!$A$3:$A$213,'DOE - FIPStoPayeeCodeConvTable'!$E$3:$E$213) -> 0.3513 | X129: 0.439125 | Y129: 13311.74 | Z129: 17002.5
